Workbook

Sheet TitlePage
J3: National Child and Maternal Health Intelligence Network
C6: Disease Management Information Tool (DMIT) - Paediatric disease modules
C9: This tool provides information on emergency hospital admissions for patients aged under 19 with a primary diagnosis of asthma, diabetes or epilepsy. It enables comparison of emergency admission rates, bed days and lengths of stay with a range of different comparators. The tool has been designed to highlight variations and allow benchmarking to inform the commissioning decision making process for children’s services.
D15: Asthma
D20: Diabetes
D25: Epilepsy
C29: The source of all data is the Hospital Episode Statistics (HES), Health and Social Care Information Centre.
C30: Further information on the data module is available with the online user guidance: | M30: http://atlas.chimat.org.uk/IAS/ist/dmithelp
C31: If you have any questions or comments about the tool please contact us: | M31: tools@chimat.org.uk
C34: Date | G34: Version | H34: Change/Comment
C35: 2015-12-01 | G35: 5.2 | H35: Correction to error in "four similar" comparators
C36: 2015-08-01 | G36: 5.1 | H36: Correction to error in asthma historic data
C37: 2015-08-01 | G37: 5 | H37: Updated with 2013/14 HES Data
C38: 2014-04-01 | G38: 4.1 | H38: Fixed minor error with rank calculations and display: data unaffected.
C39: 2014-02-01 | G39: 4 | H39: Updated with 2012/13 HES data. Combined tools into one.
C40: 2012-12-21 | G40: 3 | H40: Updated with 2011/12 HES Data
C41: 2012-08-06 | G41: 2.4 | H41: Correction for Plymouth PCT - PCT Cluster
C42: 2012-07-11 | G42: 2.3 | H42: Correction to historical report data
C43: 2012-06-21 | G43: 2.1 | H43: Fixed issue with method of admission table
C44: 2012-06-06 | G44: 2 | H44: Updated with 2010/11 HES Data
C45: 2011-09-05 | G45: 1 | H45: Updated to ChiMat version

Sheet Metadata
K3: National Child and Maternal Health Intelligence Network
C6: ="Disease Management Information Tool - Paediatric "&Settings!B2 -> Disease Management Information Tool - Paediatric Diabetes
C9: The data used within this tool is derived from the Hospital Episode Statistics (HES) database.
C11: Definition | G11: ="Emergency admissions for "&LOWER(Settings!B2) &" for patients registered at a GP practice within the CCG" -> Emergency admissions for diabetes for patients registered at a GP practice within the CCG | K11: Total bed days following admission. | O11: Average length of stay, in days, following admission.
C14: Numerator definition | G14: ="Admissions (first finished consultant episodes) with a primary diagnosis code of "&Settings!B4&" and method of admission beginning with 2" -> Admissions (first finished consultant episodes) with a primary diagnosis code of E10 and method of admission beginning with 2 | K14: ="Total bed days (spell duration) for discharges with a primary diagnosis code of "&Settings!B4&" and method of admission beginning with 2" -> Total bed days (spell duration) for discharges with a primary diagnosis code of E10 and method of admission beginning with 2 | O14: ="Total bed days (spell duration) for discharges with a primary diagnosis code of "&Settings!B4&" and method of admission beginning with 2" -> Total bed days (spell duration) for discharges with a primary diagnosis code of E10 and method of admission beginning with 2
C18: Denominator definition | G18: Population aged 0-18 years | K18: Population aged 0-18 years | O18: ="Total discharges with a primary diagnosis code of "&Settings!B4&" and method of admission beginning with 2" -> Total discharges with a primary diagnosis code of E10 and method of admission beginning with 2
C20: Numerator source | G20: Source: Hospital Episode Statistics (HES) Copyright © 2015, Re‐used with the permission of The Health and Social Care Information Centre. All rights reserved.
C23: Denominator source | G23: Office for National Statistics (ONS) | O23: Hospital Episode Statistics (HES)
C25: Time Period | G25: =Settings!B1 -> 2013/14
C27: Cost data | G27: ="PBR tariff for non-elective admissions, HRG "&Selections_data_CCG!H10 -> PBR tariff for non-elective admissions, HRG PA68Z: Diabetes mellitus without ketoacidosis or coma
C29: Cost source | G29: https://www.gov.uk/government/publications/payment-by-results-pbr-operational-guidance-and-tariffs
G32: Further information is available in the online user guidance:
G33: http://atlas.chimat.org.uk/IAS/ist/dmithelp

Sheet MainPage
J3: National Child and Maternal Health Intelligence Network
C6: ="Disease Management Information Tool - Paediatric "&Settings!B2 -> Disease Management Information Tool - Paediatric Diabetes
C9: Please select your clinical commissioning group (CCG)
N11: (requires Internet access; warning window may be shown first)

Sheet Comparator
J3: National Child and Maternal Health Intelligence Network
C6: ="Disease Management Information Tool - Paediatric "&Settings!B2 -> Disease Management Information Tool - Paediatric Diabetes
C9: =PROPER(Settings!B6)&" Data: Choose comparator" -> Current Data: Choose comparator
C11: =" "&Selections_data_CCG!G3 -> NHS Islington

Sheet ChartGroups
M3: National Child and Maternal Health Intelligence Network
C6: ="Disease Management Information Tool - Paediatric "&Settings!B2 -> Disease Management Information Tool - Paediatric Diabetes
C8: ="Emergency admissions via A&E | "&Settings!B1 -> Emergency admissions via A&E | 2013/14
C10: =Selections_data_CCG!G3 -> NHS Islington
O17: via A&E | Q17: Other
M18: =Selections_data_CCG!G3 -> NHS Islington | O18: =IF(Settings!B2="Asthma", VLOOKUP(Selections_data_CCG!G2,em_groups_new!A:M,2,FALSE),IF(Settings!B2="Diabetes", VLOOKUP(Selections_data_CCG!G2,em_groups_new!A:M,4,FALSE),VLOOKUP(Selections_data_CCG!G2,em_groups_new!A:M,6,FALSE))) -> Majority | Q18: =IF(Settings!B2="Asthma", VLOOKUP(Selections_data_CCG!G2,em_groups_new!A:M,3,FALSE),IF(Settings!B2="Diabetes", VLOOKUP(Selections_data_CCG!G2,em_groups_new!A:M,5,FALSE),VLOOKUP(Selections_data_CCG!G2,em_groups_new!A:M,7,FALSE))) -> Suppressed
M19: =Selections_data_CCG!G3&": %" -> NHS Islington: % | O19: =IF(O18="Majority", "Majority",IF(O18="suppressed","Suppressed", 100*O18/SUM($O18:$Q18))) -> Majority | Q19: =IF(OR(O18="Suppressed",Q18="suppressed"), "Suppressed",IF(Q18="Majority","Majority", 100*Q18/SUM($O18:$Q18))) -> Suppressed
M20: =Selections_data_CCG!G3&": average LOS" -> NHS Islington: average LOS | O20: =IF(Settings!B2="Asthma", VLOOKUP(Selections_data_CCG!G2,em_groups_new!A:M,8,FALSE),IF(Settings!B2="Diabetes", VLOOKUP(Selections_data_CCG!G2,em_groups_new!A:M,10,FALSE),VLOOKUP(Selections_data_CCG!G2,em_groups_new!A:M,12,FALSE))) -> Suppressed | Q20: =IF(Settings!B2="Asthma", VLOOKUP(Selections_data_CCG!G2,em_groups_new!A:M,9,FALSE),IF(Settings!B2="Diabetes", VLOOKUP(Selections_data_CCG!G2,em_groups_new!A:M,11,FALSE),VLOOKUP(Selections_data_CCG!G2,em_groups_new!A:M,13,FALSE))) -> Suppressed
M21: England | O21: =IF(Settings!B2="Asthma", VLOOKUP("England",em_groups_new!A:M,2,FALSE),IF(Settings!B2="Diabetes", VLOOKUP("England",em_groups_new!A:M,4,FALSE),VLOOKUP("England",em_groups_new!A:M,6,FALSE))) -> 3865 | Q21: =IF(Settings!B2="Asthma", VLOOKUP("England",em_groups_new!A:M,3,FALSE),IF(Settings!B2="Diabetes", VLOOKUP("England",em_groups_new!A:M,5,FALSE),VLOOKUP("England",em_groups_new!A:M,7,FALSE))) -> 3083
M22: England: % | O22: =100*O21/SUM($O21:$Q21) -> 55.62751871 | Q22: =100*Q21/SUM($O21:$Q21) -> 44.37248129
M24: England: average LOS | O24: =IF(Settings!B2="Asthma", VLOOKUP("England",em_groups_new!A:M,8,FALSE),IF(Settings!B2="Diabetes", VLOOKUP("England",em_groups_new!A:M,10,FALSE),VLOOKUP("England",em_groups_new!A:M,12,FALSE))) -> 2.32 | Q24: =IF(Settings!B2="Asthma", VLOOKUP("England",em_groups_new!A:M,9,FALSE),IF(Settings!B2="Diabetes", VLOOKUP("England",em_groups_new!A:M,11,FALSE),VLOOKUP("England",em_groups_new!A:M,13,FALSE))) -> 1.99
M26: =IF(IF(Settings!B2="Asthma", VLOOKUP(Selections_data_CCG!G2,em_groups_new!A:P,14,FALSE),IF(Settings!B2="Diabetes", VLOOKUP(Selections_data_CCG!G2,em_groups_new!A:P,15,FALSE),VLOOKUP(Selections_data_CCG!G2,em_groups_new!A:P,16,FALSE)))=0,"",IF(Settings!B2="Asthma", VLOOKUP(Selections_data_CCG!G2,em_groups_new!A:P,14,FALSE),IF(Settings!B2="Diabetes", VLOOKUP(Selections_data_CCG!G2,em_groups_new!A:P,15,FALSE),VLOOKUP(Selections_data_CCG!G2,em_groups_new!A:P,16,FALSE)))) -> Length of stay has been suppressed, however the average length of stay following admission from A&E for patients in NHS Islington is between 1.4 and 1.6 times the length of stay following non-A&E admissions.
M29: Source: Hospital Episode Statistics (HES) Copyright © 2015, Re‐used with the permission of The Health and Social Care Information Centre. All rights reserved.
C31: Where bars are not shown this may relate to suppressed values - please see table opposite.

Sheet ChartPatients
M3: National Child and Maternal Health Intelligence Network
C6: ="Disease Management Information Tool - Paediatric "&Settings!B2 -> Disease Management Information Tool - Paediatric Diabetes
C8: ="Emergency admission patient counts | "&Settings!B1 -> Emergency admission patient counts | 2013/14
C10: =Selections_data_CCG!G3 -> NHS Islington
C12: The chart shows the percentage of patients who had 1 admission, 2 admissions and 3 or more admissions during the year. Where necessary to avoid disclosure, the percentage of patients who had 1 admission and 2+ admissions are shown, or in some cases the values are entirely suppressed.
O16: Admissions
O17: 1 | Q17: =IF(Settings!B2="Asthma", em_patients_new!T2,IF(Settings!B2="Diabetes", em_patients_new!T7,em_patients_new!T12)) -> 2+ | S17: =IF(Settings!B2="Asthma", em_patients_new!U2,IF(Settings!B2="Diabetes", em_patients_new!U7,em_patients_new!U12)) -> 
L18: =Selections_data_CCG!G3 -> NHS Islington | O18: =IF(Settings!B2="Asthma", em_patients_new!S3,IF(Settings!B2="Diabetes", em_patients_new!S8,em_patients_new!S13)) -> Majority | Q18: =IF(Settings!B2="Asthma", em_patients_new!T3,IF(Settings!B2="Diabetes", em_patients_new!T8,em_patients_new!T13)) -> Suppressed | S18: =IF(Settings!B2="Asthma", em_patients_new!U3,IF(Settings!B2="Diabetes", em_patients_new!U8,em_patients_new!U13)) -> 
L19: =Selections_data_CCG!G3&": %" -> NHS Islington: % | O19: =IF(O18="Suppressed", "Suppressed",IF(O18="Majority", "Majority", 100*O18/SUM($O18:$S18))) -> Majority | Q19: =IF(Q18="suppressed", "Suppressed", 100*Q18/SUM($O18:$S18)) -> Suppressed | S19: =IF(ISERROR(100*S18/SUM($O18:$S18)),"",100*S18/SUM($O18:$S18)) -> 
L20: England | O20: =IF(Settings!B2="Asthma", em_patients_new!S4,IF(Settings!B2="Diabetes", em_patients_new!S9,em_patients_new!S14)) -> 4103 | Q20: =IF(Settings!B2="Asthma", em_patients_new!T4,IF(Settings!B2="Diabetes", em_patients_new!T9,em_patients_new!T14)) -> 1412 | S20: =IF(Settings!B2="Asthma", em_patients_new!U4,IF(Settings!B2="Diabetes", em_patients_new!U9,em_patients_new!U14)) -> 
L21: England: % | O21: =100*O20/SUM($O20:$S20) -> 74.39709882 | Q21: =100*Q20/SUM($O20:$S20) -> 25.60290118 | S21: =IF(ISERROR(100*S20/SUM($O20:$S20)),"",100*S20/SUM($O20:$S20)) -> 
C29: Source: Hospital Episode Statistics (HES) Copyright © 2015, Re‐used with the permission of The Health and Social Care Information Centre. All rights reserved.

Sheet ChartCurrent
N3: National Child and Maternal Health Intelligence Network
C6: ="Disease Management Information Tool - Paediatric "&Settings!B2 -> Disease Management Information Tool - Paediatric Diabetes
C8: ="Comparison with "&HLOOKUP(Settings!B5,Selections_data_CCG!1:4,4,FALSE)&" | "&PROPER(Settings!B2)&" emergency admissions (aged under 19 years old) | "&Settings!B1 -> Comparison with the top 5% CCGs | Diabetes emergency admissions (aged under 19 years old) | 2013/14
C10: =Selections_data_CCG!G3 -> NHS Islington
E12: Admissions | G12: Bed days | J12: Average length of stay (days)
C13: =Selections_data_CCG!G3 &" (number)" -> NHS Islington (number) | E13: =IF(VLOOKUP(Selections_data_CCG!G2,CurrentData!A:R,7,FALSE)=0,"Suppressed",VLOOKUP(Selections_data_CCG!G2,CurrentData!A:R,7,FALSE)) -> 32 | G13: =IF(VLOOKUP(Selections_data_CCG!G2,CurrentData!$A:R,8,FALSE)=0,"Suppressed",VLOOKUP(Selections_data_CCG!G2,CurrentData!$A:R,8,FALSE)) -> 277 | J13: =VLOOKUP(Selections_data_CCG!G2,CurrentData!$A:R,10,FALSE) -> 8.147058824
C14: Rate per 100,000 population | E14: =VLOOKUP(Selections_data_CCG!G2,CurrentData!$A:R,13,FALSE) -> 77.70951213 | G14: =VLOOKUP(Selections_data_CCG!G2,CurrentData!$A:R,16,FALSE) -> 672.6729644
C15: - Lower limit | E15: =VLOOKUP(Selections_data_CCG!G2,CurrentData!$A:R,14,FALSE) -> 53.15324877 | G15: =VLOOKUP(Selections_data_CCG!G2,CurrentData!A:R,17,FALSE) -> 595.7816596 | J15: =VLOOKUP(Selections_data_CCG!G2,CurrentData!A:R,11,FALSE) -> 7.215792048
C16: - Upper limit | E16: =VLOOKUP(Selections_data_CCG!G2,CurrentData!$A:R,15,FALSE) -> 109.7026447 | G16: =VLOOKUP(Selections_data_CCG!G2,CurrentData!A:R,18,FALSE) -> 756.7345777 | J16: =VLOOKUP(Selections_data_CCG!G2,CurrentData!A:R,12,FALSE) -> 9.165168581
C17: =Settings!D5&" (rate)" -> Top 5% (rate) | E17: =IF(Settings!B5="4SIMILAR",VLOOKUP(Selections_data_CCG!G2,'CurrentData-4SIMILAR'!$A:R,13,FALSE),VLOOKUP(Settings!C5,CurrentData!$A:R,13,FALSE)) -> 26.11663851 | G17: =IF(Settings!B5="4SIMILAR",VLOOKUP(Selections_data_CCG!G2,'CurrentData-4SIMILAR'!$A:R,16,FALSE),VLOOKUP(Settings!C5,CurrentData!$A:R,16,FALSE)) -> 36.90068939 | J17: =IF(Settings!B5="4SIMILAR",VLOOKUP(Selections_data_CCG!G2,'CurrentData-4SIMILAR'!$A:R,10,FALSE),VLOOKUP(Settings!C5,CurrentData!$A:R,10,FALSE)) -> 0.8745874587
C18: - Lower limit | E18: =IF(Settings!B5="4SIMILAR",VLOOKUP(Selections_data_CCG!G2,'CurrentData-4SIMILAR'!$A:R,14,FALSE),VLOOKUP(Settings!C5,CurrentData!$A:R,14,FALSE)) -> 22.2611564 | G18: =IF(Settings!B5="4SIMILAR",VLOOKUP(Selections_data_CCG!G2,'CurrentData-4SIMILAR'!$A:R,17,FALSE),VLOOKUP(Settings!C5,CurrentData!$A:R,17,FALSE)) -> 31.80114145 | J18: =IF(Settings!B5="4SIMILAR",VLOOKUP(Selections_data_CCG!G2,'CurrentData-4SIMILAR'!$A:R,11,FALSE),VLOOKUP(Settings!C5,CurrentData!$A:R,11,FALSE)) -> 0.7724473567
C19: - Upper limit | E19: =IF(Settings!B5="4SIMILAR",VLOOKUP(Selections_data_CCG!G2,'CurrentData-4SIMILAR'!$A:R,15,FALSE),VLOOKUP(Settings!C5,CurrentData!$A:R,15,FALSE)) -> 30.44801268 | G19: =IF(Settings!B5="4SIMILAR",VLOOKUP(Selections_data_CCG!G2,'CurrentData-4SIMILAR'!$A:R,18,FALSE),VLOOKUP(Settings!C5,CurrentData!$A:R,18,FALSE)) -> 42.58535584 | J19: =IF(Settings!B5="4SIMILAR",VLOOKUP(Selections_data_CCG!G2,'CurrentData-4SIMILAR'!$A:R,12,FALSE),VLOOKUP(Settings!C5,CurrentData!$A:R,12,FALSE)) -> 0.9864765877
C20: Significance* | E20: =IF(E13="Suppressed","",IF(MIN(E18:E19)>MAX(E15:E16),"Better",IF(MIN(E15:E16)>MAX(E18:E19),"Worse","Same"))) -> Worse | G20: =IF(G13="Suppressed","",IF(MIN(G18:G19)>MAX(G15:G16),"Better",IF(MIN(G15:G16)>MAX(G18:G19),"Worse","Same"))) -> Worse | J20: =IF(J13="Suppressed","",IF(J13="","",IF(J13>1.1*J17,"Higher",IF(J13<0.9*J17,"Lower","About the same"))&"**")) -> Higher**
C21: Rank (of 211 CCGs) 1 indicates 'best' | E21: =IF(E13="Suppressed","",VLOOKUP(Selections_data_CCG!G2,CurrentData!A:V,3,FALSE)) -> 183 | G21: =IF(G13="Suppressed", "",VLOOKUP(Selections_data_CCG!G2,CurrentData!A:V,4,FALSE)) -> 210 | J21: =VLOOKUP(Selections_data_CCG!G2,CurrentData!A:V,5,FALSE) -> 209
C22: =IF(Settings!B5="4SIMILAR", "* When compared to the average of the four most similar CCGs.", "* When compared to " & Settings!D5) -> * When compared to Top 5%
C23: ** Not tested for statistical significance
C24: =IF(Settings!B5="4SIMILAR", "More information on four most similar CCGs","") -> 
C25: Source: Hospital Episode Statistics (HES) Copyright © 2015

Sheet ChartHist
M3: National Child and Maternal Health Intelligence Network
C6: ="Disease Management Information Tool - Paediatric "&Settings!B2 -> Disease Management Information Tool - Paediatric Diabetes
C8: ="Comparison with "&HLOOKUP(Settings!B5,Selections_data_CCG!1:4,4,FALSE)&" | "&PROPER(Settings!B2)&" emergency admissions (aged under 19 years old) | "&Settings!B1 -> Comparison with the top 5% CCGs | Diabetes emergency admissions (aged under 19 years old) | 2013/14
C10: =Selections_data_CCG!G3 -> NHS Islington
L27: =Selections_data_CCG!G3 -> NHS Islington | N27: Admissions per 100,000 population | P27: Bed days per 100,000 population | R27: Average length of stay
L28: =yearlytrends!B6 -> 2010/11 | N28: =IF(OR(yearlytrends!C6="Suppressed",yearlytrends!C6=""),#N/A, yearlytrends!C6) -> 30.34103321 | P28: =IF(OR(yearlytrends!D6="Suppressed",yearlytrends!D6=""),#N/A, yearlytrends!D6) -> 93.55151907 | R28: =IF(OR(yearlytrends!E6="Suppressed",yearlytrends!E6=""),#N/A, yearlytrends!E6) -> 3.083333333
L29: =yearlytrends!B7 -> 2011/12 | N29: =IF(OR(yearlytrends!C7="Suppressed",yearlytrends!C7=""),#N/A, yearlytrends!C7) -> 45.13201113 | P29: =IF(OR(yearlytrends!D7="Suppressed",yearlytrends!D7=""),#N/A, yearlytrends!D7) -> 188.0500464 | R29: =IF(OR(yearlytrends!E7="Suppressed",yearlytrends!E7=""),#N/A, yearlytrends!E7) -> 4.166666667
L30: =yearlytrends!B8 -> 2012/13 | N30: =IF(OR(yearlytrends!C8="Suppressed",yearlytrends!C8=""),#N/A, yearlytrends!C8) -> 42.07316771 | P30: =IF(OR(yearlytrends!D8="Suppressed",yearlytrends!D8=""),#N/A, yearlytrends!D8) -> 326.6857728 | R30: =IF(OR(yearlytrends!E8="Suppressed",yearlytrends!E8=""),#N/A, yearlytrends!E8) -> 7.764705882
L31: =yearlytrends!B9 -> 2013/14 | N31: =IF(OR(yearlytrends!C9="Suppressed",yearlytrends!C9=""),#N/A, yearlytrends!C9) -> 77.70951213 | P31: =IF(OR(yearlytrends!D9="Suppressed",yearlytrends!D9=""),#N/A, yearlytrends!D9) -> 672.6729644 | R31: =IF(OR(yearlytrends!E9="Suppressed",yearlytrends!E9=""),#N/A, yearlytrends!E9) -> 8.147058824
L33: =REPLACE(SUBSTITUTE(HLOOKUP(Settings!B5,Selections_data_CCG!1:4,4,FALSE),"the ", ""),1,1,UPPER(LEFT(SUBSTITUTE(HLOOKUP(Settings!B5,Selections_data_CCG!1:4,4,FALSE),"the ", ""),1))) -> Top 5% CCGs | N33: Admissions per 100,000 population | P33: Bed days per 100,000 population | R33: Average length of stay
L35: =yearlytrends!B6 -> 2010/11 | N35: =SUMIFS(yearlytrends!6:6,yearlytrends!4:4,Settings!B5,yearlytrends!5:5, "Admission rate") -> 30.39769539 | P35: =SUMIFS(yearlytrends!6:6,yearlytrends!4:4,Settings!B5,yearlytrends!5:5, "Bed day rate") -> 48.55301733 | R35: =SUMIFS(yearlytrends!6:6,yearlytrends!4:4,Settings!B5,yearlytrends!5:5, "Average length of stay") -> 0.9212328767
L36: =yearlytrends!B7 -> 2011/12 | N36: =SUMIFS(yearlytrends!7:7,yearlytrends!4:4,Settings!B5,yearlytrends!5:5, "Admission rate") -> 30.1241852 | P36: =SUMIFS(yearlytrends!7:7,yearlytrends!4:4,Settings!B5,yearlytrends!5:5, "Bed day rate") -> 40.55039721 | R36: =SUMIFS(yearlytrends!7:7,yearlytrends!4:4,Settings!B5,yearlytrends!5:5, "Average length of stay") -> 0.7946768061
L37: =yearlytrends!B8 -> 2012/13 | N37: =SUMIFS(yearlytrends!8:8,yearlytrends!4:4,Settings!B5,yearlytrends!5:5, "Admission rate") -> 26.81078816 | P37: =SUMIFS(yearlytrends!8:8,yearlytrends!4:4,Settings!B5,yearlytrends!5:5, "Bed day rate") -> 44.4575451 | R37: =SUMIFS(yearlytrends!8:8,yearlytrends!4:4,Settings!B5,yearlytrends!5:5, "Average length of stay") -> 0.9400749064
L38: =yearlytrends!B9 -> 2013/14 | N38: =SUMIFS(yearlytrends!9:9,yearlytrends!4:4,Settings!B5,yearlytrends!5:5, "Admission rate") -> 26.11663851 | P38: =SUMIFS(yearlytrends!9:9,yearlytrends!4:4,Settings!B5,yearlytrends!5:5, "Bed day rate") -> 36.90068939 | R38: =SUMIFS(yearlytrends!9:9,yearlytrends!4:4,Settings!B5,yearlytrends!5:5, "Average length of stay") -> 0.8745874587
L39: =IF(Settings!B5="4SIMILAR", "More information on four most similar CCGs","") -> 
L40: Source: Hospital Episode Statistics (HES) Copyright © 2015

Sheet Chart savings
E3: National Child and Maternal Health Intelligence Network
C6: ="Disease Management Information Tool - Paediatric "&Settings!B2 -> Disease Management Information Tool - Paediatric Diabetes
C8: ="Potential cost savings information based on "&Settings!B1&" data and costs" -> Potential cost savings information based on 2013/14 data and costs
C10: =Selections_data_CCG!G3 -> NHS Islington
C12: The cost per admission is the tariff for non-elective spells. The cost savings shown below have been calculated by multiplying this by the number of emergency admissions.
C13: Cost savings should be considered an approximate guide rather than a specific amount.
D15: Selected CCG | E15: England | F15: The best performing 25% | G15: The best performing 5%
C16: Admissions per 100,000 population aged 0-18 | D16: =VLOOKUP(Selections_data_CCG!G2,CurrentData!A:R,13,FALSE) -> 77.70951213 | E16: =VLOOKUP("ENG",CurrentData!A:R,13,FALSE) -> 56.62472531 | F16: =VLOOKUP("TOP25PCT",CurrentData!A:R,13,FALSE) -> 36.16212308 | G16: =VLOOKUP("TOP5PCT",CurrentData!A:R,13,FALSE) -> 26.11663851
C17: Cost per admission | D17: =Selections_data_CCG!I10 -> 918 | E17: =D17 -> 918 | F17: =E17 -> 918 | G17: =F17 -> 918
C18: Total cost per 100,000 population aged 0-18 | D18: =IF(ISERROR(D16*D17),"",D16*D17) -> 71337.33214 | E18: =E16*E17 -> 51981.49783 | F18: =F16*F17 -> 33196.82899 | G18: =G16*G17 -> 23975.07415
E20: If the selected CCG's performance matched England | F20: If the selected CCG's performance matched the best performing 25% | G20: If the selected CCG's performance matched the best performing 5%
C21: Potential cost savings per 100,000 population aged 0-18 | E21: =IF(D18="","Not able to be calculated",IF(D18>E18,D18-E18,"performs equal or better than England")) -> 19355.83431 | F21: =IF(D18="","Not able to be calculated",IF(D18>F18,D18-F18,"performs equal or better than top 25%")) -> 38140.50315 | G21: =IF(D18="","Not able to be calculated",IF(D18>G18,D18-G18,"performs equal or better than top 5%")) -> 47362.25798
C22: Potential total cost savings - total approximate figure | E22: =IF(D18="","Not able to be calculated",IF(E21="performs equal or better than England","performs equal or better than England",FLOOR((E21/100000)*VLOOKUP(Selections_data_CCG!G2,population!C:L,Settings!$B$3,FALSE),100))) -> 7900 | F22: =IF(D18="","Not able to be calculated",IF(F21="performs equal or better than top 25%","performs equal or better than top 25%",FLOOR((F21/100000)*VLOOKUP(Selections_data_CCG!G2,population!C:Z,Settings!B3,FALSE),100))) -> 15700 | G22: =IF(D18="","Not able to be calculated",IF(G21="performs equal or better than top 5%","performs equal or better than top 5%",FLOOR((G21/100000)*VLOOKUP(Selections_data_CCG!G2,population!C:Z,Settings!B3,FALSE),100))) -> 19500

Sheet ClosestCCGs
I3: National Child and Maternal Health Intelligence Network
C6: ="Disease Management Information Tool - Paediatric "&Settings!B2 -> Disease Management Information Tool - Paediatric Diabetes
C8: Four most similar CCGs
C10: =Selections_data_CCG!G3 -> NHS Islington
E12: CCG code | F12: CCG name
C13: Most similar | E13: =HLOOKUP(Selections_data_CCG!G2,'Closest CCG (codes)'!3:8,3,FALSE) -> 08Y | F13: =VLOOKUP(E13, CurrentData!A:B,2,FALSE) -> NHS West London (Kensington and Chelsea, Queen's Park and Paddington)
C14: 2nd most similar | E14: =HLOOKUP(Selections_data_CCG!G2,'Closest CCG (codes)'!3:8,4,FALSE) -> 08X | F14: =VLOOKUP(E14, CurrentData!A:B,2,FALSE) -> NHS Wandsworth
C15: 3rd most similar | E15: =HLOOKUP(Selections_data_CCG!G2,'Closest CCG (codes)'!3:8,5,FALSE) -> 08C | F15: =VLOOKUP(E15, CurrentData!A:B,2,FALSE) -> NHS Hammersmith and Fulham
C16: 4th most similar | E16: =HLOOKUP(Selections_data_CCG!G2,'Closest CCG (codes)'!3:8,6,FALSE) -> 08D | F16: =VLOOKUP(E16, CurrentData!A:B,2,FALSE) -> NHS Haringey
C18: List taken from NHS RightCare Commissioning for Value, for more information:
C19: www.rightcare.nhs.uk/index.php/commissioning-for-value/

Sheet CurrentData
K3: National Child and Maternal Health Intelligence Network
A6: ="Disease Management Information Tool - Paediatric "&Settings!B2 -> Disease Management Information Tool - Paediatric Diabetes | S6: **** Chart and system specific columns, please ensure your interpretation of these fields is correct before use
A8: Source: Hospital Episode Statistics (HES) Copyright © 2015, Re‐used with the permission of The Health and Social Care Information Centre. All rights reserved.
A9: ="Data are for "&Settings!B1&", and relate to emergency admissions for "& LOWER(Settings!B2) &" ; ICD10: "&Settings!B4 -> Data are for 2013/14, and relate to emergency admissions for diabetes ; ICD10: E10
J10: Average LOS | M10: Admissions per 100,000 pop. | P10: Bed days per 100,000 pop. | W10: Comparator admission rate | Y10: Comparator bed day rate | AA10: Comparator av LOS
A11: Code | B11: Name | C11: Admission rate rank | D11: Bed days rate rank | E11: Average LOS rank | F11: Population 0-18 years | G11: Count of admissions | H11: Spell duration | I11: Spell denom (discharges) | J11: Value | K11: Lower 95% confidence level | L11: Upper 95% confidence level | M11: value | N11: Lower 95% confidence level | O11: Upper 95% confidence level | P11: value | Q11: Lower 95% confidence level | R11: Upper 95% confidence level | S11: Admission data ordered | T11: Bed days data ordered | U11: LOS data ordered | V11: Selected area admission rate | W11: =Settings!D5 -> Top 5% | X11: Selected area bed day rate | Y11: =Settings!D5 -> Top 5% | Z11: Selected area av LOS | AA11: =Settings!D5 -> Top 5% | AB11: Top25%admissions | AC11: Top25%beddays | AD11: Top25%LOS
A12: 02N | B12: NHS Airedale, Wharfedale and Craven | C12: =IF(G12=0,"",COUNTIF(G$12:G$222,"<>0")-(RANK(M12,$M$12:$M$222)+COUNTIF($M$12:M12,M12)-2)) -> 184 | D12: =IF(H12=0,"",COUNTIF(P$12:P$222,"<>Suppressed")-(RANK(P12,$P$12:$P$222)+COUNTIF($P$12:P12,P12)-2)) -> 198 | E12: =IF(J12="Suppressed","",COUNTIF(J$12:J$222,"<>Suppressed")-(RANK(J12,$J$12:$J$222)+COUNTIF($J$12:J12,J12)-2)) -> 177 | F12: =VLOOKUP(A12,population!C:O,Settings!$B$3,FALSE) -> 34644.4 | G12: =IF(ISNA(IF(Settings!$B$2="Asthma", SUMIFS(CCGData!E:E,CCGData!A:A,Settings!$B$1, CCGData!B:B,CurrentData!A12), IF(Settings!$B$2="Diabetes", SUMIFS(CCGData!C:C,CCGData!A:A,Settings!$B$1, CCGData!B:B,CurrentData!A12), SUMIFS(CCGData!D:D,CCGData!A:A,Settings!$B$1, CCGData!B:B,CurrentData!A12)))),"",IF(Settings!$B$2="Asthma", SUMIFS(CCGData!E:E,CCGData!A:A,Settings!$B$1, CCGData!B:B,CurrentData!A12), IF(Settings!$B$2="Diabetes", SUMIFS(CCGData!C:C,CCGData!A:A,Settings!$B$1, CCGData!B:B,CurrentData!A12), SUMIFS(CCGData!D:D,CCGData!A:A,Settings!$B$1, CCGData!B:B,CurrentData!A12)))) -> 27 | H12: =IF(Settings!$B$2="Asthma", SUMIFS(CCGData!J:J,CCGData!A:A,Settings!$B$1, CCGData!B:B,CurrentData!A12), IF(Settings!$B$2="Diabetes", SUMIFS(CCGData!F:F,CCGData!A:A,Settings!$B$1, CCGData!B:B,CurrentData!A12), SUMIFS(CCGData!H:H,CCGData!A:A,Settings!$B$1, CCGData!B:B,CurrentData!A12))) -> 78 | I12: =IF(Settings!$B$2="Asthma", SUMIFS(CCGData!K:K,CCGData!A:A,Settings!$B$1, CCGData!B:B,CurrentData!A12), IF(Settings!$B$2="Diabetes", SUMIFS(CCGData!G:G,CCGData!A:A,Settings!$B$1, CCGData!B:B,CurrentData!A12), SUMIFS(CCGData!I:I,CCGData!A:A,Settings!$B$1, CCGData!B:B,CurrentData!A12))) -> 27 | J12: =IF(OR(I12=0,H12=0),"Suppressed",H12/I12) -> 2.888888889 | K12: =IF(J12="Suppressed","",IF(H12=0,0,IF(H12<389,CHIINV(0.5+95/200,2*H12)/2,H12*(1-1/(9*H12)-NORMSINV(0.5+95/200)/3/SQRT(H12))^3))/I12) -> 2.283546785 | L12: =IF(J12="Suppressed","",IF(H12<389,CHIINV(0.5-95/200,2*H12+2)/2,(H12+1)*(1-1/(9*(H12+1))+NORMSINV(0.5+95/200)/3/SQRT(H12+1))^3)/I12) -> 3.605464076 | M12: =IF(G12=0,"Suppressed",G12/$F12*100000) -> 77.93467342 | N12: =IF(G12=0,0,IF(G12<389,CHIINV(0.5+95/200,2*G12)/2,G12*(1-1/(9*G12)-NORMSINV(0.5+95/200)/3/SQRT(G12))^3))/F12*100000 -> 51.35944087 | O12: =IF(G12=0,0,IF(G12<389,CHIINV(0.5-95/200,2*G12+2)/2,(G12+1)*(1-1/(9*(G12+1))+NORMSINV(0.5+95/200)/3/SQRT(G12+1))^3)/F12*100000) -> 113.3908581 | P12: =IF(H12=0,"Suppressed",H12/$F12*100000) -> 225.1446121 | Q12: =IF(H12=0,0,IF(H12<389,CHIINV(0.5+95/200,2*H12)/2,H12*(1-1/(9*H12)-NORMSINV(0.5+95/200)/3/SQRT(H12))^3))/F12*100000 -> 177.967473 | R12: =IF(H12=0,0,IF(H12<389,CHIINV(0.5-95/200,2*H12+2)/2,(H12+1)*(1-1/(9*(H12+1))+NORMSINV(0.5+95/200)/3/SQRT(H12+1))^3)/F12*100000) -> 280.9906653 | S12: =VLOOKUP(ROW(S12)-11,C:R,11,FALSE) -> 23.59826317 | T12: =VLOOKUP(ROW(T12)-11,D:R,13,FALSE) -> 30.11335527 | U12: =VLOOKUP(ROW(U12)-11,E:R,6,FALSE) -> 0.5 | V12: =VLOOKUP(Selections_data_CCG!$G$2,CurrentData!A:R,13,FALSE) -> 77.70951213 | W12: =IF(Settings!$B$5="4SIMILAR", VLOOKUP(Selections_data_CCG!$G$2,'CurrentData-4SIMILAR'!A:R,13,FALSE), VLOOKUP(Settings!$C$5,CurrentData!A:R,13,FALSE)) -> 26.11663851 | X12: =VLOOKUP(Selections_data_CCG!$G$2,CurrentData!A:R,16,FALSE) -> 672.6729644 | Y12: =IF(Settings!$B$5="4SIMILAR", VLOOKUP(Selections_data_CCG!$G$2,'CurrentData-4SIMILAR'!A:R,16,FALSE), VLOOKUP(Settings!$C$5,CurrentData!A:R,16,FALSE)) -> 36.90068939 | Z12: =VLOOKUP(Selections_data_CCG!$G$2,CurrentData!A:R,10,FALSE) -> 8.147058824 | AA12: =IF(Settings!$B$5="4SIMILAR", VLOOKUP(Selections_data_CCG!$G$2,'CurrentData-4SIMILAR'!A:R,10,FALSE), VLOOKUP(Settings!$C$5,CurrentData!A:R,10,FALSE)) -> 0.8745874587 | AB12: =IF(IF(G12=0,"",COUNTIF(G$12:G$222,"<>0")-(RANK(M12,$M$12:$M$222)+COUNTIF($M$12:M12,M12)-2))<=INT(0.05*COUNTIF(G$12:G$222,"<>0")),"TOP5", IF(IF(G12=0,"",COUNTIF(G$12:G$222,"<>0")-(RANK(M12,$M$12:$M$222)+COUNTIF($M$12:M12,M12)-2))<=INT(0.25*COUNTIF(G$12:G$222,"<>0")),"TOP25", "")) ->  | AC12: =IF(IF(H12=0,"",COUNTIF(H$12:H$222,"<>0")-(RANK(P12,$P$12:$P$222)+COUNTIF($P$12:P12,P12)-2))<=INT(0.05*COUNTIF(H$12:H$222,"<>0")),"TOP5", IF(IF(H12=0,"",COUNTIF(H$12:H$222,"<>0")-(RANK(P12,$P$12:$P$222)+COUNTIF($P$12:P12,P12)-2))<=INT(0.25*COUNTIF(H$12:H$222,"<>0")),"TOP25", "")) ->  | AD12: =IF(IF(J12="Suppressed","",COUNTIF(J$12:J$222,"<>Suppressed")-(RANK(J12,$J$12:$J$222)+COUNTIF(J$12:$J12,J12)-2))<=INT(0.05*COUNTIF(J$12:J$222,"<>Suppressed")),"TOP5", IF(IF(J12="Suppressed","",COUNTIF(J$12:J$222,"<>Suppressed")-(RANK(J12,$J$12:$J$222)+COUNTIF(J$12:$J12,J12)-2))<=INT(0.25*COUNTIF(J$12:J$222,"<>suppressed")),"TOP25", "")) -> 
A13: 09C | B13: NHS Ashford | C13: =IF(G13=0,"",COUNTIF(G$12:G$222,"<>0")-(RANK(M13,$M$12:$M$222)+COUNTIF($M$12:M13,M13)-2)) -> 23 | D13: =IF(H13=0,"",COUNTIF(P$12:P$222,"<>Suppressed")-(RANK(P13,$P$12:$P$222)+COUNTIF($P$12:P13,P13)-2)) -> 134 | E13: =IF(J13="Suppressed","",COUNTIF(J$12:J$222,"<>Suppressed")-(RANK(J13,$J$12:$J$222)+COUNTIF($J$12:J13,J13)-2)) -> 202 | F13: =VLOOKUP(A13,population!C:O,Settings!$B$3,FALSE) -> 29506 | G13: =IF(ISNA(IF(Settings!$B$2="Asthma", SUMIFS(CCGData!E:E,CCGData!A:A,Settings!$B$1, CCGData!B:B,CurrentData!A13), IF(Settings!$B$2="Diabetes", SUMIFS(CCGData!C:C,CCGData!A:A,Settings!$B$1, CCGData!B:B,CurrentData!A13), SUMIFS(CCGData!D:D,CCGData!A:A,Settings!$B$1, CCGData!B:B,CurrentData!A13)))),"",IF(Settings!$B$2="Asthma", SUMIFS(CCGData!E:E,CCGData!A:A,Settings!$B$1, CCGData!B:B,CurrentData!A13), IF(Settings!$B$2="Diabetes", SUMIFS(CCGData!C:C,CCGData!A:A,Settings!$B$1, CCGData!B:B,CurrentData!A13), SUMIFS(CCGData!D:D,CCGData!A:A,Settings!$B$1, CCGData!B:B,CurrentData!A13)))) -> 11 | H13: =IF(Settings!$B$2="Asthma", SUMIFS(CCGData!J:J,CCGData!A:A,Settings!$B$1, CCGData!B:B,CurrentData!A13), IF(Settings!$B$2="Diabetes", SUMIFS(CCGData!F:F,CCGData!A:A,Settings!$B$1, CCGData!B:B,CurrentData!A13), SUMIFS(CCGData!H:H,CCGData!A:A,Settings!$B$1, CCGData!B:B,CurrentData!A13))) -> 40 | I13: =IF(Settings!$B$2="Asthma", SUMIFS(CCGData!K:K,CCGData!A:A,Settings!$B$1, CCGData!B:B,CurrentData!A13), IF(Settings!$B$2="Diabetes", SUMIFS(CCGData!G:G,CCGData!A:A,Settings!$B$1, CCGData!B:B,CurrentData!A13), SUMIFS(CCGData!I:I,CCGData!A:A,Settings!$B$1, CCGData!B:B,CurrentData!A13))) -> 11 | J13: =IF(OR(I13=0,H13=0),"Suppressed",H13/I13) -> 3.636363636 | K13: =IF(J13="Suppressed","",IF(H13=0,0,IF(H13<389,CHIINV(0.5+95/200,2*H13)/2,H13*(1-1/(9*H13)-NORMSINV(0.5+95/200)/3/SQRT(H13))^3))/I13) -> 2.597871495 | L13: =IF(J13="Suppressed","",IF(H13<389,CHIINV(0.5-95/200,2*H13+2)/2,(H13+1)*(1-1/(9*(H13+1))+NORMSINV(0.5+95/200)/3/SQRT(H13+1))^3)/I13) -> 4.951695179 | M13: =IF(G13=0,"Suppressed",G13/$F13*100000) -> 37.28055311 | N13: 18.61031779 | O13: 66.70520746 | P13: =IF(H13=0,"Suppressed",H13/$F13*100000) -> 135.5656477 | Q13: 96.85008623 | R13: 184.6019351 | S13: 24.11085734 | T13: 31.36159501 | U13: 0.7407407407 | V13: =VLOOKUP(Selections_data_CCG!$G$2,CurrentData!A:R,13,FALSE) -> 77.70951213 | W13: =IF(Settings!$B$5="4SIMILAR", VLOOKUP(Selections_data_CCG!$G$2,'CurrentData-4SIMILAR'!A:R,13,FALSE), VLOOKUP(Settings!$C$5,CurrentData!A:R,13,FALSE)) -> 26.11663851 | X13: =VLOOKUP(Selections_data_CCG!$G$2,CurrentData!A:R,16,FALSE) -> 672.6729644 | Y13: =IF(Settings!$B$5="4SIMILAR", VLOOKUP(Selections_data_CCG!$G$2,'CurrentData-4SIMILAR'!A:R,16,FALSE), VLOOKUP(Settings!$C$5,CurrentData!A:R,16,FALSE)) -> 36.90068939 | Z13: =VLOOKUP(Selections_data_CCG!$G$2,CurrentData!A:R,10,FALSE) -> 8.147058824 | AA13: =IF(Settings!$B$5="4SIMILAR", VLOOKUP(Selections_data_CCG!$G$2,'CurrentData-4SIMILAR'!A:R,10,FALSE), VLOOKUP(Settings!$C$5,CurrentData!A:R,10,FALSE)) -> 0.8745874587 | AB13: =IF(IF(G13=0,"",COUNTIF(G$12:G$222,"<>0")-(RANK(M13,$M$12:$M$222)+COUNTIF($M$12:M13,M13)-2))<=INT(0.05*COUNTIF(G$12:G$222,"<>0")),"TOP5", IF(IF(G13=0,"",COUNTIF(G$12:G$222,"<>0")-(RANK(M13,$M$12:$M$222)+COUNTIF($M$12:M13,M13)-2))<=INT(0.25*COUNTIF(G$12:G$222,"<>0")),"TOP25", "")) -> TOP25 | AC13: =IF(IF(H13=0,"",COUNTIF(H$12:H$222,"<>0")-(RANK(P13,$P$12:$P$222)+COUNTIF($P$12:P13,P13)-2))<=INT(0.05*COUNTIF(H$12:H$222,"<>0")),"TOP5", IF(IF(H13=0,"",COUNTIF(H$12:H$222,"<>0")-(RANK(P13,$P$12:$P$222)+COUNTIF($P$12:P13,P13)-2))<=INT(0.25*COUNTIF(H$12:H$222,"<>0")),"TOP25", "")) ->  | AD13: =IF(IF(J13="Suppressed","",COUNTIF(J$12:J$222,"<>Suppressed")-(RANK(J13,$J$12:$J$222)+COUNTIF(J$12:$J13,J13)-2))<=INT(0.05*COUNTIF(J$12:J$222,"<>Suppressed")),"TOP5", IF(IF(J13="Suppressed","",COUNTIF(J$12:J$222,"<>Suppressed")-(RANK(J13,$J$12:$J$222)+COUNTIF(J$12:$J13,J13)-2))<=INT(0.25*COUNTIF(J$12:J$222,"<>suppressed")),"TOP25", "")) -> 
A14: 10Y | B14: NHS Aylesbury Vale | C14: =IF(G14=0,"",COUNTIF(G$12:G$222,"<>0")-(RANK(M14,$M$12:$M$222)+COUNTIF($M$12:M14,M14)-2)) -> 1 | D14: =IF(H14=0,"",COUNTIF(P$12:P$222,"<>Suppressed")-(RANK(P14,$P$12:$P$222)+COUNTIF($P$12:P14,P14)-2)) -> 3 | E14: =IF(J14="Suppressed","",COUNTIF(J$12:J$222,"<>Suppressed")-(RANK(J14,$J$12:$J$222)+COUNTIF($J$12:J14,J14)-2)) -> 46 | F14: =VLOOKUP(A14,population!C:O,Settings!$B$3,FALSE) -> 46613.6 | G14: =IF(ISNA(IF(Settings!$B$2="Asthma", SUMIFS(CCGData!E:E,CCGData!A:A,Settings!$B$1, CCGData!B:B,CurrentData!A14), IF(Settings!$B$2="Diabetes", SUMIFS(CCGData!C:C,CCGData!A:A,Settings!$B$1, CCGData!B:B,CurrentData!A14), SUMIFS(CCGData!D:D,CCGData!A:A,Settings!$B$1, CCGData!B:B,CurrentData!A14)))),"",IF(Settings!$B$2="Asthma", SUMIFS(CCGData!E:E,CCGData!A:A,Settings!$B$1, CCGData!B:B,CurrentData!A14), IF(Settings!$B$2="Diabetes", SUMIFS(CCGData!C:C,CCGData!A:A,Settings!$B$1, CCGData!B:B,CurrentData!A14), SUMIFS(CCGData!D:D,CCGData!A:A,Settings!$B$1, CCGData!B:B,CurrentData!A14)))) -> 11 | H14: =IF(Settings!$B$2="Asthma", SUMIFS(CCGData!J:J,CCGData!A:A,Settings!$B$1, CCGData!B:B,CurrentData!A14), IF(Settings!$B$2="Diabetes", SUMIFS(CCGData!F:F,CCGData!A:A,Settings!$B$1, CCGData!B:B,CurrentData!A14), SUMIFS(CCGData!H:H,CCGData!A:A,Settings!$B$1, CCGData!B:B,CurrentData!A14))) -> 16 | I14: =IF(Settings!$B$2="Asthma", SUMIFS(CCGData!K:K,CCGData!A:A,Settings!$B$1, CCGData!B:B,CurrentData!A14), IF(Settings!$B$2="Diabetes", SUMIFS(CCGData!G:G,CCGData!A:A,Settings!$B$1, CCGData!B:B,CurrentData!A14), SUMIFS(CCGData!I:I,CCGData!A:A,Settings!$B$1, CCGData!B:B,CurrentData!A14))) -> 11 | J14: 1.454545455 | K14: 0.8313984049 | L14: 2.362090691 | M14: 23.59826317 | N14: 11.78016795 | O14: 42.22381132 | P14: 34.32474643 | Q14: 19.61955836 | R14: 55.74123775 | S14: 24.15589361 | T14: 34.32474643 | U14: 0.8 | V14: =VLOOKUP(Selections_data_CCG!$G$2,CurrentData!A:R,13,FALSE) -> 77.70951213 | W14: =IF(Settings!$B$5="4SIMILAR", VLOOKUP(Selections_data_CCG!$G$2,'CurrentData-4SIMILAR'!A:R,13,FALSE), VLOOKUP(Settings!$C$5,CurrentData!A:R,13,FALSE)) -> 26.11663851 | X14: =VLOOKUP(Selections_data_CCG!$G$2,CurrentData!A:R,16,FALSE) -> 672.6729644 | Y14: =IF(Settings!$B$5="4SIMILAR", VLOOKUP(Selections_data_CCG!$G$2,'CurrentData-4SIMILAR'!A:R,16,FALSE), VLOOKUP(Settings!$C$5,CurrentData!A:R,16,FALSE)) -> 36.90068939 | Z14: =VLOOKUP(Selections_data_CCG!$G$2,CurrentData!A:R,10,FALSE) -> 8.147058824 | AA14: =IF(Settings!$B$5="4SIMILAR", VLOOKUP(Selections_data_CCG!$G$2,'CurrentData-4SIMILAR'!A:R,10,FALSE), VLOOKUP(Settings!$C$5,CurrentData!A:R,10,FALSE)) -> 0.8745874587 | AB14: =IF(IF(G14=0,"",COUNTIF(G$12:G$222,"<>0")-(RANK(M14,$M$12:$M$222)+COUNTIF($M$12:M14,M14)-2))<=INT(0.05*COUNTIF(G$12:G$222,"<>0")),"TOP5", IF(IF(G14=0,"",COUNTIF(G$12:G$222,"<>0")-(RANK(M14,$M$12:$M$222)+COUNTIF($M$12:M14,M14)-2))<=INT(0.25*COUNTIF(G$12:G$222,"<>0")),"TOP25", "")) -> TOP5 | AC14: =IF(IF(H14=0,"",COUNTIF(H$12:H$222,"<>0")-(RANK(P14,$P$12:$P$222)+COUNTIF($P$12:P14,P14)-2))<=INT(0.05*COUNTIF(H$12:H$222,"<>0")),"TOP5", IF(IF(H14=0,"",COUNTIF(H$12:H$222,"<>0")-(RANK(P14,$P$12:$P$222)+COUNTIF($P$12:P14,P14)-2))<=INT(0.25*COUNTIF(H$12:H$222,"<>0")),"TOP25", "")) -> TOP5 | AD14: =IF(IF(J14="Suppressed","",COUNTIF(J$12:J$222,"<>Suppressed")-(RANK(J14,$J$12:$J$222)+COUNTIF(J$12:$J14,J14)-2))<=INT(0.05*COUNTIF(J$12:J$222,"<>Suppressed")),"TOP5", IF(IF(J14="Suppressed","",COUNTIF(J$12:J$222,"<>Suppressed")-(RANK(J14,$J$12:$J$222)+COUNTIF(J$12:$J14,J14)-2))<=INT(0.25*COUNTIF(J$12:J$222,"<>suppressed")),"TOP25", "")) -> TOP25
A15: 07L | B15: NHS Barking and Dagenham | C15: =IF(G15=0,"",COUNTIF(G$12:G$222,"<>0")-(RANK(M15,$M$12:$M$222)+COUNTIF($M$12:M15,M15)-2)) -> 14 | D15: =IF(H15=0,"",COUNTIF(P$12:P$222,"<>Suppressed")-(RANK(P15,$P$12:$P$222)+COUNTIF($P$12:P15,P15)-2)) -> 53 | E15: =IF(J15="Suppressed","",COUNTIF(J$12:J$222,"<>Suppressed")-(RANK(J15,$J$12:$J$222)+COUNTIF($J$12:J15,J15)-2)) -> 142 | F15: =VLOOKUP(A15,population!C:O,Settings!$B$3,FALSE) -> 59011.4 | G15: =IF(ISNA(IF(Settings!$B$2="Asthma", SUMIFS(CCGData!E:E,CCGData!A:A,Settings!$B$1, CCGData!B:B,CurrentData!A15), IF(Settings!$B$2="Diabetes", SUMIFS(CCGData!C:C,CCGData!A:A,Settings!$B$1, CCGData!B:B,CurrentData!A15), SUMIFS(CCGData!D:D,CCGData!A:A,Settings!$B$1, CCGData!B:B,CurrentData!A15)))),"",IF(Settings!$B$2="Asthma", SUMIFS(CCGData!E:E,CCGData!A:A,Settings!$B$1, CCGData!B:B,CurrentData!A15), IF(Settings!$B$2="Diabetes", SUMIFS(CCGData!C:C,CCGData!A:A,Settings!$B$1, CCGData!B:B,CurrentData!A15), SUMIFS(CCGData!D:D,CCGData!A:A,Settings!$B$1, CCGData!B:B,CurrentData!A15)))) -> 20 | H15: =IF(Settings!$B$2="Asthma", SUMIFS(CCGData!J:J,CCGData!A:A,Settings!$B$1, CCGData!B:B,CurrentData!A15), IF(Settings!$B$2="Diabetes", SUMIFS(CCGData!F:F,CCGData!A:A,Settings!$B$1, CCGData!B:B,CurrentData!A15), SUMIFS(CCGData!H:H,CCGData!A:A,Settings!$B$1, CCGData!B:B,CurrentData!A15))) -> 49 | I15: =IF(Settings!$B$2="Asthma", SUMIFS(CCGData!K:K,CCGData!A:A,Settings!$B$1, CCGData!B:B,CurrentData!A15), IF(Settings!$B$2="Diabetes", SUMIFS(CCGData!G:G,CCGData!A:A,Settings!$B$1, CCGData!B:B,CurrentData!A15), SUMIFS(CCGData!I:I,CCGData!A:A,Settings!$B$1, CCGData!B:B,CurrentData!A15))) -> 21 | J15: 2.333333333 | K15: 1.726212845 | L15: 3.084790409 | M15: 33.89175651 | N15: 20.70196536 | O15: 52.34306914 | P15: 83.03480344 | Q15: 61.4296047 | R15: 109.7764137 | S15: 24.76049845 | T15: 36.64490523 | U15: 0.875 | V15: =VLOOKUP(Selections_data_CCG!$G$2,CurrentData!A:R,13,FALSE) -> 77.70951213 | W15: =IF(Settings!$B$5="4SIMILAR", VLOOKUP(Selections_data_CCG!$G$2,'CurrentData-4SIMILAR'!A:R,13,FALSE), VLOOKUP(Settings!$C$5,CurrentData!A:R,13,FALSE)) -> 26.11663851 | X15: =VLOOKUP(Selections_data_CCG!$G$2,CurrentData!A:R,16,FALSE) -> 672.6729644 | Y15: =IF(Settings!$B$5="4SIMILAR", VLOOKUP(Selections_data_CCG!$G$2,'CurrentData-4SIMILAR'!A:R,16,FALSE), VLOOKUP(Settings!$C$5,CurrentData!A:R,16,FALSE)) -> 36.90068939 | Z15: =VLOOKUP(Selections_data_CCG!$G$2,CurrentData!A:R,10,FALSE) -> 8.147058824 | AA15: =IF(Settings!$B$5="4SIMILAR", VLOOKUP(Selections_data_CCG!$G$2,'CurrentData-4SIMILAR'!A:R,10,FALSE), VLOOKUP(Settings!$C$5,CurrentData!A:R,10,FALSE)) -> 0.8745874587 | AB15: =IF(IF(G15=0,"",COUNTIF(G$12:G$222,"<>0")-(RANK(M15,$M$12:$M$222)+COUNTIF($M$12:M15,M15)-2))<=INT(0.05*COUNTIF(G$12:G$222,"<>0")),"TOP5", IF(IF(G15=0,"",COUNTIF(G$12:G$222,"<>0")-(RANK(M15,$M$12:$M$222)+COUNTIF($M$12:M15,M15)-2))<=INT(0.25*COUNTIF(G$12:G$222,"<>0")),"TOP25", "")) -> TOP25 | AC15: =IF(IF(H15=0,"",COUNTIF(H$12:H$222,"<>0")-(RANK(P15,$P$12:$P$222)+COUNTIF($P$12:P15,P15)-2))<=INT(0.05*COUNTIF(H$12:H$222,"<>0")),"TOP5", IF(IF(H15=0,"",COUNTIF(H$12:H$222,"<>0")-(RANK(P15,$P$12:$P$222)+COUNTIF($P$12:P15,P15)-2))<=INT(0.25*COUNTIF(H$12:H$222,"<>0")),"TOP25", "")) ->  | AD15: =IF(IF(J15="Suppressed","",COUNTIF(J$12:J$222,"<>Suppressed")-(RANK(J15,$J$12:$J$222)+COUNTIF(J$12:$J15,J15)-2))<=INT(0.05*COUNTIF(J$12:J$222,"<>Suppressed")),"TOP5", IF(IF(J15="Suppressed","",COUNTIF(J$12:J$222,"<>Suppressed")-(RANK(J15,$J$12:$J$222)+COUNTIF(J$12:$J15,J15)-2))<=INT(0.25*COUNTIF(J$12:J$222,"<>suppressed")),"TOP25", "")) -> 
A16: 07M | B16: NHS Barnet | C16: =IF(G16=0,"",COUNTIF(G$12:G$222,"<>0")-(RANK(M16,$M$12:$M$222)+COUNTIF($M$12:M16,M16)-2)) -> 17 | D16: =IF(H16=0,"",COUNTIF(P$12:P$222,"<>Suppressed")-(RANK(P16,$P$12:$P$222)+COUNTIF($P$12:P16,P16)-2)) -> 127 | E16: =IF(J16="Suppressed","",COUNTIF(J$12:J$222,"<>Suppressed")-(RANK(J16,$J$12:$J$222)+COUNTIF($J$12:J16,J16)-2)) -> 200 | F16: =VLOOKUP(A16,population!C:O,Settings!$B$3,FALSE) -> 91019.8 | G16: =IF(ISNA(IF(Settings!$B$2="Asthma", SUMIFS(CCGData!E:E,CCGData!A:A,Settings!$B$1, CCGData!B:B,CurrentData!A16), IF(Settings!$B$2="Diabetes", SUMIFS(CCGData!C:C,CCGData!A:A,Settings!$B$1, CCGData!B:B,CurrentData!A16), SUMIFS(CCGData!D:D,CCGData!A:A,Settings!$B$1, CCGData!B:B,CurrentData!A16)))),"",IF(Settings!$B$2="Asthma", SUMIFS(CCGData!E:E,CCGData!A:A,Settings!$B$1, CCGData!B:B,CurrentData!A16), IF(Settings!$B$2="Diabetes", SUMIFS(CCGData!C:C,CCGData!A:A,Settings!$B$1, CCGData!B:B,CurrentData!A16), SUMIFS(CCGData!D:D,CCGData!A:A,Settings!$B$1, CCGData!B:B,CurrentData!A16)))) -> 32 | H16: =IF(Settings!$B$2="Asthma", SUMIFS(CCGData!J:J,CCGData!A:A,Settings!$B$1, CCGData!B:B,CurrentData!A16), IF(Settings!$B$2="Diabetes", SUMIFS(CCGData!F:F,CCGData!A:A,Settings!$B$1, CCGData!B:B,CurrentData!A16), SUMIFS(CCGData!H:H,CCGData!A:A,Settings!$B$1, CCGData!B:B,CurrentData!A16))) -> 120 | I16: =IF(Settings!$B$2="Asthma", SUMIFS(CCGData!K:K,CCGData!A:A,Settings!$B$1, CCGData!B:B,CurrentData!A16), IF(Settings!$B$2="Diabetes", SUMIFS(CCGData!G:G,CCGData!A:A,Settings!$B$1, CCGData!B:B,CurrentData!A16), SUMIFS(CCGData!I:I,CCGData!A:A,Settings!$B$1, CCGData!B:B,CurrentData!A16))) -> 35 | J16: 3.428571429 | K16: 2.842626446 | L16: 4.099731011 | M16: 35.15718558 | N16: 24.04748891 | O16: 49.6314561 | P16: 131.8394459 | Q16: 109.3080029 | R16: 157.6476606 | S16: 25.08927601 | T16: 37.915842 | U16: 0.90625 | V16: =VLOOKUP(Selections_data_CCG!$G$2,CurrentData!A:R,13,FALSE) -> 77.70951213 | W16: =IF(Settings!$B$5="4SIMILAR", VLOOKUP(Selections_data_CCG!$G$2,'CurrentData-4SIMILAR'!A:R,13,FALSE), VLOOKUP(Settings!$C$5,CurrentData!A:R,13,FALSE)) -> 26.11663851 | X16: =VLOOKUP(Selections_data_CCG!$G$2,CurrentData!A:R,16,FALSE) -> 672.6729644 | Y16: =IF(Settings!$B$5="4SIMILAR", VLOOKUP(Selections_data_CCG!$G$2,'CurrentData-4SIMILAR'!A:R,16,FALSE), VLOOKUP(Settings!$C$5,CurrentData!A:R,16,FALSE)) -> 36.90068939 | Z16: =VLOOKUP(Selections_data_CCG!$G$2,CurrentData!A:R,10,FALSE) -> 8.147058824 | AA16: =IF(Settings!$B$5="4SIMILAR", VLOOKUP(Selections_data_CCG!$G$2,'CurrentData-4SIMILAR'!A:R,10,FALSE), VLOOKUP(Settings!$C$5,CurrentData!A:R,10,FALSE)) -> 0.8745874587 | AB16: =IF(IF(G16=0,"",COUNTIF(G$12:G$222,"<>0")-(RANK(M16,$M$12:$M$222)+COUNTIF($M$12:M16,M16)-2))<=INT(0.05*COUNTIF(G$12:G$222,"<>0")),"TOP5", IF(IF(G16=0,"",COUNTIF(G$12:G$222,"<>0")-(RANK(M16,$M$12:$M$222)+COUNTIF($M$12:M16,M16)-2))<=INT(0.25*COUNTIF(G$12:G$222,"<>0")),"TOP25", "")) -> TOP25 | AC16: =IF(IF(H16=0,"",COUNTIF(H$12:H$222,"<>0")-(RANK(P16,$P$12:$P$222)+COUNTIF($P$12:P16,P16)-2))<=INT(0.05*COUNTIF(H$12:H$222,"<>0")),"TOP5", IF(IF(H16=0,"",COUNTIF(H$12:H$222,"<>0")-(RANK(P16,$P$12:$P$222)+COUNTIF($P$12:P16,P16)-2))<=INT(0.25*COUNTIF(H$12:H$222,"<>0")),"TOP25", "")) ->  | AD16: =IF(IF(J16="Suppressed","",COUNTIF(J$12:J$222,"<>Suppressed")-(RANK(J16,$J$12:$J$222)+COUNTIF(J$12:$J16,J16)-2))<=INT(0.05*COUNTIF(J$12:J$222,"<>Suppressed")),"TOP5", IF(IF(J16="Suppressed","",COUNTIF(J$12:J$222,"<>Suppressed")-(RANK(J16,$J$12:$J$222)+COUNTIF(J$12:$J16,J16)-2))<=INT(0.25*COUNTIF(J$12:J$222,"<>suppressed")),"TOP25", "")) -> 
A17: 02P | B17: NHS Barnsley | C17: =IF(G17=0,"",COUNTIF(G$12:G$222,"<>0")-(RANK(M17,$M$12:$M$222)+COUNTIF($M$12:M17,M17)-2)) -> 202 | D17: =IF(H17=0,"",COUNTIF(P$12:P$222,"<>Suppressed")-(RANK(P17,$P$12:$P$222)+COUNTIF($P$12:P17,P17)-2)) -> 196 | E17: =IF(J17="Suppressed","",COUNTIF(J$12:J$222,"<>Suppressed")-(RANK(J17,$J$12:$J$222)+COUNTIF($J$12:J17,J17)-2)) -> 125 | F17: =VLOOKUP(A17,population!C:O,Settings!$B$3,FALSE) -> 54760 | G17: =IF(ISNA(IF(Settings!$B$2="Asthma", SUMIFS(CCGData!E:E,CCGData!A:A,Settings!$B$1, CCGData!B:B,CurrentData!A17), IF(Settings!$B$2="Diabetes", SUMIFS(CCGData!C:C,CCGData!A:A,Settings!$B$1, CCGData!B:B,CurrentData!A17), SUMIFS(CCGData!D:D,CCGData!A:A,Settings!$B$1, CCGData!B:B,CurrentData!A17)))),"",IF(Settings!$B$2="Asthma", SUMIFS(CCGData!E:E,CCGData!A:A,Settings!$B$1, CCGData!B:B,CurrentData!A17), IF(Settings!$B$2="Diabetes", SUMIFS(CCGData!C:C,CCGData!A:A,Settings!$B$1, CCGData!B:B,CurrentData!A17), SUMIFS(CCGData!D:D,CCGData!A:A,Settings!$B$1, CCGData!B:B,CurrentData!A17)))) -> 54 | H17: =IF(Settings!$B$2="Asthma", SUMIFS(CCGData!J:J,CCGData!A:A,Settings!$B$1, CCGData!B:B,CurrentData!A17), IF(Settings!$B$2="Diabetes", SUMIFS(CCGData!F:F,CCGData!A:A,Settings!$B$1, CCGData!B:B,CurrentData!A17), SUMIFS(CCGData!H:H,CCGData!A:A,Settings!$B$1, CCGData!B:B,CurrentData!A17))) -> 119 | I17: =IF(Settings!$B$2="Asthma", SUMIFS(CCGData!K:K,CCGData!A:A,Settings!$B$1, CCGData!B:B,CurrentData!A17), IF(Settings!$B$2="Diabetes", SUMIFS(CCGData!G:G,CCGData!A:A,Settings!$B$1, CCGData!B:B,CurrentData!A17), SUMIFS(CCGData!I:I,CCGData!A:A,Settings!$B$1, CCGData!B:B,CurrentData!A17))) -> 55 | J17: 2.163636364 | K17: 1.79239333 | L17: 2.589113489 | M17: 98.61212564 | N17: 74.08046379 | O17: 128.6674332 | P17: 217.3119065 | Q17: 180.0248962 | R17: 260.0460955 | S17: 25.36923264 | T17: 39.05508999 | U17: 0.9523809524 | V17: =VLOOKUP(Selections_data_CCG!$G$2,CurrentData!A:R,13,FALSE) -> 77.70951213 | W17: =IF(Settings!$B$5="4SIMILAR", VLOOKUP(Selections_data_CCG!$G$2,'CurrentData-4SIMILAR'!A:R,13,FALSE), VLOOKUP(Settings!$C$5,CurrentData!A:R,13,FALSE)) -> 26.11663851 | X17: =VLOOKUP(Selections_data_CCG!$G$2,CurrentData!A:R,16,FALSE) -> 672.6729644 | Y17: =IF(Settings!$B$5="4SIMILAR", VLOOKUP(Selections_data_CCG!$G$2,'CurrentData-4SIMILAR'!A:R,16,FALSE), VLOOKUP(Settings!$C$5,CurrentData!A:R,16,FALSE)) -> 36.90068939 | Z17: =VLOOKUP(Selections_data_CCG!$G$2,CurrentData!A:R,10,FALSE) -> 8.147058824 | AA17: =IF(Settings!$B$5="4SIMILAR", VLOOKUP(Selections_data_CCG!$G$2,'CurrentData-4SIMILAR'!A:R,10,FALSE), VLOOKUP(Settings!$C$5,CurrentData!A:R,10,FALSE)) -> 0.8745874587 | AB17: =IF(IF(G17=0,"",COUNTIF(G$12:G$222,"<>0")-(RANK(M17,$M$12:$M$222)+COUNTIF($M$12:M17,M17)-2))<=INT(0.05*COUNTIF(G$12:G$222,"<>0")),"TOP5", IF(IF(G17=0,"",COUNTIF(G$12:G$222,"<>0")-(RANK(M17,$M$12:$M$222)+COUNTIF($M$12:M17,M17)-2))<=INT(0.25*COUNTIF(G$12:G$222,"<>0")),"TOP25", "")) ->  | AC17: =IF(IF(H17=0,"",COUNTIF(H$12:H$222,"<>0")-(RANK(P17,$P$12:$P$222)+COUNTIF($P$12:P17,P17)-2))<=INT(0.05*COUNTIF(H$12:H$222,"<>0")),"TOP5", IF(IF(H17=0,"",COUNTIF(H$12:H$222,"<>0")-(RANK(P17,$P$12:$P$222)+COUNTIF($P$12:P17,P17)-2))<=INT(0.25*COUNTIF(H$12:H$222,"<>0")),"TOP25", "")) ->  | AD17: =IF(IF(J17="Suppressed","",COUNTIF(J$12:J$222,"<>Suppressed")-(RANK(J17,$J$12:$J$222)+COUNTIF(J$12:$J17,J17)-2))<=INT(0.05*COUNTIF(J$12:J$222,"<>Suppressed")),"TOP5", IF(IF(J17="Suppressed","",COUNTIF(J$12:J$222,"<>Suppressed")-(RANK(J17,$J$12:$J$222)+COUNTIF(J$12:$J17,J17)-2))<=INT(0.25*COUNTIF(J$12:J$222,"<>suppressed")),"TOP25", "")) -> 
A18: 99E | B18: NHS Basildon and Brentwood | C18: =IF(G18=0,"",COUNTIF(G$12:G$222,"<>0")-(RANK(M18,$M$12:$M$222)+COUNTIF($M$12:M18,M18)-2)) -> 49 | D18: =IF(H18=0,"",COUNTIF(P$12:P$222,"<>Suppressed")-(RANK(P18,$P$12:$P$222)+COUNTIF($P$12:P18,P18)-2)) -> 32 | E18: =IF(J18="Suppressed","",COUNTIF(J$12:J$222,"<>Suppressed")-(RANK(J18,$J$12:$J$222)+COUNTIF($J$12:J18,J18)-2)) -> 60 | F18: =VLOOKUP(A18,population!C:O,Settings!$B$3,FALSE) -> 60650 | G18: =IF(ISNA(IF(Settings!$B$2="Asthma", SUMIFS(CCGData!E:E,CCGData!A:A,Settings!$B$1, CCGData!B:B,CurrentData!A18), IF(Settings!$B$2="Diabetes", SUMIFS(CCGData!C:C,CCGData!A:A,Settings!$B$1, CCGData!B:B,CurrentData!A18), SUMIFS(CCGData!D:D,CCGData!A:A,Settings!$B$1, CCGData!B:B,CurrentData!A18)))),"",IF(Settings!$B$2="Asthma", SUMIFS(CCGData!E:E,CCGData!A:A,Settings!$B$1, CCGData!B:B,CurrentData!A18), IF(Settings!$B$2="Diabetes", SUMIFS(CCGData!C:C,CCGData!A:A,Settings!$B$1, CCGData!B:B,CurrentData!A18), SUMIFS(CCGData!D:D,CCGData!A:A,Settings!$B$1, CCGData!B:B,CurrentData!A18)))) -> 26 | H18: =IF(Settings!$B$2="Asthma", SUMIFS(CCGData!J:J,CCGData!A:A,Settings!$B$1, CCGData!B:B,CurrentData!A18), IF(Settings!$B$2="Diabetes", SUMIFS(CCGData!F:F,CCGData!A:A,Settings!$B$1, CCGData!B:B,CurrentData!A18), SUMIFS(CCGData!H:H,CCGData!A:A,Settings!$B$1, CCGData!B:B,CurrentData!A18))) -> 44 | I18: =IF(Settings!$B$2="Asthma", SUMIFS(CCGData!K:K,CCGData!A:A,Settings!$B$1, CCGData!B:B,CurrentData!A18), IF(Settings!$B$2="Diabetes", SUMIFS(CCGData!G:G,CCGData!A:A,Settings!$B$1, CCGData!B:B,CurrentData!A18), SUMIFS(CCGData!I:I,CCGData!A:A,Settings!$B$1, CCGData!B:B,CurrentData!A18))) -> 27 | J18: 1.62962963 | K18: 1.184091384 | L18: 2.187701714 | M18: 42.86892003 | N18: 28.00340184 | O18: 62.81290038 | P18: 72.54740313 | Q18: 52.71305418 | R18: 97.39150252 | S18: 25.50137036 | T18: 39.29144429 | U18: 0.9662921348 | V18: =VLOOKUP(Selections_data_CCG!$G$2,CurrentData!A:R,13,FALSE) -> 77.70951213 | W18: =IF(Settings!$B$5="4SIMILAR", VLOOKUP(Selections_data_CCG!$G$2,'CurrentData-4SIMILAR'!A:R,13,FALSE), VLOOKUP(Settings!$C$5,CurrentData!A:R,13,FALSE)) -> 26.11663851 | X18: =VLOOKUP(Selections_data_CCG!$G$2,CurrentData!A:R,16,FALSE) -> 672.6729644 | Y18: =IF(Settings!$B$5="4SIMILAR", VLOOKUP(Selections_data_CCG!$G$2,'CurrentData-4SIMILAR'!A:R,16,FALSE), VLOOKUP(Settings!$C$5,CurrentData!A:R,16,FALSE)) -> 36.90068939 | Z18: =VLOOKUP(Selections_data_CCG!$G$2,CurrentData!A:R,10,FALSE) -> 8.147058824 | AA18: =IF(Settings!$B$5="4SIMILAR", VLOOKUP(Selections_data_CCG!$G$2,'CurrentData-4SIMILAR'!A:R,10,FALSE), VLOOKUP(Settings!$C$5,CurrentData!A:R,10,FALSE)) -> 0.8745874587 | AB18: =IF(IF(G18=0,"",COUNTIF(G$12:G$222,"<>0")-(RANK(M18,$M$12:$M$222)+COUNTIF($M$12:M18,M18)-2))<=INT(0.05*COUNTIF(G$12:G$222,"<>0")),"TOP5", IF(IF(G18=0,"",COUNTIF(G$12:G$222,"<>0")-(RANK(M18,$M$12:$M$222)+COUNTIF($M$12:M18,M18)-2))<=INT(0.25*COUNTIF(G$12:G$222,"<>0")),"TOP25", "")) -> TOP25 | AC18: =IF(IF(H18=0,"",COUNTIF(H$12:H$222,"<>0")-(RANK(P18,$P$12:$P$222)+COUNTIF($P$12:P18,P18)-2))<=INT(0.05*COUNTIF(H$12:H$222,"<>0")),"TOP5", IF(IF(H18=0,"",COUNTIF(H$12:H$222,"<>0")-(RANK(P18,$P$12:$P$222)+COUNTIF($P$12:P18,P18)-2))<=INT(0.25*COUNTIF(H$12:H$222,"<>0")),"TOP25", "")) -> TOP25 | AD18: =IF(IF(J18="Suppressed","",COUNTIF(J$12:J$222,"<>Suppressed")-(RANK(J18,$J$12:$J$222)+COUNTIF(J$12:$J18,J18)-2))<=INT(0.05*COUNTIF(J$12:J$222,"<>Suppressed")),"TOP5", IF(IF(J18="Suppressed","",COUNTIF(J$12:J$222,"<>Suppressed")-(RANK(J18,$J$12:$J$222)+COUNTIF(J$12:$J18,J18)-2))<=INT(0.25*COUNTIF(J$12:J$222,"<>suppressed")),"TOP25", "")) -> 
A19: 02Q | B19: NHS Bassetlaw | C19: =IF(G19=0,"",COUNTIF(G$12:G$222,"<>0")-(RANK(M19,$M$12:$M$222)+COUNTIF($M$12:M19,M19)-2)) -> 29 | D19: =IF(H19=0,"",COUNTIF(P$12:P$222,"<>Suppressed")-(RANK(P19,$P$12:$P$222)+COUNTIF($P$12:P19,P19)-2)) -> 41 | E19: =IF(J19="Suppressed","",COUNTIF(J$12:J$222,"<>Suppressed")-(RANK(J19,$J$12:$J$222)+COUNTIF($J$12:J19,J19)-2)) -> 109 | F19: =VLOOKUP(A19,population!C:O,Settings!$B$3,FALSE) -> 23562.6 | G19: =IF(ISNA(IF(Settings!$B$2="Asthma", SUMIFS(CCGData!E:E,CCGData!A:A,Settings!$B$1, CCGData!B:B,CurrentData!A19), IF(Settings!$B$2="Diabetes", SUMIFS(CCGData!C:C,CCGData!A:A,Settings!$B$1, CCGData!B:B,CurrentData!A19), SUMIFS(CCGData!D:D,CCGData!A:A,Settings!$B$1, CCGData!B:B,CurrentData!A19)))),"",IF(Settings!$B$2="Asthma", SUMIFS(CCGData!E:E,CCGData!A:A,Settings!$B$1, CCGData!B:B,CurrentData!A19), IF(Settings!$B$2="Diabetes", SUMIFS(CCGData!C:C,CCGData!A:A,Settings!$B$1, CCGData!B:B,CurrentData!A19), SUMIFS(CCGData!D:D,CCGData!A:A,Settings!$B$1, CCGData!B:B,CurrentData!A19)))) -> 9 | H19: =IF(Settings!$B$2="Asthma", SUMIFS(CCGData!J:J,CCGData!A:A,Settings!$B$1, CCGData!B:B,CurrentData!A19), IF(Settings!$B$2="Diabetes", SUMIFS(CCGData!F:F,CCGData!A:A,Settings!$B$1, CCGData!B:B,CurrentData!A19), SUMIFS(CCGData!H:H,CCGData!A:A,Settings!$B$1, CCGData!B:B,CurrentData!A19))) -> 18 | I19: =IF(Settings!$B$2="Asthma", SUMIFS(CCGData!K:K,CCGData!A:A,Settings!$B$1, CCGData!B:B,CurrentData!A19), IF(Settings!$B$2="Diabetes", SUMIFS(CCGData!G:G,CCGData!A:A,Settings!$B$1, CCGData!B:B,CurrentData!A19), SUMIFS(CCGData!I:I,CCGData!A:A,Settings!$B$1, CCGData!B:B,CurrentData!A19))) -> 9 | J19: 2 | K19: 1.185326753 | L19: 3.160862252 | M19: 38.19612437 | N19: 17.46570029 | O19: 72.50814193 | P19: 76.39224873 | Q19: 45.27488809 | R19: 120.7326877 | S19: 27.3321125 | T19: 39.45413019 | U19: 1 | V19: =VLOOKUP(Selections_data_CCG!$G$2,CurrentData!A:R,13,FALSE) -> 77.70951213 | W19: =IF(Settings!$B$5="4SIMILAR", VLOOKUP(Selections_data_CCG!$G$2,'CurrentData-4SIMILAR'!A:R,13,FALSE), VLOOKUP(Settings!$C$5,CurrentData!A:R,13,FALSE)) -> 26.11663851 | X19: =VLOOKUP(Selections_data_CCG!$G$2,CurrentData!A:R,16,FALSE) -> 672.6729644 | Y19: =IF(Settings!$B$5="4SIMILAR", VLOOKUP(Selections_data_CCG!$G$2,'CurrentData-4SIMILAR'!A:R,16,FALSE), VLOOKUP(Settings!$C$5,CurrentData!A:R,16,FALSE)) -> 36.90068939 | Z19: =VLOOKUP(Selections_data_CCG!$G$2,CurrentData!A:R,10,FALSE) -> 8.147058824 | AA19: =IF(Settings!$B$5="4SIMILAR", VLOOKUP(Selections_data_CCG!$G$2,'CurrentData-4SIMILAR'!A:R,10,FALSE), VLOOKUP(Settings!$C$5,CurrentData!A:R,10,FALSE)) -> 0.8745874587 | AB19: =IF(IF(G19=0,"",COUNTIF(G$12:G$222,"<>0")-(RANK(M19,$M$12:$M$222)+COUNTIF($M$12:M19,M19)-2))<=INT(0.05*COUNTIF(G$12:G$222,"<>0")),"TOP5", IF(IF(G19=0,"",COUNTIF(G$12:G$222,"<>0")-(RANK(M19,$M$12:$M$222)+COUNTIF($M$12:M19,M19)-2))<=INT(0.25*COUNTIF(G$12:G$222,"<>0")),"TOP25", "")) -> TOP25 | AC19: =IF(IF(H19=0,"",COUNTIF(H$12:H$222,"<>0")-(RANK(P19,$P$12:$P$222)+COUNTIF($P$12:P19,P19)-2))<=INT(0.05*COUNTIF(H$12:H$222,"<>0")),"TOP5", IF(IF(H19=0,"",COUNTIF(H$12:H$222,"<>0")-(RANK(P19,$P$12:$P$222)+COUNTIF($P$12:P19,P19)-2))<=INT(0.25*COUNTIF(H$12:H$222,"<>0")),"TOP25", "")) -> TOP25 | AD19: =IF(IF(J19="Suppressed","",COUNTIF(J$12:J$222,"<>Suppressed")-(RANK(J19,$J$12:$J$222)+COUNTIF(J$12:$J19,J19)-2))<=INT(0.05*COUNTIF(J$12:J$222,"<>Suppressed")),"TOP5", IF(IF(J19="Suppressed","",COUNTIF(J$12:J$222,"<>Suppressed")-(RANK(J19,$J$12:$J$222)+COUNTIF(J$12:$J19,J19)-2))<=INT(0.25*COUNTIF(J$12:J$222,"<>suppressed")),"TOP25", "")) -> 
A20: 11E | B20: NHS Bath and North East Somerset | C20: =IF(G20=0,"",COUNTIF(G$12:G$222,"<>0")-(RANK(M20,$M$12:$M$222)+COUNTIF($M$12:M20,M20)-2)) -> 56 | D20: =IF(H20=0,"",COUNTIF(P$12:P$222,"<>Suppressed")-(RANK(P20,$P$12:$P$222)+COUNTIF($P$12:P20,P20)-2)) -> 36 | E20: =IF(J20="Suppressed","",COUNTIF(J$12:J$222,"<>Suppressed")-(RANK(J20,$J$12:$J$222)+COUNTIF($J$12:J20,J20)-2)) -> 68 | F20: =VLOOKUP(A20,population!C:O,Settings!$B$3,FALSE) -> 40565.2 | G20: =IF(ISNA(IF(Settings!$B$2="Asthma", SUMIFS(CCGData!E:E,CCGData!A:A,Settings!$B$1, CCGData!B:B,CurrentData!A20), IF(Settings!$B$2="Diabetes", SUMIFS(CCGData!C:C,CCGData!A:A,Settings!$B$1, CCGData!B:B,CurrentData!A20), SUMIFS(CCGData!D:D,CCGData!A:A,Settings!$B$1, CCGData!B:B,CurrentData!A20)))),"",IF(Settings!$B$2="Asthma", SUMIFS(CCGData!E:E,CCGData!A:A,Settings!$B$1, CCGData!B:B,CurrentData!A20), IF(Settings!$B$2="Diabetes", SUMIFS(CCGData!C:C,CCGData!A:A,Settings!$B$1, CCGData!B:B,CurrentData!A20), SUMIFS(CCGData!D:D,CCGData!A:A,Settings!$B$1, CCGData!B:B,CurrentData!A20)))) -> 18 | H20: =IF(Settings!$B$2="Asthma", SUMIFS(CCGData!J:J,CCGData!A:A,Settings!$B$1, CCGData!B:B,CurrentData!A20), IF(Settings!$B$2="Diabetes", SUMIFS(CCGData!F:F,CCGData!A:A,Settings!$B$1, CCGData!B:B,CurrentData!A20), SUMIFS(CCGData!H:H,CCGData!A:A,Settings!$B$1, CCGData!B:B,CurrentData!A20))) -> 30 | I20: =IF(Settings!$B$2="Asthma", SUMIFS(CCGData!K:K,CCGData!A:A,Settings!$B$1, CCGData!B:B,CurrentData!A20), IF(Settings!$B$2="Diabetes", SUMIFS(CCGData!G:G,CCGData!A:A,Settings!$B$1, CCGData!B:B,CurrentData!A20), SUMIFS(CCGData!I:I,CCGData!A:A,Settings!$B$1, CCGData!B:B,CurrentData!A20))) -> 18 | J20: 1.666666667 | K20: 1.124493001 | L20: 2.3792703 | M20: 44.37300938 | N20: 26.29825757 | O20: 70.12848517 | P20: 73.95501563 | Q20: 49.89713849 | R20: 105.5753833 | S20: 29.59780807 | T20: 39.47971805 | U20: 1 | V20: =VLOOKUP(Selections_data_CCG!$G$2,CurrentData!A:R,13,FALSE) -> 77.70951213 | W20: =IF(Settings!$B$5="4SIMILAR", VLOOKUP(Selections_data_CCG!$G$2,'CurrentData-4SIMILAR'!A:R,13,FALSE), VLOOKUP(Settings!$C$5,CurrentData!A:R,13,FALSE)) -> 26.11663851 | X20: =VLOOKUP(Selections_data_CCG!$G$2,CurrentData!A:R,16,FALSE) -> 672.6729644 | Y20: =IF(Settings!$B$5="4SIMILAR", VLOOKUP(Selections_data_CCG!$G$2,'CurrentData-4SIMILAR'!A:R,16,FALSE), VLOOKUP(Settings!$C$5,CurrentData!A:R,16,FALSE)) -> 36.90068939 | Z20: =VLOOKUP(Selections_data_CCG!$G$2,CurrentData!A:R,10,FALSE) -> 8.147058824 | AA20: =IF(Settings!$B$5="4SIMILAR", VLOOKUP(Selections_data_CCG!$G$2,'CurrentData-4SIMILAR'!A:R,10,FALSE), VLOOKUP(Settings!$C$5,CurrentData!A:R,10,FALSE)) -> 0.8745874587 | AB20: =IF(IF(G20=0,"",COUNTIF(G$12:G$222,"<>0")-(RANK(M20,$M$12:$M$222)+COUNTIF($M$12:M20,M20)-2))<=INT(0.05*COUNTIF(G$12:G$222,"<>0")),"TOP5", IF(IF(G20=0,"",COUNTIF(G$12:G$222,"<>0")-(RANK(M20,$M$12:$M$222)+COUNTIF($M$12:M20,M20)-2))<=INT(0.25*COUNTIF(G$12:G$222,"<>0")),"TOP25", "")) ->  | AC20: =IF(IF(H20=0,"",COUNTIF(H$12:H$222,"<>0")-(RANK(P20,$P$12:$P$222)+COUNTIF($P$12:P20,P20)-2))<=INT(0.05*COUNTIF(H$12:H$222,"<>0")),"TOP5", IF(IF(H20=0,"",COUNTIF(H$12:H$222,"<>0")-(RANK(P20,$P$12:$P$222)+COUNTIF($P$12:P20,P20)-2))<=INT(0.25*COUNTIF(H$12:H$222,"<>0")),"TOP25", "")) -> TOP25 | AD20: =IF(IF(J20="Suppressed","",COUNTIF(J$12:J$222,"<>Suppressed")-(RANK(J20,$J$12:$J$222)+COUNTIF(J$12:$J20,J20)-2))<=INT(0.05*COUNTIF(J$12:J$222,"<>Suppressed")),"TOP5", IF(IF(J20="Suppressed","",COUNTIF(J$12:J$222,"<>Suppressed")-(RANK(J20,$J$12:$J$222)+COUNTIF(J$12:$J20,J20)-2))<=INT(0.25*COUNTIF(J$12:J$222,"<>suppressed")),"TOP25", "")) -> 
A21: 06F | B21: NHS Bedfordshire | C21: =IF(G21=0,"",COUNTIF(G$12:G$222,"<>0")-(RANK(M21,$M$12:$M$222)+COUNTIF($M$12:M21,M21)-2)) -> 141 | D21: =IF(H21=0,"",COUNTIF(P$12:P$222,"<>Suppressed")-(RANK(P21,$P$12:$P$222)+COUNTIF($P$12:P21,P21)-2)) -> 68 | E21: =IF(J21="Suppressed","",COUNTIF(J$12:J$222,"<>Suppressed")-(RANK(J21,$J$12:$J$222)+COUNTIF($J$12:J21,J21)-2)) -> 38 | F21: =VLOOKUP(A21,population!C:O,Settings!$B$3,FALSE) -> 101532.2 | G21: =IF(ISNA(IF(Settings!$B$2="Asthma", SUMIFS(CCGData!E:E,CCGData!A:A,Settings!$B$1, CCGData!B:B,CurrentData!A21), IF(Settings!$B$2="Diabetes", SUMIFS(CCGData!C:C,CCGData!A:A,Settings!$B$1, CCGData!B:B,CurrentData!A21), SUMIFS(CCGData!D:D,CCGData!A:A,Settings!$B$1, CCGData!B:B,CurrentData!A21)))),"",IF(Settings!$B$2="Asthma", SUMIFS(CCGData!E:E,CCGData!A:A,Settings!$B$1, CCGData!B:B,CurrentData!A21), IF(Settings!$B$2="Diabetes", SUMIFS(CCGData!C:C,CCGData!A:A,Settings!$B$1, CCGData!B:B,CurrentData!A21), SUMIFS(CCGData!D:D,CCGData!A:A,Settings!$B$1, CCGData!B:B,CurrentData!A21)))) -> 65 | H21: =IF(Settings!$B$2="Asthma", SUMIFS(CCGData!J:J,CCGData!A:A,Settings!$B$1, CCGData!B:B,CurrentData!A21), IF(Settings!$B$2="Diabetes", SUMIFS(CCGData!F:F,CCGData!A:A,Settings!$B$1, CCGData!B:B,CurrentData!A21), SUMIFS(CCGData!H:H,CCGData!A:A,Settings!$B$1, CCGData!B:B,CurrentData!A21))) -> 95 | I21: =IF(Settings!$B$2="Asthma", SUMIFS(CCGData!K:K,CCGData!A:A,Settings!$B$1, CCGData!B:B,CurrentData!A21), IF(Settings!$B$2="Diabetes", SUMIFS(CCGData!G:G,CCGData!A:A,Settings!$B$1, CCGData!B:B,CurrentData!A21), SUMIFS(CCGData!I:I,CCGData!A:A,Settings!$B$1, CCGData!B:B,CurrentData!A21))) -> 67 | J21: 1.417910448 | K21: 1.147174225 | L21: 1.733321994 | M21: 64.01909936 | N21: 49.40858932 | O21: 81.59759743 | P21: 93.56637599 | Q21: 75.70078563 | R21: 114.3800426 | S21: 29.7258975 | T21: 41.51321603 | U21: 1 | V21: =VLOOKUP(Selections_data_CCG!$G$2,CurrentData!A:R,13,FALSE) -> 77.70951213 | W21: =IF(Settings!$B$5="4SIMILAR", VLOOKUP(Selections_data_CCG!$G$2,'CurrentData-4SIMILAR'!A:R,13,FALSE), VLOOKUP(Settings!$C$5,CurrentData!A:R,13,FALSE)) -> 26.11663851 | X21: =VLOOKUP(Selections_data_CCG!$G$2,CurrentData!A:R,16,FALSE) -> 672.6729644 | Y21: =IF(Settings!$B$5="4SIMILAR", VLOOKUP(Selections_data_CCG!$G$2,'CurrentData-4SIMILAR'!A:R,16,FALSE), VLOOKUP(Settings!$C$5,CurrentData!A:R,16,FALSE)) -> 36.90068939 | Z21: =VLOOKUP(Selections_data_CCG!$G$2,CurrentData!A:R,10,FALSE) -> 8.147058824 | AA21: =IF(Settings!$B$5="4SIMILAR", VLOOKUP(Selections_data_CCG!$G$2,'CurrentData-4SIMILAR'!A:R,10,FALSE), VLOOKUP(Settings!$C$5,CurrentData!A:R,10,FALSE)) -> 0.8745874587 | AB21: =IF(IF(G21=0,"",COUNTIF(G$12:G$222,"<>0")-(RANK(M21,$M$12:$M$222)+COUNTIF($M$12:M21,M21)-2))<=INT(0.05*COUNTIF(G$12:G$222,"<>0")),"TOP5", IF(IF(G21=0,"",COUNTIF(G$12:G$222,"<>0")-(RANK(M21,$M$12:$M$222)+COUNTIF($M$12:M21,M21)-2))<=INT(0.25*COUNTIF(G$12:G$222,"<>0")),"TOP25", "")) ->  | AC21: =IF(IF(H21=0,"",COUNTIF(H$12:H$222,"<>0")-(RANK(P21,$P$12:$P$222)+COUNTIF($P$12:P21,P21)-2))<=INT(0.05*COUNTIF(H$12:H$222,"<>0")),"TOP5", IF(IF(H21=0,"",COUNTIF(H$12:H$222,"<>0")-(RANK(P21,$P$12:$P$222)+COUNTIF($P$12:P21,P21)-2))<=INT(0.25*COUNTIF(H$12:H$222,"<>0")),"TOP25", "")) ->  | AD21: =IF(IF(J21="Suppressed","",COUNTIF(J$12:J$222,"<>Suppressed")-(RANK(J21,$J$12:$J$222)+COUNTIF(J$12:$J21,J21)-2))<=INT(0.05*COUNTIF(J$12:J$222,"<>Suppressed")),"TOP5", IF(IF(J21="Suppressed","",COUNTIF(J$12:J$222,"<>Suppressed")-(RANK(J21,$J$12:$J$222)+COUNTIF(J$12:$J21,J21)-2))<=INT(0.25*COUNTIF(J$12:J$222,"<>suppressed")),"TOP25", "")) -> TOP25
A22: 07N | B22: NHS Bexley | C22: =IF(G22=0,"",COUNTIF(G$12:G$222,"<>0")-(RANK(M22,$M$12:$M$222)+COUNTIF($M$12:M22,M22)-2)) -> 46 | D22: =IF(H22=0,"",COUNTIF(P$12:P$222,"<>Suppressed")-(RANK(P22,$P$12:$P$222)+COUNTIF($P$12:P22,P22)-2)) -> 46 | E22: =IF(J22="Suppressed","",COUNTIF(J$12:J$222,"<>Suppressed")-(RANK(J22,$J$12:$J$222)+COUNTIF($J$12:J22,J22)-2)) -> 95 | F22: =VLOOKUP(A22,population!C:O,Settings!$B$3,FALSE) -> 54300.6 | G22: =IF(ISNA(IF(Settings!$B$2="Asthma", SUMIFS(CCGData!E:E,CCGData!A:A,Settings!$B$1, CCGData!B:B,CurrentData!A22), IF(Settings!$B$2="Diabetes", SUMIFS(CCGData!C:C,CCGData!A:A,Settings!$B$1, CCGData!B:B,CurrentData!A22), SUMIFS(CCGData!D:D,CCGData!A:A,Settings!$B$1, CCGData!B:B,CurrentData!A22)))),"",IF(Settings!$B$2="Asthma", SUMIFS(CCGData!E:E,CCGData!A:A,Settings!$B$1, CCGData!B:B,CurrentData!A22), IF(Settings!$B$2="Diabetes", SUMIFS(CCGData!C:C,CCGData!A:A,Settings!$B$1, CCGData!B:B,CurrentData!A22), SUMIFS(CCGData!D:D,CCGData!A:A,Settings!$B$1, CCGData!B:B,CurrentData!A22)))) -> 23 | H22: =IF(Settings!$B$2="Asthma", SUMIFS(CCGData!J:J,CCGData!A:A,Settings!$B$1, CCGData!B:B,CurrentData!A22), IF(Settings!$B$2="Diabetes", SUMIFS(CCGData!F:F,CCGData!A:A,Settings!$B$1, CCGData!B:B,CurrentData!A22), SUMIFS(CCGData!H:H,CCGData!A:A,Settings!$B$1, CCGData!B:B,CurrentData!A22))) -> 43 | I22: =IF(Settings!$B$2="Asthma", SUMIFS(CCGData!K:K,CCGData!A:A,Settings!$B$1, CCGData!B:B,CurrentData!A22), IF(Settings!$B$2="Diabetes", SUMIFS(CCGData!G:G,CCGData!A:A,Settings!$B$1, CCGData!B:B,CurrentData!A22), SUMIFS(CCGData!I:I,CCGData!A:A,Settings!$B$1, CCGData!B:B,CurrentData!A22))) -> 23 | J22: 1.869565217 | K22: 1.353013618 | L22: 2.518292079 | M22: 42.35680637 | N22: 26.85058183 | O22: 63.55600655 | P22: 79.18881191 | Q22: 57.30933583 | R22: 106.66681 | S22: 30.37667072 | T22: 47.6576276 | U22: 1 | V22: =VLOOKUP(Selections_data_CCG!$G$2,CurrentData!A:R,13,FALSE) -> 77.70951213 | W22: =IF(Settings!$B$5="4SIMILAR", VLOOKUP(Selections_data_CCG!$G$2,'CurrentData-4SIMILAR'!A:R,13,FALSE), VLOOKUP(Settings!$C$5,CurrentData!A:R,13,FALSE)) -> 26.11663851 | X22: =VLOOKUP(Selections_data_CCG!$G$2,CurrentData!A:R,16,FALSE) -> 672.6729644 | Y22: =IF(Settings!$B$5="4SIMILAR", VLOOKUP(Selections_data_CCG!$G$2,'CurrentData-4SIMILAR'!A:R,16,FALSE), VLOOKUP(Settings!$C$5,CurrentData!A:R,16,FALSE)) -> 36.90068939 | Z22: =VLOOKUP(Selections_data_CCG!$G$2,CurrentData!A:R,10,FALSE) -> 8.147058824 | AA22: =IF(Settings!$B$5="4SIMILAR", VLOOKUP(Selections_data_CCG!$G$2,'CurrentData-4SIMILAR'!A:R,10,FALSE), VLOOKUP(Settings!$C$5,CurrentData!A:R,10,FALSE)) -> 0.8745874587 | AB22: =IF(IF(G22=0,"",COUNTIF(G$12:G$222,"<>0")-(RANK(M22,$M$12:$M$222)+COUNTIF($M$12:M22,M22)-2))<=INT(0.05*COUNTIF(G$12:G$222,"<>0")),"TOP5", IF(IF(G22=0,"",COUNTIF(G$12:G$222,"<>0")-(RANK(M22,$M$12:$M$222)+COUNTIF($M$12:M22,M22)-2))<=INT(0.25*COUNTIF(G$12:G$222,"<>0")),"TOP25", "")) -> TOP25 | AC22: =IF(IF(H22=0,"",COUNTIF(H$12:H$222,"<>0")-(RANK(P22,$P$12:$P$222)+COUNTIF($P$12:P22,P22)-2))<=INT(0.05*COUNTIF(H$12:H$222,"<>0")),"TOP5", IF(IF(H22=0,"",COUNTIF(H$12:H$222,"<>0")-(RANK(P22,$P$12:$P$222)+COUNTIF($P$12:P22,P22)-2))<=INT(0.25*COUNTIF(H$12:H$222,"<>0")),"TOP25", "")) -> TOP25 | AD22: =IF(IF(J22="Suppressed","",COUNTIF(J$12:J$222,"<>Suppressed")-(RANK(J22,$J$12:$J$222)+COUNTIF(J$12:$J22,J22)-2))<=INT(0.05*COUNTIF(J$12:J$222,"<>Suppressed")),"TOP5", IF(IF(J22="Suppressed","",COUNTIF(J$12:J$222,"<>Suppressed")-(RANK(J22,$J$12:$J$222)+COUNTIF(J$12:$J22,J22)-2))<=INT(0.25*COUNTIF(J$12:J$222,"<>suppressed")),"TOP25", "")) -> 
A23: 13P | B23: NHS Birmingham CrossCity | C23: =IF(G23=0,"",COUNTIF(G$12:G$222,"<>0")-(RANK(M23,$M$12:$M$222)+COUNTIF($M$12:M23,M23)-2)) -> 89 | D23: =IF(H23=0,"",COUNTIF(P$12:P$222,"<>Suppressed")-(RANK(P23,$P$12:$P$222)+COUNTIF($P$12:P23,P23)-2)) -> 119 | E23: =IF(J23="Suppressed","",COUNTIF(J$12:J$222,"<>Suppressed")-(RANK(J23,$J$12:$J$222)+COUNTIF($J$12:J23,J23)-2)) -> 139 | F23: =VLOOKUP(A23,population!C:O,Settings!$B$3,FALSE) -> 186852 | G23: =IF(ISNA(IF(Settings!$B$2="Asthma", SUMIFS(CCGData!E:E,CCGData!A:A,Settings!$B$1, CCGData!B:B,CurrentData!A23), IF(Settings!$B$2="Diabetes", SUMIFS(CCGData!C:C,CCGData!A:A,Settings!$B$1, CCGData!B:B,CurrentData!A23), SUMIFS(CCGData!D:D,CCGData!A:A,Settings!$B$1, CCGData!B:B,CurrentData!A23)))),"",IF(Settings!$B$2="Asthma", SUMIFS(CCGData!E:E,CCGData!A:A,Settings!$B$1, CCGData!B:B,CurrentData!A23), IF(Settings!$B$2="Diabetes", SUMIFS(CCGData!C:C,CCGData!A:A,Settings!$B$1, CCGData!B:B,CurrentData!A23), SUMIFS(CCGData!D:D,CCGData!A:A,Settings!$B$1, CCGData!B:B,CurrentData!A23)))) -> 96 | H23: =IF(Settings!$B$2="Asthma", SUMIFS(CCGData!J:J,CCGData!A:A,Settings!$B$1, CCGData!B:B,CurrentData!A23), IF(Settings!$B$2="Diabetes", SUMIFS(CCGData!F:F,CCGData!A:A,Settings!$B$1, CCGData!B:B,CurrentData!A23), SUMIFS(CCGData!H:H,CCGData!A:A,Settings!$B$1, CCGData!B:B,CurrentData!A23))) -> 240 | I23: =IF(Settings!$B$2="Asthma", SUMIFS(CCGData!K:K,CCGData!A:A,Settings!$B$1, CCGData!B:B,CurrentData!A23), IF(Settings!$B$2="Diabetes", SUMIFS(CCGData!G:G,CCGData!A:A,Settings!$B$1, CCGData!B:B,CurrentData!A23), SUMIFS(CCGData!I:I,CCGData!A:A,Settings!$B$1, CCGData!B:B,CurrentData!A23))) -> 103 | J23: 2.330097087 | K23: 2.044605127 | L23: 2.644297334 | M23: 51.37756085 | N23: 41.61598924 | O23: 62.74079539 | P23: 128.4439021 | Q23: 112.7064886 | R23: 145.7638267 | S23: 30.68614214 | T23: 48.50068224 | U23: 1 | V23: =VLOOKUP(Selections_data_CCG!$G$2,CurrentData!A:R,13,FALSE) -> 77.70951213 | W23: =IF(Settings!$B$5="4SIMILAR", VLOOKUP(Selections_data_CCG!$G$2,'CurrentData-4SIMILAR'!A:R,13,FALSE), VLOOKUP(Settings!$C$5,CurrentData!A:R,13,FALSE)) -> 26.11663851 | X23: =VLOOKUP(Selections_data_CCG!$G$2,CurrentData!A:R,16,FALSE) -> 672.6729644 | Y23: =IF(Settings!$B$5="4SIMILAR", VLOOKUP(Selections_data_CCG!$G$2,'CurrentData-4SIMILAR'!A:R,16,FALSE), VLOOKUP(Settings!$C$5,CurrentData!A:R,16,FALSE)) -> 36.90068939 | Z23: =VLOOKUP(Selections_data_CCG!$G$2,CurrentData!A:R,10,FALSE) -> 8.147058824 | AA23: =IF(Settings!$B$5="4SIMILAR", VLOOKUP(Selections_data_CCG!$G$2,'CurrentData-4SIMILAR'!A:R,10,FALSE), VLOOKUP(Settings!$C$5,CurrentData!A:R,10,FALSE)) -> 0.8745874587 | AB23: =IF(IF(G23=0,"",COUNTIF(G$12:G$222,"<>0")-(RANK(M23,$M$12:$M$222)+COUNTIF($M$12:M23,M23)-2))<=INT(0.05*COUNTIF(G$12:G$222,"<>0")),"TOP5", IF(IF(G23=0,"",COUNTIF(G$12:G$222,"<>0")-(RANK(M23,$M$12:$M$222)+COUNTIF($M$12:M23,M23)-2))<=INT(0.25*COUNTIF(G$12:G$222,"<>0")),"TOP25", "")) ->  | AC23: =IF(IF(H23=0,"",COUNTIF(H$12:H$222,"<>0")-(RANK(P23,$P$12:$P$222)+COUNTIF($P$12:P23,P23)-2))<=INT(0.05*COUNTIF(H$12:H$222,"<>0")),"TOP5", IF(IF(H23=0,"",COUNTIF(H$12:H$222,"<>0")-(RANK(P23,$P$12:$P$222)+COUNTIF($P$12:P23,P23)-2))<=INT(0.25*COUNTIF(H$12:H$222,"<>0")),"TOP25", "")) ->  | AD23: =IF(IF(J23="Suppressed","",COUNTIF(J$12:J$222,"<>Suppressed")-(RANK(J23,$J$12:$J$222)+COUNTIF(J$12:$J23,J23)-2))<=INT(0.05*COUNTIF(J$12:J$222,"<>Suppressed")),"TOP5", IF(IF(J23="Suppressed","",COUNTIF(J$12:J$222,"<>Suppressed")-(RANK(J23,$J$12:$J$222)+COUNTIF(J$12:$J23,J23)-2))<=INT(0.25*COUNTIF(J$12:J$222,"<>suppressed")),"TOP25", "")) -> 
A24: 04X | B24: NHS Birmingham South and Central | C24: =IF(G24=0,"",COUNTIF(G$12:G$222,"<>0")-(RANK(M24,$M$12:$M$222)+COUNTIF($M$12:M24,M24)-2)) -> 47 | D24: =IF(H24=0,"",COUNTIF(P$12:P$222,"<>Suppressed")-(RANK(P24,$P$12:$P$222)+COUNTIF($P$12:P24,P24)-2)) -> 175 | E24: =IF(J24="Suppressed","",COUNTIF(J$12:J$222,"<>Suppressed")-(RANK(J24,$J$12:$J$222)+COUNTIF($J$12:J24,J24)-2)) -> 206 | F24: =VLOOKUP(A24,population!C:O,Settings!$B$3,FALSE) -> 61281.2 | G24: =IF(ISNA(IF(Settings!$B$2="Asthma", SUMIFS(CCGData!E:E,CCGData!A:A,Settings!$B$1, CCGData!B:B,CurrentData!A24), IF(Settings!$B$2="Diabetes", SUMIFS(CCGData!C:C,CCGData!A:A,Settings!$B$1, CCGData!B:B,CurrentData!A24), SUMIFS(CCGData!D:D,CCGData!A:A,Settings!$B$1, CCGData!B:B,CurrentData!A24)))),"",IF(Settings!$B$2="Asthma", SUMIFS(CCGData!E:E,CCGData!A:A,Settings!$B$1, CCGData!B:B,CurrentData!A24), IF(Settings!$B$2="Diabetes", SUMIFS(CCGData!C:C,CCGData!A:A,Settings!$B$1, CCGData!B:B,CurrentData!A24), SUMIFS(CCGData!D:D,CCGData!A:A,Settings!$B$1, CCGData!B:B,CurrentData!A24)))) -> 26 | H24: =IF(Settings!$B$2="Asthma", SUMIFS(CCGData!J:J,CCGData!A:A,Settings!$B$1, CCGData!B:B,CurrentData!A24), IF(Settings!$B$2="Diabetes", SUMIFS(CCGData!F:F,CCGData!A:A,Settings!$B$1, CCGData!B:B,CurrentData!A24), SUMIFS(CCGData!H:H,CCGData!A:A,Settings!$B$1, CCGData!B:B,CurrentData!A24))) -> 105 | I24: =IF(Settings!$B$2="Asthma", SUMIFS(CCGData!K:K,CCGData!A:A,Settings!$B$1, CCGData!B:B,CurrentData!A24), IF(Settings!$B$2="Diabetes", SUMIFS(CCGData!G:G,CCGData!A:A,Settings!$B$1, CCGData!B:B,CurrentData!A24), SUMIFS(CCGData!I:I,CCGData!A:A,Settings!$B$1, CCGData!B:B,CurrentData!A24))) -> 26 | J24: 4.038461538 | K24: 3.303061435 | L24: 4.888803918 | M24: 42.42736761 | N24: 27.71496514 | O24: 62.16592378 | P24: 171.3412923 | Q24: 140.1402018 | R24: 207.419081 | S24: 32.87055575 | T24: 50.25630717 | U24: 1 | V24: =VLOOKUP(Selections_data_CCG!$G$2,CurrentData!A:R,13,FALSE) -> 77.70951213 | W24: =IF(Settings!$B$5="4SIMILAR", VLOOKUP(Selections_data_CCG!$G$2,'CurrentData-4SIMILAR'!A:R,13,FALSE), VLOOKUP(Settings!$C$5,CurrentData!A:R,13,FALSE)) -> 26.11663851 | X24: =VLOOKUP(Selections_data_CCG!$G$2,CurrentData!A:R,16,FALSE) -> 672.6729644 | Y24: =IF(Settings!$B$5="4SIMILAR", VLOOKUP(Selections_data_CCG!$G$2,'CurrentData-4SIMILAR'!A:R,16,FALSE), VLOOKUP(Settings!$C$5,CurrentData!A:R,16,FALSE)) -> 36.90068939 | Z24: =VLOOKUP(Selections_data_CCG!$G$2,CurrentData!A:R,10,FALSE) -> 8.147058824 | AA24: =IF(Settings!$B$5="4SIMILAR", VLOOKUP(Selections_data_CCG!$G$2,'CurrentData-4SIMILAR'!A:R,10,FALSE), VLOOKUP(Settings!$C$5,CurrentData!A:R,10,FALSE)) -> 0.8745874587 | AB24: =IF(IF(G24=0,"",COUNTIF(G$12:G$222,"<>0")-(RANK(M24,$M$12:$M$222)+COUNTIF($M$12:M24,M24)-2))<=INT(0.05*COUNTIF(G$12:G$222,"<>0")),"TOP5", IF(IF(G24=0,"",COUNTIF(G$12:G$222,"<>0")-(RANK(M24,$M$12:$M$222)+COUNTIF($M$12:M24,M24)-2))<=INT(0.25*COUNTIF(G$12:G$222,"<>0")),"TOP25", "")) -> TOP25 | AC24: =IF(IF(H24=0,"",COUNTIF(H$12:H$222,"<>0")-(RANK(P24,$P$12:$P$222)+COUNTIF($P$12:P24,P24)-2))<=INT(0.05*COUNTIF(H$12:H$222,"<>0")),"TOP5", IF(IF(H24=0,"",COUNTIF(H$12:H$222,"<>0")-(RANK(P24,$P$12:$P$222)+COUNTIF($P$12:P24,P24)-2))<=INT(0.25*COUNTIF(H$12:H$222,"<>0")),"TOP25", "")) ->  | AD24: =IF(IF(J24="Suppressed","",COUNTIF(J$12:J$222,"<>Suppressed")-(RANK(J24,$J$12:$J$222)+COUNTIF(J$12:$J24,J24)-2))<=INT(0.05*COUNTIF(J$12:J$222,"<>Suppressed")),"TOP5", IF(IF(J24="Suppressed","",COUNTIF(J$12:J$222,"<>Suppressed")-(RANK(J24,$J$12:$J$222)+COUNTIF(J$12:$J24,J24)-2))<=INT(0.25*COUNTIF(J$12:J$222,"<>suppressed")),"TOP25", "")) -> 
A25: 00Q | B25: NHS Blackburn with Darwen | C25: =IF(G25=0,"",COUNTIF(G$12:G$222,"<>0")-(RANK(M25,$M$12:$M$222)+COUNTIF($M$12:M25,M25)-2)) -> 152 | D25: =IF(H25=0,"",COUNTIF(P$12:P$222,"<>Suppressed")-(RANK(P25,$P$12:$P$222)+COUNTIF($P$12:P25,P25)-2)) -> 195 | E25: =IF(J25="Suppressed","",COUNTIF(J$12:J$222,"<>Suppressed")-(RANK(J25,$J$12:$J$222)+COUNTIF($J$12:J25,J25)-2)) -> 191 | F25: =VLOOKUP(A25,population!C:O,Settings!$B$3,FALSE) -> 44076.8 | G25: =IF(ISNA(IF(Settings!$B$2="Asthma", SUMIFS(CCGData!E:E,CCGData!A:A,Settings!$B$1, CCGData!B:B,CurrentData!A25), IF(Settings!$B$2="Diabetes", SUMIFS(CCGData!C:C,CCGData!A:A,Settings!$B$1, CCGData!B:B,CurrentData!A25), SUMIFS(CCGData!D:D,CCGData!A:A,Settings!$B$1, CCGData!B:B,CurrentData!A25)))),"",IF(Settings!$B$2="Asthma", SUMIFS(CCGData!E:E,CCGData!A:A,Settings!$B$1, CCGData!B:B,CurrentData!A25), IF(Settings!$B$2="Diabetes", SUMIFS(CCGData!C:C,CCGData!A:A,Settings!$B$1, CCGData!B:B,CurrentData!A25), SUMIFS(CCGData!D:D,CCGData!A:A,Settings!$B$1, CCGData!B:B,CurrentData!A25)))) -> 29 | H25: =IF(Settings!$B$2="Asthma", SUMIFS(CCGData!J:J,CCGData!A:A,Settings!$B$1, CCGData!B:B,CurrentData!A25), IF(Settings!$B$2="Diabetes", SUMIFS(CCGData!F:F,CCGData!A:A,Settings!$B$1, CCGData!B:B,CurrentData!A25), SUMIFS(CCGData!H:H,CCGData!A:A,Settings!$B$1, CCGData!B:B,CurrentData!A25))) -> 92 | I25: =IF(Settings!$B$2="Asthma", SUMIFS(CCGData!K:K,CCGData!A:A,Settings!$B$1, CCGData!B:B,CurrentData!A25), IF(Settings!$B$2="Diabetes", SUMIFS(CCGData!G:G,CCGData!A:A,Settings!$B$1, CCGData!B:B,CurrentData!A25), SUMIFS(CCGData!I:I,CCGData!A:A,Settings!$B$1, CCGData!B:B,CurrentData!A25))) -> 29 | J25: 3.172413793 | K25: 2.557413268 | L25: 3.890683897 | M25: 65.79425004 | N25: 44.06344185 | O25: 94.49151807 | P25: 208.7265863 | Q25: 168.263088 | R25: 255.9846291 | S25: 33.89175651 | T25: 54.02290571 | U25: 1.025641026 | V25: =VLOOKUP(Selections_data_CCG!$G$2,CurrentData!A:R,13,FALSE) -> 77.70951213 | W25: =IF(Settings!$B$5="4SIMILAR", VLOOKUP(Selections_data_CCG!$G$2,'CurrentData-4SIMILAR'!A:R,13,FALSE), VLOOKUP(Settings!$C$5,CurrentData!A:R,13,FALSE)) -> 26.11663851 | X25: =VLOOKUP(Selections_data_CCG!$G$2,CurrentData!A:R,16,FALSE) -> 672.6729644 | Y25: =IF(Settings!$B$5="4SIMILAR", VLOOKUP(Selections_data_CCG!$G$2,'CurrentData-4SIMILAR'!A:R,16,FALSE), VLOOKUP(Settings!$C$5,CurrentData!A:R,16,FALSE)) -> 36.90068939 | Z25: =VLOOKUP(Selections_data_CCG!$G$2,CurrentData!A:R,10,FALSE) -> 8.147058824 | AA25: =IF(Settings!$B$5="4SIMILAR", VLOOKUP(Selections_data_CCG!$G$2,'CurrentData-4SIMILAR'!A:R,10,FALSE), VLOOKUP(Settings!$C$5,CurrentData!A:R,10,FALSE)) -> 0.8745874587 | AB25: =IF(IF(G25=0,"",COUNTIF(G$12:G$222,"<>0")-(RANK(M25,$M$12:$M$222)+COUNTIF($M$12:M25,M25)-2))<=INT(0.05*COUNTIF(G$12:G$222,"<>0")),"TOP5", IF(IF(G25=0,"",COUNTIF(G$12:G$222,"<>0")-(RANK(M25,$M$12:$M$222)+COUNTIF($M$12:M25,M25)-2))<=INT(0.25*COUNTIF(G$12:G$222,"<>0")),"TOP25", "")) ->  | AC25: =IF(IF(H25=0,"",COUNTIF(H$12:H$222,"<>0")-(RANK(P25,$P$12:$P$222)+COUNTIF($P$12:P25,P25)-2))<=INT(0.05*COUNTIF(H$12:H$222,"<>0")),"TOP5", IF(IF(H25=0,"",COUNTIF(H$12:H$222,"<>0")-(RANK(P25,$P$12:$P$222)+COUNTIF($P$12:P25,P25)-2))<=INT(0.25*COUNTIF(H$12:H$222,"<>0")),"TOP25", "")) ->  | AD25: =IF(IF(J25="Suppressed","",COUNTIF(J$12:J$222,"<>Suppressed")-(RANK(J25,$J$12:$J$222)+COUNTIF(J$12:$J25,J25)-2))<=INT(0.05*COUNTIF(J$12:J$222,"<>Suppressed")),"TOP5", IF(IF(J25="Suppressed","",COUNTIF(J$12:J$222,"<>Suppressed")-(RANK(J25,$J$12:$J$222)+COUNTIF(J$12:$J25,J25)-2))<=INT(0.25*COUNTIF(J$12:J$222,"<>suppressed")),"TOP25", "")) -> 
A26: 00R | B26: NHS Blackpool | C26: =IF(G26=0,"",COUNTIF(G$12:G$222,"<>0")-(RANK(M26,$M$12:$M$222)+COUNTIF($M$12:M26,M26)-2)) -> 201 | D26: =IF(H26=0,"",COUNTIF(P$12:P$222,"<>Suppressed")-(RANK(P26,$P$12:$P$222)+COUNTIF($P$12:P26,P26)-2)) -> 160 | E26: =IF(J26="Suppressed","",COUNTIF(J$12:J$222,"<>Suppressed")-(RANK(J26,$J$12:$J$222)+COUNTIF($J$12:J26,J26)-2)) -> 52 | F26: =VLOOKUP(A26,population!C:O,Settings!$B$3,FALSE) -> 34870 | G26: =IF(ISNA(IF(Settings!$B$2="Asthma", SUMIFS(CCGData!E:E,CCGData!A:A,Settings!$B$1, CCGData!B:B,CurrentData!A26), IF(Settings!$B$2="Diabetes", SUMIFS(CCGData!C:C,CCGData!A:A,Settings!$B$1, CCGData!B:B,CurrentData!A26), SUMIFS(CCGData!D:D,CCGData!A:A,Settings!$B$1, CCGData!B:B,CurrentData!A26)))),"",IF(Settings!$B$2="Asthma", SUMIFS(CCGData!E:E,CCGData!A:A,Settings!$B$1, CCGData!B:B,CurrentData!A26), IF(Settings!$B$2="Diabetes", SUMIFS(CCGData!C:C,CCGData!A:A,Settings!$B$1, CCGData!B:B,CurrentData!A26), SUMIFS(CCGData!D:D,CCGData!A:A,Settings!$B$1, CCGData!B:B,CurrentData!A26)))) -> 34 | H26: =IF(Settings!$B$2="Asthma", SUMIFS(CCGData!J:J,CCGData!A:A,Settings!$B$1, CCGData!B:B,CurrentData!A26), IF(Settings!$B$2="Diabetes", SUMIFS(CCGData!F:F,CCGData!A:A,Settings!$B$1, CCGData!B:B,CurrentData!A26), SUMIFS(CCGData!H:H,CCGData!A:A,Settings!$B$1, CCGData!B:B,CurrentData!A26))) -> 54 | I26: =IF(Settings!$B$2="Asthma", SUMIFS(CCGData!K:K,CCGData!A:A,Settings!$B$1, CCGData!B:B,CurrentData!A26), IF(Settings!$B$2="Diabetes", SUMIFS(CCGData!G:G,CCGData!A:A,Settings!$B$1, CCGData!B:B,CurrentData!A26), SUMIFS(CCGData!I:I,CCGData!A:A,Settings!$B$1, CCGData!B:B,CurrentData!A26))) -> 35 | J26: 1.542857143 | K26: 1.159041771 | L26: 2.013093897 | M26: 97.50501864 | N26: 67.52505989 | O26: 136.2534904 | P26: 154.860912 | Q26: 116.3362833 | R26: 202.0598979 | S26: 33.99850407 | T26: 54.44053279 | U26: 1.038461538 | V26: =VLOOKUP(Selections_data_CCG!$G$2,CurrentData!A:R,13,FALSE) -> 77.70951213 | W26: =IF(Settings!$B$5="4SIMILAR", VLOOKUP(Selections_data_CCG!$G$2,'CurrentData-4SIMILAR'!A:R,13,FALSE), VLOOKUP(Settings!$C$5,CurrentData!A:R,13,FALSE)) -> 26.11663851 | X26: =VLOOKUP(Selections_data_CCG!$G$2,CurrentData!A:R,16,FALSE) -> 672.6729644 | Y26: =IF(Settings!$B$5="4SIMILAR", VLOOKUP(Selections_data_CCG!$G$2,'CurrentData-4SIMILAR'!A:R,16,FALSE), VLOOKUP(Settings!$C$5,CurrentData!A:R,16,FALSE)) -> 36.90068939 | Z26: =VLOOKUP(Selections_data_CCG!$G$2,CurrentData!A:R,10,FALSE) -> 8.147058824 | AA26: =IF(Settings!$B$5="4SIMILAR", VLOOKUP(Selections_data_CCG!$G$2,'CurrentData-4SIMILAR'!A:R,10,FALSE), VLOOKUP(Settings!$C$5,CurrentData!A:R,10,FALSE)) -> 0.8745874587 | AB26: =IF(IF(G26=0,"",COUNTIF(G$12:G$222,"<>0")-(RANK(M26,$M$12:$M$222)+COUNTIF($M$12:M26,M26)-2))<=INT(0.05*COUNTIF(G$12:G$222,"<>0")),"TOP5", IF(IF(G26=0,"",COUNTIF(G$12:G$222,"<>0")-(RANK(M26,$M$12:$M$222)+COUNTIF($M$12:M26,M26)-2))<=INT(0.25*COUNTIF(G$12:G$222,"<>0")),"TOP25", "")) ->  | AC26: =IF(IF(H26=0,"",COUNTIF(H$12:H$222,"<>0")-(RANK(P26,$P$12:$P$222)+COUNTIF($P$12:P26,P26)-2))<=INT(0.05*COUNTIF(H$12:H$222,"<>0")),"TOP5", IF(IF(H26=0,"",COUNTIF(H$12:H$222,"<>0")-(RANK(P26,$P$12:$P$222)+COUNTIF($P$12:P26,P26)-2))<=INT(0.25*COUNTIF(H$12:H$222,"<>0")),"TOP25", "")) ->  | AD26: =IF(IF(J26="Suppressed","",COUNTIF(J$12:J$222,"<>Suppressed")-(RANK(J26,$J$12:$J$222)+COUNTIF(J$12:$J26,J26)-2))<=INT(0.05*COUNTIF(J$12:J$222,"<>Suppressed")),"TOP5", IF(IF(J26="Suppressed","",COUNTIF(J$12:J$222,"<>Suppressed")-(RANK(J26,$J$12:$J$222)+COUNTIF(J$12:$J26,J26)-2))<=INT(0.25*COUNTIF(J$12:J$222,"<>suppressed")),"TOP25", "")) -> TOP25
A27: 00T | B27: NHS Bolton | C27: =IF(G27=0,"",COUNTIF(G$12:G$222,"<>0")-(RANK(M27,$M$12:$M$222)+COUNTIF($M$12:M27,M27)-2)) -> 9 | D27: =IF(H27=0,"",COUNTIF(P$12:P$222,"<>Suppressed")-(RANK(P27,$P$12:$P$222)+COUNTIF($P$12:P27,P27)-2)) -> 4 | E27: =IF(J27="Suppressed","",COUNTIF(J$12:J$222,"<>Suppressed")-(RANK(J27,$J$12:$J$222)+COUNTIF($J$12:J27,J27)-2)) -> 19 | F27: =VLOOKUP(A27,population!C:O,Settings!$B$3,FALSE) -> 70951.2 | G27: =IF(ISNA(IF(Settings!$B$2="Asthma", SUMIFS(CCGData!E:E,CCGData!A:A,Settings!$B$1, CCGData!B:B,CurrentData!A27), IF(Settings!$B$2="Diabetes", SUMIFS(CCGData!C:C,CCGData!A:A,Settings!$B$1, CCGData!B:B,CurrentData!A27), SUMIFS(CCGData!D:D,CCGData!A:A,Settings!$B$1, CCGData!B:B,CurrentData!A27)))),"",IF(Settings!$B$2="Asthma", SUMIFS(CCGData!E:E,CCGData!A:A,Settings!$B$1, CCGData!B:B,CurrentData!A27), IF(Settings!$B$2="Diabetes", SUMIFS(CCGData!C:C,CCGData!A:A,Settings!$B$1, CCGData!B:B,CurrentData!A27), SUMIFS(CCGData!D:D,CCGData!A:A,Settings!$B$1, CCGData!B:B,CurrentData!A27)))) -> 21 | H27: =IF(Settings!$B$2="Asthma", SUMIFS(CCGData!J:J,CCGData!A:A,Settings!$B$1, CCGData!B:B,CurrentData!A27), IF(Settings!$B$2="Diabetes", SUMIFS(CCGData!F:F,CCGData!A:A,Settings!$B$1, CCGData!B:B,CurrentData!A27), SUMIFS(CCGData!H:H,CCGData!A:A,Settings!$B$1, CCGData!B:B,CurrentData!A27))) -> 26 | I27: =IF(Settings!$B$2="Asthma", SUMIFS(CCGData!K:K,CCGData!A:A,Settings!$B$1, CCGData!B:B,CurrentData!A27), IF(Settings!$B$2="Diabetes", SUMIFS(CCGData!G:G,CCGData!A:A,Settings!$B$1, CCGData!B:B,CurrentData!A27), SUMIFS(CCGData!I:I,CCGData!A:A,Settings!$B$1, CCGData!B:B,CurrentData!A27))) -> 22 | J27: 1.181818182 | K27: 0.7720028734 | L27: 1.731637458 | M27: 29.59780807 | N27: 18.32150969 | O27: 45.24339368 | P27: 36.64490523 | Q27: 23.93766873 | R27: 53.69327662 | S27: 34.25119398 | T27: 54.58349759 | U27: 1.105263158 | V27: =VLOOKUP(Selections_data_CCG!$G$2,CurrentData!A:R,13,FALSE) -> 77.70951213 | W27: =IF(Settings!$B$5="4SIMILAR", VLOOKUP(Selections_data_CCG!$G$2,'CurrentData-4SIMILAR'!A:R,13,FALSE), VLOOKUP(Settings!$C$5,CurrentData!A:R,13,FALSE)) -> 26.11663851 | X27: =VLOOKUP(Selections_data_CCG!$G$2,CurrentData!A:R,16,FALSE) -> 672.6729644 | Y27: =IF(Settings!$B$5="4SIMILAR", VLOOKUP(Selections_data_CCG!$G$2,'CurrentData-4SIMILAR'!A:R,16,FALSE), VLOOKUP(Settings!$C$5,CurrentData!A:R,16,FALSE)) -> 36.90068939 | Z27: =VLOOKUP(Selections_data_CCG!$G$2,CurrentData!A:R,10,FALSE) -> 8.147058824 | AA27: =IF(Settings!$B$5="4SIMILAR", VLOOKUP(Selections_data_CCG!$G$2,'CurrentData-4SIMILAR'!A:R,10,FALSE), VLOOKUP(Settings!$C$5,CurrentData!A:R,10,FALSE)) -> 0.8745874587 | AB27: =IF(IF(G27=0,"",COUNTIF(G$12:G$222,"<>0")-(RANK(M27,$M$12:$M$222)+COUNTIF($M$12:M27,M27)-2))<=INT(0.05*COUNTIF(G$12:G$222,"<>0")),"TOP5", IF(IF(G27=0,"",COUNTIF(G$12:G$222,"<>0")-(RANK(M27,$M$12:$M$222)+COUNTIF($M$12:M27,M27)-2))<=INT(0.25*COUNTIF(G$12:G$222,"<>0")),"TOP25", "")) -> TOP5 | AC27: =IF(IF(H27=0,"",COUNTIF(H$12:H$222,"<>0")-(RANK(P27,$P$12:$P$222)+COUNTIF($P$12:P27,P27)-2))<=INT(0.05*COUNTIF(H$12:H$222,"<>0")),"TOP5", IF(IF(H27=0,"",COUNTIF(H$12:H$222,"<>0")-(RANK(P27,$P$12:$P$222)+COUNTIF($P$12:P27,P27)-2))<=INT(0.25*COUNTIF(H$12:H$222,"<>0")),"TOP25", "")) -> TOP5 | AD27: =IF(IF(J27="Suppressed","",COUNTIF(J$12:J$222,"<>Suppressed")-(RANK(J27,$J$12:$J$222)+COUNTIF(J$12:$J27,J27)-2))<=INT(0.05*COUNTIF(J$12:J$222,"<>Suppressed")),"TOP5", IF(IF(J27="Suppressed","",COUNTIF(J$12:J$222,"<>Suppressed")-(RANK(J27,$J$12:$J$222)+COUNTIF(J$12:$J27,J27)-2))<=INT(0.25*COUNTIF(J$12:J$222,"<>suppressed")),"TOP25", "")) -> TOP25
A28: 10G | B28: NHS Bracknell and Ascot | C28: =IF(G28=0,"",COUNTIF(G$12:G$222,"<>0")-(RANK(M28,$M$12:$M$222)+COUNTIF($M$12:M28,M28)-2)) -> 75 | D28: =IF(H28=0,"",COUNTIF(P$12:P$222,"<>Suppressed")-(RANK(P28,$P$12:$P$222)+COUNTIF($P$12:P28,P28)-2)) -> 70 | E28: =IF(J28="Suppressed","",COUNTIF(J$12:J$222,"<>Suppressed")-(RANK(J28,$J$12:$J$222)+COUNTIF($J$12:J28,J28)-2)) -> 86 | F28: =VLOOKUP(A28,population!C:O,Settings!$B$3,FALSE) -> 32802.8 | G28: =IF(ISNA(IF(Settings!$B$2="Asthma", SUMIFS(CCGData!E:E,CCGData!A:A,Settings!$B$1, CCGData!B:B,CurrentData!A28), IF(Settings!$B$2="Diabetes", SUMIFS(CCGData!C:C,CCGData!A:A,Settings!$B$1, CCGData!B:B,CurrentData!A28), SUMIFS(CCGData!D:D,CCGData!A:A,Settings!$B$1, CCGData!B:B,CurrentData!A28)))),"",IF(Settings!$B$2="Asthma", SUMIFS(CCGData!E:E,CCGData!A:A,Settings!$B$1, CCGData!B:B,CurrentData!A28), IF(Settings!$B$2="Diabetes", SUMIFS(CCGData!C:C,CCGData!A:A,Settings!$B$1, CCGData!B:B,CurrentData!A28), SUMIFS(CCGData!D:D,CCGData!A:A,Settings!$B$1, CCGData!B:B,CurrentData!A28)))) -> 16 | H28: =IF(Settings!$B$2="Asthma", SUMIFS(CCGData!J:J,CCGData!A:A,Settings!$B$1, CCGData!B:B,CurrentData!A28), IF(Settings!$B$2="Diabetes", SUMIFS(CCGData!F:F,CCGData!A:A,Settings!$B$1, CCGData!B:B,CurrentData!A28), SUMIFS(CCGData!H:H,CCGData!A:A,Settings!$B$1, CCGData!B:B,CurrentData!A28))) -> 31 | I28: =IF(Settings!$B$2="Asthma", SUMIFS(CCGData!K:K,CCGData!A:A,Settings!$B$1, CCGData!B:B,CurrentData!A28), IF(Settings!$B$2="Diabetes", SUMIFS(CCGData!G:G,CCGData!A:A,Settings!$B$1, CCGData!B:B,CurrentData!A28), SUMIFS(CCGData!I:I,CCGData!A:A,Settings!$B$1, CCGData!B:B,CurrentData!A28))) -> 17 | J28: 1.823529412 | K28: 1.238999763 | L28: 2.588354441 | M28: 48.77632397 | N28: 27.87988359 | O28: 79.20969429 | P28: 94.5041277 | Q28: 64.21096973 | R28: 134.1410657 | S28: 35.15718558 | T28: 54.58459851 | U28: 1.125 | V28: =VLOOKUP(Selections_data_CCG!$G$2,CurrentData!A:R,13,FALSE) -> 77.70951213 | W28: =IF(Settings!$B$5="4SIMILAR", VLOOKUP(Selections_data_CCG!$G$2,'CurrentData-4SIMILAR'!A:R,13,FALSE), VLOOKUP(Settings!$C$5,CurrentData!A:R,13,FALSE)) -> 26.11663851 | X28: =VLOOKUP(Selections_data_CCG!$G$2,CurrentData!A:R,16,FALSE) -> 672.6729644 | Y28: =IF(Settings!$B$5="4SIMILAR", VLOOKUP(Selections_data_CCG!$G$2,'CurrentData-4SIMILAR'!A:R,16,FALSE), VLOOKUP(Settings!$C$5,CurrentData!A:R,16,FALSE)) -> 36.90068939 | Z28: =VLOOKUP(Selections_data_CCG!$G$2,CurrentData!A:R,10,FALSE) -> 8.147058824 | AA28: =IF(Settings!$B$5="4SIMILAR", VLOOKUP(Selections_data_CCG!$G$2,'CurrentData-4SIMILAR'!A:R,10,FALSE), VLOOKUP(Settings!$C$5,CurrentData!A:R,10,FALSE)) -> 0.8745874587 | AB28: =IF(IF(G28=0,"",COUNTIF(G$12:G$222,"<>0")-(RANK(M28,$M$12:$M$222)+COUNTIF($M$12:M28,M28)-2))<=INT(0.05*COUNTIF(G$12:G$222,"<>0")),"TOP5", IF(IF(G28=0,"",COUNTIF(G$12:G$222,"<>0")-(RANK(M28,$M$12:$M$222)+COUNTIF($M$12:M28,M28)-2))<=INT(0.25*COUNTIF(G$12:G$222,"<>0")),"TOP25", "")) ->  | AC28: =IF(IF(H28=0,"",COUNTIF(H$12:H$222,"<>0")-(RANK(P28,$P$12:$P$222)+COUNTIF($P$12:P28,P28)-2))<=INT(0.05*COUNTIF(H$12:H$222,"<>0")),"TOP5", IF(IF(H28=0,"",COUNTIF(H$12:H$222,"<>0")-(RANK(P28,$P$12:$P$222)+COUNTIF($P$12:P28,P28)-2))<=INT(0.25*COUNTIF(H$12:H$222,"<>0")),"TOP25", "")) ->  | AD28: =IF(IF(J28="Suppressed","",COUNTIF(J$12:J$222,"<>Suppressed")-(RANK(J28,$J$12:$J$222)+COUNTIF(J$12:$J28,J28)-2))<=INT(0.05*COUNTIF(J$12:J$222,"<>Suppressed")),"TOP5", IF(IF(J28="Suppressed","",COUNTIF(J$12:J$222,"<>Suppressed")-(RANK(J28,$J$12:$J$222)+COUNTIF(J$12:$J28,J28)-2))<=INT(0.25*COUNTIF(J$12:J$222,"<>suppressed")),"TOP25", "")) -> 
A29: 02W | B29: NHS Bradford City | C29: =IF(G29=0,"",COUNTIF(G$12:G$222,"<>0")-(RANK(M29,$M$12:$M$222)+COUNTIF($M$12:M29,M29)-2)) -> 31 | D29: =IF(H29=0,"",COUNTIF(P$12:P$222,"<>Suppressed")-(RANK(P29,$P$12:$P$222)+COUNTIF($P$12:P29,P29)-2)) -> 178 | E29: =IF(J29="Suppressed","",COUNTIF(J$12:J$222,"<>Suppressed")-(RANK(J29,$J$12:$J$222)+COUNTIF($J$12:J29,J29)-2)) -> 207 | F29: =VLOOKUP(A29,population!C:O,Settings!$B$3,FALSE) -> 38702.4 | G29: =IF(ISNA(IF(Settings!$B$2="Asthma", SUMIFS(CCGData!E:E,CCGData!A:A,Settings!$B$1, CCGData!B:B,CurrentData!A29), IF(Settings!$B$2="Diabetes", SUMIFS(CCGData!C:C,CCGData!A:A,Settings!$B$1, CCGData!B:B,CurrentData!A29), SUMIFS(CCGData!D:D,CCGData!A:A,Settings!$B$1, CCGData!B:B,CurrentData!A29)))),"",IF(Settings!$B$2="Asthma", SUMIFS(CCGData!E:E,CCGData!A:A,Settings!$B$1, CCGData!B:B,CurrentData!A29), IF(Settings!$B$2="Diabetes", SUMIFS(CCGData!C:C,CCGData!A:A,Settings!$B$1, CCGData!B:B,CurrentData!A29), SUMIFS(CCGData!D:D,CCGData!A:A,Settings!$B$1, CCGData!B:B,CurrentData!A29)))) -> 15 | H29: =IF(Settings!$B$2="Asthma", SUMIFS(CCGData!J:J,CCGData!A:A,Settings!$B$1, CCGData!B:B,CurrentData!A29), IF(Settings!$B$2="Diabetes", SUMIFS(CCGData!F:F,CCGData!A:A,Settings!$B$1, CCGData!B:B,CurrentData!A29), SUMIFS(CCGData!H:H,CCGData!A:A,Settings!$B$1, CCGData!B:B,CurrentData!A29))) -> 68 | I29: =IF(Settings!$B$2="Asthma", SUMIFS(CCGData!K:K,CCGData!A:A,Settings!$B$1, CCGData!B:B,CurrentData!A29), IF(Settings!$B$2="Diabetes", SUMIFS(CCGData!G:G,CCGData!A:A,Settings!$B$1, CCGData!B:B,CurrentData!A29), SUMIFS(CCGData!I:I,CCGData!A:A,Settings!$B$1, CCGData!B:B,CurrentData!A29))) -> 15 | J29: 4.533333333 | K29: 3.520310717 | L29: 5.74708021 | M29: 38.75728637 | N29: 21.69215897 | O29: 63.92424984 | P29: 175.6996982 | Q29: 136.4376906 | R29: 222.7412335 | S29: 35.7432207 | T29: 58.26501971 | U29: 1.133333333 | V29: =VLOOKUP(Selections_data_CCG!$G$2,CurrentData!A:R,13,FALSE) -> 77.70951213 | W29: =IF(Settings!$B$5="4SIMILAR", VLOOKUP(Selections_data_CCG!$G$2,'CurrentData-4SIMILAR'!A:R,13,FALSE), VLOOKUP(Settings!$C$5,CurrentData!A:R,13,FALSE)) -> 26.11663851 | X29: =VLOOKUP(Selections_data_CCG!$G$2,CurrentData!A:R,16,FALSE) -> 672.6729644 | Y29: =IF(Settings!$B$5="4SIMILAR", VLOOKUP(Selections_data_CCG!$G$2,'CurrentData-4SIMILAR'!A:R,16,FALSE), VLOOKUP(Settings!$C$5,CurrentData!A:R,16,FALSE)) -> 36.90068939 | Z29: =VLOOKUP(Selections_data_CCG!$G$2,CurrentData!A:R,10,FALSE) -> 8.147058824 | AA29: =IF(Settings!$B$5="4SIMILAR", VLOOKUP(Selections_data_CCG!$G$2,'CurrentData-4SIMILAR'!A:R,10,FALSE), VLOOKUP(Settings!$C$5,CurrentData!A:R,10,FALSE)) -> 0.8745874587 | AB29: =IF(IF(G29=0,"",COUNTIF(G$12:G$222,"<>0")-(RANK(M29,$M$12:$M$222)+COUNTIF($M$12:M29,M29)-2))<=INT(0.05*COUNTIF(G$12:G$222,"<>0")),"TOP5", IF(IF(G29=0,"",COUNTIF(G$12:G$222,"<>0")-(RANK(M29,$M$12:$M$222)+COUNTIF($M$12:M29,M29)-2))<=INT(0.25*COUNTIF(G$12:G$222,"<>0")),"TOP25", "")) -> TOP25 | AC29: =IF(IF(H29=0,"",COUNTIF(H$12:H$222,"<>0")-(RANK(P29,$P$12:$P$222)+COUNTIF($P$12:P29,P29)-2))<=INT(0.05*COUNTIF(H$12:H$222,"<>0")),"TOP5", IF(IF(H29=0,"",COUNTIF(H$12:H$222,"<>0")-(RANK(P29,$P$12:$P$222)+COUNTIF($P$12:P29,P29)-2))<=INT(0.25*COUNTIF(H$12:H$222,"<>0")),"TOP25", "")) ->  | AD29: =IF(IF(J29="Suppressed","",COUNTIF(J$12:J$222,"<>Suppressed")-(RANK(J29,$J$12:$J$222)+COUNTIF(J$12:$J29,J29)-2))<=INT(0.05*COUNTIF(J$12:J$222,"<>Suppressed")),"TOP5", IF(IF(J29="Suppressed","",COUNTIF(J$12:J$222,"<>Suppressed")-(RANK(J29,$J$12:$J$222)+COUNTIF(J$12:$J29,J29)-2))<=INT(0.25*COUNTIF(J$12:J$222,"<>suppressed")),"TOP25", "")) -> 
A30: 02R | B30: NHS Bradford Districts | C30: =IF(G30=0,"",COUNTIF(G$12:G$222,"<>0")-(RANK(M30,$M$12:$M$222)+COUNTIF($M$12:M30,M30)-2)) -> 129 | D30: =IF(H30=0,"",COUNTIF(P$12:P$222,"<>Suppressed")-(RANK(P30,$P$12:$P$222)+COUNTIF($P$12:P30,P30)-2)) -> 177 | E30: =IF(J30="Suppressed","",COUNTIF(J$12:J$222,"<>Suppressed")-(RANK(J30,$J$12:$J$222)+COUNTIF($J$12:J30,J30)-2)) -> 175 | F30: =VLOOKUP(A30,population!C:O,Settings!$B$3,FALSE) -> 84198.6 | G30: =IF(ISNA(IF(Settings!$B$2="Asthma", SUMIFS(CCGData!E:E,CCGData!A:A,Settings!$B$1, CCGData!B:B,CurrentData!A30), IF(Settings!$B$2="Diabetes", SUMIFS(CCGData!C:C,CCGData!A:A,Settings!$B$1, CCGData!B:B,CurrentData!A30), SUMIFS(CCGData!D:D,CCGData!A:A,Settings!$B$1, CCGData!B:B,CurrentData!A30)))),"",IF(Settings!$B$2="Asthma", SUMIFS(CCGData!E:E,CCGData!A:A,Settings!$B$1, CCGData!B:B,CurrentData!A30), IF(Settings!$B$2="Diabetes", SUMIFS(CCGData!C:C,CCGData!A:A,Settings!$B$1, CCGData!B:B,CurrentData!A30), SUMIFS(CCGData!D:D,CCGData!A:A,Settings!$B$1, CCGData!B:B,CurrentData!A30)))) -> 51 | H30: =IF(Settings!$B$2="Asthma", SUMIFS(CCGData!J:J,CCGData!A:A,Settings!$B$1, CCGData!B:B,CurrentData!A30), IF(Settings!$B$2="Diabetes", SUMIFS(CCGData!F:F,CCGData!A:A,Settings!$B$1, CCGData!B:B,CurrentData!A30), SUMIFS(CCGData!H:H,CCGData!A:A,Settings!$B$1, CCGData!B:B,CurrentData!A30))) -> 145 | I30: =IF(Settings!$B$2="Asthma", SUMIFS(CCGData!K:K,CCGData!A:A,Settings!$B$1, CCGData!B:B,CurrentData!A30), IF(Settings!$B$2="Diabetes", SUMIFS(CCGData!G:G,CCGData!A:A,Settings!$B$1, CCGData!B:B,CurrentData!A30), SUMIFS(CCGData!I:I,CCGData!A:A,Settings!$B$1, CCGData!B:B,CurrentData!A30))) -> 51 | J30: 2.843137255 | K30: 2.399212771 | L30: 3.345388396 | M30: 60.57107838 | N30: 45.09914635 | O30: 79.63978187 | P30: 172.2118895 | Q30: 145.3229048 | R30: 202.6337828 | S30: 35.78357074 | T30: 59.06406803 | U30: 1.181818182 | V30: =VLOOKUP(Selections_data_CCG!$G$2,CurrentData!A:R,13,FALSE) -> 77.70951213 | W30: =IF(Settings!$B$5="4SIMILAR", VLOOKUP(Selections_data_CCG!$G$2,'CurrentData-4SIMILAR'!A:R,13,FALSE), VLOOKUP(Settings!$C$5,CurrentData!A:R,13,FALSE)) -> 26.11663851 | X30: =VLOOKUP(Selections_data_CCG!$G$2,CurrentData!A:R,16,FALSE) -> 672.6729644 | Y30: =IF(Settings!$B$5="4SIMILAR", VLOOKUP(Selections_data_CCG!$G$2,'CurrentData-4SIMILAR'!A:R,16,FALSE), VLOOKUP(Settings!$C$5,CurrentData!A:R,16,FALSE)) -> 36.90068939 | Z30: =VLOOKUP(Selections_data_CCG!$G$2,CurrentData!A:R,10,FALSE) -> 8.147058824 | AA30: =IF(Settings!$B$5="4SIMILAR", VLOOKUP(Selections_data_CCG!$G$2,'CurrentData-4SIMILAR'!A:R,10,FALSE), VLOOKUP(Settings!$C$5,CurrentData!A:R,10,FALSE)) -> 0.8745874587 | AB30: =IF(IF(G30=0,"",COUNTIF(G$12:G$222,"<>0")-(RANK(M30,$M$12:$M$222)+COUNTIF($M$12:M30,M30)-2))<=INT(0.05*COUNTIF(G$12:G$222,"<>0")),"TOP5", IF(IF(G30=0,"",COUNTIF(G$12:G$222,"<>0")-(RANK(M30,$M$12:$M$222)+COUNTIF($M$12:M30,M30)-2))<=INT(0.25*COUNTIF(G$12:G$222,"<>0")),"TOP25", "")) ->  | AC30: =IF(IF(H30=0,"",COUNTIF(H$12:H$222,"<>0")-(RANK(P30,$P$12:$P$222)+COUNTIF($P$12:P30,P30)-2))<=INT(0.05*COUNTIF(H$12:H$222,"<>0")),"TOP5", IF(IF(H30=0,"",COUNTIF(H$12:H$222,"<>0")-(RANK(P30,$P$12:$P$222)+COUNTIF($P$12:P30,P30)-2))<=INT(0.25*COUNTIF(H$12:H$222,"<>0")),"TOP25", "")) ->  | AD30: =IF(IF(J30="Suppressed","",COUNTIF(J$12:J$222,"<>Suppressed")-(RANK(J30,$J$12:$J$222)+COUNTIF(J$12:$J30,J30)-2))<=INT(0.05*COUNTIF(J$12:J$222,"<>Suppressed")),"TOP5", IF(IF(J30="Suppressed","",COUNTIF(J$12:J$222,"<>Suppressed")-(RANK(J30,$J$12:$J$222)+COUNTIF(J$12:$J30,J30)-2))<=INT(0.25*COUNTIF(J$12:J$222,"<>suppressed")),"TOP25", "")) -> 
A31: 07P | B31: NHS Brent | C31: =IF(G31=0,"",COUNTIF(G$12:G$222,"<>0")-(RANK(M31,$M$12:$M$222)+COUNTIF($M$12:M31,M31)-2)) -> 94 | D31: =IF(H31=0,"",COUNTIF(P$12:P$222,"<>Suppressed")-(RANK(P31,$P$12:$P$222)+COUNTIF($P$12:P31,P31)-2)) -> 170 | E31: =IF(J31="Suppressed","",COUNTIF(J$12:J$222,"<>Suppressed")-(RANK(J31,$J$12:$J$222)+COUNTIF($J$12:J31,J31)-2)) -> 185 | F31: =VLOOKUP(A31,population!C:O,Settings!$B$3,FALSE) -> 79249.4 | G31: =IF(ISNA(IF(Settings!$B$2="Asthma", SUMIFS(CCGData!E:E,CCGData!A:A,Settings!$B$1, CCGData!B:B,CurrentData!A31), IF(Settings!$B$2="Diabetes", SUMIFS(CCGData!C:C,CCGData!A:A,Settings!$B$1, CCGData!B:B,CurrentData!A31), SUMIFS(CCGData!D:D,CCGData!A:A,Settings!$B$1, CCGData!B:B,CurrentData!A31)))),"",IF(Settings!$B$2="Asthma", SUMIFS(CCGData!E:E,CCGData!A:A,Settings!$B$1, CCGData!B:B,CurrentData!A31), IF(Settings!$B$2="Diabetes", SUMIFS(CCGData!C:C,CCGData!A:A,Settings!$B$1, CCGData!B:B,CurrentData!A31), SUMIFS(CCGData!D:D,CCGData!A:A,Settings!$B$1, CCGData!B:B,CurrentData!A31)))) -> 41 | H31: =IF(Settings!$B$2="Asthma", SUMIFS(CCGData!J:J,CCGData!A:A,Settings!$B$1, CCGData!B:B,CurrentData!A31), IF(Settings!$B$2="Diabetes", SUMIFS(CCGData!F:F,CCGData!A:A,Settings!$B$1, CCGData!B:B,CurrentData!A31), SUMIFS(CCGData!H:H,CCGData!A:A,Settings!$B$1, CCGData!B:B,CurrentData!A31))) -> 129 | I31: =IF(Settings!$B$2="Asthma", SUMIFS(CCGData!K:K,CCGData!A:A,Settings!$B$1, CCGData!B:B,CurrentData!A31), IF(Settings!$B$2="Diabetes", SUMIFS(CCGData!G:G,CCGData!A:A,Settings!$B$1, CCGData!B:B,CurrentData!A31), SUMIFS(CCGData!I:I,CCGData!A:A,Settings!$B$1, CCGData!B:B,CurrentData!A31))) -> 42 | J31: 3.071428571 | K31: 2.564305446 | L31: 3.649490395 | M31: 51.73540746 | N31: 37.12622161 | O31: 70.18492199 | P31: 162.7772576 | Q31: 135.9011282 | R31: 193.4129427 | S31: 36.17365988 | T31: 59.33133585 | U31: 1.2 | V31: =VLOOKUP(Selections_data_CCG!$G$2,CurrentData!A:R,13,FALSE) -> 77.70951213 | W31: =IF(Settings!$B$5="4SIMILAR", VLOOKUP(Selections_data_CCG!$G$2,'CurrentData-4SIMILAR'!A:R,13,FALSE), VLOOKUP(Settings!$C$5,CurrentData!A:R,13,FALSE)) -> 26.11663851 | X31: =VLOOKUP(Selections_data_CCG!$G$2,CurrentData!A:R,16,FALSE) -> 672.6729644 | Y31: =IF(Settings!$B$5="4SIMILAR", VLOOKUP(Selections_data_CCG!$G$2,'CurrentData-4SIMILAR'!A:R,16,FALSE), VLOOKUP(Settings!$C$5,CurrentData!A:R,16,FALSE)) -> 36.90068939 | Z31: =VLOOKUP(Selections_data_CCG!$G$2,CurrentData!A:R,10,FALSE) -> 8.147058824 | AA31: =IF(Settings!$B$5="4SIMILAR", VLOOKUP(Selections_data_CCG!$G$2,'CurrentData-4SIMILAR'!A:R,10,FALSE), VLOOKUP(Settings!$C$5,CurrentData!A:R,10,FALSE)) -> 0.8745874587 | AB31: =IF(IF(G31=0,"",COUNTIF(G$12:G$222,"<>0")-(RANK(M31,$M$12:$M$222)+COUNTIF($M$12:M31,M31)-2))<=INT(0.05*COUNTIF(G$12:G$222,"<>0")),"TOP5", IF(IF(G31=0,"",COUNTIF(G$12:G$222,"<>0")-(RANK(M31,$M$12:$M$222)+COUNTIF($M$12:M31,M31)-2))<=INT(0.25*COUNTIF(G$12:G$222,"<>0")),"TOP25", "")) ->  | AC31: =IF(IF(H31=0,"",COUNTIF(H$12:H$222,"<>0")-(RANK(P31,$P$12:$P$222)+COUNTIF($P$12:P31,P31)-2))<=INT(0.05*COUNTIF(H$12:H$222,"<>0")),"TOP5", IF(IF(H31=0,"",COUNTIF(H$12:H$222,"<>0")-(RANK(P31,$P$12:$P$222)+COUNTIF($P$12:P31,P31)-2))<=INT(0.25*COUNTIF(H$12:H$222,"<>0")),"TOP25", "")) ->  | AD31: =IF(IF(J31="Suppressed","",COUNTIF(J$12:J$222,"<>Suppressed")-(RANK(J31,$J$12:$J$222)+COUNTIF(J$12:$J31,J31)-2))<=INT(0.05*COUNTIF(J$12:J$222,"<>Suppressed")),"TOP5", IF(IF(J31="Suppressed","",COUNTIF(J$12:J$222,"<>Suppressed")-(RANK(J31,$J$12:$J$222)+COUNTIF(J$12:$J31,J31)-2))<=INT(0.25*COUNTIF(J$12:J$222,"<>suppressed")),"TOP25", "")) -> 
A32: 09D | B32: NHS Brighton and Hove | C32: =IF(G32=0,"",COUNTIF(G$12:G$222,"<>0")-(RANK(M32,$M$12:$M$222)+COUNTIF($M$12:M32,M32)-2)) -> 28 | D32: =IF(H32=0,"",COUNTIF(P$12:P$222,"<>Suppressed")-(RANK(P32,$P$12:$P$222)+COUNTIF($P$12:P32,P32)-2)) -> 64 | E32: =IF(J32="Suppressed","",COUNTIF(J$12:J$222,"<>Suppressed")-(RANK(J32,$J$12:$J$222)+COUNTIF($J$12:J32,J32)-2)) -> 147 | F32: =VLOOKUP(A32,population!C:O,Settings!$B$3,FALSE) -> 57729 | G32: =IF(ISNA(IF(Settings!$B$2="Asthma", SUMIFS(CCGData!E:E,CCGData!A:A,Settings!$B$1, CCGData!B:B,CurrentData!A32), IF(Settings!$B$2="Diabetes", SUMIFS(CCGData!C:C,CCGData!A:A,Settings!$B$1, CCGData!B:B,CurrentData!A32), SUMIFS(CCGData!D:D,CCGData!A:A,Settings!$B$1, CCGData!B:B,CurrentData!A32)))),"",IF(Settings!$B$2="Asthma", SUMIFS(CCGData!E:E,CCGData!A:A,Settings!$B$1, CCGData!B:B,CurrentData!A32), IF(Settings!$B$2="Diabetes", SUMIFS(CCGData!C:C,CCGData!A:A,Settings!$B$1, CCGData!B:B,CurrentData!A32), SUMIFS(CCGData!D:D,CCGData!A:A,Settings!$B$1, CCGData!B:B,CurrentData!A32)))) -> 22 | H32: =IF(Settings!$B$2="Asthma", SUMIFS(CCGData!J:J,CCGData!A:A,Settings!$B$1, CCGData!B:B,CurrentData!A32), IF(Settings!$B$2="Diabetes", SUMIFS(CCGData!F:F,CCGData!A:A,Settings!$B$1, CCGData!B:B,CurrentData!A32), SUMIFS(CCGData!H:H,CCGData!A:A,Settings!$B$1, CCGData!B:B,CurrentData!A32))) -> 53 | I32: =IF(Settings!$B$2="Asthma", SUMIFS(CCGData!K:K,CCGData!A:A,Settings!$B$1, CCGData!B:B,CurrentData!A32), IF(Settings!$B$2="Diabetes", SUMIFS(CCGData!G:G,CCGData!A:A,Settings!$B$1, CCGData!B:B,CurrentData!A32), SUMIFS(CCGData!I:I,CCGData!A:A,Settings!$B$1, CCGData!B:B,CurrentData!A32))) -> 22 | J32: 2.409090909 | K32: 1.804574406 | L32: 3.151150224 | M32: 38.10909595 | N32: 23.88276754 | O32: 57.69762925 | P32: 91.8082766 | Q32: 68.77069918 | R32: 120.0874862 | S32: 36.96350118 | T32: 61.78903986 | U32: 1.24137931 | V32: =VLOOKUP(Selections_data_CCG!$G$2,CurrentData!A:R,13,FALSE) -> 77.70951213 | W32: =IF(Settings!$B$5="4SIMILAR", VLOOKUP(Selections_data_CCG!$G$2,'CurrentData-4SIMILAR'!A:R,13,FALSE), VLOOKUP(Settings!$C$5,CurrentData!A:R,13,FALSE)) -> 26.11663851 | X32: =VLOOKUP(Selections_data_CCG!$G$2,CurrentData!A:R,16,FALSE) -> 672.6729644 | Y32: =IF(Settings!$B$5="4SIMILAR", VLOOKUP(Selections_data_CCG!$G$2,'CurrentData-4SIMILAR'!A:R,16,FALSE), VLOOKUP(Settings!$C$5,CurrentData!A:R,16,FALSE)) -> 36.90068939 | Z32: =VLOOKUP(Selections_data_CCG!$G$2,CurrentData!A:R,10,FALSE) -> 8.147058824 | AA32: =IF(Settings!$B$5="4SIMILAR", VLOOKUP(Selections_data_CCG!$G$2,'CurrentData-4SIMILAR'!A:R,10,FALSE), VLOOKUP(Settings!$C$5,CurrentData!A:R,10,FALSE)) -> 0.8745874587 | AB32: =IF(IF(G32=0,"",COUNTIF(G$12:G$222,"<>0")-(RANK(M32,$M$12:$M$222)+COUNTIF($M$12:M32,M32)-2))<=INT(0.05*COUNTIF(G$12:G$222,"<>0")),"TOP5", IF(IF(G32=0,"",COUNTIF(G$12:G$222,"<>0")-(RANK(M32,$M$12:$M$222)+COUNTIF($M$12:M32,M32)-2))<=INT(0.25*COUNTIF(G$12:G$222,"<>0")),"TOP25", "")) -> TOP25 | AC32: =IF(IF(H32=0,"",COUNTIF(H$12:H$222,"<>0")-(RANK(P32,$P$12:$P$222)+COUNTIF($P$12:P32,P32)-2))<=INT(0.05*COUNTIF(H$12:H$222,"<>0")),"TOP5", IF(IF(H32=0,"",COUNTIF(H$12:H$222,"<>0")-(RANK(P32,$P$12:$P$222)+COUNTIF($P$12:P32,P32)-2))<=INT(0.25*COUNTIF(H$12:H$222,"<>0")),"TOP25", "")) ->  | AD32: =IF(IF(J32="Suppressed","",COUNTIF(J$12:J$222,"<>Suppressed")-(RANK(J32,$J$12:$J$222)+COUNTIF(J$12:$J32,J32)-2))<=INT(0.05*COUNTIF(J$12:J$222,"<>Suppressed")),"TOP5", IF(IF(J32="Suppressed","",COUNTIF(J$12:J$222,"<>Suppressed")-(RANK(J32,$J$12:$J$222)+COUNTIF(J$12:$J32,J32)-2))<=INT(0.25*COUNTIF(J$12:J$222,"<>suppressed")),"TOP25", "")) -> 
A33: 11H | B33: NHS Bristol | C33: =IF(G33=0,"",COUNTIF(G$12:G$222,"<>0")-(RANK(M33,$M$12:$M$222)+COUNTIF($M$12:M33,M33)-2)) -> 54 | D33: =IF(H33=0,"",COUNTIF(P$12:P$222,"<>Suppressed")-(RANK(P33,$P$12:$P$222)+COUNTIF($P$12:P33,P33)-2)) -> 85 | E33: =IF(J33="Suppressed","",COUNTIF(J$12:J$222,"<>Suppressed")-(RANK(J33,$J$12:$J$222)+COUNTIF($J$12:J33,J33)-2)) -> 141 | F33: =VLOOKUP(A33,population!C:O,Settings!$B$3,FALSE) -> 102409.4 | G33: =IF(ISNA(IF(Settings!$B$2="Asthma", SUMIFS(CCGData!E:E,CCGData!A:A,Settings!$B$1, CCGData!B:B,CurrentData!A33), IF(Settings!$B$2="Diabetes", SUMIFS(CCGData!C:C,CCGData!A:A,Settings!$B$1, CCGData!B:B,CurrentData!A33), SUMIFS(CCGData!D:D,CCGData!A:A,Settings!$B$1, CCGData!B:B,CurrentData!A33)))),"",IF(Settings!$B$2="Asthma", SUMIFS(CCGData!E:E,CCGData!A:A,Settings!$B$1, CCGData!B:B,CurrentData!A33), IF(Settings!$B$2="Diabetes", SUMIFS(CCGData!C:C,CCGData!A:A,Settings!$B$1, CCGData!B:B,CurrentData!A33), SUMIFS(CCGData!D:D,CCGData!A:A,Settings!$B$1, CCGData!B:B,CurrentData!A33)))) -> 45 | H33: =IF(Settings!$B$2="Asthma", SUMIFS(CCGData!J:J,CCGData!A:A,Settings!$B$1, CCGData!B:B,CurrentData!A33), IF(Settings!$B$2="Diabetes", SUMIFS(CCGData!F:F,CCGData!A:A,Settings!$B$1, CCGData!B:B,CurrentData!A33), SUMIFS(CCGData!H:H,CCGData!A:A,Settings!$B$1, CCGData!B:B,CurrentData!A33))) -> 105 | I33: =IF(Settings!$B$2="Asthma", SUMIFS(CCGData!K:K,CCGData!A:A,Settings!$B$1, CCGData!B:B,CurrentData!A33), IF(Settings!$B$2="Diabetes", SUMIFS(CCGData!G:G,CCGData!A:A,Settings!$B$1, CCGData!B:B,CurrentData!A33), SUMIFS(CCGData!I:I,CCGData!A:A,Settings!$B$1, CCGData!B:B,CurrentData!A33))) -> 45 | J33: 2.333333333 | K33: 1.908435496 | L33: 2.824642264 | M33: 43.94127883 | N33: 32.0510703 | O33: 58.79688827 | P33: 102.5296506 | Q33: 83.85909626 | R33: 124.1183933 | S33: 36.99319325 | T33: 62.15759737 | U33: 1.243589744 | V33: =VLOOKUP(Selections_data_CCG!$G$2,CurrentData!A:R,13,FALSE) -> 77.70951213 | W33: =IF(Settings!$B$5="4SIMILAR", VLOOKUP(Selections_data_CCG!$G$2,'CurrentData-4SIMILAR'!A:R,13,FALSE), VLOOKUP(Settings!$C$5,CurrentData!A:R,13,FALSE)) -> 26.11663851 | X33: =VLOOKUP(Selections_data_CCG!$G$2,CurrentData!A:R,16,FALSE) -> 672.6729644 | Y33: =IF(Settings!$B$5="4SIMILAR", VLOOKUP(Selections_data_CCG!$G$2,'CurrentData-4SIMILAR'!A:R,16,FALSE), VLOOKUP(Settings!$C$5,CurrentData!A:R,16,FALSE)) -> 36.90068939 | Z33: =VLOOKUP(Selections_data_CCG!$G$2,CurrentData!A:R,10,FALSE) -> 8.147058824 | AA33: =IF(Settings!$B$5="4SIMILAR", VLOOKUP(Selections_data_CCG!$G$2,'CurrentData-4SIMILAR'!A:R,10,FALSE), VLOOKUP(Settings!$C$5,CurrentData!A:R,10,FALSE)) -> 0.8745874587 | AB33: =IF(IF(G33=0,"",COUNTIF(G$12:G$222,"<>0")-(RANK(M33,$M$12:$M$222)+COUNTIF($M$12:M33,M33)-2))<=INT(0.05*COUNTIF(G$12:G$222,"<>0")),"TOP5", IF(IF(G33=0,"",COUNTIF(G$12:G$222,"<>0")-(RANK(M33,$M$12:$M$222)+COUNTIF($M$12:M33,M33)-2))<=INT(0.25*COUNTIF(G$12:G$222,"<>0")),"TOP25", "")) ->  | AC33: =IF(IF(H33=0,"",COUNTIF(H$12:H$222,"<>0")-(RANK(P33,$P$12:$P$222)+COUNTIF($P$12:P33,P33)-2))<=INT(0.05*COUNTIF(H$12:H$222,"<>0")),"TOP5", IF(IF(H33=0,"",COUNTIF(H$12:H$222,"<>0")-(RANK(P33,$P$12:$P$222)+COUNTIF($P$12:P33,P33)-2))<=INT(0.25*COUNTIF(H$12:H$222,"<>0")),"TOP25", "")) ->  | AD33: =IF(IF(J33="Suppressed","",COUNTIF(J$12:J$222,"<>Suppressed")-(RANK(J33,$J$12:$J$222)+COUNTIF(J$12:$J33,J33)-2))<=INT(0.05*COUNTIF(J$12:J$222,"<>Suppressed")),"TOP5", IF(IF(J33="Suppressed","",COUNTIF(J$12:J$222,"<>Suppressed")-(RANK(J33,$J$12:$J$222)+COUNTIF(J$12:$J33,J33)-2))<=INT(0.25*COUNTIF(J$12:J$222,"<>suppressed")),"TOP25", "")) -> 
A34: 07Q | B34: NHS Bromley | C34: =IF(G34=0,"",COUNTIF(G$12:G$222,"<>0")-(RANK(M34,$M$12:$M$222)+COUNTIF($M$12:M34,M34)-2)) -> 7 | D34: =IF(H34=0,"",COUNTIF(P$12:P$222,"<>Suppressed")-(RANK(P34,$P$12:$P$222)+COUNTIF($P$12:P34,P34)-2)) -> 40 | E34: =IF(J34="Suppressed","",COUNTIF(J$12:J$222,"<>Suppressed")-(RANK(J34,$J$12:$J$222)+COUNTIF($J$12:J34,J34)-2)) -> 171 | F34: =VLOOKUP(A34,population!C:O,Settings!$B$3,FALSE) -> 74505.8 | G34: =IF(ISNA(IF(Settings!$B$2="Asthma", SUMIFS(CCGData!E:E,CCGData!A:A,Settings!$B$1, CCGData!B:B,CurrentData!A34), IF(Settings!$B$2="Diabetes", SUMIFS(CCGData!C:C,CCGData!A:A,Settings!$B$1, CCGData!B:B,CurrentData!A34), SUMIFS(CCGData!D:D,CCGData!A:A,Settings!$B$1, CCGData!B:B,CurrentData!A34)))),"",IF(Settings!$B$2="Asthma", SUMIFS(CCGData!E:E,CCGData!A:A,Settings!$B$1, CCGData!B:B,CurrentData!A34), IF(Settings!$B$2="Diabetes", SUMIFS(CCGData!C:C,CCGData!A:A,Settings!$B$1, CCGData!B:B,CurrentData!A34), SUMIFS(CCGData!D:D,CCGData!A:A,Settings!$B$1, CCGData!B:B,CurrentData!A34)))) -> 19 | H34: =IF(Settings!$B$2="Asthma", SUMIFS(CCGData!J:J,CCGData!A:A,Settings!$B$1, CCGData!B:B,CurrentData!A34), IF(Settings!$B$2="Diabetes", SUMIFS(CCGData!F:F,CCGData!A:A,Settings!$B$1, CCGData!B:B,CurrentData!A34), SUMIFS(CCGData!H:H,CCGData!A:A,Settings!$B$1, CCGData!B:B,CurrentData!A34))) -> 56 | I34: =IF(Settings!$B$2="Asthma", SUMIFS(CCGData!K:K,CCGData!A:A,Settings!$B$1, CCGData!B:B,CurrentData!A34), IF(Settings!$B$2="Diabetes", SUMIFS(CCGData!G:G,CCGData!A:A,Settings!$B$1, CCGData!B:B,CurrentData!A34), SUMIFS(CCGData!I:I,CCGData!A:A,Settings!$B$1, CCGData!B:B,CurrentData!A34))) -> 21 | J34: 2.666666667 | K34: 2.014371342 | L34: 3.462888477 | M34: 25.50137036 | N34: 15.35349082 | O34: 39.82354873 | P34: 75.1619337 | Q34: 56.77651697 | R34: 97.60402278 | S34: 37.28055311 | T34: 63.10497513 | U34: 1.25 | V34: =VLOOKUP(Selections_data_CCG!$G$2,CurrentData!A:R,13,FALSE) -> 77.70951213 | W34: =IF(Settings!$B$5="4SIMILAR", VLOOKUP(Selections_data_CCG!$G$2,'CurrentData-4SIMILAR'!A:R,13,FALSE), VLOOKUP(Settings!$C$5,CurrentData!A:R,13,FALSE)) -> 26.11663851 | X34: =VLOOKUP(Selections_data_CCG!$G$2,CurrentData!A:R,16,FALSE) -> 672.6729644 | Y34: =IF(Settings!$B$5="4SIMILAR", VLOOKUP(Selections_data_CCG!$G$2,'CurrentData-4SIMILAR'!A:R,16,FALSE), VLOOKUP(Settings!$C$5,CurrentData!A:R,16,FALSE)) -> 36.90068939 | Z34: =VLOOKUP(Selections_data_CCG!$G$2,CurrentData!A:R,10,FALSE) -> 8.147058824 | AA34: =IF(Settings!$B$5="4SIMILAR", VLOOKUP(Selections_data_CCG!$G$2,'CurrentData-4SIMILAR'!A:R,10,FALSE), VLOOKUP(Settings!$C$5,CurrentData!A:R,10,FALSE)) -> 0.8745874587 | AB34: =IF(IF(G34=0,"",COUNTIF(G$12:G$222,"<>0")-(RANK(M34,$M$12:$M$222)+COUNTIF($M$12:M34,M34)-2))<=INT(0.05*COUNTIF(G$12:G$222,"<>0")),"TOP5", IF(IF(G34=0,"",COUNTIF(G$12:G$222,"<>0")-(RANK(M34,$M$12:$M$222)+COUNTIF($M$12:M34,M34)-2))<=INT(0.25*COUNTIF(G$12:G$222,"<>0")),"TOP25", "")) -> TOP5 | AC34: =IF(IF(H34=0,"",COUNTIF(H$12:H$222,"<>0")-(RANK(P34,$P$12:$P$222)+COUNTIF($P$12:P34,P34)-2))<=INT(0.05*COUNTIF(H$12:H$222,"<>0")),"TOP5", IF(IF(H34=0,"",COUNTIF(H$12:H$222,"<>0")-(RANK(P34,$P$12:$P$222)+COUNTIF($P$12:P34,P34)-2))<=INT(0.25*COUNTIF(H$12:H$222,"<>0")),"TOP25", "")) -> TOP25 | AD34: =IF(IF(J34="Suppressed","",COUNTIF(J$12:J$222,"<>Suppressed")-(RANK(J34,$J$12:$J$222)+COUNTIF(J$12:$J34,J34)-2))<=INT(0.05*COUNTIF(J$12:J$222,"<>Suppressed")),"TOP5", IF(IF(J34="Suppressed","",COUNTIF(J$12:J$222,"<>Suppressed")-(RANK(J34,$J$12:$J$222)+COUNTIF(J$12:$J34,J34)-2))<=INT(0.25*COUNTIF(J$12:J$222,"<>suppressed")),"TOP25", "")) -> 
A35: 00V | B35: NHS Bury | C35: =IF(G35=0,"",COUNTIF(G$12:G$222,"<>0")-(RANK(M35,$M$12:$M$222)+COUNTIF($M$12:M35,M35)-2)) -> 181 | D35: =IF(H35=0,"",COUNTIF(P$12:P$222,"<>Suppressed")-(RANK(P35,$P$12:$P$222)+COUNTIF($P$12:P35,P35)-2)) -> 164 | E35: =IF(J35="Suppressed","",COUNTIF(J$12:J$222,"<>Suppressed")-(RANK(J35,$J$12:$J$222)+COUNTIF($J$12:J35,J35)-2)) -> 108 | F35: =VLOOKUP(A35,population!C:O,Settings!$B$3,FALSE) -> 42770.2 | G35: =IF(ISNA(IF(Settings!$B$2="Asthma", SUMIFS(CCGData!E:E,CCGData!A:A,Settings!$B$1, CCGData!B:B,CurrentData!A35), IF(Settings!$B$2="Diabetes", SUMIFS(CCGData!C:C,CCGData!A:A,Settings!$B$1, CCGData!B:B,CurrentData!A35), SUMIFS(CCGData!D:D,CCGData!A:A,Settings!$B$1, CCGData!B:B,CurrentData!A35)))),"",IF(Settings!$B$2="Asthma", SUMIFS(CCGData!E:E,CCGData!A:A,Settings!$B$1, CCGData!B:B,CurrentData!A35), IF(Settings!$B$2="Diabetes", SUMIFS(CCGData!C:C,CCGData!A:A,Settings!$B$1, CCGData!B:B,CurrentData!A35), SUMIFS(CCGData!D:D,CCGData!A:A,Settings!$B$1, CCGData!B:B,CurrentData!A35)))) -> 33 | H35: =IF(Settings!$B$2="Asthma", SUMIFS(CCGData!J:J,CCGData!A:A,Settings!$B$1, CCGData!B:B,CurrentData!A35), IF(Settings!$B$2="Diabetes", SUMIFS(CCGData!F:F,CCGData!A:A,Settings!$B$1, CCGData!B:B,CurrentData!A35), SUMIFS(CCGData!H:H,CCGData!A:A,Settings!$B$1, CCGData!B:B,CurrentData!A35))) -> 68 | I35: =IF(Settings!$B$2="Asthma", SUMIFS(CCGData!K:K,CCGData!A:A,Settings!$B$1, CCGData!B:B,CurrentData!A35), IF(Settings!$B$2="Diabetes", SUMIFS(CCGData!G:G,CCGData!A:A,Settings!$B$1, CCGData!B:B,CurrentData!A35), SUMIFS(CCGData!I:I,CCGData!A:A,Settings!$B$1, CCGData!B:B,CurrentData!A35))) -> 34 | J35: 2 | K35: 1.553078257 | L35: 2.535476563 | M35: 77.15652487 | N35: 53.11100152 | O35: 108.3564474 | P35: 158.9892028 | Q35: 123.461337 | R35: 201.5566987 | S35: 37.89681119 | T35: 66.53891196 | U35: 1.255813953 | V35: =VLOOKUP(Selections_data_CCG!$G$2,CurrentData!A:R,13,FALSE) -> 77.70951213 | W35: =IF(Settings!$B$5="4SIMILAR", VLOOKUP(Selections_data_CCG!$G$2,'CurrentData-4SIMILAR'!A:R,13,FALSE), VLOOKUP(Settings!$C$5,CurrentData!A:R,13,FALSE)) -> 26.11663851 | X35: =VLOOKUP(Selections_data_CCG!$G$2,CurrentData!A:R,16,FALSE) -> 672.6729644 | Y35: =IF(Settings!$B$5="4SIMILAR", VLOOKUP(Selections_data_CCG!$G$2,'CurrentData-4SIMILAR'!A:R,16,FALSE), VLOOKUP(Settings!$C$5,CurrentData!A:R,16,FALSE)) -> 36.90068939 | Z35: =VLOOKUP(Selections_data_CCG!$G$2,CurrentData!A:R,10,FALSE) -> 8.147058824 | AA35: =IF(Settings!$B$5="4SIMILAR", VLOOKUP(Selections_data_CCG!$G$2,'CurrentData-4SIMILAR'!A:R,10,FALSE), VLOOKUP(Settings!$C$5,CurrentData!A:R,10,FALSE)) -> 0.8745874587 | AB35: =IF(IF(G35=0,"",COUNTIF(G$12:G$222,"<>0")-(RANK(M35,$M$12:$M$222)+COUNTIF($M$12:M35,M35)-2))<=INT(0.05*COUNTIF(G$12:G$222,"<>0")),"TOP5", IF(IF(G35=0,"",COUNTIF(G$12:G$222,"<>0")-(RANK(M35,$M$12:$M$222)+COUNTIF($M$12:M35,M35)-2))<=INT(0.25*COUNTIF(G$12:G$222,"<>0")),"TOP25", "")) ->  | AC35: =IF(IF(H35=0,"",COUNTIF(H$12:H$222,"<>0")-(RANK(P35,$P$12:$P$222)+COUNTIF($P$12:P35,P35)-2))<=INT(0.05*COUNTIF(H$12:H$222,"<>0")),"TOP5", IF(IF(H35=0,"",COUNTIF(H$12:H$222,"<>0")-(RANK(P35,$P$12:$P$222)+COUNTIF($P$12:P35,P35)-2))<=INT(0.25*COUNTIF(H$12:H$222,"<>0")),"TOP25", "")) ->  | AD35: =IF(IF(J35="Suppressed","",COUNTIF(J$12:J$222,"<>Suppressed")-(RANK(J35,$J$12:$J$222)+COUNTIF(J$12:$J35,J35)-2))<=INT(0.05*COUNTIF(J$12:J$222,"<>Suppressed")),"TOP5", IF(IF(J35="Suppressed","",COUNTIF(J$12:J$222,"<>Suppressed")-(RANK(J35,$J$12:$J$222)+COUNTIF(J$12:$J35,J35)-2))<=INT(0.25*COUNTIF(J$12:J$222,"<>suppressed")),"TOP25", "")) -> 
A36: 02T | B36: NHS Calderdale | C36: =IF(G36=0,"",COUNTIF(G$12:G$222,"<>0")-(RANK(M36,$M$12:$M$222)+COUNTIF($M$12:M36,M36)-2)) -> 155 | D36: =IF(H36=0,"",COUNTIF(P$12:P$222,"<>Suppressed")-(RANK(P36,$P$12:$P$222)+COUNTIF($P$12:P36,P36)-2)) -> 138 | E36: =IF(J36="Suppressed","",COUNTIF(J$12:J$222,"<>Suppressed")-(RANK(J36,$J$12:$J$222)+COUNTIF($J$12:J36,J36)-2)) -> 114 | F36: =VLOOKUP(A36,population!C:O,Settings!$B$3,FALSE) -> 49313.6 | G36: =IF(ISNA(IF(Settings!$B$2="Asthma", SUMIFS(CCGData!E:E,CCGData!A:A,Settings!$B$1, CCGData!B:B,CurrentData!A36), IF(Settings!$B$2="Diabetes", SUMIFS(CCGData!C:C,CCGData!A:A,Settings!$B$1, CCGData!B:B,CurrentData!A36), SUMIFS(CCGData!D:D,CCGData!A:A,Settings!$B$1, CCGData!B:B,CurrentData!A36)))),"",IF(Settings!$B$2="Asthma", SUMIFS(CCGData!E:E,CCGData!A:A,Settings!$B$1, CCGData!B:B,CurrentData!A36), IF(Settings!$B$2="Diabetes", SUMIFS(CCGData!C:C,CCGData!A:A,Settings!$B$1, CCGData!B:B,CurrentData!A36), SUMIFS(CCGData!D:D,CCGData!A:A,Settings!$B$1, CCGData!B:B,CurrentData!A36)))) -> 33 | H36: =IF(Settings!$B$2="Asthma", SUMIFS(CCGData!J:J,CCGData!A:A,Settings!$B$1, CCGData!B:B,CurrentData!A36), IF(Settings!$B$2="Diabetes", SUMIFS(CCGData!F:F,CCGData!A:A,Settings!$B$1, CCGData!B:B,CurrentData!A36), SUMIFS(CCGData!H:H,CCGData!A:A,Settings!$B$1, CCGData!B:B,CurrentData!A36))) -> 68 | I36: =IF(Settings!$B$2="Asthma", SUMIFS(CCGData!K:K,CCGData!A:A,Settings!$B$1, CCGData!B:B,CurrentData!A36), IF(Settings!$B$2="Diabetes", SUMIFS(CCGData!G:G,CCGData!A:A,Settings!$B$1, CCGData!B:B,CurrentData!A36), SUMIFS(CCGData!I:I,CCGData!A:A,Settings!$B$1, CCGData!B:B,CurrentData!A36))) -> 33 | J36: 2.060606061 | K36: 1.600141235 | L36: 2.612309187 | M36: 66.91865936 | N36: 46.06372598 | O36: 93.97867783 | P36: 137.892995 | Q36: 107.0793062 | R36: 174.8122286 | S36: 37.915842 | T36: 66.54593333 | U36: 1.272727273 | V36: =VLOOKUP(Selections_data_CCG!$G$2,CurrentData!A:R,13,FALSE) -> 77.70951213 | W36: =IF(Settings!$B$5="4SIMILAR", VLOOKUP(Selections_data_CCG!$G$2,'CurrentData-4SIMILAR'!A:R,13,FALSE), VLOOKUP(Settings!$C$5,CurrentData!A:R,13,FALSE)) -> 26.11663851 | X36: =VLOOKUP(Selections_data_CCG!$G$2,CurrentData!A:R,16,FALSE) -> 672.6729644 | Y36: =IF(Settings!$B$5="4SIMILAR", VLOOKUP(Selections_data_CCG!$G$2,'CurrentData-4SIMILAR'!A:R,16,FALSE), VLOOKUP(Settings!$C$5,CurrentData!A:R,16,FALSE)) -> 36.90068939 | Z36: =VLOOKUP(Selections_data_CCG!$G$2,CurrentData!A:R,10,FALSE) -> 8.147058824 | AA36: =IF(Settings!$B$5="4SIMILAR", VLOOKUP(Selections_data_CCG!$G$2,'CurrentData-4SIMILAR'!A:R,10,FALSE), VLOOKUP(Settings!$C$5,CurrentData!A:R,10,FALSE)) -> 0.8745874587 | AB36: =IF(IF(G36=0,"",COUNTIF(G$12:G$222,"<>0")-(RANK(M36,$M$12:$M$222)+COUNTIF($M$12:M36,M36)-2))<=INT(0.05*COUNTIF(G$12:G$222,"<>0")),"TOP5", IF(IF(G36=0,"",COUNTIF(G$12:G$222,"<>0")-(RANK(M36,$M$12:$M$222)+COUNTIF($M$12:M36,M36)-2))<=INT(0.25*COUNTIF(G$12:G$222,"<>0")),"TOP25", "")) ->  | AC36: =IF(IF(H36=0,"",COUNTIF(H$12:H$222,"<>0")-(RANK(P36,$P$12:$P$222)+COUNTIF($P$12:P36,P36)-2))<=INT(0.05*COUNTIF(H$12:H$222,"<>0")),"TOP5", IF(IF(H36=0,"",COUNTIF(H$12:H$222,"<>0")-(RANK(P36,$P$12:$P$222)+COUNTIF($P$12:P36,P36)-2))<=INT(0.25*COUNTIF(H$12:H$222,"<>0")),"TOP25", "")) ->  | AD36: =IF(IF(J36="Suppressed","",COUNTIF(J$12:J$222,"<>Suppressed")-(RANK(J36,$J$12:$J$222)+COUNTIF(J$12:$J36,J36)-2))<=INT(0.05*COUNTIF(J$12:J$222,"<>Suppressed")),"TOP5", IF(IF(J36="Suppressed","",COUNTIF(J$12:J$222,"<>Suppressed")-(RANK(J36,$J$12:$J$222)+COUNTIF(J$12:$J36,J36)-2))<=INT(0.25*COUNTIF(J$12:J$222,"<>suppressed")),"TOP25", "")) -> 
A37: 06H | B37: NHS Cambridgeshire and Peterborough | C37: =IF(G37=0,"",COUNTIF(G$12:G$222,"<>0")-(RANK(M37,$M$12:$M$222)+COUNTIF($M$12:M37,M37)-2)) -> 103 | D37: =IF(H37=0,"",COUNTIF(P$12:P$222,"<>Suppressed")-(RANK(P37,$P$12:$P$222)+COUNTIF($P$12:P37,P37)-2)) -> 58 | E37: =IF(J37="Suppressed","",COUNTIF(J$12:J$222,"<>Suppressed")-(RANK(J37,$J$12:$J$222)+COUNTIF($J$12:J37,J37)-2)) -> 48 | F37: =VLOOKUP(A37,population!C:O,Settings!$B$3,FALSE) -> 194167.8 | G37: =IF(ISNA(IF(Settings!$B$2="Asthma", SUMIFS(CCGData!E:E,CCGData!A:A,Settings!$B$1, CCGData!B:B,CurrentData!A37), IF(Settings!$B$2="Diabetes", SUMIFS(CCGData!C:C,CCGData!A:A,Settings!$B$1, CCGData!B:B,CurrentData!A37), SUMIFS(CCGData!D:D,CCGData!A:A,Settings!$B$1, CCGData!B:B,CurrentData!A37)))),"",IF(Settings!$B$2="Asthma", SUMIFS(CCGData!E:E,CCGData!A:A,Settings!$B$1, CCGData!B:B,CurrentData!A37), IF(Settings!$B$2="Diabetes", SUMIFS(CCGData!C:C,CCGData!A:A,Settings!$B$1, CCGData!B:B,CurrentData!A37), SUMIFS(CCGData!D:D,CCGData!A:A,Settings!$B$1, CCGData!B:B,CurrentData!A37)))) -> 108 | H37: =IF(Settings!$B$2="Asthma", SUMIFS(CCGData!J:J,CCGData!A:A,Settings!$B$1, CCGData!B:B,CurrentData!A37), IF(Settings!$B$2="Diabetes", SUMIFS(CCGData!F:F,CCGData!A:A,Settings!$B$1, CCGData!B:B,CurrentData!A37), SUMIFS(CCGData!H:H,CCGData!A:A,Settings!$B$1, CCGData!B:B,CurrentData!A37))) -> 167 | I37: =IF(Settings!$B$2="Asthma", SUMIFS(CCGData!K:K,CCGData!A:A,Settings!$B$1, CCGData!B:B,CurrentData!A37), IF(Settings!$B$2="Diabetes", SUMIFS(CCGData!G:G,CCGData!A:A,Settings!$B$1, CCGData!B:B,CurrentData!A37), SUMIFS(CCGData!I:I,CCGData!A:A,Settings!$B$1, CCGData!B:B,CurrentData!A37))) -> 112 | J37: 1.491071429 | K37: 1.273497486 | L37: 1.735156537 | M37: 55.62199294 | N37: 45.6277989 | O37: 67.15465195 | P37: 86.00808167 | Q37: 73.45796701 | R37: 100.0874152 | S37: 38.00130049 | T37: 67.76096101 | U37: 1.277777778 | V37: =VLOOKUP(Selections_data_CCG!$G$2,CurrentData!A:R,13,FALSE) -> 77.70951213 | W37: =IF(Settings!$B$5="4SIMILAR", VLOOKUP(Selections_data_CCG!$G$2,'CurrentData-4SIMILAR'!A:R,13,FALSE), VLOOKUP(Settings!$C$5,CurrentData!A:R,13,FALSE)) -> 26.11663851 | X37: =VLOOKUP(Selections_data_CCG!$G$2,CurrentData!A:R,16,FALSE) -> 672.6729644 | Y37: =IF(Settings!$B$5="4SIMILAR", VLOOKUP(Selections_data_CCG!$G$2,'CurrentData-4SIMILAR'!A:R,16,FALSE), VLOOKUP(Settings!$C$5,CurrentData!A:R,16,FALSE)) -> 36.90068939 | Z37: =VLOOKUP(Selections_data_CCG!$G$2,CurrentData!A:R,10,FALSE) -> 8.147058824 | AA37: =IF(Settings!$B$5="4SIMILAR", VLOOKUP(Selections_data_CCG!$G$2,'CurrentData-4SIMILAR'!A:R,10,FALSE), VLOOKUP(Settings!$C$5,CurrentData!A:R,10,FALSE)) -> 0.8745874587 | AB37: =IF(IF(G37=0,"",COUNTIF(G$12:G$222,"<>0")-(RANK(M37,$M$12:$M$222)+COUNTIF($M$12:M37,M37)-2))<=INT(0.05*COUNTIF(G$12:G$222,"<>0")),"TOP5", IF(IF(G37=0,"",COUNTIF(G$12:G$222,"<>0")-(RANK(M37,$M$12:$M$222)+COUNTIF($M$12:M37,M37)-2))<=INT(0.25*COUNTIF(G$12:G$222,"<>0")),"TOP25", "")) ->  | AC37: =IF(IF(H37=0,"",COUNTIF(H$12:H$222,"<>0")-(RANK(P37,$P$12:$P$222)+COUNTIF($P$12:P37,P37)-2))<=INT(0.05*COUNTIF(H$12:H$222,"<>0")),"TOP5", IF(IF(H37=0,"",COUNTIF(H$12:H$222,"<>0")-(RANK(P37,$P$12:$P$222)+COUNTIF($P$12:P37,P37)-2))<=INT(0.25*COUNTIF(H$12:H$222,"<>0")),"TOP25", "")) ->  | AD37: =IF(IF(J37="Suppressed","",COUNTIF(J$12:J$222,"<>Suppressed")-(RANK(J37,$J$12:$J$222)+COUNTIF(J$12:$J37,J37)-2))<=INT(0.05*COUNTIF(J$12:J$222,"<>Suppressed")),"TOP5", IF(IF(J37="Suppressed","",COUNTIF(J$12:J$222,"<>Suppressed")-(RANK(J37,$J$12:$J$222)+COUNTIF(J$12:$J37,J37)-2))<=INT(0.25*COUNTIF(J$12:J$222,"<>suppressed")),"TOP25", "")) -> TOP25
A38: 07R | B38: NHS Camden | C38: =IF(G38=0,"",COUNTIF(G$12:G$222,"<>0")-(RANK(M38,$M$12:$M$222)+COUNTIF($M$12:M38,M38)-2)) -> 40 | D38: =IF(H38=0,"",COUNTIF(P$12:P$222,"<>Suppressed")-(RANK(P38,$P$12:$P$222)+COUNTIF($P$12:P38,P38)-2)) -> 87 | E38: =IF(J38="Suppressed","",COUNTIF(J$12:J$222,"<>Suppressed")-(RANK(J38,$J$12:$J$222)+COUNTIF($J$12:J38,J38)-2)) -> 160 | F38: =VLOOKUP(A38,population!C:O,Settings!$B$3,FALSE) -> 44301.2 | G38: =IF(ISNA(IF(Settings!$B$2="Asthma", SUMIFS(CCGData!E:E,CCGData!A:A,Settings!$B$1, CCGData!B:B,CurrentData!A38), IF(Settings!$B$2="Diabetes", SUMIFS(CCGData!C:C,CCGData!A:A,Settings!$B$1, CCGData!B:B,CurrentData!A38), SUMIFS(CCGData!D:D,CCGData!A:A,Settings!$B$1, CCGData!B:B,CurrentData!A38)))),"",IF(Settings!$B$2="Asthma", SUMIFS(CCGData!E:E,CCGData!A:A,Settings!$B$1, CCGData!B:B,CurrentData!A38), IF(Settings!$B$2="Diabetes", SUMIFS(CCGData!C:C,CCGData!A:A,Settings!$B$1, CCGData!B:B,CurrentData!A38), SUMIFS(CCGData!D:D,CCGData!A:A,Settings!$B$1, CCGData!B:B,CurrentData!A38)))) -> 18 | H38: =IF(Settings!$B$2="Asthma", SUMIFS(CCGData!J:J,CCGData!A:A,Settings!$B$1, CCGData!B:B,CurrentData!A38), IF(Settings!$B$2="Diabetes", SUMIFS(CCGData!F:F,CCGData!A:A,Settings!$B$1, CCGData!B:B,CurrentData!A38), SUMIFS(CCGData!H:H,CCGData!A:A,Settings!$B$1, CCGData!B:B,CurrentData!A38))) -> 46 | I38: =IF(Settings!$B$2="Asthma", SUMIFS(CCGData!K:K,CCGData!A:A,Settings!$B$1, CCGData!B:B,CurrentData!A38), IF(Settings!$B$2="Diabetes", SUMIFS(CCGData!G:G,CCGData!A:A,Settings!$B$1, CCGData!B:B,CurrentData!A38), SUMIFS(CCGData!I:I,CCGData!A:A,Settings!$B$1, CCGData!B:B,CurrentData!A38))) -> 18 | J38: 2.555555556 | K38: 1.870987856 | L38: 3.408752984 | M38: 40.63095356 | N38: 24.08047814 | O38: 64.21442369 | P38: 103.8346591 | Q38: 76.0200207 | R38: 138.5008842 | S38: 38.08227803 | T38: 68.73078153 | U38: 1.28125 | V38: =VLOOKUP(Selections_data_CCG!$G$2,CurrentData!A:R,13,FALSE) -> 77.70951213 | W38: =IF(Settings!$B$5="4SIMILAR", VLOOKUP(Selections_data_CCG!$G$2,'CurrentData-4SIMILAR'!A:R,13,FALSE), VLOOKUP(Settings!$C$5,CurrentData!A:R,13,FALSE)) -> 26.11663851 | X38: =VLOOKUP(Selections_data_CCG!$G$2,CurrentData!A:R,16,FALSE) -> 672.6729644 | Y38: =IF(Settings!$B$5="4SIMILAR", VLOOKUP(Selections_data_CCG!$G$2,'CurrentData-4SIMILAR'!A:R,16,FALSE), VLOOKUP(Settings!$C$5,CurrentData!A:R,16,FALSE)) -> 36.90068939 | Z38: =VLOOKUP(Selections_data_CCG!$G$2,CurrentData!A:R,10,FALSE) -> 8.147058824 | AA38: =IF(Settings!$B$5="4SIMILAR", VLOOKUP(Selections_data_CCG!$G$2,'CurrentData-4SIMILAR'!A:R,10,FALSE), VLOOKUP(Settings!$C$5,CurrentData!A:R,10,FALSE)) -> 0.8745874587 | AB38: =IF(IF(G38=0,"",COUNTIF(G$12:G$222,"<>0")-(RANK(M38,$M$12:$M$222)+COUNTIF($M$12:M38,M38)-2))<=INT(0.05*COUNTIF(G$12:G$222,"<>0")),"TOP5", IF(IF(G38=0,"",COUNTIF(G$12:G$222,"<>0")-(RANK(M38,$M$12:$M$222)+COUNTIF($M$12:M38,M38)-2))<=INT(0.25*COUNTIF(G$12:G$222,"<>0")),"TOP25", "")) -> TOP25 | AC38: =IF(IF(H38=0,"",COUNTIF(H$12:H$222,"<>0")-(RANK(P38,$P$12:$P$222)+COUNTIF($P$12:P38,P38)-2))<=INT(0.05*COUNTIF(H$12:H$222,"<>0")),"TOP5", IF(IF(H38=0,"",COUNTIF(H$12:H$222,"<>0")-(RANK(P38,$P$12:$P$222)+COUNTIF($P$12:P38,P38)-2))<=INT(0.25*COUNTIF(H$12:H$222,"<>0")),"TOP25", "")) ->  | AD38: =IF(IF(J38="Suppressed","",COUNTIF(J$12:J$222,"<>Suppressed")-(RANK(J38,$J$12:$J$222)+COUNTIF(J$12:$J38,J38)-2))<=INT(0.05*COUNTIF(J$12:J$222,"<>Suppressed")),"TOP5", IF(IF(J38="Suppressed","",COUNTIF(J$12:J$222,"<>Suppressed")-(RANK(J38,$J$12:$J$222)+COUNTIF(J$12:$J38,J38)-2))<=INT(0.25*COUNTIF(J$12:J$222,"<>suppressed")),"TOP25", "")) -> 
A39: 04Y | B39: NHS Cannock Chase | C39: =IF(G39=0,"",COUNTIF(G$12:G$222,"<>0")-(RANK(M39,$M$12:$M$222)+COUNTIF($M$12:M39,M39)-2)) -> 207 | D39: =IF(H39=0,"",COUNTIF(P$12:P$222,"<>Suppressed")-(RANK(P39,$P$12:$P$222)+COUNTIF($P$12:P39,P39)-2)) -> 174 | E39: =IF(J39="Suppressed","",COUNTIF(J$12:J$222,"<>Suppressed")-(RANK(J39,$J$12:$J$222)+COUNTIF($J$12:J39,J39)-2)) -> 45 | F39: =VLOOKUP(A39,population!C:O,Settings!$B$3,FALSE) -> 28219.2 | G39: =IF(ISNA(IF(Settings!$B$2="Asthma", SUMIFS(CCGData!E:E,CCGData!A:A,Settings!$B$1, CCGData!B:B,CurrentData!A39), IF(Settings!$B$2="Diabetes", SUMIFS(CCGData!C:C,CCGData!A:A,Settings!$B$1, CCGData!B:B,CurrentData!A39), SUMIFS(CCGData!D:D,CCGData!A:A,Settings!$B$1, CCGData!B:B,CurrentData!A39)))),"",IF(Settings!$B$2="Asthma", SUMIFS(CCGData!E:E,CCGData!A:A,Settings!$B$1, CCGData!B:B,CurrentData!A39), IF(Settings!$B$2="Diabetes", SUMIFS(CCGData!C:C,CCGData!A:A,Settings!$B$1, CCGData!B:B,CurrentData!A39), SUMIFS(CCGData!D:D,CCGData!A:A,Settings!$B$1, CCGData!B:B,CurrentData!A39)))) -> 33 | H39: =IF(Settings!$B$2="Asthma", SUMIFS(CCGData!J:J,CCGData!A:A,Settings!$B$1, CCGData!B:B,CurrentData!A39), IF(Settings!$B$2="Diabetes", SUMIFS(CCGData!F:F,CCGData!A:A,Settings!$B$1, CCGData!B:B,CurrentData!A39), SUMIFS(CCGData!H:H,CCGData!A:A,Settings!$B$1, CCGData!B:B,CurrentData!A39))) -> 48 | I39: =IF(Settings!$B$2="Asthma", SUMIFS(CCGData!K:K,CCGData!A:A,Settings!$B$1, CCGData!B:B,CurrentData!A39), IF(Settings!$B$2="Diabetes", SUMIFS(CCGData!G:G,CCGData!A:A,Settings!$B$1, CCGData!B:B,CurrentData!A39), SUMIFS(CCGData!I:I,CCGData!A:A,Settings!$B$1, CCGData!B:B,CurrentData!A39))) -> 33 | J39: 1.454545455 | K39: 1.072466995 | L39: 1.928516248 | M39: 116.9416567 | N39: 80.49725567 | O39: 164.2295645 | P39: 170.0969553 | Q39: 125.4160672 | R39: 225.5238851 | S39: 38.10909595 | T39: 68.90848953 | U39: 1.285714286 | V39: =VLOOKUP(Selections_data_CCG!$G$2,CurrentData!A:R,13,FALSE) -> 77.70951213 | W39: =IF(Settings!$B$5="4SIMILAR", VLOOKUP(Selections_data_CCG!$G$2,'CurrentData-4SIMILAR'!A:R,13,FALSE), VLOOKUP(Settings!$C$5,CurrentData!A:R,13,FALSE)) -> 26.11663851 | X39: =VLOOKUP(Selections_data_CCG!$G$2,CurrentData!A:R,16,FALSE) -> 672.6729644 | Y39: =IF(Settings!$B$5="4SIMILAR", VLOOKUP(Selections_data_CCG!$G$2,'CurrentData-4SIMILAR'!A:R,16,FALSE), VLOOKUP(Settings!$C$5,CurrentData!A:R,16,FALSE)) -> 36.90068939 | Z39: =VLOOKUP(Selections_data_CCG!$G$2,CurrentData!A:R,10,FALSE) -> 8.147058824 | AA39: =IF(Settings!$B$5="4SIMILAR", VLOOKUP(Selections_data_CCG!$G$2,'CurrentData-4SIMILAR'!A:R,10,FALSE), VLOOKUP(Settings!$C$5,CurrentData!A:R,10,FALSE)) -> 0.8745874587 | AB39: =IF(IF(G39=0,"",COUNTIF(G$12:G$222,"<>0")-(RANK(M39,$M$12:$M$222)+COUNTIF($M$12:M39,M39)-2))<=INT(0.05*COUNTIF(G$12:G$222,"<>0")),"TOP5", IF(IF(G39=0,"",COUNTIF(G$12:G$222,"<>0")-(RANK(M39,$M$12:$M$222)+COUNTIF($M$12:M39,M39)-2))<=INT(0.25*COUNTIF(G$12:G$222,"<>0")),"TOP25", "")) ->  | AC39: =IF(IF(H39=0,"",COUNTIF(H$12:H$222,"<>0")-(RANK(P39,$P$12:$P$222)+COUNTIF($P$12:P39,P39)-2))<=INT(0.05*COUNTIF(H$12:H$222,"<>0")),"TOP5", IF(IF(H39=0,"",COUNTIF(H$12:H$222,"<>0")-(RANK(P39,$P$12:$P$222)+COUNTIF($P$12:P39,P39)-2))<=INT(0.25*COUNTIF(H$12:H$222,"<>0")),"TOP25", "")) ->  | AD39: =IF(IF(J39="Suppressed","",COUNTIF(J$12:J$222,"<>Suppressed")-(RANK(J39,$J$12:$J$222)+COUNTIF(J$12:$J39,J39)-2))<=INT(0.05*COUNTIF(J$12:J$222,"<>Suppressed")),"TOP5", IF(IF(J39="Suppressed","",COUNTIF(J$12:J$222,"<>Suppressed")-(RANK(J39,$J$12:$J$222)+COUNTIF(J$12:$J39,J39)-2))<=INT(0.25*COUNTIF(J$12:J$222,"<>suppressed")),"TOP25", "")) -> TOP25
A40: 09E | B40: NHS Canterbury and Coastal | C40: =IF(G40=0,"",COUNTIF(G$12:G$222,"<>0")-(RANK(M40,$M$12:$M$222)+COUNTIF($M$12:M40,M40)-2)) -> 186 | D40: =IF(H40=0,"",COUNTIF(P$12:P$222,"<>Suppressed")-(RANK(P40,$P$12:$P$222)+COUNTIF($P$12:P40,P40)-2)) -> 166 | E40: =IF(J40="Suppressed","",COUNTIF(J$12:J$222,"<>Suppressed")-(RANK(J40,$J$12:$J$222)+COUNTIF($J$12:J40,J40)-2)) -> 110 | F40: =VLOOKUP(A40,population!C:O,Settings!$B$3,FALSE) -> 44493.6 | G40: =IF(ISNA(IF(Settings!$B$2="Asthma", SUMIFS(CCGData!E:E,CCGData!A:A,Settings!$B$1, CCGData!B:B,CurrentData!A40), IF(Settings!$B$2="Diabetes", SUMIFS(CCGData!C:C,CCGData!A:A,Settings!$B$1, CCGData!B:B,CurrentData!A40), SUMIFS(CCGData!D:D,CCGData!A:A,Settings!$B$1, CCGData!B:B,CurrentData!A40)))),"",IF(Settings!$B$2="Asthma", SUMIFS(CCGData!E:E,CCGData!A:A,Settings!$B$1, CCGData!B:B,CurrentData!A40), IF(Settings!$B$2="Diabetes", SUMIFS(CCGData!C:C,CCGData!A:A,Settings!$B$1, CCGData!B:B,CurrentData!A40), SUMIFS(CCGData!D:D,CCGData!A:A,Settings!$B$1, CCGData!B:B,CurrentData!A40)))) -> 35 | H40: =IF(Settings!$B$2="Asthma", SUMIFS(CCGData!J:J,CCGData!A:A,Settings!$B$1, CCGData!B:B,CurrentData!A40), IF(Settings!$B$2="Diabetes", SUMIFS(CCGData!F:F,CCGData!A:A,Settings!$B$1, CCGData!B:B,CurrentData!A40), SUMIFS(CCGData!H:H,CCGData!A:A,Settings!$B$1, CCGData!B:B,CurrentData!A40))) -> 71 | I40: =IF(Settings!$B$2="Asthma", SUMIFS(CCGData!K:K,CCGData!A:A,Settings!$B$1, CCGData!B:B,CurrentData!A40), IF(Settings!$B$2="Diabetes", SUMIFS(CCGData!G:G,CCGData!A:A,Settings!$B$1, CCGData!B:B,CurrentData!A40), SUMIFS(CCGData!I:I,CCGData!A:A,Settings!$B$1, CCGData!B:B,CurrentData!A40))) -> 35 | J40: 2.028571429 | K40: 1.584331116 | L40: 2.558766832 | M40: 78.66299872 | N40: 54.79166083 | O40: 109.4011889 | P40: 159.5735117 | Q40: 124.6282365 | R40: 201.280272 | S40: 38.19612437 | T40: 69.95017993 | U40: 1.285714286 | V40: =VLOOKUP(Selections_data_CCG!$G$2,CurrentData!A:R,13,FALSE) -> 77.70951213 | W40: =IF(Settings!$B$5="4SIMILAR", VLOOKUP(Selections_data_CCG!$G$2,'CurrentData-4SIMILAR'!A:R,13,FALSE), VLOOKUP(Settings!$C$5,CurrentData!A:R,13,FALSE)) -> 26.11663851 | X40: =VLOOKUP(Selections_data_CCG!$G$2,CurrentData!A:R,16,FALSE) -> 672.6729644 | Y40: =IF(Settings!$B$5="4SIMILAR", VLOOKUP(Selections_data_CCG!$G$2,'CurrentData-4SIMILAR'!A:R,16,FALSE), VLOOKUP(Settings!$C$5,CurrentData!A:R,16,FALSE)) -> 36.90068939 | Z40: =VLOOKUP(Selections_data_CCG!$G$2,CurrentData!A:R,10,FALSE) -> 8.147058824 | AA40: =IF(Settings!$B$5="4SIMILAR", VLOOKUP(Selections_data_CCG!$G$2,'CurrentData-4SIMILAR'!A:R,10,FALSE), VLOOKUP(Settings!$C$5,CurrentData!A:R,10,FALSE)) -> 0.8745874587 | AB40: =IF(IF(G40=0,"",COUNTIF(G$12:G$222,"<>0")-(RANK(M40,$M$12:$M$222)+COUNTIF($M$12:M40,M40)-2))<=INT(0.05*COUNTIF(G$12:G$222,"<>0")),"TOP5", IF(IF(G40=0,"",COUNTIF(G$12:G$222,"<>0")-(RANK(M40,$M$12:$M$222)+COUNTIF($M$12:M40,M40)-2))<=INT(0.25*COUNTIF(G$12:G$222,"<>0")),"TOP25", "")) ->  | AC40: =IF(IF(H40=0,"",COUNTIF(H$12:H$222,"<>0")-(RANK(P40,$P$12:$P$222)+COUNTIF($P$12:P40,P40)-2))<=INT(0.05*COUNTIF(H$12:H$222,"<>0")),"TOP5", IF(IF(H40=0,"",COUNTIF(H$12:H$222,"<>0")-(RANK(P40,$P$12:$P$222)+COUNTIF($P$12:P40,P40)-2))<=INT(0.25*COUNTIF(H$12:H$222,"<>0")),"TOP25", "")) ->  | AD40: =IF(IF(J40="Suppressed","",COUNTIF(J$12:J$222,"<>Suppressed")-(RANK(J40,$J$12:$J$222)+COUNTIF(J$12:$J40,J40)-2))<=INT(0.05*COUNTIF(J$12:J$222,"<>Suppressed")),"TOP5", IF(IF(J40="Suppressed","",COUNTIF(J$12:J$222,"<>Suppressed")-(RANK(J40,$J$12:$J$222)+COUNTIF(J$12:$J40,J40)-2))<=INT(0.25*COUNTIF(J$12:J$222,"<>suppressed")),"TOP25", "")) -> 
A41: 99F | B41: NHS Castle Point, Rayleigh and Rochford | C41: =IF(G41=0,"",COUNTIF(G$12:G$222,"<>0")-(RANK(M41,$M$12:$M$222)+COUNTIF($M$12:M41,M41)-2)) -> 125 | D41: =IF(H41=0,"",COUNTIF(P$12:P$222,"<>Suppressed")-(RANK(P41,$P$12:$P$222)+COUNTIF($P$12:P41,P41)-2)) -> 148 | E41: =IF(J41="Suppressed","",COUNTIF(J$12:J$222,"<>Suppressed")-(RANK(J41,$J$12:$J$222)+COUNTIF($J$12:J41,J41)-2)) -> 143 | F41: =VLOOKUP(A41,population!C:O,Settings!$B$3,FALSE) -> 36928.2 | G41: =IF(ISNA(IF(Settings!$B$2="Asthma", SUMIFS(CCGData!E:E,CCGData!A:A,Settings!$B$1, CCGData!B:B,CurrentData!A41), IF(Settings!$B$2="Diabetes", SUMIFS(CCGData!C:C,CCGData!A:A,Settings!$B$1, CCGData!B:B,CurrentData!A41), SUMIFS(CCGData!D:D,CCGData!A:A,Settings!$B$1, CCGData!B:B,CurrentData!A41)))),"",IF(Settings!$B$2="Asthma", SUMIFS(CCGData!E:E,CCGData!A:A,Settings!$B$1, CCGData!B:B,CurrentData!A41), IF(Settings!$B$2="Diabetes", SUMIFS(CCGData!C:C,CCGData!A:A,Settings!$B$1, CCGData!B:B,CurrentData!A41), SUMIFS(CCGData!D:D,CCGData!A:A,Settings!$B$1, CCGData!B:B,CurrentData!A41)))) -> 22 | H41: =IF(Settings!$B$2="Asthma", SUMIFS(CCGData!J:J,CCGData!A:A,Settings!$B$1, CCGData!B:B,CurrentData!A41), IF(Settings!$B$2="Diabetes", SUMIFS(CCGData!F:F,CCGData!A:A,Settings!$B$1, CCGData!B:B,CurrentData!A41), SUMIFS(CCGData!H:H,CCGData!A:A,Settings!$B$1, CCGData!B:B,CurrentData!A41))) -> 54 | I41: =IF(Settings!$B$2="Asthma", SUMIFS(CCGData!K:K,CCGData!A:A,Settings!$B$1, CCGData!B:B,CurrentData!A41), IF(Settings!$B$2="Diabetes", SUMIFS(CCGData!G:G,CCGData!A:A,Settings!$B$1, CCGData!B:B,CurrentData!A41), SUMIFS(CCGData!I:I,CCGData!A:A,Settings!$B$1, CCGData!B:B,CurrentData!A41))) -> 23 | J41: 2.347826087 | K41: 1.763759216 | L41: 3.063403756 | M41: 59.57506729 | N41: 37.3353775 | O41: 90.19736783 | P41: 146.2297106 | Q41: 109.8522592 | R41: 190.7980524 | S41: 38.54618475 | T41: 70.72722968 | U41: 1.294117647 | V41: =VLOOKUP(Selections_data_CCG!$G$2,CurrentData!A:R,13,FALSE) -> 77.70951213 | W41: =IF(Settings!$B$5="4SIMILAR", VLOOKUP(Selections_data_CCG!$G$2,'CurrentData-4SIMILAR'!A:R,13,FALSE), VLOOKUP(Settings!$C$5,CurrentData!A:R,13,FALSE)) -> 26.11663851 | X41: =VLOOKUP(Selections_data_CCG!$G$2,CurrentData!A:R,16,FALSE) -> 672.6729644 | Y41: =IF(Settings!$B$5="4SIMILAR", VLOOKUP(Selections_data_CCG!$G$2,'CurrentData-4SIMILAR'!A:R,16,FALSE), VLOOKUP(Settings!$C$5,CurrentData!A:R,16,FALSE)) -> 36.90068939 | Z41: =VLOOKUP(Selections_data_CCG!$G$2,CurrentData!A:R,10,FALSE) -> 8.147058824 | AA41: =IF(Settings!$B$5="4SIMILAR", VLOOKUP(Selections_data_CCG!$G$2,'CurrentData-4SIMILAR'!A:R,10,FALSE), VLOOKUP(Settings!$C$5,CurrentData!A:R,10,FALSE)) -> 0.8745874587 | AB41: =IF(IF(G41=0,"",COUNTIF(G$12:G$222,"<>0")-(RANK(M41,$M$12:$M$222)+COUNTIF($M$12:M41,M41)-2))<=INT(0.05*COUNTIF(G$12:G$222,"<>0")),"TOP5", IF(IF(G41=0,"",COUNTIF(G$12:G$222,"<>0")-(RANK(M41,$M$12:$M$222)+COUNTIF($M$12:M41,M41)-2))<=INT(0.25*COUNTIF(G$12:G$222,"<>0")),"TOP25", "")) ->  | AC41: =IF(IF(H41=0,"",COUNTIF(H$12:H$222,"<>0")-(RANK(P41,$P$12:$P$222)+COUNTIF($P$12:P41,P41)-2))<=INT(0.05*COUNTIF(H$12:H$222,"<>0")),"TOP5", IF(IF(H41=0,"",COUNTIF(H$12:H$222,"<>0")-(RANK(P41,$P$12:$P$222)+COUNTIF($P$12:P41,P41)-2))<=INT(0.25*COUNTIF(H$12:H$222,"<>0")),"TOP25", "")) ->  | AD41: =IF(IF(J41="Suppressed","",COUNTIF(J$12:J$222,"<>Suppressed")-(RANK(J41,$J$12:$J$222)+COUNTIF(J$12:$J41,J41)-2))<=INT(0.05*COUNTIF(J$12:J$222,"<>Suppressed")),"TOP5", IF(IF(J41="Suppressed","",COUNTIF(J$12:J$222,"<>Suppressed")-(RANK(J41,$J$12:$J$222)+COUNTIF(J$12:$J41,J41)-2))<=INT(0.25*COUNTIF(J$12:J$222,"<>suppressed")),"TOP25", "")) -> 
A42: 09A | B42: NHS Central London (Westminster) | C42: =IF(G42=0,"",COUNTIF(G$12:G$222,"<>0")-(RANK(M42,$M$12:$M$222)+COUNTIF($M$12:M42,M42)-2)) -> 42 | D42: =IF(H42=0,"",COUNTIF(P$12:P$222,"<>Suppressed")-(RANK(P42,$P$12:$P$222)+COUNTIF($P$12:P42,P42)-2)) -> 48 | E42: =IF(J42="Suppressed","",COUNTIF(J$12:J$222,"<>Suppressed")-(RANK(J42,$J$12:$J$222)+COUNTIF($J$12:J42,J42)-2)) -> 100 | F42: =VLOOKUP(A42,population!C:O,Settings!$B$3,FALSE) -> 31398.2 | G42: =IF(ISNA(IF(Settings!$B$2="Asthma", SUMIFS(CCGData!E:E,CCGData!A:A,Settings!$B$1, CCGData!B:B,CurrentData!A42), IF(Settings!$B$2="Diabetes", SUMIFS(CCGData!C:C,CCGData!A:A,Settings!$B$1, CCGData!B:B,CurrentData!A42), SUMIFS(CCGData!D:D,CCGData!A:A,Settings!$B$1, CCGData!B:B,CurrentData!A42)))),"",IF(Settings!$B$2="Asthma", SUMIFS(CCGData!E:E,CCGData!A:A,Settings!$B$1, CCGData!B:B,CurrentData!A42), IF(Settings!$B$2="Diabetes", SUMIFS(CCGData!C:C,CCGData!A:A,Settings!$B$1, CCGData!B:B,CurrentData!A42), SUMIFS(CCGData!D:D,CCGData!A:A,Settings!$B$1, CCGData!B:B,CurrentData!A42)))) -> 13 | H42: =IF(Settings!$B$2="Asthma", SUMIFS(CCGData!J:J,CCGData!A:A,Settings!$B$1, CCGData!B:B,CurrentData!A42), IF(Settings!$B$2="Diabetes", SUMIFS(CCGData!F:F,CCGData!A:A,Settings!$B$1, CCGData!B:B,CurrentData!A42), SUMIFS(CCGData!H:H,CCGData!A:A,Settings!$B$1, CCGData!B:B,CurrentData!A42))) -> 25 | I42: =IF(Settings!$B$2="Asthma", SUMIFS(CCGData!K:K,CCGData!A:A,Settings!$B$1, CCGData!B:B,CurrentData!A42), IF(Settings!$B$2="Diabetes", SUMIFS(CCGData!G:G,CCGData!A:A,Settings!$B$1, CCGData!B:B,CurrentData!A42), SUMIFS(CCGData!I:I,CCGData!A:A,Settings!$B$1, CCGData!B:B,CurrentData!A42))) -> 13 | J42: 1.923076923 | K42: 1.244513988 | L42: 2.8388409 | M42: 41.40364734 | N42: 22.04569845 | O42: 70.80149791 | P42: 79.62239874 | Q42: 51.52741828 | R42: 117.5383675 | S42: 38.75728637 | T42: 71.94474643 | U42: 1.314285714 | V42: =VLOOKUP(Selections_data_CCG!$G$2,CurrentData!A:R,13,FALSE) -> 77.70951213 | W42: =IF(Settings!$B$5="4SIMILAR", VLOOKUP(Selections_data_CCG!$G$2,'CurrentData-4SIMILAR'!A:R,13,FALSE), VLOOKUP(Settings!$C$5,CurrentData!A:R,13,FALSE)) -> 26.11663851 | X42: =VLOOKUP(Selections_data_CCG!$G$2,CurrentData!A:R,16,FALSE) -> 672.6729644 | Y42: =IF(Settings!$B$5="4SIMILAR", VLOOKUP(Selections_data_CCG!$G$2,'CurrentData-4SIMILAR'!A:R,16,FALSE), VLOOKUP(Settings!$C$5,CurrentData!A:R,16,FALSE)) -> 36.90068939 | Z42: =VLOOKUP(Selections_data_CCG!$G$2,CurrentData!A:R,10,FALSE) -> 8.147058824 | AA42: =IF(Settings!$B$5="4SIMILAR", VLOOKUP(Selections_data_CCG!$G$2,'CurrentData-4SIMILAR'!A:R,10,FALSE), VLOOKUP(Settings!$C$5,CurrentData!A:R,10,FALSE)) -> 0.8745874587 | AB42: =IF(IF(G42=0,"",COUNTIF(G$12:G$222,"<>0")-(RANK(M42,$M$12:$M$222)+COUNTIF($M$12:M42,M42)-2))<=INT(0.05*COUNTIF(G$12:G$222,"<>0")),"TOP5", IF(IF(G42=0,"",COUNTIF(G$12:G$222,"<>0")-(RANK(M42,$M$12:$M$222)+COUNTIF($M$12:M42,M42)-2))<=INT(0.25*COUNTIF(G$12:G$222,"<>0")),"TOP25", "")) -> TOP25 | AC42: =IF(IF(H42=0,"",COUNTIF(H$12:H$222,"<>0")-(RANK(P42,$P$12:$P$222)+COUNTIF($P$12:P42,P42)-2))<=INT(0.05*COUNTIF(H$12:H$222,"<>0")),"TOP5", IF(IF(H42=0,"",COUNTIF(H$12:H$222,"<>0")-(RANK(P42,$P$12:$P$222)+COUNTIF($P$12:P42,P42)-2))<=INT(0.25*COUNTIF(H$12:H$222,"<>0")),"TOP25", "")) -> TOP25 | AD42: =IF(IF(J42="Suppressed","",COUNTIF(J$12:J$222,"<>Suppressed")-(RANK(J42,$J$12:$J$222)+COUNTIF(J$12:$J42,J42)-2))<=INT(0.05*COUNTIF(J$12:J$222,"<>Suppressed")),"TOP5", IF(IF(J42="Suppressed","",COUNTIF(J$12:J$222,"<>Suppressed")-(RANK(J42,$J$12:$J$222)+COUNTIF(J$12:$J42,J42)-2))<=INT(0.25*COUNTIF(J$12:J$222,"<>suppressed")),"TOP25", "")) -> 
A43: 00W | B43: NHS Central Manchester | C43: =IF(G43=0,"",COUNTIF(G$12:G$222,"<>0")-(RANK(M43,$M$12:$M$222)+COUNTIF($M$12:M43,M43)-2)) -> 15 | D43: =IF(H43=0,"",COUNTIF(P$12:P$222,"<>Suppressed")-(RANK(P43,$P$12:$P$222)+COUNTIF($P$12:P43,P43)-2)) -> 94 | E43: =IF(J43="Suppressed","",COUNTIF(J$12:J$222,"<>Suppressed")-(RANK(J43,$J$12:$J$222)+COUNTIF($J$12:J43,J43)-2)) -> 193 | F43: =VLOOKUP(A43,population!C:O,Settings!$B$3,FALSE) -> 50002.2 | G43: =IF(ISNA(IF(Settings!$B$2="Asthma", SUMIFS(CCGData!E:E,CCGData!A:A,Settings!$B$1, CCGData!B:B,CurrentData!A43), IF(Settings!$B$2="Diabetes", SUMIFS(CCGData!C:C,CCGData!A:A,Settings!$B$1, CCGData!B:B,CurrentData!A43), SUMIFS(CCGData!D:D,CCGData!A:A,Settings!$B$1, CCGData!B:B,CurrentData!A43)))),"",IF(Settings!$B$2="Asthma", SUMIFS(CCGData!E:E,CCGData!A:A,Settings!$B$1, CCGData!B:B,CurrentData!A43), IF(Settings!$B$2="Diabetes", SUMIFS(CCGData!C:C,CCGData!A:A,Settings!$B$1, CCGData!B:B,CurrentData!A43), SUMIFS(CCGData!D:D,CCGData!A:A,Settings!$B$1, CCGData!B:B,CurrentData!A43)))) -> 17 | H43: =IF(Settings!$B$2="Asthma", SUMIFS(CCGData!J:J,CCGData!A:A,Settings!$B$1, CCGData!B:B,CurrentData!A43), IF(Settings!$B$2="Diabetes", SUMIFS(CCGData!F:F,CCGData!A:A,Settings!$B$1, CCGData!B:B,CurrentData!A43), SUMIFS(CCGData!H:H,CCGData!A:A,Settings!$B$1, CCGData!B:B,CurrentData!A43))) -> 54 | I43: =IF(Settings!$B$2="Asthma", SUMIFS(CCGData!K:K,CCGData!A:A,Settings!$B$1, CCGData!B:B,CurrentData!A43), IF(Settings!$B$2="Diabetes", SUMIFS(CCGData!G:G,CCGData!A:A,Settings!$B$1, CCGData!B:B,CurrentData!A43), SUMIFS(CCGData!I:I,CCGData!A:A,Settings!$B$1, CCGData!B:B,CurrentData!A43))) -> 17 | J43: 3.176470588 | K43: 2.386262469 | L43: 4.144605082 | M43: 33.99850407 | N43: 19.8053815 | O43: 54.4348985 | P43: 107.9952482 | Q43: 81.12935425 | R43: 140.9103727 | S43: 38.86121107 | T43: 72.54740313 | U43: 1.333333333 | V43: =VLOOKUP(Selections_data_CCG!$G$2,CurrentData!A:R,13,FALSE) -> 77.70951213 | W43: =IF(Settings!$B$5="4SIMILAR", VLOOKUP(Selections_data_CCG!$G$2,'CurrentData-4SIMILAR'!A:R,13,FALSE), VLOOKUP(Settings!$C$5,CurrentData!A:R,13,FALSE)) -> 26.11663851 | X43: =VLOOKUP(Selections_data_CCG!$G$2,CurrentData!A:R,16,FALSE) -> 672.6729644 | Y43: =IF(Settings!$B$5="4SIMILAR", VLOOKUP(Selections_data_CCG!$G$2,'CurrentData-4SIMILAR'!A:R,16,FALSE), VLOOKUP(Settings!$C$5,CurrentData!A:R,16,FALSE)) -> 36.90068939 | Z43: =VLOOKUP(Selections_data_CCG!$G$2,CurrentData!A:R,10,FALSE) -> 8.147058824 | AA43: =IF(Settings!$B$5="4SIMILAR", VLOOKUP(Selections_data_CCG!$G$2,'CurrentData-4SIMILAR'!A:R,10,FALSE), VLOOKUP(Settings!$C$5,CurrentData!A:R,10,FALSE)) -> 0.8745874587 | AB43: =IF(IF(G43=0,"",COUNTIF(G$12:G$222,"<>0")-(RANK(M43,$M$12:$M$222)+COUNTIF($M$12:M43,M43)-2))<=INT(0.05*COUNTIF(G$12:G$222,"<>0")),"TOP5", IF(IF(G43=0,"",COUNTIF(G$12:G$222,"<>0")-(RANK(M43,$M$12:$M$222)+COUNTIF($M$12:M43,M43)-2))<=INT(0.25*COUNTIF(G$12:G$222,"<>0")),"TOP25", "")) -> TOP25 | AC43: =IF(IF(H43=0,"",COUNTIF(H$12:H$222,"<>0")-(RANK(P43,$P$12:$P$222)+COUNTIF($P$12:P43,P43)-2))<=INT(0.05*COUNTIF(H$12:H$222,"<>0")),"TOP5", IF(IF(H43=0,"",COUNTIF(H$12:H$222,"<>0")-(RANK(P43,$P$12:$P$222)+COUNTIF($P$12:P43,P43)-2))<=INT(0.25*COUNTIF(H$12:H$222,"<>0")),"TOP25", "")) ->  | AD43: =IF(IF(J43="Suppressed","",COUNTIF(J$12:J$222,"<>Suppressed")-(RANK(J43,$J$12:$J$222)+COUNTIF(J$12:$J43,J43)-2))<=INT(0.05*COUNTIF(J$12:J$222,"<>Suppressed")),"TOP5", IF(IF(J43="Suppressed","",COUNTIF(J$12:J$222,"<>Suppressed")-(RANK(J43,$J$12:$J$222)+COUNTIF(J$12:$J43,J43)-2))<=INT(0.25*COUNTIF(J$12:J$222,"<>suppressed")),"TOP25", "")) -> 
A44: 10H | B44: NHS Chiltern | C44: =IF(G44=0,"",COUNTIF(G$12:G$222,"<>0")-(RANK(M44,$M$12:$M$222)+COUNTIF($M$12:M44,M44)-2)) -> 83 | D44: =IF(H44=0,"",COUNTIF(P$12:P$222,"<>Suppressed")-(RANK(P44,$P$12:$P$222)+COUNTIF($P$12:P44,P44)-2)) -> 13 | E44: =IF(J44="Suppressed","",COUNTIF(J$12:J$222,"<>Suppressed")-(RANK(J44,$J$12:$J$222)+COUNTIF($J$12:J44,J44)-2)) -> 13 | F44: =VLOOKUP(A44,population!C:O,Settings!$B$3,FALSE) -> 75612.4 | G44: =IF(ISNA(IF(Settings!$B$2="Asthma", SUMIFS(CCGData!E:E,CCGData!A:A,Settings!$B$1, CCGData!B:B,CurrentData!A44), IF(Settings!$B$2="Diabetes", SUMIFS(CCGData!C:C,CCGData!A:A,Settings!$B$1, CCGData!B:B,CurrentData!A44), SUMIFS(CCGData!D:D,CCGData!A:A,Settings!$B$1, CCGData!B:B,CurrentData!A44)))),"",IF(Settings!$B$2="Asthma", SUMIFS(CCGData!E:E,CCGData!A:A,Settings!$B$1, CCGData!B:B,CurrentData!A44), IF(Settings!$B$2="Diabetes", SUMIFS(CCGData!C:C,CCGData!A:A,Settings!$B$1, CCGData!B:B,CurrentData!A44), SUMIFS(CCGData!D:D,CCGData!A:A,Settings!$B$1, CCGData!B:B,CurrentData!A44)))) -> 38 | H44: =IF(Settings!$B$2="Asthma", SUMIFS(CCGData!J:J,CCGData!A:A,Settings!$B$1, CCGData!B:B,CurrentData!A44), IF(Settings!$B$2="Diabetes", SUMIFS(CCGData!F:F,CCGData!A:A,Settings!$B$1, CCGData!B:B,CurrentData!A44), SUMIFS(CCGData!H:H,CCGData!A:A,Settings!$B$1, CCGData!B:B,CurrentData!A44))) -> 38 | I44: =IF(Settings!$B$2="Asthma", SUMIFS(CCGData!K:K,CCGData!A:A,Settings!$B$1, CCGData!B:B,CurrentData!A44), IF(Settings!$B$2="Diabetes", SUMIFS(CCGData!G:G,CCGData!A:A,Settings!$B$1, CCGData!B:B,CurrentData!A44), SUMIFS(CCGData!I:I,CCGData!A:A,Settings!$B$1, CCGData!B:B,CurrentData!A44))) -> 38 | J44: 1 | K44: 0.707659517 | L44: 1.372578129 | M44: 50.25630717 | N44: 35.56435405 | O44: 68.98070808 | P44: 50.25630717 | Q44: 35.56435405 | R44: 68.98070808 | S44: 39.58958794 | T44: 73.27647622 | U44: =VLOOKUP(33,E:R,6,FALSE) -> 1.333333333 | V44: =VLOOKUP(Selections_data_CCG!$G$2,CurrentData!A:R,13,FALSE) -> 77.70951213 | W44: =IF(Settings!$B$5="4SIMILAR", VLOOKUP(Selections_data_CCG!$G$2,'CurrentData-4SIMILAR'!A:R,13,FALSE), VLOOKUP(Settings!$C$5,CurrentData!A:R,13,FALSE)) -> 26.11663851 | X44: =VLOOKUP(Selections_data_CCG!$G$2,CurrentData!A:R,16,FALSE) -> 672.6729644 | Y44: =IF(Settings!$B$5="4SIMILAR", VLOOKUP(Selections_data_CCG!$G$2,'CurrentData-4SIMILAR'!A:R,16,FALSE), VLOOKUP(Settings!$C$5,CurrentData!A:R,16,FALSE)) -> 36.90068939 | Z44: =VLOOKUP(Selections_data_CCG!$G$2,CurrentData!A:R,10,FALSE) -> 8.147058824 | AA44: =IF(Settings!$B$5="4SIMILAR", VLOOKUP(Selections_data_CCG!$G$2,'CurrentData-4SIMILAR'!A:R,10,FALSE), VLOOKUP(Settings!$C$5,CurrentData!A:R,10,FALSE)) -> 0.8745874587 | AB44: =IF(IF(G44=0,"",COUNTIF(G$12:G$222,"<>0")-(RANK(M44,$M$12:$M$222)+COUNTIF($M$12:M44,M44)-2))<=INT(0.05*COUNTIF(G$12:G$222,"<>0")),"TOP5", IF(IF(G44=0,"",COUNTIF(G$12:G$222,"<>0")-(RANK(M44,$M$12:$M$222)+COUNTIF($M$12:M44,M44)-2))<=INT(0.25*COUNTIF(G$12:G$222,"<>0")),"TOP25", "")) ->  | AC44: =IF(IF(H44=0,"",COUNTIF(H$12:H$222,"<>0")-(RANK(P44,$P$12:$P$222)+COUNTIF($P$12:P44,P44)-2))<=INT(0.05*COUNTIF(H$12:H$222,"<>0")),"TOP5", IF(IF(H44=0,"",COUNTIF(H$12:H$222,"<>0")-(RANK(P44,$P$12:$P$222)+COUNTIF($P$12:P44,P44)-2))<=INT(0.25*COUNTIF(H$12:H$222,"<>0")),"TOP25", "")) -> TOP25 | AD44: =IF(IF(J44="Suppressed","",COUNTIF(J$12:J$222,"<>Suppressed")-(RANK(J44,$J$12:$J$222)+COUNTIF(J$12:$J44,J44)-2))<=INT(0.05*COUNTIF(J$12:J$222,"<>Suppressed")),"TOP5", IF(IF(J44="Suppressed","",COUNTIF(J$12:J$222,"<>Suppressed")-(RANK(J44,$J$12:$J$222)+COUNTIF(J$12:$J44,J44)-2))<=INT(0.25*COUNTIF(J$12:J$222,"<>suppressed")),"TOP25", "")) -> TOP25
A45: 00X | B45: NHS Chorley and South Ribble | C45: =IF(G45=0,"",COUNTIF(G$12:G$222,"<>0")-(RANK(M45,$M$12:$M$222)+COUNTIF($M$12:M45,M45)-2)) -> 148 | D45: =IF(H45=0,"",COUNTIF(P$12:P$222,"<>Suppressed")-(RANK(P45,$P$12:$P$222)+COUNTIF($P$12:P45,P45)-2)) -> 151 | E45: =IF(J45="Suppressed","",COUNTIF(J$12:J$222,"<>Suppressed")-(RANK(J45,$J$12:$J$222)+COUNTIF($J$12:J45,J45)-2)) -> 123 | F45: =VLOOKUP(A45,population!C:O,Settings!$B$3,FALSE) -> 37099.6 | G45: =IF(ISNA(IF(Settings!$B$2="Asthma", SUMIFS(CCGData!E:E,CCGData!A:A,Settings!$B$1, CCGData!B:B,CurrentData!A45), IF(Settings!$B$2="Diabetes", SUMIFS(CCGData!C:C,CCGData!A:A,Settings!$B$1, CCGData!B:B,CurrentData!A45), SUMIFS(CCGData!D:D,CCGData!A:A,Settings!$B$1, CCGData!B:B,CurrentData!A45)))),"",IF(Settings!$B$2="Asthma", SUMIFS(CCGData!E:E,CCGData!A:A,Settings!$B$1, CCGData!B:B,CurrentData!A45), IF(Settings!$B$2="Diabetes", SUMIFS(CCGData!C:C,CCGData!A:A,Settings!$B$1, CCGData!B:B,CurrentData!A45), SUMIFS(CCGData!D:D,CCGData!A:A,Settings!$B$1, CCGData!B:B,CurrentData!A45)))) -> 24 | H45: =IF(Settings!$B$2="Asthma", SUMIFS(CCGData!J:J,CCGData!A:A,Settings!$B$1, CCGData!B:B,CurrentData!A45), IF(Settings!$B$2="Diabetes", SUMIFS(CCGData!F:F,CCGData!A:A,Settings!$B$1, CCGData!B:B,CurrentData!A45), SUMIFS(CCGData!H:H,CCGData!A:A,Settings!$B$1, CCGData!B:B,CurrentData!A45))) -> 56 | I45: =IF(Settings!$B$2="Asthma", SUMIFS(CCGData!K:K,CCGData!A:A,Settings!$B$1, CCGData!B:B,CurrentData!A45), IF(Settings!$B$2="Diabetes", SUMIFS(CCGData!G:G,CCGData!A:A,Settings!$B$1, CCGData!B:B,CurrentData!A45), SUMIFS(CCGData!I:I,CCGData!A:A,Settings!$B$1, CCGData!B:B,CurrentData!A45))) -> 26 | J45: 2.153846154 | K45: 1.626992238 | L45: 2.796948385 | M45: 64.69072443 | N45: 41.44856779 | O45: 96.25467011 | P45: 150.9450237 | Q45: 114.0222487 | R45: 196.0146686 | S45: 39.73798567 | T45: 73.31297676 | U45: =VLOOKUP(ROW(U45)-11,E:R,6,FALSE) -> 1.353846154 | V45: =VLOOKUP(Selections_data_CCG!$G$2,CurrentData!A:R,13,FALSE) -> 77.70951213 | W45: =IF(Settings!$B$5="4SIMILAR", VLOOKUP(Selections_data_CCG!$G$2,'CurrentData-4SIMILAR'!A:R,13,FALSE), VLOOKUP(Settings!$C$5,CurrentData!A:R,13,FALSE)) -> 26.11663851 | X45: =VLOOKUP(Selections_data_CCG!$G$2,CurrentData!A:R,16,FALSE) -> 672.6729644 | Y45: =IF(Settings!$B$5="4SIMILAR", VLOOKUP(Selections_data_CCG!$G$2,'CurrentData-4SIMILAR'!A:R,16,FALSE), VLOOKUP(Settings!$C$5,CurrentData!A:R,16,FALSE)) -> 36.90068939 | Z45: =VLOOKUP(Selections_data_CCG!$G$2,CurrentData!A:R,10,FALSE) -> 8.147058824 | AA45: =IF(Settings!$B$5="4SIMILAR", VLOOKUP(Selections_data_CCG!$G$2,'CurrentData-4SIMILAR'!A:R,10,FALSE), VLOOKUP(Settings!$C$5,CurrentData!A:R,10,FALSE)) -> 0.8745874587 | AB45: =IF(IF(G45=0,"",COUNTIF(G$12:G$222,"<>0")-(RANK(M45,$M$12:$M$222)+COUNTIF($M$12:M45,M45)-2))<=INT(0.05*COUNTIF(G$12:G$222,"<>0")),"TOP5", IF(IF(G45=0,"",COUNTIF(G$12:G$222,"<>0")-(RANK(M45,$M$12:$M$222)+COUNTIF($M$12:M45,M45)-2))<=INT(0.25*COUNTIF(G$12:G$222,"<>0")),"TOP25", "")) ->  | AC45: =IF(IF(H45=0,"",COUNTIF(H$12:H$222,"<>0")-(RANK(P45,$P$12:$P$222)+COUNTIF($P$12:P45,P45)-2))<=INT(0.05*COUNTIF(H$12:H$222,"<>0")),"TOP5", IF(IF(H45=0,"",COUNTIF(H$12:H$222,"<>0")-(RANK(P45,$P$12:$P$222)+COUNTIF($P$12:P45,P45)-2))<=INT(0.25*COUNTIF(H$12:H$222,"<>0")),"TOP25", "")) ->  | AD45: =IF(IF(J45="Suppressed","",COUNTIF(J$12:J$222,"<>Suppressed")-(RANK(J45,$J$12:$J$222)+COUNTIF(J$12:$J45,J45)-2))<=INT(0.05*COUNTIF(J$12:J$222,"<>Suppressed")),"TOP5", IF(IF(J45="Suppressed","",COUNTIF(J$12:J$222,"<>Suppressed")-(RANK(J45,$J$12:$J$222)+COUNTIF(J$12:$J45,J45)-2))<=INT(0.25*COUNTIF(J$12:J$222,"<>suppressed")),"TOP25", "")) -> 
A46: 07T | B46: NHS City and Hackney | C46: =IF(G46=0,"",COUNTIF(G$12:G$222,"<>0")-(RANK(M46,$M$12:$M$222)+COUNTIF($M$12:M46,M46)-2)) -> 8 | D46: =IF(H46=0,"",COUNTIF(P$12:P$222,"<>Suppressed")-(RANK(P46,$P$12:$P$222)+COUNTIF($P$12:P46,P46)-2)) -> 9 | E46: =IF(J46="Suppressed","",COUNTIF(J$12:J$222,"<>Suppressed")-(RANK(J46,$J$12:$J$222)+COUNTIF($J$12:J46,J46)-2)) -> 44 | F46: =VLOOKUP(A46,population!C:O,Settings!$B$3,FALSE) -> 65856.6 | G46: =IF(ISNA(IF(Settings!$B$2="Asthma", SUMIFS(CCGData!E:E,CCGData!A:A,Settings!$B$1, CCGData!B:B,CurrentData!A46), IF(Settings!$B$2="Diabetes", SUMIFS(CCGData!C:C,CCGData!A:A,Settings!$B$1, CCGData!B:B,CurrentData!A46), SUMIFS(CCGData!D:D,CCGData!A:A,Settings!$B$1, CCGData!B:B,CurrentData!A46)))),"",IF(Settings!$B$2="Asthma", SUMIFS(CCGData!E:E,CCGData!A:A,Settings!$B$1, CCGData!B:B,CurrentData!A46), IF(Settings!$B$2="Diabetes", SUMIFS(CCGData!C:C,CCGData!A:A,Settings!$B$1, CCGData!B:B,CurrentData!A46), SUMIFS(CCGData!D:D,CCGData!A:A,Settings!$B$1, CCGData!B:B,CurrentData!A46)))) -> 18 | H46: =IF(Settings!$B$2="Asthma", SUMIFS(CCGData!J:J,CCGData!A:A,Settings!$B$1, CCGData!B:B,CurrentData!A46), IF(Settings!$B$2="Diabetes", SUMIFS(CCGData!F:F,CCGData!A:A,Settings!$B$1, CCGData!B:B,CurrentData!A46), SUMIFS(CCGData!H:H,CCGData!A:A,Settings!$B$1, CCGData!B:B,CurrentData!A46))) -> 26 | I46: =IF(Settings!$B$2="Asthma", SUMIFS(CCGData!K:K,CCGData!A:A,Settings!$B$1, CCGData!B:B,CurrentData!A46), IF(Settings!$B$2="Diabetes", SUMIFS(CCGData!G:G,CCGData!A:A,Settings!$B$1, CCGData!B:B,CurrentData!A46), SUMIFS(CCGData!I:I,CCGData!A:A,Settings!$B$1, CCGData!B:B,CurrentData!A46))) -> 18 | J46: 1.444444444 | K46: 0.9435590675 | L46: 2.116445782 | M46: 27.3321125 | N46: 16.19874209 | O46: 43.19652133 | P46: 39.47971805 | Q46: 25.78946258 | R46: 57.84693422 | S46: 39.79197448 | T46: 73.89141762 | U46: 1.361111111 | V46: =VLOOKUP(Selections_data_CCG!$G$2,CurrentData!A:R,13,FALSE) -> 77.70951213 | W46: =IF(Settings!$B$5="4SIMILAR", VLOOKUP(Selections_data_CCG!$G$2,'CurrentData-4SIMILAR'!A:R,13,FALSE), VLOOKUP(Settings!$C$5,CurrentData!A:R,13,FALSE)) -> 26.11663851 | X46: =VLOOKUP(Selections_data_CCG!$G$2,CurrentData!A:R,16,FALSE) -> 672.6729644 | Y46: =IF(Settings!$B$5="4SIMILAR", VLOOKUP(Selections_data_CCG!$G$2,'CurrentData-4SIMILAR'!A:R,16,FALSE), VLOOKUP(Settings!$C$5,CurrentData!A:R,16,FALSE)) -> 36.90068939 | Z46: =VLOOKUP(Selections_data_CCG!$G$2,CurrentData!A:R,10,FALSE) -> 8.147058824 | AA46: =IF(Settings!$B$5="4SIMILAR", VLOOKUP(Selections_data_CCG!$G$2,'CurrentData-4SIMILAR'!A:R,10,FALSE), VLOOKUP(Settings!$C$5,CurrentData!A:R,10,FALSE)) -> 0.8745874587 | AB46: =IF(IF(G46=0,"",COUNTIF(G$12:G$222,"<>0")-(RANK(M46,$M$12:$M$222)+COUNTIF($M$12:M46,M46)-2))<=INT(0.05*COUNTIF(G$12:G$222,"<>0")),"TOP5", IF(IF(G46=0,"",COUNTIF(G$12:G$222,"<>0")-(RANK(M46,$M$12:$M$222)+COUNTIF($M$12:M46,M46)-2))<=INT(0.25*COUNTIF(G$12:G$222,"<>0")),"TOP25", "")) -> TOP5 | AC46: =IF(IF(H46=0,"",COUNTIF(H$12:H$222,"<>0")-(RANK(P46,$P$12:$P$222)+COUNTIF($P$12:P46,P46)-2))<=INT(0.05*COUNTIF(H$12:H$222,"<>0")),"TOP5", IF(IF(H46=0,"",COUNTIF(H$12:H$222,"<>0")-(RANK(P46,$P$12:$P$222)+COUNTIF($P$12:P46,P46)-2))<=INT(0.25*COUNTIF(H$12:H$222,"<>0")),"TOP25", "")) -> TOP5 | AD46: =IF(IF(J46="Suppressed","",COUNTIF(J$12:J$222,"<>Suppressed")-(RANK(J46,$J$12:$J$222)+COUNTIF(J$12:$J46,J46)-2))<=INT(0.05*COUNTIF(J$12:J$222,"<>Suppressed")),"TOP5", IF(IF(J46="Suppressed","",COUNTIF(J$12:J$222,"<>Suppressed")-(RANK(J46,$J$12:$J$222)+COUNTIF(J$12:$J46,J46)-2))<=INT(0.25*COUNTIF(J$12:J$222,"<>suppressed")),"TOP25", "")) -> TOP25
A47: 09G | B47: NHS Coastal West Sussex | C47: =IF(G47=0,"",COUNTIF(G$12:G$222,"<>0")-(RANK(M47,$M$12:$M$222)+COUNTIF($M$12:M47,M47)-2)) -> 163 | D47: =IF(H47=0,"",COUNTIF(P$12:P$222,"<>Suppressed")-(RANK(P47,$P$12:$P$222)+COUNTIF($P$12:P47,P47)-2)) -> 124 | E47: =IF(J47="Suppressed","",COUNTIF(J$12:J$222,"<>Suppressed")-(RANK(J47,$J$12:$J$222)+COUNTIF($J$12:J47,J47)-2)) -> 81 | F47: =VLOOKUP(A47,population!C:O,Settings!$B$3,FALSE) -> 95915 | G47: =IF(ISNA(IF(Settings!$B$2="Asthma", SUMIFS(CCGData!E:E,CCGData!A:A,Settings!$B$1, CCGData!B:B,CurrentData!A47), IF(Settings!$B$2="Diabetes", SUMIFS(CCGData!C:C,CCGData!A:A,Settings!$B$1, CCGData!B:B,CurrentData!A47), SUMIFS(CCGData!D:D,CCGData!A:A,Settings!$B$1, CCGData!B:B,CurrentData!A47)))),"",IF(Settings!$B$2="Asthma", SUMIFS(CCGData!E:E,CCGData!A:A,Settings!$B$1, CCGData!B:B,CurrentData!A47), IF(Settings!$B$2="Diabetes", SUMIFS(CCGData!C:C,CCGData!A:A,Settings!$B$1, CCGData!B:B,CurrentData!A47), SUMIFS(CCGData!D:D,CCGData!A:A,Settings!$B$1, CCGData!B:B,CurrentData!A47)))) -> 67 | H47: =IF(Settings!$B$2="Asthma", SUMIFS(CCGData!J:J,CCGData!A:A,Settings!$B$1, CCGData!B:B,CurrentData!A47), IF(Settings!$B$2="Diabetes", SUMIFS(CCGData!F:F,CCGData!A:A,Settings!$B$1, CCGData!B:B,CurrentData!A47), SUMIFS(CCGData!H:H,CCGData!A:A,Settings!$B$1, CCGData!B:B,CurrentData!A47))) -> 124 | I47: =IF(Settings!$B$2="Asthma", SUMIFS(CCGData!K:K,CCGData!A:A,Settings!$B$1, CCGData!B:B,CurrentData!A47), IF(Settings!$B$2="Diabetes", SUMIFS(CCGData!G:G,CCGData!A:A,Settings!$B$1, CCGData!B:B,CurrentData!A47), SUMIFS(CCGData!I:I,CCGData!A:A,Settings!$B$1, CCGData!B:B,CurrentData!A47))) -> 69 | J47: 1.797101449 | K47: 1.494736007 | L47: 2.142671219 | M47: 69.85351613 | N47: 54.13551553 | O47: 88.71149625 | P47: 129.2811343 | Q47: 107.5293588 | R47: 154.1409728 | S47: 40.01320436 | T47: 73.95501563 | U47: 1.380952381 | V47: =VLOOKUP(Selections_data_CCG!$G$2,CurrentData!A:R,13,FALSE) -> 77.70951213 | W47: =IF(Settings!$B$5="4SIMILAR", VLOOKUP(Selections_data_CCG!$G$2,'CurrentData-4SIMILAR'!A:R,13,FALSE), VLOOKUP(Settings!$C$5,CurrentData!A:R,13,FALSE)) -> 26.11663851 | X47: =VLOOKUP(Selections_data_CCG!$G$2,CurrentData!A:R,16,FALSE) -> 672.6729644 | Y47: =IF(Settings!$B$5="4SIMILAR", VLOOKUP(Selections_data_CCG!$G$2,'CurrentData-4SIMILAR'!A:R,16,FALSE), VLOOKUP(Settings!$C$5,CurrentData!A:R,16,FALSE)) -> 36.90068939 | Z47: =VLOOKUP(Selections_data_CCG!$G$2,CurrentData!A:R,10,FALSE) -> 8.147058824 | AA47: =IF(Settings!$B$5="4SIMILAR", VLOOKUP(Selections_data_CCG!$G$2,'CurrentData-4SIMILAR'!A:R,10,FALSE), VLOOKUP(Settings!$C$5,CurrentData!A:R,10,FALSE)) -> 0.8745874587 | AB47: =IF(IF(G47=0,"",COUNTIF(G$12:G$222,"<>0")-(RANK(M47,$M$12:$M$222)+COUNTIF($M$12:M47,M47)-2))<=INT(0.05*COUNTIF(G$12:G$222,"<>0")),"TOP5", IF(IF(G47=0,"",COUNTIF(G$12:G$222,"<>0")-(RANK(M47,$M$12:$M$222)+COUNTIF($M$12:M47,M47)-2))<=INT(0.25*COUNTIF(G$12:G$222,"<>0")),"TOP25", "")) ->  | AC47: =IF(IF(H47=0,"",COUNTIF(H$12:H$222,"<>0")-(RANK(P47,$P$12:$P$222)+COUNTIF($P$12:P47,P47)-2))<=INT(0.05*COUNTIF(H$12:H$222,"<>0")),"TOP5", IF(IF(H47=0,"",COUNTIF(H$12:H$222,"<>0")-(RANK(P47,$P$12:$P$222)+COUNTIF($P$12:P47,P47)-2))<=INT(0.25*COUNTIF(H$12:H$222,"<>0")),"TOP25", "")) ->  | AD47: =IF(IF(J47="Suppressed","",COUNTIF(J$12:J$222,"<>Suppressed")-(RANK(J47,$J$12:$J$222)+COUNTIF(J$12:$J47,J47)-2))<=INT(0.05*COUNTIF(J$12:J$222,"<>Suppressed")),"TOP5", IF(IF(J47="Suppressed","",COUNTIF(J$12:J$222,"<>Suppressed")-(RANK(J47,$J$12:$J$222)+COUNTIF(J$12:$J47,J47)-2))<=INT(0.25*COUNTIF(J$12:J$222,"<>suppressed")),"TOP25", "")) -> 
A48: 03V | B48: NHS Corby | C48: =IF(G48=0,"",COUNTIF(G$12:G$222,"<>0")-(RANK(M48,$M$12:$M$222)+COUNTIF($M$12:M48,M48)-2)) -> 18 | D48: =IF(H48=0,"",COUNTIF(P$12:P$222,"<>Suppressed")-(RANK(P48,$P$12:$P$222)+COUNTIF($P$12:P48,P48)-2)) -> 11 | E48: =IF(J48="Suppressed","",COUNTIF(J$12:J$222,"<>Suppressed")-(RANK(J48,$J$12:$J$222)+COUNTIF($J$12:J48,J48)-2)) -> 33 | F48: =VLOOKUP(A48,population!C:O,Settings!$B$3,FALSE) -> 16786.4 | G48: =IF(ISNA(IF(Settings!$B$2="Asthma", SUMIFS(CCGData!E:E,CCGData!A:A,Settings!$B$1, CCGData!B:B,CurrentData!A48), IF(Settings!$B$2="Diabetes", SUMIFS(CCGData!C:C,CCGData!A:A,Settings!$B$1, CCGData!B:B,CurrentData!A48), SUMIFS(CCGData!D:D,CCGData!A:A,Settings!$B$1, CCGData!B:B,CurrentData!A48)))),"",IF(Settings!$B$2="Asthma", SUMIFS(CCGData!E:E,CCGData!A:A,Settings!$B$1, CCGData!B:B,CurrentData!A48), IF(Settings!$B$2="Diabetes", SUMIFS(CCGData!C:C,CCGData!A:A,Settings!$B$1, CCGData!B:B,CurrentData!A48), SUMIFS(CCGData!D:D,CCGData!A:A,Settings!$B$1, CCGData!B:B,CurrentData!A48)))) -> 6 | H48: =IF(Settings!$B$2="Asthma", SUMIFS(CCGData!J:J,CCGData!A:A,Settings!$B$1, CCGData!B:B,CurrentData!A48), IF(Settings!$B$2="Diabetes", SUMIFS(CCGData!F:F,CCGData!A:A,Settings!$B$1, CCGData!B:B,CurrentData!A48), SUMIFS(CCGData!H:H,CCGData!A:A,Settings!$B$1, CCGData!B:B,CurrentData!A48))) -> 8 | I48: =IF(Settings!$B$2="Asthma", SUMIFS(CCGData!K:K,CCGData!A:A,Settings!$B$1, CCGData!B:B,CurrentData!A48), IF(Settings!$B$2="Diabetes", SUMIFS(CCGData!G:G,CCGData!A:A,Settings!$B$1, CCGData!B:B,CurrentData!A48), SUMIFS(CCGData!I:I,CCGData!A:A,Settings!$B$1, CCGData!B:B,CurrentData!A48))) -> 6 | J48: 1.333333333 | K48: 0.5756386961 | L48: 2.627198203 | M48: 35.7432207 | N48: 13.11713204 | O48: 77.79794371 | P48: 47.6576276 | Q48: 20.57518096 | R48: 93.90452521 | S48: 40.32632059 | T48: 74.40642276 | U48: 1.4 | V48: =VLOOKUP(Selections_data_CCG!$G$2,CurrentData!A:R,13,FALSE) -> 77.70951213 | W48: =IF(Settings!$B$5="4SIMILAR", VLOOKUP(Selections_data_CCG!$G$2,'CurrentData-4SIMILAR'!A:R,13,FALSE), VLOOKUP(Settings!$C$5,CurrentData!A:R,13,FALSE)) -> 26.11663851 | X48: =VLOOKUP(Selections_data_CCG!$G$2,CurrentData!A:R,16,FALSE) -> 672.6729644 | Y48: =IF(Settings!$B$5="4SIMILAR", VLOOKUP(Selections_data_CCG!$G$2,'CurrentData-4SIMILAR'!A:R,16,FALSE), VLOOKUP(Settings!$C$5,CurrentData!A:R,16,FALSE)) -> 36.90068939 | Z48: =VLOOKUP(Selections_data_CCG!$G$2,CurrentData!A:R,10,FALSE) -> 8.147058824 | AA48: =IF(Settings!$B$5="4SIMILAR", VLOOKUP(Selections_data_CCG!$G$2,'CurrentData-4SIMILAR'!A:R,10,FALSE), VLOOKUP(Settings!$C$5,CurrentData!A:R,10,FALSE)) -> 0.8745874587 | AB48: =IF(IF(G48=0,"",COUNTIF(G$12:G$222,"<>0")-(RANK(M48,$M$12:$M$222)+COUNTIF($M$12:M48,M48)-2))<=INT(0.05*COUNTIF(G$12:G$222,"<>0")),"TOP5", IF(IF(G48=0,"",COUNTIF(G$12:G$222,"<>0")-(RANK(M48,$M$12:$M$222)+COUNTIF($M$12:M48,M48)-2))<=INT(0.25*COUNTIF(G$12:G$222,"<>0")),"TOP25", "")) -> TOP25 | AC48: =IF(IF(H48=0,"",COUNTIF(H$12:H$222,"<>0")-(RANK(P48,$P$12:$P$222)+COUNTIF($P$12:P48,P48)-2))<=INT(0.05*COUNTIF(H$12:H$222,"<>0")),"TOP5", IF(IF(H48=0,"",COUNTIF(H$12:H$222,"<>0")-(RANK(P48,$P$12:$P$222)+COUNTIF($P$12:P48,P48)-2))<=INT(0.25*COUNTIF(H$12:H$222,"<>0")),"TOP25", "")) -> TOP25 | AD48: =IF(IF(J48="Suppressed","",COUNTIF(J$12:J$222,"<>Suppressed")-(RANK(J48,$J$12:$J$222)+COUNTIF(J$12:$J48,J48)-2))<=INT(0.05*COUNTIF(J$12:J$222,"<>Suppressed")),"TOP5", IF(IF(J48="Suppressed","",COUNTIF(J$12:J$222,"<>Suppressed")-(RANK(J48,$J$12:$J$222)+COUNTIF(J$12:$J48,J48)-2))<=INT(0.25*COUNTIF(J$12:J$222,"<>suppressed")),"TOP25", "")) -> TOP25
A49: 05A | B49: NHS Coventry and Rugby | C49: =IF(G49=0,"",COUNTIF(G$12:G$222,"<>0")-(RANK(M49,$M$12:$M$222)+COUNTIF($M$12:M49,M49)-2)) -> 30 | D49: =IF(H49=0,"",COUNTIF(P$12:P$222,"<>Suppressed")-(RANK(P49,$P$12:$P$222)+COUNTIF($P$12:P49,P49)-2)) -> 74 | E49: =IF(J49="Suppressed","",COUNTIF(J$12:J$222,"<>Suppressed")-(RANK(J49,$J$12:$J$222)+COUNTIF($J$12:J49,J49)-2)) -> 152 | F49: =VLOOKUP(A49,population!C:O,Settings!$B$3,FALSE) -> 108960.2 | G49: =IF(ISNA(IF(Settings!$B$2="Asthma", SUMIFS(CCGData!E:E,CCGData!A:A,Settings!$B$1, CCGData!B:B,CurrentData!A49), IF(Settings!$B$2="Diabetes", SUMIFS(CCGData!C:C,CCGData!A:A,Settings!$B$1, CCGData!B:B,CurrentData!A49), SUMIFS(CCGData!D:D,CCGData!A:A,Settings!$B$1, CCGData!B:B,CurrentData!A49)))),"",IF(Settings!$B$2="Asthma", SUMIFS(CCGData!E:E,CCGData!A:A,Settings!$B$1, CCGData!B:B,CurrentData!A49), IF(Settings!$B$2="Diabetes", SUMIFS(CCGData!C:C,CCGData!A:A,Settings!$B$1, CCGData!B:B,CurrentData!A49), SUMIFS(CCGData!D:D,CCGData!A:A,Settings!$B$1, CCGData!B:B,CurrentData!A49)))) -> 42 | H49: =IF(Settings!$B$2="Asthma", SUMIFS(CCGData!J:J,CCGData!A:A,Settings!$B$1, CCGData!B:B,CurrentData!A49), IF(Settings!$B$2="Diabetes", SUMIFS(CCGData!F:F,CCGData!A:A,Settings!$B$1, CCGData!B:B,CurrentData!A49), SUMIFS(CCGData!H:H,CCGData!A:A,Settings!$B$1, CCGData!B:B,CurrentData!A49))) -> 104 | I49: =IF(Settings!$B$2="Asthma", SUMIFS(CCGData!K:K,CCGData!A:A,Settings!$B$1, CCGData!B:B,CurrentData!A49), IF(Settings!$B$2="Diabetes", SUMIFS(CCGData!G:G,CCGData!A:A,Settings!$B$1, CCGData!B:B,CurrentData!A49), SUMIFS(CCGData!I:I,CCGData!A:A,Settings!$B$1, CCGData!B:B,CurrentData!A49))) -> 42 | J49: 2.476190476 | K49: 2.023227055 | L49: 3.000319214 | M49: 38.54618475 | N49: 27.7806995 | O49: 52.10324392 | P49: 95.44769558 | Q49: 77.98768386 | R49: 115.6508587 | S49: 40.48119579 | T49: 74.46684144 | U49: 1.417910448 | V49: =VLOOKUP(Selections_data_CCG!$G$2,CurrentData!A:R,13,FALSE) -> 77.70951213 | W49: =IF(Settings!$B$5="4SIMILAR", VLOOKUP(Selections_data_CCG!$G$2,'CurrentData-4SIMILAR'!A:R,13,FALSE), VLOOKUP(Settings!$C$5,CurrentData!A:R,13,FALSE)) -> 26.11663851 | X49: =VLOOKUP(Selections_data_CCG!$G$2,CurrentData!A:R,16,FALSE) -> 672.6729644 | Y49: =IF(Settings!$B$5="4SIMILAR", VLOOKUP(Selections_data_CCG!$G$2,'CurrentData-4SIMILAR'!A:R,16,FALSE), VLOOKUP(Settings!$C$5,CurrentData!A:R,16,FALSE)) -> 36.90068939 | Z49: =VLOOKUP(Selections_data_CCG!$G$2,CurrentData!A:R,10,FALSE) -> 8.147058824 | AA49: =IF(Settings!$B$5="4SIMILAR", VLOOKUP(Selections_data_CCG!$G$2,'CurrentData-4SIMILAR'!A:R,10,FALSE), VLOOKUP(Settings!$C$5,CurrentData!A:R,10,FALSE)) -> 0.8745874587 | AB49: =IF(IF(G49=0,"",COUNTIF(G$12:G$222,"<>0")-(RANK(M49,$M$12:$M$222)+COUNTIF($M$12:M49,M49)-2))<=INT(0.05*COUNTIF(G$12:G$222,"<>0")),"TOP5", IF(IF(G49=0,"",COUNTIF(G$12:G$222,"<>0")-(RANK(M49,$M$12:$M$222)+COUNTIF($M$12:M49,M49)-2))<=INT(0.25*COUNTIF(G$12:G$222,"<>0")),"TOP25", "")) -> TOP25 | AC49: =IF(IF(H49=0,"",COUNTIF(H$12:H$222,"<>0")-(RANK(P49,$P$12:$P$222)+COUNTIF($P$12:P49,P49)-2))<=INT(0.05*COUNTIF(H$12:H$222,"<>0")),"TOP5", IF(IF(H49=0,"",COUNTIF(H$12:H$222,"<>0")-(RANK(P49,$P$12:$P$222)+COUNTIF($P$12:P49,P49)-2))<=INT(0.25*COUNTIF(H$12:H$222,"<>0")),"TOP25", "")) ->  | AD49: =IF(IF(J49="Suppressed","",COUNTIF(J$12:J$222,"<>Suppressed")-(RANK(J49,$J$12:$J$222)+COUNTIF(J$12:$J49,J49)-2))<=INT(0.05*COUNTIF(J$12:J$222,"<>Suppressed")),"TOP5", IF(IF(J49="Suppressed","",COUNTIF(J$12:J$222,"<>Suppressed")-(RANK(J49,$J$12:$J$222)+COUNTIF(J$12:$J49,J49)-2))<=INT(0.25*COUNTIF(J$12:J$222,"<>suppressed")),"TOP25", "")) -> 
A50: 09H | B50: NHS Crawley | C50: =IF(G50=0,"",COUNTIF(G$12:G$222,"<>0")-(RANK(M50,$M$12:$M$222)+COUNTIF($M$12:M50,M50)-2)) -> 65 | D50: =IF(H50=0,"",COUNTIF(P$12:P$222,"<>Suppressed")-(RANK(P50,$P$12:$P$222)+COUNTIF($P$12:P50,P50)-2)) -> 24 | E50: =IF(J50="Suppressed","",COUNTIF(J$12:J$222,"<>Suppressed")-(RANK(J50,$J$12:$J$222)+COUNTIF($J$12:J50,J50)-2)) -> 41 | F50: =VLOOKUP(A50,population!C:O,Settings!$B$3,FALSE) -> 30057.6 | G50: =IF(ISNA(IF(Settings!$B$2="Asthma", SUMIFS(CCGData!E:E,CCGData!A:A,Settings!$B$1, CCGData!B:B,CurrentData!A50), IF(Settings!$B$2="Diabetes", SUMIFS(CCGData!C:C,CCGData!A:A,Settings!$B$1, CCGData!B:B,CurrentData!A50), SUMIFS(CCGData!D:D,CCGData!A:A,Settings!$B$1, CCGData!B:B,CurrentData!A50)))),"",IF(Settings!$B$2="Asthma", SUMIFS(CCGData!E:E,CCGData!A:A,Settings!$B$1, CCGData!B:B,CurrentData!A50), IF(Settings!$B$2="Diabetes", SUMIFS(CCGData!C:C,CCGData!A:A,Settings!$B$1, CCGData!B:B,CurrentData!A50), SUMIFS(CCGData!D:D,CCGData!A:A,Settings!$B$1, CCGData!B:B,CurrentData!A50)))) -> 14 | H50: =IF(Settings!$B$2="Asthma", SUMIFS(CCGData!J:J,CCGData!A:A,Settings!$B$1, CCGData!B:B,CurrentData!A50), IF(Settings!$B$2="Diabetes", SUMIFS(CCGData!F:F,CCGData!A:A,Settings!$B$1, CCGData!B:B,CurrentData!A50), SUMIFS(CCGData!H:H,CCGData!A:A,Settings!$B$1, CCGData!B:B,CurrentData!A50))) -> 20 | I50: =IF(Settings!$B$2="Asthma", SUMIFS(CCGData!K:K,CCGData!A:A,Settings!$B$1, CCGData!B:B,CurrentData!A50), IF(Settings!$B$2="Diabetes", SUMIFS(CCGData!G:G,CCGData!A:A,Settings!$B$1, CCGData!B:B,CurrentData!A50), SUMIFS(CCGData!I:I,CCGData!A:A,Settings!$B$1, CCGData!B:B,CurrentData!A50))) -> 14 | J50: 1.428571429 | K50: 0.8726085418 | L50: 2.206312707 | M50: 46.57723837 | N50: 25.46420964 | O50: 78.14869158 | P50: 66.53891196 | Q50: 40.64369605 | R50: 102.7639529 | S50: 40.59182886 | T50: 75.00468779 | U50: 1.419354839 | V50: =VLOOKUP(Selections_data_CCG!$G$2,CurrentData!A:R,13,FALSE) -> 77.70951213 | W50: =IF(Settings!$B$5="4SIMILAR", VLOOKUP(Selections_data_CCG!$G$2,'CurrentData-4SIMILAR'!A:R,13,FALSE), VLOOKUP(Settings!$C$5,CurrentData!A:R,13,FALSE)) -> 26.11663851 | X50: =VLOOKUP(Selections_data_CCG!$G$2,CurrentData!A:R,16,FALSE) -> 672.6729644 | Y50: =IF(Settings!$B$5="4SIMILAR", VLOOKUP(Selections_data_CCG!$G$2,'CurrentData-4SIMILAR'!A:R,16,FALSE), VLOOKUP(Settings!$C$5,CurrentData!A:R,16,FALSE)) -> 36.90068939 | Z50: =VLOOKUP(Selections_data_CCG!$G$2,CurrentData!A:R,10,FALSE) -> 8.147058824 | AA50: =IF(Settings!$B$5="4SIMILAR", VLOOKUP(Selections_data_CCG!$G$2,'CurrentData-4SIMILAR'!A:R,10,FALSE), VLOOKUP(Settings!$C$5,CurrentData!A:R,10,FALSE)) -> 0.8745874587 | AB50: =IF(IF(G50=0,"",COUNTIF(G$12:G$222,"<>0")-(RANK(M50,$M$12:$M$222)+COUNTIF($M$12:M50,M50)-2))<=INT(0.05*COUNTIF(G$12:G$222,"<>0")),"TOP5", IF(IF(G50=0,"",COUNTIF(G$12:G$222,"<>0")-(RANK(M50,$M$12:$M$222)+COUNTIF($M$12:M50,M50)-2))<=INT(0.25*COUNTIF(G$12:G$222,"<>0")),"TOP25", "")) ->  | AC50: =IF(IF(H50=0,"",COUNTIF(H$12:H$222,"<>0")-(RANK(P50,$P$12:$P$222)+COUNTIF($P$12:P50,P50)-2))<=INT(0.05*COUNTIF(H$12:H$222,"<>0")),"TOP5", IF(IF(H50=0,"",COUNTIF(H$12:H$222,"<>0")-(RANK(P50,$P$12:$P$222)+COUNTIF($P$12:P50,P50)-2))<=INT(0.25*COUNTIF(H$12:H$222,"<>0")),"TOP25", "")) -> TOP25 | AD50: =IF(IF(J50="Suppressed","",COUNTIF(J$12:J$222,"<>Suppressed")-(RANK(J50,$J$12:$J$222)+COUNTIF(J$12:$J50,J50)-2))<=INT(0.05*COUNTIF(J$12:J$222,"<>Suppressed")),"TOP5", IF(IF(J50="Suppressed","",COUNTIF(J$12:J$222,"<>Suppressed")-(RANK(J50,$J$12:$J$222)+COUNTIF(J$12:$J50,J50)-2))<=INT(0.25*COUNTIF(J$12:J$222,"<>suppressed")),"TOP25", "")) -> TOP25
A51: 07V | B51: NHS Croydon | C51: =IF(G51=0,"",COUNTIF(G$12:G$222,"<>0")-(RANK(M51,$M$12:$M$222)+COUNTIF($M$12:M51,M51)-2)) -> 16 | D51: =IF(H51=0,"",COUNTIF(P$12:P$222,"<>Suppressed")-(RANK(P51,$P$12:$P$222)+COUNTIF($P$12:P51,P51)-2)) -> 55 | E51: =IF(J51="Suppressed","",COUNTIF(J$12:J$222,"<>Suppressed")-(RANK(J51,$J$12:$J$222)+COUNTIF($J$12:J51,J51)-2)) -> 138 | F51: =VLOOKUP(A51,population!C:O,Settings!$B$3,FALSE) -> 93427.4 | G51: =IF(ISNA(IF(Settings!$B$2="Asthma", SUMIFS(CCGData!E:E,CCGData!A:A,Settings!$B$1, CCGData!B:B,CurrentData!A51), IF(Settings!$B$2="Diabetes", SUMIFS(CCGData!C:C,CCGData!A:A,Settings!$B$1, CCGData!B:B,CurrentData!A51), SUMIFS(CCGData!D:D,CCGData!A:A,Settings!$B$1, CCGData!B:B,CurrentData!A51)))),"",IF(Settings!$B$2="Asthma", SUMIFS(CCGData!E:E,CCGData!A:A,Settings!$B$1, CCGData!B:B,CurrentData!A51), IF(Settings!$B$2="Diabetes", SUMIFS(CCGData!C:C,CCGData!A:A,Settings!$B$1, CCGData!B:B,CurrentData!A51), SUMIFS(CCGData!D:D,CCGData!A:A,Settings!$B$1, CCGData!B:B,CurrentData!A51)))) -> 32 | H51: =IF(Settings!$B$2="Asthma", SUMIFS(CCGData!J:J,CCGData!A:A,Settings!$B$1, CCGData!B:B,CurrentData!A51), IF(Settings!$B$2="Diabetes", SUMIFS(CCGData!F:F,CCGData!A:A,Settings!$B$1, CCGData!B:B,CurrentData!A51), SUMIFS(CCGData!H:H,CCGData!A:A,Settings!$B$1, CCGData!B:B,CurrentData!A51))) -> 79 | I51: =IF(Settings!$B$2="Asthma", SUMIFS(CCGData!K:K,CCGData!A:A,Settings!$B$1, CCGData!B:B,CurrentData!A51), IF(Settings!$B$2="Diabetes", SUMIFS(CCGData!G:G,CCGData!A:A,Settings!$B$1, CCGData!B:B,CurrentData!A51), SUMIFS(CCGData!I:I,CCGData!A:A,Settings!$B$1, CCGData!B:B,CurrentData!A51))) -> 34 | J51: 2.323529412 | K51: 1.839560116 | L51: 2.895810917 | M51: 34.25119398 | N51: 23.42779132 | O51: 48.35246628 | P51: 84.55763513 | Q51: 66.94507603 | R51: 105.3840428 | S51: 40.63095356 | T51: 75.1619337 | U51: 1.428571429 | V51: =VLOOKUP(Selections_data_CCG!$G$2,CurrentData!A:R,13,FALSE) -> 77.70951213 | W51: =IF(Settings!$B$5="4SIMILAR", VLOOKUP(Selections_data_CCG!$G$2,'CurrentData-4SIMILAR'!A:R,13,FALSE), VLOOKUP(Settings!$C$5,CurrentData!A:R,13,FALSE)) -> 26.11663851 | X51: =VLOOKUP(Selections_data_CCG!$G$2,CurrentData!A:R,16,FALSE) -> 672.6729644 | Y51: =IF(Settings!$B$5="4SIMILAR", VLOOKUP(Selections_data_CCG!$G$2,'CurrentData-4SIMILAR'!A:R,16,FALSE), VLOOKUP(Settings!$C$5,CurrentData!A:R,16,FALSE)) -> 36.90068939 | Z51: =VLOOKUP(Selections_data_CCG!$G$2,CurrentData!A:R,10,FALSE) -> 8.147058824 | AA51: =IF(Settings!$B$5="4SIMILAR", VLOOKUP(Selections_data_CCG!$G$2,'CurrentData-4SIMILAR'!A:R,10,FALSE), VLOOKUP(Settings!$C$5,CurrentData!A:R,10,FALSE)) -> 0.8745874587 | AB51: =IF(IF(G51=0,"",COUNTIF(G$12:G$222,"<>0")-(RANK(M51,$M$12:$M$222)+COUNTIF($M$12:M51,M51)-2))<=INT(0.05*COUNTIF(G$12:G$222,"<>0")),"TOP5", IF(IF(G51=0,"",COUNTIF(G$12:G$222,"<>0")-(RANK(M51,$M$12:$M$222)+COUNTIF($M$12:M51,M51)-2))<=INT(0.25*COUNTIF(G$12:G$222,"<>0")),"TOP25", "")) -> TOP25 | AC51: =IF(IF(H51=0,"",COUNTIF(H$12:H$222,"<>0")-(RANK(P51,$P$12:$P$222)+COUNTIF($P$12:P51,P51)-2))<=INT(0.05*COUNTIF(H$12:H$222,"<>0")),"TOP5", IF(IF(H51=0,"",COUNTIF(H$12:H$222,"<>0")-(RANK(P51,$P$12:$P$222)+COUNTIF($P$12:P51,P51)-2))<=INT(0.25*COUNTIF(H$12:H$222,"<>0")),"TOP25", "")) ->  | AD51: =IF(IF(J51="Suppressed","",COUNTIF(J$12:J$222,"<>Suppressed")-(RANK(J51,$J$12:$J$222)+COUNTIF(J$12:$J51,J51)-2))<=INT(0.05*COUNTIF(J$12:J$222,"<>Suppressed")),"TOP5", IF(IF(J51="Suppressed","",COUNTIF(J$12:J$222,"<>Suppressed")-(RANK(J51,$J$12:$J$222)+COUNTIF(J$12:$J51,J51)-2))<=INT(0.25*COUNTIF(J$12:J$222,"<>suppressed")),"TOP25", "")) -> 
A52: 01H | B52: NHS Cumbria | C52: =IF(G52=0,"",COUNTIF(G$12:G$222,"<>0")-(RANK(M52,$M$12:$M$222)+COUNTIF($M$12:M52,M52)-2)) -> 156 | D52: =IF(H52=0,"",COUNTIF(P$12:P$222,"<>Suppressed")-(RANK(P52,$P$12:$P$222)+COUNTIF($P$12:P52,P52)-2)) -> 112 | E52: =IF(J52="Suppressed","",COUNTIF(J$12:J$222,"<>Suppressed")-(RANK(J52,$J$12:$J$222)+COUNTIF($J$12:J52,J52)-2)) -> 90 | F52: =VLOOKUP(A52,population!C:O,Settings!$B$3,FALSE) -> 102362.8 | G52: =IF(ISNA(IF(Settings!$B$2="Asthma", SUMIFS(CCGData!E:E,CCGData!A:A,Settings!$B$1, CCGData!B:B,CurrentData!A52), IF(Settings!$B$2="Diabetes", SUMIFS(CCGData!C:C,CCGData!A:A,Settings!$B$1, CCGData!B:B,CurrentData!A52), SUMIFS(CCGData!D:D,CCGData!A:A,Settings!$B$1, CCGData!B:B,CurrentData!A52)))),"",IF(Settings!$B$2="Asthma", SUMIFS(CCGData!E:E,CCGData!A:A,Settings!$B$1, CCGData!B:B,CurrentData!A52), IF(Settings!$B$2="Diabetes", SUMIFS(CCGData!C:C,CCGData!A:A,Settings!$B$1, CCGData!B:B,CurrentData!A52), SUMIFS(CCGData!D:D,CCGData!A:A,Settings!$B$1, CCGData!B:B,CurrentData!A52)))) -> 69 | H52: =IF(Settings!$B$2="Asthma", SUMIFS(CCGData!J:J,CCGData!A:A,Settings!$B$1, CCGData!B:B,CurrentData!A52), IF(Settings!$B$2="Diabetes", SUMIFS(CCGData!F:F,CCGData!A:A,Settings!$B$1, CCGData!B:B,CurrentData!A52), SUMIFS(CCGData!H:H,CCGData!A:A,Settings!$B$1, CCGData!B:B,CurrentData!A52))) -> 127 | I52: =IF(Settings!$B$2="Asthma", SUMIFS(CCGData!K:K,CCGData!A:A,Settings!$B$1, CCGData!B:B,CurrentData!A52), IF(Settings!$B$2="Diabetes", SUMIFS(CCGData!G:G,CCGData!A:A,Settings!$B$1, CCGData!B:B,CurrentData!A52), SUMIFS(CCGData!I:I,CCGData!A:A,Settings!$B$1, CCGData!B:B,CurrentData!A52))) -> 69 | J52: 1.84057971 | K52: 1.534408375 | L52: 2.189940653 | M52: 67.40730031 | N52: 52.44690313 | O52: 85.3082527 | P52: 124.0685093 | Q52: 103.4303261 | R52: 147.6179872 | S52: 41.14083536 | T52: 76.39224873 | U52: 1.428571429 | V52: =VLOOKUP(Selections_data_CCG!$G$2,CurrentData!A:R,13,FALSE) -> 77.70951213 | W52: =IF(Settings!$B$5="4SIMILAR", VLOOKUP(Selections_data_CCG!$G$2,'CurrentData-4SIMILAR'!A:R,13,FALSE), VLOOKUP(Settings!$C$5,CurrentData!A:R,13,FALSE)) -> 26.11663851 | X52: =VLOOKUP(Selections_data_CCG!$G$2,CurrentData!A:R,16,FALSE) -> 672.6729644 | Y52: =IF(Settings!$B$5="4SIMILAR", VLOOKUP(Selections_data_CCG!$G$2,'CurrentData-4SIMILAR'!A:R,16,FALSE), VLOOKUP(Settings!$C$5,CurrentData!A:R,16,FALSE)) -> 36.90068939 | Z52: =VLOOKUP(Selections_data_CCG!$G$2,CurrentData!A:R,10,FALSE) -> 8.147058824 | AA52: =IF(Settings!$B$5="4SIMILAR", VLOOKUP(Selections_data_CCG!$G$2,'CurrentData-4SIMILAR'!A:R,10,FALSE), VLOOKUP(Settings!$C$5,CurrentData!A:R,10,FALSE)) -> 0.8745874587 | AB52: =IF(IF(G52=0,"",COUNTIF(G$12:G$222,"<>0")-(RANK(M52,$M$12:$M$222)+COUNTIF($M$12:M52,M52)-2))<=INT(0.05*COUNTIF(G$12:G$222,"<>0")),"TOP5", IF(IF(G52=0,"",COUNTIF(G$12:G$222,"<>0")-(RANK(M52,$M$12:$M$222)+COUNTIF($M$12:M52,M52)-2))<=INT(0.25*COUNTIF(G$12:G$222,"<>0")),"TOP25", "")) ->  | AC52: =IF(IF(H52=0,"",COUNTIF(H$12:H$222,"<>0")-(RANK(P52,$P$12:$P$222)+COUNTIF($P$12:P52,P52)-2))<=INT(0.05*COUNTIF(H$12:H$222,"<>0")),"TOP5", IF(IF(H52=0,"",COUNTIF(H$12:H$222,"<>0")-(RANK(P52,$P$12:$P$222)+COUNTIF($P$12:P52,P52)-2))<=INT(0.25*COUNTIF(H$12:H$222,"<>0")),"TOP25", "")) ->  | AD52: =IF(IF(J52="Suppressed","",COUNTIF(J$12:J$222,"<>Suppressed")-(RANK(J52,$J$12:$J$222)+COUNTIF(J$12:$J52,J52)-2))<=INT(0.05*COUNTIF(J$12:J$222,"<>Suppressed")),"TOP5", IF(IF(J52="Suppressed","",COUNTIF(J$12:J$222,"<>Suppressed")-(RANK(J52,$J$12:$J$222)+COUNTIF(J$12:$J52,J52)-2))<=INT(0.25*COUNTIF(J$12:J$222,"<>suppressed")),"TOP25", "")) -> 
A53: 00C | B53: NHS Darlington | C53: =IF(G53=0,"",COUNTIF(G$12:G$222,"<>0")-(RANK(M53,$M$12:$M$222)+COUNTIF($M$12:M53,M53)-2)) -> 93 | D53: =IF(H53=0,"",COUNTIF(P$12:P$222,"<>Suppressed")-(RANK(P53,$P$12:$P$222)+COUNTIF($P$12:P53,P53)-2)) -> 56 | E53: =IF(J53="Suppressed","",COUNTIF(J$12:J$222,"<>Suppressed")-(RANK(J53,$J$12:$J$222)+COUNTIF($J$12:J53,J53)-2)) -> 51 | F53: =VLOOKUP(A53,population!C:O,Settings!$B$3,FALSE) -> 23260 | G53: =IF(ISNA(IF(Settings!$B$2="Asthma", SUMIFS(CCGData!E:E,CCGData!A:A,Settings!$B$1, CCGData!B:B,CurrentData!A53), IF(Settings!$B$2="Diabetes", SUMIFS(CCGData!C:C,CCGData!A:A,Settings!$B$1, CCGData!B:B,CurrentData!A53), SUMIFS(CCGData!D:D,CCGData!A:A,Settings!$B$1, CCGData!B:B,CurrentData!A53)))),"",IF(Settings!$B$2="Asthma", SUMIFS(CCGData!E:E,CCGData!A:A,Settings!$B$1, CCGData!B:B,CurrentData!A53), IF(Settings!$B$2="Diabetes", SUMIFS(CCGData!C:C,CCGData!A:A,Settings!$B$1, CCGData!B:B,CurrentData!A53), SUMIFS(CCGData!D:D,CCGData!A:A,Settings!$B$1, CCGData!B:B,CurrentData!A53)))) -> 12 | H53: =IF(Settings!$B$2="Asthma", SUMIFS(CCGData!J:J,CCGData!A:A,Settings!$B$1, CCGData!B:B,CurrentData!A53), IF(Settings!$B$2="Diabetes", SUMIFS(CCGData!F:F,CCGData!A:A,Settings!$B$1, CCGData!B:B,CurrentData!A53), SUMIFS(CCGData!H:H,CCGData!A:A,Settings!$B$1, CCGData!B:B,CurrentData!A53))) -> 20 | I53: =IF(Settings!$B$2="Asthma", SUMIFS(CCGData!K:K,CCGData!A:A,Settings!$B$1, CCGData!B:B,CurrentData!A53), IF(Settings!$B$2="Diabetes", SUMIFS(CCGData!G:G,CCGData!A:A,Settings!$B$1, CCGData!B:B,CurrentData!A53), SUMIFS(CCGData!I:I,CCGData!A:A,Settings!$B$1, CCGData!B:B,CurrentData!A53))) -> 13 | J53: 1.538461538 | K53: 0.9397322758 | L53: 2.376029069 | M53: 51.59071367 | N53: 26.65767459 | O53: 90.11859436 | P53: 85.98452279 | Q53: 52.52158033 | R53: 132.7961217 | S53: 41.40364734 | T53: 77.85386311 | U53: 1.433333333 | V53: =VLOOKUP(Selections_data_CCG!$G$2,CurrentData!A:R,13,FALSE) -> 77.70951213 | W53: =IF(Settings!$B$5="4SIMILAR", VLOOKUP(Selections_data_CCG!$G$2,'CurrentData-4SIMILAR'!A:R,13,FALSE), VLOOKUP(Settings!$C$5,CurrentData!A:R,13,FALSE)) -> 26.11663851 | X53: =VLOOKUP(Selections_data_CCG!$G$2,CurrentData!A:R,16,FALSE) -> 672.6729644 | Y53: =IF(Settings!$B$5="4SIMILAR", VLOOKUP(Selections_data_CCG!$G$2,'CurrentData-4SIMILAR'!A:R,16,FALSE), VLOOKUP(Settings!$C$5,CurrentData!A:R,16,FALSE)) -> 36.90068939 | Z53: =VLOOKUP(Selections_data_CCG!$G$2,CurrentData!A:R,10,FALSE) -> 8.147058824 | AA53: =IF(Settings!$B$5="4SIMILAR", VLOOKUP(Selections_data_CCG!$G$2,'CurrentData-4SIMILAR'!A:R,10,FALSE), VLOOKUP(Settings!$C$5,CurrentData!A:R,10,FALSE)) -> 0.8745874587 | AB53: =IF(IF(G53=0,"",COUNTIF(G$12:G$222,"<>0")-(RANK(M53,$M$12:$M$222)+COUNTIF($M$12:M53,M53)-2))<=INT(0.05*COUNTIF(G$12:G$222,"<>0")),"TOP5", IF(IF(G53=0,"",COUNTIF(G$12:G$222,"<>0")-(RANK(M53,$M$12:$M$222)+COUNTIF($M$12:M53,M53)-2))<=INT(0.25*COUNTIF(G$12:G$222,"<>0")),"TOP25", "")) ->  | AC53: =IF(IF(H53=0,"",COUNTIF(H$12:H$222,"<>0")-(RANK(P53,$P$12:$P$222)+COUNTIF($P$12:P53,P53)-2))<=INT(0.05*COUNTIF(H$12:H$222,"<>0")),"TOP5", IF(IF(H53=0,"",COUNTIF(H$12:H$222,"<>0")-(RANK(P53,$P$12:$P$222)+COUNTIF($P$12:P53,P53)-2))<=INT(0.25*COUNTIF(H$12:H$222,"<>0")),"TOP25", "")) ->  | AD53: =IF(IF(J53="Suppressed","",COUNTIF(J$12:J$222,"<>Suppressed")-(RANK(J53,$J$12:$J$222)+COUNTIF(J$12:$J53,J53)-2))<=INT(0.05*COUNTIF(J$12:J$222,"<>Suppressed")),"TOP5", IF(IF(J53="Suppressed","",COUNTIF(J$12:J$222,"<>Suppressed")-(RANK(J53,$J$12:$J$222)+COUNTIF(J$12:$J53,J53)-2))<=INT(0.25*COUNTIF(J$12:J$222,"<>suppressed")),"TOP25", "")) -> TOP25
A54: 09J | B54: NHS Dartford, Gravesham and Swanley | C54: =IF(G54=0,"",COUNTIF(G$12:G$222,"<>0")-(RANK(M54,$M$12:$M$222)+COUNTIF($M$12:M54,M54)-2)) -> 107 | D54: =IF(H54=0,"",COUNTIF(P$12:P$222,"<>Suppressed")-(RANK(P54,$P$12:$P$222)+COUNTIF($P$12:P54,P54)-2)) -> 126 | E54: =IF(J54="Suppressed","",COUNTIF(J$12:J$222,"<>Suppressed")-(RANK(J54,$J$12:$J$222)+COUNTIF($J$12:J54,J54)-2)) -> 128 | F54: =VLOOKUP(A54,population!C:O,Settings!$B$3,FALSE) -> 58493 | G54: =IF(ISNA(IF(Settings!$B$2="Asthma", SUMIFS(CCGData!E:E,CCGData!A:A,Settings!$B$1, CCGData!B:B,CurrentData!A54), IF(Settings!$B$2="Diabetes", SUMIFS(CCGData!C:C,CCGData!A:A,Settings!$B$1, CCGData!B:B,CurrentData!A54), SUMIFS(CCGData!D:D,CCGData!A:A,Settings!$B$1, CCGData!B:B,CurrentData!A54)))),"",IF(Settings!$B$2="Asthma", SUMIFS(CCGData!E:E,CCGData!A:A,Settings!$B$1, CCGData!B:B,CurrentData!A54), IF(Settings!$B$2="Diabetes", SUMIFS(CCGData!C:C,CCGData!A:A,Settings!$B$1, CCGData!B:B,CurrentData!A54), SUMIFS(CCGData!D:D,CCGData!A:A,Settings!$B$1, CCGData!B:B,CurrentData!A54)))) -> 33 | H54: =IF(Settings!$B$2="Asthma", SUMIFS(CCGData!J:J,CCGData!A:A,Settings!$B$1, CCGData!B:B,CurrentData!A54), IF(Settings!$B$2="Diabetes", SUMIFS(CCGData!F:F,CCGData!A:A,Settings!$B$1, CCGData!B:B,CurrentData!A54), SUMIFS(CCGData!H:H,CCGData!A:A,Settings!$B$1, CCGData!B:B,CurrentData!A54))) -> 77 | I54: =IF(Settings!$B$2="Asthma", SUMIFS(CCGData!K:K,CCGData!A:A,Settings!$B$1, CCGData!B:B,CurrentData!A54), IF(Settings!$B$2="Diabetes", SUMIFS(CCGData!G:G,CCGData!A:A,Settings!$B$1, CCGData!B:B,CurrentData!A54), SUMIFS(CCGData!I:I,CCGData!A:A,Settings!$B$1, CCGData!B:B,CurrentData!A54))) -> 35 | J54: 2.2 | K54: 1.736205596 | L54: 2.749622529 | M54: 56.41700716 | N54: 38.83487182 | O54: 79.23045368 | P54: 131.6396834 | Q54: 103.8879795 | R54: 164.5270178 | S54: 41.51321603 | T54: 77.91080326 | U54: 1.440677966 | V54: =VLOOKUP(Selections_data_CCG!$G$2,CurrentData!A:R,13,FALSE) -> 77.70951213 | W54: =IF(Settings!$B$5="4SIMILAR", VLOOKUP(Selections_data_CCG!$G$2,'CurrentData-4SIMILAR'!A:R,13,FALSE), VLOOKUP(Settings!$C$5,CurrentData!A:R,13,FALSE)) -> 26.11663851 | X54: =VLOOKUP(Selections_data_CCG!$G$2,CurrentData!A:R,16,FALSE) -> 672.6729644 | Y54: =IF(Settings!$B$5="4SIMILAR", VLOOKUP(Selections_data_CCG!$G$2,'CurrentData-4SIMILAR'!A:R,16,FALSE), VLOOKUP(Settings!$C$5,CurrentData!A:R,16,FALSE)) -> 36.90068939 | Z54: =VLOOKUP(Selections_data_CCG!$G$2,CurrentData!A:R,10,FALSE) -> 8.147058824 | AA54: =IF(Settings!$B$5="4SIMILAR", VLOOKUP(Selections_data_CCG!$G$2,'CurrentData-4SIMILAR'!A:R,10,FALSE), VLOOKUP(Settings!$C$5,CurrentData!A:R,10,FALSE)) -> 0.8745874587 | AB54: =IF(IF(G54=0,"",COUNTIF(G$12:G$222,"<>0")-(RANK(M54,$M$12:$M$222)+COUNTIF($M$12:M54,M54)-2))<=INT(0.05*COUNTIF(G$12:G$222,"<>0")),"TOP5", IF(IF(G54=0,"",COUNTIF(G$12:G$222,"<>0")-(RANK(M54,$M$12:$M$222)+COUNTIF($M$12:M54,M54)-2))<=INT(0.25*COUNTIF(G$12:G$222,"<>0")),"TOP25", "")) ->  | AC54: =IF(IF(H54=0,"",COUNTIF(H$12:H$222,"<>0")-(RANK(P54,$P$12:$P$222)+COUNTIF($P$12:P54,P54)-2))<=INT(0.05*COUNTIF(H$12:H$222,"<>0")),"TOP5", IF(IF(H54=0,"",COUNTIF(H$12:H$222,"<>0")-(RANK(P54,$P$12:$P$222)+COUNTIF($P$12:P54,P54)-2))<=INT(0.25*COUNTIF(H$12:H$222,"<>0")),"TOP25", "")) ->  | AD54: =IF(IF(J54="Suppressed","",COUNTIF(J$12:J$222,"<>Suppressed")-(RANK(J54,$J$12:$J$222)+COUNTIF(J$12:$J54,J54)-2))<=INT(0.05*COUNTIF(J$12:J$222,"<>Suppressed")),"TOP5", IF(IF(J54="Suppressed","",COUNTIF(J$12:J$222,"<>Suppressed")-(RANK(J54,$J$12:$J$222)+COUNTIF(J$12:$J54,J54)-2))<=INT(0.25*COUNTIF(J$12:J$222,"<>suppressed")),"TOP25", "")) -> 
A55: 02X | B55: NHS Doncaster | C55: =IF(G55=0,"",COUNTIF(G$12:G$222,"<>0")-(RANK(M55,$M$12:$M$222)+COUNTIF($M$12:M55,M55)-2)) -> 99 | D55: =IF(H55=0,"",COUNTIF(P$12:P$222,"<>Suppressed")-(RANK(P55,$P$12:$P$222)+COUNTIF($P$12:P55,P55)-2)) -> 98 | E55: =IF(J55="Suppressed","",COUNTIF(J$12:J$222,"<>Suppressed")-(RANK(J55,$J$12:$J$222)+COUNTIF($J$12:J55,J55)-2)) -> 103 | F55: =VLOOKUP(A55,population!C:O,Settings!$B$3,FALSE) -> 68856.2 | G55: =IF(ISNA(IF(Settings!$B$2="Asthma", SUMIFS(CCGData!E:E,CCGData!A:A,Settings!$B$1, CCGData!B:B,CurrentData!A55), IF(Settings!$B$2="Diabetes", SUMIFS(CCGData!C:C,CCGData!A:A,Settings!$B$1, CCGData!B:B,CurrentData!A55), SUMIFS(CCGData!D:D,CCGData!A:A,Settings!$B$1, CCGData!B:B,CurrentData!A55)))),"",IF(Settings!$B$2="Asthma", SUMIFS(CCGData!E:E,CCGData!A:A,Settings!$B$1, CCGData!B:B,CurrentData!A55), IF(Settings!$B$2="Diabetes", SUMIFS(CCGData!C:C,CCGData!A:A,Settings!$B$1, CCGData!B:B,CurrentData!A55), SUMIFS(CCGData!D:D,CCGData!A:A,Settings!$B$1, CCGData!B:B,CurrentData!A55)))) -> 37 | H55: =IF(Settings!$B$2="Asthma", SUMIFS(CCGData!J:J,CCGData!A:A,Settings!$B$1, CCGData!B:B,CurrentData!A55), IF(Settings!$B$2="Diabetes", SUMIFS(CCGData!F:F,CCGData!A:A,Settings!$B$1, CCGData!B:B,CurrentData!A55), SUMIFS(CCGData!H:H,CCGData!A:A,Settings!$B$1, CCGData!B:B,CurrentData!A55))) -> 76 | I55: =IF(Settings!$B$2="Asthma", SUMIFS(CCGData!K:K,CCGData!A:A,Settings!$B$1, CCGData!B:B,CurrentData!A55), IF(Settings!$B$2="Diabetes", SUMIFS(CCGData!G:G,CCGData!A:A,Settings!$B$1, CCGData!B:B,CurrentData!A55), SUMIFS(CCGData!I:I,CCGData!A:A,Settings!$B$1, CCGData!B:B,CurrentData!A55))) -> 39 | J55: 1.948717949 | K55: 1.535368099 | L55: 2.439111102 | M55: 53.73517563 | N55: 37.83452262 | O55: 74.06686129 | P55: 110.3749553 | Q55: 86.96291093 | R55: 138.1507155 | S55: 42.03338097 | T55: 78.70169344 | U55: 1.444444444 | V55: =VLOOKUP(Selections_data_CCG!$G$2,CurrentData!A:R,13,FALSE) -> 77.70951213 | W55: =IF(Settings!$B$5="4SIMILAR", VLOOKUP(Selections_data_CCG!$G$2,'CurrentData-4SIMILAR'!A:R,13,FALSE), VLOOKUP(Settings!$C$5,CurrentData!A:R,13,FALSE)) -> 26.11663851 | X55: =VLOOKUP(Selections_data_CCG!$G$2,CurrentData!A:R,16,FALSE) -> 672.6729644 | Y55: =IF(Settings!$B$5="4SIMILAR", VLOOKUP(Selections_data_CCG!$G$2,'CurrentData-4SIMILAR'!A:R,16,FALSE), VLOOKUP(Settings!$C$5,CurrentData!A:R,16,FALSE)) -> 36.90068939 | Z55: =VLOOKUP(Selections_data_CCG!$G$2,CurrentData!A:R,10,FALSE) -> 8.147058824 | AA55: =IF(Settings!$B$5="4SIMILAR", VLOOKUP(Selections_data_CCG!$G$2,'CurrentData-4SIMILAR'!A:R,10,FALSE), VLOOKUP(Settings!$C$5,CurrentData!A:R,10,FALSE)) -> 0.8745874587 | AB55: =IF(IF(G55=0,"",COUNTIF(G$12:G$222,"<>0")-(RANK(M55,$M$12:$M$222)+COUNTIF($M$12:M55,M55)-2))<=INT(0.05*COUNTIF(G$12:G$222,"<>0")),"TOP5", IF(IF(G55=0,"",COUNTIF(G$12:G$222,"<>0")-(RANK(M55,$M$12:$M$222)+COUNTIF($M$12:M55,M55)-2))<=INT(0.25*COUNTIF(G$12:G$222,"<>0")),"TOP25", "")) ->  | AC55: =IF(IF(H55=0,"",COUNTIF(H$12:H$222,"<>0")-(RANK(P55,$P$12:$P$222)+COUNTIF($P$12:P55,P55)-2))<=INT(0.05*COUNTIF(H$12:H$222,"<>0")),"TOP5", IF(IF(H55=0,"",COUNTIF(H$12:H$222,"<>0")-(RANK(P55,$P$12:$P$222)+COUNTIF($P$12:P55,P55)-2))<=INT(0.25*COUNTIF(H$12:H$222,"<>0")),"TOP25", "")) ->  | AD55: =IF(IF(J55="Suppressed","",COUNTIF(J$12:J$222,"<>Suppressed")-(RANK(J55,$J$12:$J$222)+COUNTIF(J$12:$J55,J55)-2))<=INT(0.05*COUNTIF(J$12:J$222,"<>Suppressed")),"TOP5", IF(IF(J55="Suppressed","",COUNTIF(J$12:J$222,"<>Suppressed")-(RANK(J55,$J$12:$J$222)+COUNTIF(J$12:$J55,J55)-2))<=INT(0.25*COUNTIF(J$12:J$222,"<>suppressed")),"TOP25", "")) -> 
A56: 11J | B56: NHS Dorset | C56: =IF(G56=0,"",COUNTIF(G$12:G$222,"<>0")-(RANK(M56,$M$12:$M$222)+COUNTIF($M$12:M56,M56)-2)) -> 51 | D56: =IF(H56=0,"",COUNTIF(P$12:P$222,"<>Suppressed")-(RANK(P56,$P$12:$P$222)+COUNTIF($P$12:P56,P56)-2)) -> 20 | E56: =IF(J56="Suppressed","",COUNTIF(J$12:J$222,"<>Suppressed")-(RANK(J56,$J$12:$J$222)+COUNTIF($J$12:J56,J56)-2)) -> 34 | F56: =VLOOKUP(A56,population!C:O,Settings!$B$3,FALSE) -> 148319.6 | G56: =IF(ISNA(IF(Settings!$B$2="Asthma", SUMIFS(CCGData!E:E,CCGData!A:A,Settings!$B$1, CCGData!B:B,CurrentData!A56), IF(Settings!$B$2="Diabetes", SUMIFS(CCGData!C:C,CCGData!A:A,Settings!$B$1, CCGData!B:B,CurrentData!A56), SUMIFS(CCGData!D:D,CCGData!A:A,Settings!$B$1, CCGData!B:B,CurrentData!A56)))),"",IF(Settings!$B$2="Asthma", SUMIFS(CCGData!E:E,CCGData!A:A,Settings!$B$1, CCGData!B:B,CurrentData!A56), IF(Settings!$B$2="Diabetes", SUMIFS(CCGData!C:C,CCGData!A:A,Settings!$B$1, CCGData!B:B,CurrentData!A56), SUMIFS(CCGData!D:D,CCGData!A:A,Settings!$B$1, CCGData!B:B,CurrentData!A56)))) -> 64 | H56: =IF(Settings!$B$2="Asthma", SUMIFS(CCGData!J:J,CCGData!A:A,Settings!$B$1, CCGData!B:B,CurrentData!A56), IF(Settings!$B$2="Diabetes", SUMIFS(CCGData!F:F,CCGData!A:A,Settings!$B$1, CCGData!B:B,CurrentData!A56), SUMIFS(CCGData!H:H,CCGData!A:A,Settings!$B$1, CCGData!B:B,CurrentData!A56))) -> 88 | I56: =IF(Settings!$B$2="Asthma", SUMIFS(CCGData!K:K,CCGData!A:A,Settings!$B$1, CCGData!B:B,CurrentData!A56), IF(Settings!$B$2="Diabetes", SUMIFS(CCGData!G:G,CCGData!A:A,Settings!$B$1, CCGData!B:B,CurrentData!A56), SUMIFS(CCGData!I:I,CCGData!A:A,Settings!$B$1, CCGData!B:B,CurrentData!A56))) -> 65 | J56: 1.353846154 | K56: 1.085824204 | L56: 1.667976327 | M56: 43.15006243 | N56: 33.23080601 | O56: 55.10166641 | P56: 59.33133585 | Q56: 47.5854663 | R56: 73.09786518 | S56: 42.33485174 | T56: 78.86808524 | U56: 1.454545455 | V56: =VLOOKUP(Selections_data_CCG!$G$2,CurrentData!A:R,13,FALSE) -> 77.70951213 | W56: =IF(Settings!$B$5="4SIMILAR", VLOOKUP(Selections_data_CCG!$G$2,'CurrentData-4SIMILAR'!A:R,13,FALSE), VLOOKUP(Settings!$C$5,CurrentData!A:R,13,FALSE)) -> 26.11663851 | X56: =VLOOKUP(Selections_data_CCG!$G$2,CurrentData!A:R,16,FALSE) -> 672.6729644 | Y56: =IF(Settings!$B$5="4SIMILAR", VLOOKUP(Selections_data_CCG!$G$2,'CurrentData-4SIMILAR'!A:R,16,FALSE), VLOOKUP(Settings!$C$5,CurrentData!A:R,16,FALSE)) -> 36.90068939 | Z56: =VLOOKUP(Selections_data_CCG!$G$2,CurrentData!A:R,10,FALSE) -> 8.147058824 | AA56: =IF(Settings!$B$5="4SIMILAR", VLOOKUP(Selections_data_CCG!$G$2,'CurrentData-4SIMILAR'!A:R,10,FALSE), VLOOKUP(Settings!$C$5,CurrentData!A:R,10,FALSE)) -> 0.8745874587 | AB56: =IF(IF(G56=0,"",COUNTIF(G$12:G$222,"<>0")-(RANK(M56,$M$12:$M$222)+COUNTIF($M$12:M56,M56)-2))<=INT(0.05*COUNTIF(G$12:G$222,"<>0")),"TOP5", IF(IF(G56=0,"",COUNTIF(G$12:G$222,"<>0")-(RANK(M56,$M$12:$M$222)+COUNTIF($M$12:M56,M56)-2))<=INT(0.25*COUNTIF(G$12:G$222,"<>0")),"TOP25", "")) -> TOP25 | AC56: =IF(IF(H56=0,"",COUNTIF(H$12:H$222,"<>0")-(RANK(P56,$P$12:$P$222)+COUNTIF($P$12:P56,P56)-2))<=INT(0.05*COUNTIF(H$12:H$222,"<>0")),"TOP5", IF(IF(H56=0,"",COUNTIF(H$12:H$222,"<>0")-(RANK(P56,$P$12:$P$222)+COUNTIF($P$12:P56,P56)-2))<=INT(0.25*COUNTIF(H$12:H$222,"<>0")),"TOP25", "")) -> TOP25 | AD56: =IF(IF(J56="Suppressed","",COUNTIF(J$12:J$222,"<>Suppressed")-(RANK(J56,$J$12:$J$222)+COUNTIF(J$12:$J56,J56)-2))<=INT(0.05*COUNTIF(J$12:J$222,"<>Suppressed")),"TOP5", IF(IF(J56="Suppressed","",COUNTIF(J$12:J$222,"<>Suppressed")-(RANK(J56,$J$12:$J$222)+COUNTIF(J$12:$J56,J56)-2))<=INT(0.25*COUNTIF(J$12:J$222,"<>suppressed")),"TOP25", "")) -> TOP25
A57: 05C | B57: NHS Dudley | C57: =IF(G57=0,"",COUNTIF(G$12:G$222,"<>0")-(RANK(M57,$M$12:$M$222)+COUNTIF($M$12:M57,M57)-2)) -> 69 | D57: =IF(H57=0,"",COUNTIF(P$12:P$222,"<>Suppressed")-(RANK(P57,$P$12:$P$222)+COUNTIF($P$12:P57,P57)-2)) -> 146 | E57: =IF(J57="Suppressed","",COUNTIF(J$12:J$222,"<>Suppressed")-(RANK(J57,$J$12:$J$222)+COUNTIF($J$12:J57,J57)-2)) -> 178 | F57: =VLOOKUP(A57,population!C:O,Settings!$B$3,FALSE) -> 67789 | G57: =IF(ISNA(IF(Settings!$B$2="Asthma", SUMIFS(CCGData!E:E,CCGData!A:A,Settings!$B$1, CCGData!B:B,CurrentData!A57), IF(Settings!$B$2="Diabetes", SUMIFS(CCGData!C:C,CCGData!A:A,Settings!$B$1, CCGData!B:B,CurrentData!A57), SUMIFS(CCGData!D:D,CCGData!A:A,Settings!$B$1, CCGData!B:B,CurrentData!A57)))),"",IF(Settings!$B$2="Asthma", SUMIFS(CCGData!E:E,CCGData!A:A,Settings!$B$1, CCGData!B:B,CurrentData!A57), IF(Settings!$B$2="Diabetes", SUMIFS(CCGData!C:C,CCGData!A:A,Settings!$B$1, CCGData!B:B,CurrentData!A57), SUMIFS(CCGData!D:D,CCGData!A:A,Settings!$B$1, CCGData!B:B,CurrentData!A57)))) -> 32 | H57: =IF(Settings!$B$2="Asthma", SUMIFS(CCGData!J:J,CCGData!A:A,Settings!$B$1, CCGData!B:B,CurrentData!A57), IF(Settings!$B$2="Diabetes", SUMIFS(CCGData!F:F,CCGData!A:A,Settings!$B$1, CCGData!B:B,CurrentData!A57), SUMIFS(CCGData!H:H,CCGData!A:A,Settings!$B$1, CCGData!B:B,CurrentData!A57))) -> 97 | I57: =IF(Settings!$B$2="Asthma", SUMIFS(CCGData!K:K,CCGData!A:A,Settings!$B$1, CCGData!B:B,CurrentData!A57), IF(Settings!$B$2="Diabetes", SUMIFS(CCGData!G:G,CCGData!A:A,Settings!$B$1, CCGData!B:B,CurrentData!A57), SUMIFS(CCGData!I:I,CCGData!A:A,Settings!$B$1, CCGData!B:B,CurrentData!A57))) -> 33 | J57: 2.939393939 | K57: 2.383650472 | L57: 3.585811331 | M57: 47.20529879 | N57: 32.28838943 | O57: 66.63979713 | P57: 143.091062 | Q57: 116.0372119 | R57: 174.5589608 | S57: 42.35680637 | T57: 79.18881191 | U57: 1.454545455 | V57: =VLOOKUP(Selections_data_CCG!$G$2,CurrentData!A:R,13,FALSE) -> 77.70951213 | W57: =IF(Settings!$B$5="4SIMILAR", VLOOKUP(Selections_data_CCG!$G$2,'CurrentData-4SIMILAR'!A:R,13,FALSE), VLOOKUP(Settings!$C$5,CurrentData!A:R,13,FALSE)) -> 26.11663851 | X57: =VLOOKUP(Selections_data_CCG!$G$2,CurrentData!A:R,16,FALSE) -> 672.6729644 | Y57: =IF(Settings!$B$5="4SIMILAR", VLOOKUP(Selections_data_CCG!$G$2,'CurrentData-4SIMILAR'!A:R,16,FALSE), VLOOKUP(Settings!$C$5,CurrentData!A:R,16,FALSE)) -> 36.90068939 | Z57: =VLOOKUP(Selections_data_CCG!$G$2,CurrentData!A:R,10,FALSE) -> 8.147058824 | AA57: =IF(Settings!$B$5="4SIMILAR", VLOOKUP(Selections_data_CCG!$G$2,'CurrentData-4SIMILAR'!A:R,10,FALSE), VLOOKUP(Settings!$C$5,CurrentData!A:R,10,FALSE)) -> 0.8745874587 | AB57: =IF(IF(G57=0,"",COUNTIF(G$12:G$222,"<>0")-(RANK(M57,$M$12:$M$222)+COUNTIF($M$12:M57,M57)-2))<=INT(0.05*COUNTIF(G$12:G$222,"<>0")),"TOP5", IF(IF(G57=0,"",COUNTIF(G$12:G$222,"<>0")-(RANK(M57,$M$12:$M$222)+COUNTIF($M$12:M57,M57)-2))<=INT(0.25*COUNTIF(G$12:G$222,"<>0")),"TOP25", "")) ->  | AC57: =IF(IF(H57=0,"",COUNTIF(H$12:H$222,"<>0")-(RANK(P57,$P$12:$P$222)+COUNTIF($P$12:P57,P57)-2))<=INT(0.05*COUNTIF(H$12:H$222,"<>0")),"TOP5", IF(IF(H57=0,"",COUNTIF(H$12:H$222,"<>0")-(RANK(P57,$P$12:$P$222)+COUNTIF($P$12:P57,P57)-2))<=INT(0.25*COUNTIF(H$12:H$222,"<>0")),"TOP25", "")) ->  | AD57: =IF(IF(J57="Suppressed","",COUNTIF(J$12:J$222,"<>Suppressed")-(RANK(J57,$J$12:$J$222)+COUNTIF(J$12:$J57,J57)-2))<=INT(0.05*COUNTIF(J$12:J$222,"<>Suppressed")),"TOP5", IF(IF(J57="Suppressed","",COUNTIF(J$12:J$222,"<>Suppressed")-(RANK(J57,$J$12:$J$222)+COUNTIF(J$12:$J57,J57)-2))<=INT(0.25*COUNTIF(J$12:J$222,"<>suppressed")),"TOP25", "")) -> 
A58: 00D | B58: NHS Durham Dales, Easington and Sedgefield | C58: =IF(G58=0,"",COUNTIF(G$12:G$222,"<>0")-(RANK(M58,$M$12:$M$222)+COUNTIF($M$12:M58,M58)-2)) -> 122 | D58: =IF(H58=0,"",COUNTIF(P$12:P$222,"<>Suppressed")-(RANK(P58,$P$12:$P$222)+COUNTIF($P$12:P58,P58)-2)) -> 136 | E58: =IF(J58="Suppressed","",COUNTIF(J$12:J$222,"<>Suppressed")-(RANK(J58,$J$12:$J$222)+COUNTIF($J$12:J58,J58)-2)) -> 135 | F58: =VLOOKUP(A58,population!C:O,Settings!$B$3,FALSE) -> 60686.4 | G58: =IF(ISNA(IF(Settings!$B$2="Asthma", SUMIFS(CCGData!E:E,CCGData!A:A,Settings!$B$1, CCGData!B:B,CurrentData!A58), IF(Settings!$B$2="Diabetes", SUMIFS(CCGData!C:C,CCGData!A:A,Settings!$B$1, CCGData!B:B,CurrentData!A58), SUMIFS(CCGData!D:D,CCGData!A:A,Settings!$B$1, CCGData!B:B,CurrentData!A58)))),"",IF(Settings!$B$2="Asthma", SUMIFS(CCGData!E:E,CCGData!A:A,Settings!$B$1, CCGData!B:B,CurrentData!A58), IF(Settings!$B$2="Diabetes", SUMIFS(CCGData!C:C,CCGData!A:A,Settings!$B$1, CCGData!B:B,CurrentData!A58), SUMIFS(CCGData!D:D,CCGData!A:A,Settings!$B$1, CCGData!B:B,CurrentData!A58)))) -> 36 | H58: =IF(Settings!$B$2="Asthma", SUMIFS(CCGData!J:J,CCGData!A:A,Settings!$B$1, CCGData!B:B,CurrentData!A58), IF(Settings!$B$2="Diabetes", SUMIFS(CCGData!F:F,CCGData!A:A,Settings!$B$1, CCGData!B:B,CurrentData!A58), SUMIFS(CCGData!H:H,CCGData!A:A,Settings!$B$1, CCGData!B:B,CurrentData!A58))) -> 83 | I58: =IF(Settings!$B$2="Asthma", SUMIFS(CCGData!K:K,CCGData!A:A,Settings!$B$1, CCGData!B:B,CurrentData!A58), IF(Settings!$B$2="Diabetes", SUMIFS(CCGData!G:G,CCGData!A:A,Settings!$B$1, CCGData!B:B,CurrentData!A58), SUMIFS(CCGData!I:I,CCGData!A:A,Settings!$B$1, CCGData!B:B,CurrentData!A58))) -> 36 | J58: 2.305555556 | K58: 1.83636213 | L58: 2.858082994 | M58: 59.3213636 | N58: 41.54795377 | O58: 82.12577198 | P58: 136.7686994 | Q58: 108.9355056 | R58: 169.5453805 | S58: 42.42736761 | T58: 79.45410357 | U58: 1.484848485 | V58: =VLOOKUP(Selections_data_CCG!$G$2,CurrentData!A:R,13,FALSE) -> 77.70951213 | W58: =IF(Settings!$B$5="4SIMILAR", VLOOKUP(Selections_data_CCG!$G$2,'CurrentData-4SIMILAR'!A:R,13,FALSE), VLOOKUP(Settings!$C$5,CurrentData!A:R,13,FALSE)) -> 26.11663851 | X58: =VLOOKUP(Selections_data_CCG!$G$2,CurrentData!A:R,16,FALSE) -> 672.6729644 | Y58: =IF(Settings!$B$5="4SIMILAR", VLOOKUP(Selections_data_CCG!$G$2,'CurrentData-4SIMILAR'!A:R,16,FALSE), VLOOKUP(Settings!$C$5,CurrentData!A:R,16,FALSE)) -> 36.90068939 | Z58: =VLOOKUP(Selections_data_CCG!$G$2,CurrentData!A:R,10,FALSE) -> 8.147058824 | AA58: =IF(Settings!$B$5="4SIMILAR", VLOOKUP(Selections_data_CCG!$G$2,'CurrentData-4SIMILAR'!A:R,10,FALSE), VLOOKUP(Settings!$C$5,CurrentData!A:R,10,FALSE)) -> 0.8745874587 | AB58: =IF(IF(G58=0,"",COUNTIF(G$12:G$222,"<>0")-(RANK(M58,$M$12:$M$222)+COUNTIF($M$12:M58,M58)-2))<=INT(0.05*COUNTIF(G$12:G$222,"<>0")),"TOP5", IF(IF(G58=0,"",COUNTIF(G$12:G$222,"<>0")-(RANK(M58,$M$12:$M$222)+COUNTIF($M$12:M58,M58)-2))<=INT(0.25*COUNTIF(G$12:G$222,"<>0")),"TOP25", "")) ->  | AC58: =IF(IF(H58=0,"",COUNTIF(H$12:H$222,"<>0")-(RANK(P58,$P$12:$P$222)+COUNTIF($P$12:P58,P58)-2))<=INT(0.05*COUNTIF(H$12:H$222,"<>0")),"TOP5", IF(IF(H58=0,"",COUNTIF(H$12:H$222,"<>0")-(RANK(P58,$P$12:$P$222)+COUNTIF($P$12:P58,P58)-2))<=INT(0.25*COUNTIF(H$12:H$222,"<>0")),"TOP25", "")) ->  | AD58: =IF(IF(J58="Suppressed","",COUNTIF(J$12:J$222,"<>Suppressed")-(RANK(J58,$J$12:$J$222)+COUNTIF(J$12:$J58,J58)-2))<=INT(0.05*COUNTIF(J$12:J$222,"<>Suppressed")),"TOP5", IF(IF(J58="Suppressed","",COUNTIF(J$12:J$222,"<>Suppressed")-(RANK(J58,$J$12:$J$222)+COUNTIF(J$12:$J58,J58)-2))<=INT(0.25*COUNTIF(J$12:J$222,"<>suppressed")),"TOP25", "")) -> 
A59: 07W | B59: NHS Ealing | C59: =IF(G59=0,"",COUNTIF(G$12:G$222,"<>0")-(RANK(M59,$M$12:$M$222)+COUNTIF($M$12:M59,M59)-2)) -> 57 | D59: =IF(H59=0,"",COUNTIF(P$12:P$222,"<>Suppressed")-(RANK(P59,$P$12:$P$222)+COUNTIF($P$12:P59,P59)-2)) -> 153 | E59: =IF(J59="Suppressed","",COUNTIF(J$12:J$222,"<>Suppressed")-(RANK(J59,$J$12:$J$222)+COUNTIF($J$12:J59,J59)-2)) -> 188 | F59: =VLOOKUP(A59,population!C:O,Settings!$B$3,FALSE) -> 93817 | G59: =IF(ISNA(IF(Settings!$B$2="Asthma", SUMIFS(CCGData!E:E,CCGData!A:A,Settings!$B$1, CCGData!B:B,CurrentData!A59), IF(Settings!$B$2="Diabetes", SUMIFS(CCGData!C:C,CCGData!A:A,Settings!$B$1, CCGData!B:B,CurrentData!A59), SUMIFS(CCGData!D:D,CCGData!A:A,Settings!$B$1, CCGData!B:B,CurrentData!A59)))),"",IF(Settings!$B$2="Asthma", SUMIFS(CCGData!E:E,CCGData!A:A,Settings!$B$1, CCGData!B:B,CurrentData!A59), IF(Settings!$B$2="Diabetes", SUMIFS(CCGData!C:C,CCGData!A:A,Settings!$B$1, CCGData!B:B,CurrentData!A59), SUMIFS(CCGData!D:D,CCGData!A:A,Settings!$B$1, CCGData!B:B,CurrentData!A59)))) -> 42 | H59: =IF(Settings!$B$2="Asthma", SUMIFS(CCGData!J:J,CCGData!A:A,Settings!$B$1, CCGData!B:B,CurrentData!A59), IF(Settings!$B$2="Diabetes", SUMIFS(CCGData!F:F,CCGData!A:A,Settings!$B$1, CCGData!B:B,CurrentData!A59), SUMIFS(CCGData!H:H,CCGData!A:A,Settings!$B$1, CCGData!B:B,CurrentData!A59))) -> 142 | I59: =IF(Settings!$B$2="Asthma", SUMIFS(CCGData!K:K,CCGData!A:A,Settings!$B$1, CCGData!B:B,CurrentData!A59), IF(Settings!$B$2="Diabetes", SUMIFS(CCGData!G:G,CCGData!A:A,Settings!$B$1, CCGData!B:B,CurrentData!A59), SUMIFS(CCGData!I:I,CCGData!A:A,Settings!$B$1, CCGData!B:B,CurrentData!A59))) -> 45 | J59: 3.155555556 | K59: 2.657898135 | L59: 3.719335021 | M59: 44.7680058 | N59: 32.26484084 | O59: 60.5133385 | P59: 151.3584958 | Q59: 127.487999 | R59: 178.400584 | S59: 42.45383146 | T59: 79.62239874 | U59: 1.491071429 | V59: =VLOOKUP(Selections_data_CCG!$G$2,CurrentData!A:R,13,FALSE) -> 77.70951213 | W59: =IF(Settings!$B$5="4SIMILAR", VLOOKUP(Selections_data_CCG!$G$2,'CurrentData-4SIMILAR'!A:R,13,FALSE), VLOOKUP(Settings!$C$5,CurrentData!A:R,13,FALSE)) -> 26.11663851 | X59: =VLOOKUP(Selections_data_CCG!$G$2,CurrentData!A:R,16,FALSE) -> 672.6729644 | Y59: =IF(Settings!$B$5="4SIMILAR", VLOOKUP(Selections_data_CCG!$G$2,'CurrentData-4SIMILAR'!A:R,16,FALSE), VLOOKUP(Settings!$C$5,CurrentData!A:R,16,FALSE)) -> 36.90068939 | Z59: =VLOOKUP(Selections_data_CCG!$G$2,CurrentData!A:R,10,FALSE) -> 8.147058824 | AA59: =IF(Settings!$B$5="4SIMILAR", VLOOKUP(Selections_data_CCG!$G$2,'CurrentData-4SIMILAR'!A:R,10,FALSE), VLOOKUP(Settings!$C$5,CurrentData!A:R,10,FALSE)) -> 0.8745874587 | AB59: =IF(IF(G59=0,"",COUNTIF(G$12:G$222,"<>0")-(RANK(M59,$M$12:$M$222)+COUNTIF($M$12:M59,M59)-2))<=INT(0.05*COUNTIF(G$12:G$222,"<>0")),"TOP5", IF(IF(G59=0,"",COUNTIF(G$12:G$222,"<>0")-(RANK(M59,$M$12:$M$222)+COUNTIF($M$12:M59,M59)-2))<=INT(0.25*COUNTIF(G$12:G$222,"<>0")),"TOP25", "")) ->  | AC59: =IF(IF(H59=0,"",COUNTIF(H$12:H$222,"<>0")-(RANK(P59,$P$12:$P$222)+COUNTIF($P$12:P59,P59)-2))<=INT(0.05*COUNTIF(H$12:H$222,"<>0")),"TOP5", IF(IF(H59=0,"",COUNTIF(H$12:H$222,"<>0")-(RANK(P59,$P$12:$P$222)+COUNTIF($P$12:P59,P59)-2))<=INT(0.25*COUNTIF(H$12:H$222,"<>0")),"TOP25", "")) ->  | AD59: =IF(IF(J59="Suppressed","",COUNTIF(J$12:J$222,"<>Suppressed")-(RANK(J59,$J$12:$J$222)+COUNTIF(J$12:$J59,J59)-2))<=INT(0.05*COUNTIF(J$12:J$222,"<>Suppressed")),"TOP5", IF(IF(J59="Suppressed","",COUNTIF(J$12:J$222,"<>Suppressed")-(RANK(J59,$J$12:$J$222)+COUNTIF(J$12:$J59,J59)-2))<=INT(0.25*COUNTIF(J$12:J$222,"<>suppressed")),"TOP25", "")) -> 
A60: 06K | B60: NHS East and North Hertfordshire | C60: =IF(G60=0,"",COUNTIF(G$12:G$222,"<>0")-(RANK(M60,$M$12:$M$222)+COUNTIF($M$12:M60,M60)-2)) -> 95 | D60: =IF(H60=0,"",COUNTIF(P$12:P$222,"<>Suppressed")-(RANK(P60,$P$12:$P$222)+COUNTIF($P$12:P60,P60)-2)) -> 30 | E60: =IF(J60="Suppressed","",COUNTIF(J$12:J$222,"<>Suppressed")-(RANK(J60,$J$12:$J$222)+COUNTIF($J$12:J60,J60)-2)) -> 31 | F60: =VLOOKUP(A60,population!C:O,Settings!$B$3,FALSE) -> 130077.2 | G60: =IF(ISNA(IF(Settings!$B$2="Asthma", SUMIFS(CCGData!E:E,CCGData!A:A,Settings!$B$1, CCGData!B:B,CurrentData!A60), IF(Settings!$B$2="Diabetes", SUMIFS(CCGData!C:C,CCGData!A:A,Settings!$B$1, CCGData!B:B,CurrentData!A60), SUMIFS(CCGData!D:D,CCGData!A:A,Settings!$B$1, CCGData!B:B,CurrentData!A60)))),"",IF(Settings!$B$2="Asthma", SUMIFS(CCGData!E:E,CCGData!A:A,Settings!$B$1, CCGData!B:B,CurrentData!A60), IF(Settings!$B$2="Diabetes", SUMIFS(CCGData!C:C,CCGData!A:A,Settings!$B$1, CCGData!B:B,CurrentData!A60), SUMIFS(CCGData!D:D,CCGData!A:A,Settings!$B$1, CCGData!B:B,CurrentData!A60)))) -> 68 | H60: =IF(Settings!$B$2="Asthma", SUMIFS(CCGData!J:J,CCGData!A:A,Settings!$B$1, CCGData!B:B,CurrentData!A60), IF(Settings!$B$2="Diabetes", SUMIFS(CCGData!F:F,CCGData!A:A,Settings!$B$1, CCGData!B:B,CurrentData!A60), SUMIFS(CCGData!H:H,CCGData!A:A,Settings!$B$1, CCGData!B:B,CurrentData!A60))) -> 92 | I60: =IF(Settings!$B$2="Asthma", SUMIFS(CCGData!K:K,CCGData!A:A,Settings!$B$1, CCGData!B:B,CurrentData!A60), IF(Settings!$B$2="Diabetes", SUMIFS(CCGData!G:G,CCGData!A:A,Settings!$B$1, CCGData!B:B,CurrentData!A60), SUMIFS(CCGData!I:I,CCGData!A:A,Settings!$B$1, CCGData!B:B,CurrentData!A60))) -> 70 | J60: 1.314285714 | K60: 1.059499782 | L60: 1.611854757 | M60: 52.27664802 | N60: 40.59486271 | O60: 66.27310794 | P60: 70.72722968 | Q60: 57.01612947 | R60: 86.74066862 | S60: 42.86892003 | T60: 80.73708207 | U60: 1.524590164 | V60: =VLOOKUP(Selections_data_CCG!$G$2,CurrentData!A:R,13,FALSE) -> 77.70951213 | W60: =IF(Settings!$B$5="4SIMILAR", VLOOKUP(Selections_data_CCG!$G$2,'CurrentData-4SIMILAR'!A:R,13,FALSE), VLOOKUP(Settings!$C$5,CurrentData!A:R,13,FALSE)) -> 26.11663851 | X60: =VLOOKUP(Selections_data_CCG!$G$2,CurrentData!A:R,16,FALSE) -> 672.6729644 | Y60: =IF(Settings!$B$5="4SIMILAR", VLOOKUP(Selections_data_CCG!$G$2,'CurrentData-4SIMILAR'!A:R,16,FALSE), VLOOKUP(Settings!$C$5,CurrentData!A:R,16,FALSE)) -> 36.90068939 | Z60: =VLOOKUP(Selections_data_CCG!$G$2,CurrentData!A:R,10,FALSE) -> 8.147058824 | AA60: =IF(Settings!$B$5="4SIMILAR", VLOOKUP(Selections_data_CCG!$G$2,'CurrentData-4SIMILAR'!A:R,10,FALSE), VLOOKUP(Settings!$C$5,CurrentData!A:R,10,FALSE)) -> 0.8745874587 | AB60: =IF(IF(G60=0,"",COUNTIF(G$12:G$222,"<>0")-(RANK(M60,$M$12:$M$222)+COUNTIF($M$12:M60,M60)-2))<=INT(0.05*COUNTIF(G$12:G$222,"<>0")),"TOP5", IF(IF(G60=0,"",COUNTIF(G$12:G$222,"<>0")-(RANK(M60,$M$12:$M$222)+COUNTIF($M$12:M60,M60)-2))<=INT(0.25*COUNTIF(G$12:G$222,"<>0")),"TOP25", "")) ->  | AC60: =IF(IF(H60=0,"",COUNTIF(H$12:H$222,"<>0")-(RANK(P60,$P$12:$P$222)+COUNTIF($P$12:P60,P60)-2))<=INT(0.05*COUNTIF(H$12:H$222,"<>0")),"TOP5", IF(IF(H60=0,"",COUNTIF(H$12:H$222,"<>0")-(RANK(P60,$P$12:$P$222)+COUNTIF($P$12:P60,P60)-2))<=INT(0.25*COUNTIF(H$12:H$222,"<>0")),"TOP25", "")) -> TOP25 | AD60: =IF(IF(J60="Suppressed","",COUNTIF(J$12:J$222,"<>Suppressed")-(RANK(J60,$J$12:$J$222)+COUNTIF(J$12:$J60,J60)-2))<=INT(0.05*COUNTIF(J$12:J$222,"<>Suppressed")),"TOP5", IF(IF(J60="Suppressed","",COUNTIF(J$12:J$222,"<>Suppressed")-(RANK(J60,$J$12:$J$222)+COUNTIF(J$12:$J60,J60)-2))<=INT(0.25*COUNTIF(J$12:J$222,"<>suppressed")),"TOP25", "")) -> TOP25
A61: 01A | B61: NHS East Lancashire | C61: =IF(G61=0,"",COUNTIF(G$12:G$222,"<>0")-(RANK(M61,$M$12:$M$222)+COUNTIF($M$12:M61,M61)-2)) -> 179 | D61: =IF(H61=0,"",COUNTIF(P$12:P$222,"<>Suppressed")-(RANK(P61,$P$12:$P$222)+COUNTIF($P$12:P61,P61)-2)) -> 173 | E61: =IF(J61="Suppressed","",COUNTIF(J$12:J$222,"<>Suppressed")-(RANK(J61,$J$12:$J$222)+COUNTIF($J$12:J61,J61)-2)) -> 129 | F61: =VLOOKUP(A61,population!C:O,Settings!$B$3,FALSE) -> 84566 | G61: =IF(ISNA(IF(Settings!$B$2="Asthma", SUMIFS(CCGData!E:E,CCGData!A:A,Settings!$B$1, CCGData!B:B,CurrentData!A61), IF(Settings!$B$2="Diabetes", SUMIFS(CCGData!C:C,CCGData!A:A,Settings!$B$1, CCGData!B:B,CurrentData!A61), SUMIFS(CCGData!D:D,CCGData!A:A,Settings!$B$1, CCGData!B:B,CurrentData!A61)))),"",IF(Settings!$B$2="Asthma", SUMIFS(CCGData!E:E,CCGData!A:A,Settings!$B$1, CCGData!B:B,CurrentData!A61), IF(Settings!$B$2="Diabetes", SUMIFS(CCGData!C:C,CCGData!A:A,Settings!$B$1, CCGData!B:B,CurrentData!A61), SUMIFS(CCGData!D:D,CCGData!A:A,Settings!$B$1, CCGData!B:B,CurrentData!A61)))) -> 64 | H61: =IF(Settings!$B$2="Asthma", SUMIFS(CCGData!J:J,CCGData!A:A,Settings!$B$1, CCGData!B:B,CurrentData!A61), IF(Settings!$B$2="Diabetes", SUMIFS(CCGData!F:F,CCGData!A:A,Settings!$B$1, CCGData!B:B,CurrentData!A61), SUMIFS(CCGData!H:H,CCGData!A:A,Settings!$B$1, CCGData!B:B,CurrentData!A61))) -> 143 | I61: =IF(Settings!$B$2="Asthma", SUMIFS(CCGData!K:K,CCGData!A:A,Settings!$B$1, CCGData!B:B,CurrentData!A61), IF(Settings!$B$2="Diabetes", SUMIFS(CCGData!G:G,CCGData!A:A,Settings!$B$1, CCGData!B:B,CurrentData!A61), SUMIFS(CCGData!I:I,CCGData!A:A,Settings!$B$1, CCGData!B:B,CurrentData!A61))) -> 64 | J61: 2.234375 | K61: 1.883176174 | L61: 2.632061508 | M61: 75.68053355 | N61: 58.28323268 | O61: 96.64235178 | P61: 169.0986921 | Q61: 142.5197776 | R61: 199.1958192 | S61: 42.8848919 | T61: 80.99329035 | U61: 1.526315789 | V61: =VLOOKUP(Selections_data_CCG!$G$2,CurrentData!A:R,13,FALSE) -> 77.70951213 | W61: =IF(Settings!$B$5="4SIMILAR", VLOOKUP(Selections_data_CCG!$G$2,'CurrentData-4SIMILAR'!A:R,13,FALSE), VLOOKUP(Settings!$C$5,CurrentData!A:R,13,FALSE)) -> 26.11663851 | X61: =VLOOKUP(Selections_data_CCG!$G$2,CurrentData!A:R,16,FALSE) -> 672.6729644 | Y61: =IF(Settings!$B$5="4SIMILAR", VLOOKUP(Selections_data_CCG!$G$2,'CurrentData-4SIMILAR'!A:R,16,FALSE), VLOOKUP(Settings!$C$5,CurrentData!A:R,16,FALSE)) -> 36.90068939 | Z61: =VLOOKUP(Selections_data_CCG!$G$2,CurrentData!A:R,10,FALSE) -> 8.147058824 | AA61: =IF(Settings!$B$5="4SIMILAR", VLOOKUP(Selections_data_CCG!$G$2,'CurrentData-4SIMILAR'!A:R,10,FALSE), VLOOKUP(Settings!$C$5,CurrentData!A:R,10,FALSE)) -> 0.8745874587 | AB61: =IF(IF(G61=0,"",COUNTIF(G$12:G$222,"<>0")-(RANK(M61,$M$12:$M$222)+COUNTIF($M$12:M61,M61)-2))<=INT(0.05*COUNTIF(G$12:G$222,"<>0")),"TOP5", IF(IF(G61=0,"",COUNTIF(G$12:G$222,"<>0")-(RANK(M61,$M$12:$M$222)+COUNTIF($M$12:M61,M61)-2))<=INT(0.25*COUNTIF(G$12:G$222,"<>0")),"TOP25", "")) ->  | AC61: =IF(IF(H61=0,"",COUNTIF(H$12:H$222,"<>0")-(RANK(P61,$P$12:$P$222)+COUNTIF($P$12:P61,P61)-2))<=INT(0.05*COUNTIF(H$12:H$222,"<>0")),"TOP5", IF(IF(H61=0,"",COUNTIF(H$12:H$222,"<>0")-(RANK(P61,$P$12:$P$222)+COUNTIF($P$12:P61,P61)-2))<=INT(0.25*COUNTIF(H$12:H$222,"<>0")),"TOP25", "")) ->  | AD61: =IF(IF(J61="Suppressed","",COUNTIF(J$12:J$222,"<>Suppressed")-(RANK(J61,$J$12:$J$222)+COUNTIF(J$12:$J61,J61)-2))<=INT(0.05*COUNTIF(J$12:J$222,"<>Suppressed")),"TOP5", IF(IF(J61="Suppressed","",COUNTIF(J$12:J$222,"<>Suppressed")-(RANK(J61,$J$12:$J$222)+COUNTIF(J$12:$J61,J61)-2))<=INT(0.25*COUNTIF(J$12:J$222,"<>suppressed")),"TOP25", "")) -> 
A62: 03W | B62: NHS East Leicestershire and Rutland | C62: =IF(G62=0,"",COUNTIF(G$12:G$222,"<>0")-(RANK(M62,$M$12:$M$222)+COUNTIF($M$12:M62,M62)-2)) -> 10 | D62: =IF(H62=0,"",COUNTIF(P$12:P$222,"<>Suppressed")-(RANK(P62,$P$12:$P$222)+COUNTIF($P$12:P62,P62)-2)) -> 80 | E62: =IF(J62="Suppressed","",COUNTIF(J$12:J$222,"<>Suppressed")-(RANK(J62,$J$12:$J$222)+COUNTIF($J$12:J62,J62)-2)) -> 153 | F62: =VLOOKUP(A62,population!C:O,Settings!$B$3,FALSE) -> 67281.4 | G62: =IF(ISNA(IF(Settings!$B$2="Asthma", SUMIFS(CCGData!E:E,CCGData!A:A,Settings!$B$1, CCGData!B:B,CurrentData!A62), IF(Settings!$B$2="Diabetes", SUMIFS(CCGData!C:C,CCGData!A:A,Settings!$B$1, CCGData!B:B,CurrentData!A62), SUMIFS(CCGData!D:D,CCGData!A:A,Settings!$B$1, CCGData!B:B,CurrentData!A62)))),"",IF(Settings!$B$2="Asthma", SUMIFS(CCGData!E:E,CCGData!A:A,Settings!$B$1, CCGData!B:B,CurrentData!A62), IF(Settings!$B$2="Diabetes", SUMIFS(CCGData!C:C,CCGData!A:A,Settings!$B$1, CCGData!B:B,CurrentData!A62), SUMIFS(CCGData!D:D,CCGData!A:A,Settings!$B$1, CCGData!B:B,CurrentData!A62)))) -> 20 | H62: =IF(Settings!$B$2="Asthma", SUMIFS(CCGData!J:J,CCGData!A:A,Settings!$B$1, CCGData!B:B,CurrentData!A62), IF(Settings!$B$2="Diabetes", SUMIFS(CCGData!F:F,CCGData!A:A,Settings!$B$1, CCGData!B:B,CurrentData!A62), SUMIFS(CCGData!H:H,CCGData!A:A,Settings!$B$1, CCGData!B:B,CurrentData!A62))) -> 67 | I62: =IF(Settings!$B$2="Asthma", SUMIFS(CCGData!K:K,CCGData!A:A,Settings!$B$1, CCGData!B:B,CurrentData!A62), IF(Settings!$B$2="Diabetes", SUMIFS(CCGData!G:G,CCGData!A:A,Settings!$B$1, CCGData!B:B,CurrentData!A62), SUMIFS(CCGData!I:I,CCGData!A:A,Settings!$B$1, CCGData!B:B,CurrentData!A62))) -> 27 | J62: 2.481481481 | K62: 1.923114064 | L62: 3.151393764 | M62: 29.7258975 | N62: 18.15735045 | O62: 45.90923777 | P62: 99.58175662 | Q62: 77.17449358 | R62: 126.4653108 | S62: 43.15006243 | T62: 81.18365773 | U62: 1.538461538 | V62: =VLOOKUP(Selections_data_CCG!$G$2,CurrentData!A:R,13,FALSE) -> 77.70951213 | W62: =IF(Settings!$B$5="4SIMILAR", VLOOKUP(Selections_data_CCG!$G$2,'CurrentData-4SIMILAR'!A:R,13,FALSE), VLOOKUP(Settings!$C$5,CurrentData!A:R,13,FALSE)) -> 26.11663851 | X62: =VLOOKUP(Selections_data_CCG!$G$2,CurrentData!A:R,16,FALSE) -> 672.6729644 | Y62: =IF(Settings!$B$5="4SIMILAR", VLOOKUP(Selections_data_CCG!$G$2,'CurrentData-4SIMILAR'!A:R,16,FALSE), VLOOKUP(Settings!$C$5,CurrentData!A:R,16,FALSE)) -> 36.90068939 | Z62: =VLOOKUP(Selections_data_CCG!$G$2,CurrentData!A:R,10,FALSE) -> 8.147058824 | AA62: =IF(Settings!$B$5="4SIMILAR", VLOOKUP(Selections_data_CCG!$G$2,'CurrentData-4SIMILAR'!A:R,10,FALSE), VLOOKUP(Settings!$C$5,CurrentData!A:R,10,FALSE)) -> 0.8745874587 | AB62: =IF(IF(G62=0,"",COUNTIF(G$12:G$222,"<>0")-(RANK(M62,$M$12:$M$222)+COUNTIF($M$12:M62,M62)-2))<=INT(0.05*COUNTIF(G$12:G$222,"<>0")),"TOP5", IF(IF(G62=0,"",COUNTIF(G$12:G$222,"<>0")-(RANK(M62,$M$12:$M$222)+COUNTIF($M$12:M62,M62)-2))<=INT(0.25*COUNTIF(G$12:G$222,"<>0")),"TOP25", "")) -> TOP5 | AC62: =IF(IF(H62=0,"",COUNTIF(H$12:H$222,"<>0")-(RANK(P62,$P$12:$P$222)+COUNTIF($P$12:P62,P62)-2))<=INT(0.05*COUNTIF(H$12:H$222,"<>0")),"TOP5", IF(IF(H62=0,"",COUNTIF(H$12:H$222,"<>0")-(RANK(P62,$P$12:$P$222)+COUNTIF($P$12:P62,P62)-2))<=INT(0.25*COUNTIF(H$12:H$222,"<>0")),"TOP25", "")) ->  | AD62: =IF(IF(J62="Suppressed","",COUNTIF(J$12:J$222,"<>Suppressed")-(RANK(J62,$J$12:$J$222)+COUNTIF(J$12:$J62,J62)-2))<=INT(0.05*COUNTIF(J$12:J$222,"<>Suppressed")),"TOP5", IF(IF(J62="Suppressed","",COUNTIF(J$12:J$222,"<>Suppressed")-(RANK(J62,$J$12:$J$222)+COUNTIF(J$12:$J62,J62)-2))<=INT(0.25*COUNTIF(J$12:J$222,"<>suppressed")),"TOP25", "")) -> 
A63: 02Y | B63: NHS East Riding of Yorkshire | C63: =IF(G63=0,"",COUNTIF(G$12:G$222,"<>0")-(RANK(M63,$M$12:$M$222)+COUNTIF($M$12:M63,M63)-2)) -> 128 | D63: =IF(H63=0,"",COUNTIF(P$12:P$222,"<>Suppressed")-(RANK(P63,$P$12:$P$222)+COUNTIF($P$12:P63,P63)-2)) -> 115 | E63: =IF(J63="Suppressed","",COUNTIF(J$12:J$222,"<>Suppressed")-(RANK(J63,$J$12:$J$222)+COUNTIF($J$12:J63,J63)-2)) -> 117 | F63: =VLOOKUP(A63,population!C:O,Settings!$B$3,FALSE) -> 59449.8 | G63: =IF(ISNA(IF(Settings!$B$2="Asthma", SUMIFS(CCGData!E:E,CCGData!A:A,Settings!$B$1, CCGData!B:B,CurrentData!A63), IF(Settings!$B$2="Diabetes", SUMIFS(CCGData!C:C,CCGData!A:A,Settings!$B$1, CCGData!B:B,CurrentData!A63), SUMIFS(CCGData!D:D,CCGData!A:A,Settings!$B$1, CCGData!B:B,CurrentData!A63)))),"",IF(Settings!$B$2="Asthma", SUMIFS(CCGData!E:E,CCGData!A:A,Settings!$B$1, CCGData!B:B,CurrentData!A63), IF(Settings!$B$2="Diabetes", SUMIFS(CCGData!C:C,CCGData!A:A,Settings!$B$1, CCGData!B:B,CurrentData!A63), SUMIFS(CCGData!D:D,CCGData!A:A,Settings!$B$1, CCGData!B:B,CurrentData!A63)))) -> 36 | H63: =IF(Settings!$B$2="Asthma", SUMIFS(CCGData!J:J,CCGData!A:A,Settings!$B$1, CCGData!B:B,CurrentData!A63), IF(Settings!$B$2="Diabetes", SUMIFS(CCGData!F:F,CCGData!A:A,Settings!$B$1, CCGData!B:B,CurrentData!A63), SUMIFS(CCGData!H:H,CCGData!A:A,Settings!$B$1, CCGData!B:B,CurrentData!A63))) -> 75 | I63: =IF(Settings!$B$2="Asthma", SUMIFS(CCGData!K:K,CCGData!A:A,Settings!$B$1, CCGData!B:B,CurrentData!A63), IF(Settings!$B$2="Diabetes", SUMIFS(CCGData!G:G,CCGData!A:A,Settings!$B$1, CCGData!B:B,CurrentData!A63), SUMIFS(CCGData!I:I,CCGData!A:A,Settings!$B$1, CCGData!B:B,CurrentData!A63))) -> 36 | J63: 2.083333333 | K63: 1.638673825 | L63: 2.611476374 | M63: 60.55529203 | N63: 42.41218207 | O63: 83.83404905 | P63: 126.1568584 | Q63: 99.23037201 | R63: 158.1387144 | S63: 43.2523279 | T63: 81.66425707 | U63: 1.542857143 | V63: =VLOOKUP(Selections_data_CCG!$G$2,CurrentData!A:R,13,FALSE) -> 77.70951213 | W63: =IF(Settings!$B$5="4SIMILAR", VLOOKUP(Selections_data_CCG!$G$2,'CurrentData-4SIMILAR'!A:R,13,FALSE), VLOOKUP(Settings!$C$5,CurrentData!A:R,13,FALSE)) -> 26.11663851 | X63: =VLOOKUP(Selections_data_CCG!$G$2,CurrentData!A:R,16,FALSE) -> 672.6729644 | Y63: =IF(Settings!$B$5="4SIMILAR", VLOOKUP(Selections_data_CCG!$G$2,'CurrentData-4SIMILAR'!A:R,16,FALSE), VLOOKUP(Settings!$C$5,CurrentData!A:R,16,FALSE)) -> 36.90068939 | Z63: =VLOOKUP(Selections_data_CCG!$G$2,CurrentData!A:R,10,FALSE) -> 8.147058824 | AA63: =IF(Settings!$B$5="4SIMILAR", VLOOKUP(Selections_data_CCG!$G$2,'CurrentData-4SIMILAR'!A:R,10,FALSE), VLOOKUP(Settings!$C$5,CurrentData!A:R,10,FALSE)) -> 0.8745874587 | AB63: =IF(IF(G63=0,"",COUNTIF(G$12:G$222,"<>0")-(RANK(M63,$M$12:$M$222)+COUNTIF($M$12:M63,M63)-2))<=INT(0.05*COUNTIF(G$12:G$222,"<>0")),"TOP5", IF(IF(G63=0,"",COUNTIF(G$12:G$222,"<>0")-(RANK(M63,$M$12:$M$222)+COUNTIF($M$12:M63,M63)-2))<=INT(0.25*COUNTIF(G$12:G$222,"<>0")),"TOP25", "")) ->  | AC63: =IF(IF(H63=0,"",COUNTIF(H$12:H$222,"<>0")-(RANK(P63,$P$12:$P$222)+COUNTIF($P$12:P63,P63)-2))<=INT(0.05*COUNTIF(H$12:H$222,"<>0")),"TOP5", IF(IF(H63=0,"",COUNTIF(H$12:H$222,"<>0")-(RANK(P63,$P$12:$P$222)+COUNTIF($P$12:P63,P63)-2))<=INT(0.25*COUNTIF(H$12:H$222,"<>0")),"TOP25", "")) ->  | AD63: =IF(IF(J63="Suppressed","",COUNTIF(J$12:J$222,"<>Suppressed")-(RANK(J63,$J$12:$J$222)+COUNTIF(J$12:$J63,J63)-2))<=INT(0.05*COUNTIF(J$12:J$222,"<>Suppressed")),"TOP5", IF(IF(J63="Suppressed","",COUNTIF(J$12:J$222,"<>Suppressed")-(RANK(J63,$J$12:$J$222)+COUNTIF(J$12:$J63,J63)-2))<=INT(0.25*COUNTIF(J$12:J$222,"<>suppressed")),"TOP25", "")) -> 
A64: 05D | B64: NHS East Staffordshire | C64: =IF(G64=0,"",COUNTIF(G$12:G$222,"<>0")-(RANK(M64,$M$12:$M$222)+COUNTIF($M$12:M64,M64)-2)) -> 210 | D64: =IF(H64=0,"",COUNTIF(P$12:P$222,"<>Suppressed")-(RANK(P64,$P$12:$P$222)+COUNTIF($P$12:P64,P64)-2)) -> 203 | E64: =IF(J64="Suppressed","",COUNTIF(J$12:J$222,"<>Suppressed")-(RANK(J64,$J$12:$J$222)+COUNTIF($J$12:J64,J64)-2)) -> 107 | F64: =VLOOKUP(A64,population!C:O,Settings!$B$3,FALSE) -> 30188.6 | G64: =IF(ISNA(IF(Settings!$B$2="Asthma", SUMIFS(CCGData!E:E,CCGData!A:A,Settings!$B$1, CCGData!B:B,CurrentData!A64), IF(Settings!$B$2="Diabetes", SUMIFS(CCGData!C:C,CCGData!A:A,Settings!$B$1, CCGData!B:B,CurrentData!A64), SUMIFS(CCGData!D:D,CCGData!A:A,Settings!$B$1, CCGData!B:B,CurrentData!A64)))),"",IF(Settings!$B$2="Asthma", SUMIFS(CCGData!E:E,CCGData!A:A,Settings!$B$1, CCGData!B:B,CurrentData!A64), IF(Settings!$B$2="Diabetes", SUMIFS(CCGData!C:C,CCGData!A:A,Settings!$B$1, CCGData!B:B,CurrentData!A64), SUMIFS(CCGData!D:D,CCGData!A:A,Settings!$B$1, CCGData!B:B,CurrentData!A64)))) -> 38 | H64: =IF(Settings!$B$2="Asthma", SUMIFS(CCGData!J:J,CCGData!A:A,Settings!$B$1, CCGData!B:B,CurrentData!A64), IF(Settings!$B$2="Diabetes", SUMIFS(CCGData!F:F,CCGData!A:A,Settings!$B$1, CCGData!B:B,CurrentData!A64), SUMIFS(CCGData!H:H,CCGData!A:A,Settings!$B$1, CCGData!B:B,CurrentData!A64))) -> 82 | I64: =IF(Settings!$B$2="Asthma", SUMIFS(CCGData!K:K,CCGData!A:A,Settings!$B$1, CCGData!B:B,CurrentData!A64), IF(Settings!$B$2="Diabetes", SUMIFS(CCGData!G:G,CCGData!A:A,Settings!$B$1, CCGData!B:B,CurrentData!A64), SUMIFS(CCGData!I:I,CCGData!A:A,Settings!$B$1, CCGData!B:B,CurrentData!A64))) -> 41 | J64: 2 | K64: 1.590659353 | L64: 2.482527345 | M64: 125.8753304 | N64: 89.07687553 | O64: 172.7737256 | P64: 271.625713 | Q64: 216.0319904 | R64: 337.1591301 | S64: 43.33027531 | T64: 83.03480344 | U64: 1.555555556 | V64: =VLOOKUP(Selections_data_CCG!$G$2,CurrentData!A:R,13,FALSE) -> 77.70951213 | W64: =IF(Settings!$B$5="4SIMILAR", VLOOKUP(Selections_data_CCG!$G$2,'CurrentData-4SIMILAR'!A:R,13,FALSE), VLOOKUP(Settings!$C$5,CurrentData!A:R,13,FALSE)) -> 26.11663851 | X64: =VLOOKUP(Selections_data_CCG!$G$2,CurrentData!A:R,16,FALSE) -> 672.6729644 | Y64: =IF(Settings!$B$5="4SIMILAR", VLOOKUP(Selections_data_CCG!$G$2,'CurrentData-4SIMILAR'!A:R,16,FALSE), VLOOKUP(Settings!$C$5,CurrentData!A:R,16,FALSE)) -> 36.90068939 | Z64: =VLOOKUP(Selections_data_CCG!$G$2,CurrentData!A:R,10,FALSE) -> 8.147058824 | AA64: =IF(Settings!$B$5="4SIMILAR", VLOOKUP(Selections_data_CCG!$G$2,'CurrentData-4SIMILAR'!A:R,10,FALSE), VLOOKUP(Settings!$C$5,CurrentData!A:R,10,FALSE)) -> 0.8745874587 | AB64: =IF(IF(G64=0,"",COUNTIF(G$12:G$222,"<>0")-(RANK(M64,$M$12:$M$222)+COUNTIF($M$12:M64,M64)-2))<=INT(0.05*COUNTIF(G$12:G$222,"<>0")),"TOP5", IF(IF(G64=0,"",COUNTIF(G$12:G$222,"<>0")-(RANK(M64,$M$12:$M$222)+COUNTIF($M$12:M64,M64)-2))<=INT(0.25*COUNTIF(G$12:G$222,"<>0")),"TOP25", "")) ->  | AC64: =IF(IF(H64=0,"",COUNTIF(H$12:H$222,"<>0")-(RANK(P64,$P$12:$P$222)+COUNTIF($P$12:P64,P64)-2))<=INT(0.05*COUNTIF(H$12:H$222,"<>0")),"TOP5", IF(IF(H64=0,"",COUNTIF(H$12:H$222,"<>0")-(RANK(P64,$P$12:$P$222)+COUNTIF($P$12:P64,P64)-2))<=INT(0.25*COUNTIF(H$12:H$222,"<>0")),"TOP25", "")) ->  | AD64: =IF(IF(J64="Suppressed","",COUNTIF(J$12:J$222,"<>Suppressed")-(RANK(J64,$J$12:$J$222)+COUNTIF(J$12:$J64,J64)-2))<=INT(0.05*COUNTIF(J$12:J$222,"<>Suppressed")),"TOP5", IF(IF(J64="Suppressed","",COUNTIF(J$12:J$222,"<>Suppressed")-(RANK(J64,$J$12:$J$222)+COUNTIF(J$12:$J64,J64)-2))<=INT(0.25*COUNTIF(J$12:J$222,"<>suppressed")),"TOP25", "")) -> 
A65: 09L | B65: NHS East Surrey | C65: =IF(G65=0,"",COUNTIF(G$12:G$222,"<>0")-(RANK(M65,$M$12:$M$222)+COUNTIF($M$12:M65,M65)-2)) -> 172 | D65: =IF(H65=0,"",COUNTIF(P$12:P$222,"<>Suppressed")-(RANK(P65,$P$12:$P$222)+COUNTIF($P$12:P65,P65)-2)) -> 190 | E65: =IF(J65="Suppressed","",COUNTIF(J$12:J$222,"<>Suppressed")-(RANK(J65,$J$12:$J$222)+COUNTIF($J$12:J65,J65)-2)) -> 167 | F65: =VLOOKUP(A65,population!C:O,Settings!$B$3,FALSE) -> 39951 | G65: =IF(ISNA(IF(Settings!$B$2="Asthma", SUMIFS(CCGData!E:E,CCGData!A:A,Settings!$B$1, CCGData!B:B,CurrentData!A65), IF(Settings!$B$2="Diabetes", SUMIFS(CCGData!C:C,CCGData!A:A,Settings!$B$1, CCGData!B:B,CurrentData!A65), SUMIFS(CCGData!D:D,CCGData!A:A,Settings!$B$1, CCGData!B:B,CurrentData!A65)))),"",IF(Settings!$B$2="Asthma", SUMIFS(CCGData!E:E,CCGData!A:A,Settings!$B$1, CCGData!B:B,CurrentData!A65), IF(Settings!$B$2="Diabetes", SUMIFS(CCGData!C:C,CCGData!A:A,Settings!$B$1, CCGData!B:B,CurrentData!A65), SUMIFS(CCGData!D:D,CCGData!A:A,Settings!$B$1, CCGData!B:B,CurrentData!A65)))) -> 29 | H65: =IF(Settings!$B$2="Asthma", SUMIFS(CCGData!J:J,CCGData!A:A,Settings!$B$1, CCGData!B:B,CurrentData!A65), IF(Settings!$B$2="Diabetes", SUMIFS(CCGData!F:F,CCGData!A:A,Settings!$B$1, CCGData!B:B,CurrentData!A65), SUMIFS(CCGData!H:H,CCGData!A:A,Settings!$B$1, CCGData!B:B,CurrentData!A65))) -> 77 | I65: =IF(Settings!$B$2="Asthma", SUMIFS(CCGData!K:K,CCGData!A:A,Settings!$B$1, CCGData!B:B,CurrentData!A65), IF(Settings!$B$2="Diabetes", SUMIFS(CCGData!G:G,CCGData!A:A,Settings!$B$1, CCGData!B:B,CurrentData!A65), SUMIFS(CCGData!I:I,CCGData!A:A,Settings!$B$1, CCGData!B:B,CurrentData!A65))) -> 29 | J65: 2.655172414 | K65: 2.095420547 | L65: 3.318509948 | M65: 72.58892143 | N65: 48.61393992 | O65: 104.2497996 | P65: 192.7361017 | Q65: 152.1043174 | R65: 240.8870579 | S65: 43.94127883 | T65: 84.06676194 | U65: 1.555555556 | V65: =VLOOKUP(Selections_data_CCG!$G$2,CurrentData!A:R,13,FALSE) -> 77.70951213 | W65: =IF(Settings!$B$5="4SIMILAR", VLOOKUP(Selections_data_CCG!$G$2,'CurrentData-4SIMILAR'!A:R,13,FALSE), VLOOKUP(Settings!$C$5,CurrentData!A:R,13,FALSE)) -> 26.11663851 | X65: =VLOOKUP(Selections_data_CCG!$G$2,CurrentData!A:R,16,FALSE) -> 672.6729644 | Y65: =IF(Settings!$B$5="4SIMILAR", VLOOKUP(Selections_data_CCG!$G$2,'CurrentData-4SIMILAR'!A:R,16,FALSE), VLOOKUP(Settings!$C$5,CurrentData!A:R,16,FALSE)) -> 36.90068939 | Z65: =VLOOKUP(Selections_data_CCG!$G$2,CurrentData!A:R,10,FALSE) -> 8.147058824 | AA65: =IF(Settings!$B$5="4SIMILAR", VLOOKUP(Selections_data_CCG!$G$2,'CurrentData-4SIMILAR'!A:R,10,FALSE), VLOOKUP(Settings!$C$5,CurrentData!A:R,10,FALSE)) -> 0.8745874587 | AB65: =IF(IF(G65=0,"",COUNTIF(G$12:G$222,"<>0")-(RANK(M65,$M$12:$M$222)+COUNTIF($M$12:M65,M65)-2))<=INT(0.05*COUNTIF(G$12:G$222,"<>0")),"TOP5", IF(IF(G65=0,"",COUNTIF(G$12:G$222,"<>0")-(RANK(M65,$M$12:$M$222)+COUNTIF($M$12:M65,M65)-2))<=INT(0.25*COUNTIF(G$12:G$222,"<>0")),"TOP25", "")) ->  | AC65: =IF(IF(H65=0,"",COUNTIF(H$12:H$222,"<>0")-(RANK(P65,$P$12:$P$222)+COUNTIF($P$12:P65,P65)-2))<=INT(0.05*COUNTIF(H$12:H$222,"<>0")),"TOP5", IF(IF(H65=0,"",COUNTIF(H$12:H$222,"<>0")-(RANK(P65,$P$12:$P$222)+COUNTIF($P$12:P65,P65)-2))<=INT(0.25*COUNTIF(H$12:H$222,"<>0")),"TOP25", "")) ->  | AD65: =IF(IF(J65="Suppressed","",COUNTIF(J$12:J$222,"<>Suppressed")-(RANK(J65,$J$12:$J$222)+COUNTIF(J$12:$J65,J65)-2))<=INT(0.05*COUNTIF(J$12:J$222,"<>Suppressed")),"TOP5", IF(IF(J65="Suppressed","",COUNTIF(J$12:J$222,"<>Suppressed")-(RANK(J65,$J$12:$J$222)+COUNTIF(J$12:$J65,J65)-2))<=INT(0.25*COUNTIF(J$12:J$222,"<>suppressed")),"TOP25", "")) -> 
A66: 09F | B66: NHS Eastbourne, Hailsham and Seaford | C66: =IF(G66=0,"",COUNTIF(G$12:G$222,"<>0")-(RANK(M66,$M$12:$M$222)+COUNTIF($M$12:M66,M66)-2)) -> 159 | D66: =IF(H66=0,"",COUNTIF(P$12:P$222,"<>Suppressed")-(RANK(P66,$P$12:$P$222)+COUNTIF($P$12:P66,P66)-2)) -> 26 | E66: =IF(J66="Suppressed","",COUNTIF(J$12:J$222,"<>Suppressed")-(RANK(J66,$J$12:$J$222)+COUNTIF($J$12:J66,J66)-2)) -> 12 | F66: =VLOOKUP(A66,population!C:O,Settings!$B$3,FALSE) -> 36894.4 | G66: =IF(ISNA(IF(Settings!$B$2="Asthma", SUMIFS(CCGData!E:E,CCGData!A:A,Settings!$B$1, CCGData!B:B,CurrentData!A66), IF(Settings!$B$2="Diabetes", SUMIFS(CCGData!C:C,CCGData!A:A,Settings!$B$1, CCGData!B:B,CurrentData!A66), SUMIFS(CCGData!D:D,CCGData!A:A,Settings!$B$1, CCGData!B:B,CurrentData!A66)))),"",IF(Settings!$B$2="Asthma", SUMIFS(CCGData!E:E,CCGData!A:A,Settings!$B$1, CCGData!B:B,CurrentData!A66), IF(Settings!$B$2="Diabetes", SUMIFS(CCGData!C:C,CCGData!A:A,Settings!$B$1, CCGData!B:B,CurrentData!A66), SUMIFS(CCGData!D:D,CCGData!A:A,Settings!$B$1, CCGData!B:B,CurrentData!A66)))) -> 25 | H66: =IF(Settings!$B$2="Asthma", SUMIFS(CCGData!J:J,CCGData!A:A,Settings!$B$1, CCGData!B:B,CurrentData!A66), IF(Settings!$B$2="Diabetes", SUMIFS(CCGData!F:F,CCGData!A:A,Settings!$B$1, CCGData!B:B,CurrentData!A66), SUMIFS(CCGData!H:H,CCGData!A:A,Settings!$B$1, CCGData!B:B,CurrentData!A66))) -> 25 | I66: =IF(Settings!$B$2="Asthma", SUMIFS(CCGData!K:K,CCGData!A:A,Settings!$B$1, CCGData!B:B,CurrentData!A66), IF(Settings!$B$2="Diabetes", SUMIFS(CCGData!G:G,CCGData!A:A,Settings!$B$1, CCGData!B:B,CurrentData!A66), SUMIFS(CCGData!I:I,CCGData!A:A,Settings!$B$1, CCGData!B:B,CurrentData!A66))) -> 25 | J66: 1 | K66: 0.6471472739 | L66: 1.476197268 | M66: 67.76096101 | N66: 43.8513212 | O66: 100.0285455 | P66: 67.76096101 | Q66: 43.8513212 | R66: 100.0285455 | S66: 43.98778606 | T66: 84.55763513 | U66: 1.586206897 | V66: =VLOOKUP(Selections_data_CCG!$G$2,CurrentData!A:R,13,FALSE) -> 77.70951213 | W66: =IF(Settings!$B$5="4SIMILAR", VLOOKUP(Selections_data_CCG!$G$2,'CurrentData-4SIMILAR'!A:R,13,FALSE), VLOOKUP(Settings!$C$5,CurrentData!A:R,13,FALSE)) -> 26.11663851 | X66: =VLOOKUP(Selections_data_CCG!$G$2,CurrentData!A:R,16,FALSE) -> 672.6729644 | Y66: =IF(Settings!$B$5="4SIMILAR", VLOOKUP(Selections_data_CCG!$G$2,'CurrentData-4SIMILAR'!A:R,16,FALSE), VLOOKUP(Settings!$C$5,CurrentData!A:R,16,FALSE)) -> 36.90068939 | Z66: =VLOOKUP(Selections_data_CCG!$G$2,CurrentData!A:R,10,FALSE) -> 8.147058824 | AA66: =IF(Settings!$B$5="4SIMILAR", VLOOKUP(Selections_data_CCG!$G$2,'CurrentData-4SIMILAR'!A:R,10,FALSE), VLOOKUP(Settings!$C$5,CurrentData!A:R,10,FALSE)) -> 0.8745874587 | AB66: =IF(IF(G66=0,"",COUNTIF(G$12:G$222,"<>0")-(RANK(M66,$M$12:$M$222)+COUNTIF($M$12:M66,M66)-2))<=INT(0.05*COUNTIF(G$12:G$222,"<>0")),"TOP5", IF(IF(G66=0,"",COUNTIF(G$12:G$222,"<>0")-(RANK(M66,$M$12:$M$222)+COUNTIF($M$12:M66,M66)-2))<=INT(0.25*COUNTIF(G$12:G$222,"<>0")),"TOP25", "")) ->  | AC66: =IF(IF(H66=0,"",COUNTIF(H$12:H$222,"<>0")-(RANK(P66,$P$12:$P$222)+COUNTIF($P$12:P66,P66)-2))<=INT(0.05*COUNTIF(H$12:H$222,"<>0")),"TOP5", IF(IF(H66=0,"",COUNTIF(H$12:H$222,"<>0")-(RANK(P66,$P$12:$P$222)+COUNTIF($P$12:P66,P66)-2))<=INT(0.25*COUNTIF(H$12:H$222,"<>0")),"TOP25", "")) -> TOP25 | AD66: =IF(IF(J66="Suppressed","",COUNTIF(J$12:J$222,"<>Suppressed")-(RANK(J66,$J$12:$J$222)+COUNTIF(J$12:$J66,J66)-2))<=INT(0.05*COUNTIF(J$12:J$222,"<>Suppressed")),"TOP5", IF(IF(J66="Suppressed","",COUNTIF(J$12:J$222,"<>Suppressed")-(RANK(J66,$J$12:$J$222)+COUNTIF(J$12:$J66,J66)-2))<=INT(0.25*COUNTIF(J$12:J$222,"<>suppressed")),"TOP25", "")) -> TOP25
A67: 01C | B67: NHS Eastern Cheshire | C67: =IF(G67=0,"",COUNTIF(G$12:G$222,"<>0")-(RANK(M67,$M$12:$M$222)+COUNTIF($M$12:M67,M67)-2)) -> 206 | D67: =IF(H67=0,"",COUNTIF(P$12:P$222,"<>Suppressed")-(RANK(P67,$P$12:$P$222)+COUNTIF($P$12:P67,P67)-2)) -> 200 | E67: =IF(J67="Suppressed","",COUNTIF(J$12:J$222,"<>Suppressed")-(RANK(J67,$J$12:$J$222)+COUNTIF($J$12:J67,J67)-2)) -> 106 | F67: =VLOOKUP(A67,population!C:O,Settings!$B$3,FALSE) -> 40768.6 | G67: =IF(ISNA(IF(Settings!$B$2="Asthma", SUMIFS(CCGData!E:E,CCGData!A:A,Settings!$B$1, CCGData!B:B,CurrentData!A67), IF(Settings!$B$2="Diabetes", SUMIFS(CCGData!C:C,CCGData!A:A,Settings!$B$1, CCGData!B:B,CurrentData!A67), SUMIFS(CCGData!D:D,CCGData!A:A,Settings!$B$1, CCGData!B:B,CurrentData!A67)))),"",IF(Settings!$B$2="Asthma", SUMIFS(CCGData!E:E,CCGData!A:A,Settings!$B$1, CCGData!B:B,CurrentData!A67), IF(Settings!$B$2="Diabetes", SUMIFS(CCGData!C:C,CCGData!A:A,Settings!$B$1, CCGData!B:B,CurrentData!A67), SUMIFS(CCGData!D:D,CCGData!A:A,Settings!$B$1, CCGData!B:B,CurrentData!A67)))) -> 46 | H67: =IF(Settings!$B$2="Asthma", SUMIFS(CCGData!J:J,CCGData!A:A,Settings!$B$1, CCGData!B:B,CurrentData!A67), IF(Settings!$B$2="Diabetes", SUMIFS(CCGData!F:F,CCGData!A:A,Settings!$B$1, CCGData!B:B,CurrentData!A67), SUMIFS(CCGData!H:H,CCGData!A:A,Settings!$B$1, CCGData!B:B,CurrentData!A67))) -> 98 | I67: =IF(Settings!$B$2="Asthma", SUMIFS(CCGData!K:K,CCGData!A:A,Settings!$B$1, CCGData!B:B,CurrentData!A67), IF(Settings!$B$2="Diabetes", SUMIFS(CCGData!G:G,CCGData!A:A,Settings!$B$1, CCGData!B:B,CurrentData!A67), SUMIFS(CCGData!I:I,CCGData!A:A,Settings!$B$1, CCGData!B:B,CurrentData!A67))) -> 49 | J67: 2 | K67: 1.623696675 | L67: 2.437359394 | M67: 112.8319344 | N67: 82.607157 | O67: 150.5019886 | P67: 240.3810776 | Q67: 195.1529782 | R67: 292.9475388 | S67: 44.37300938 | T67: 85.98452279 | U67: 1.588235294 | V67: =VLOOKUP(Selections_data_CCG!$G$2,CurrentData!A:R,13,FALSE) -> 77.70951213 | W67: =IF(Settings!$B$5="4SIMILAR", VLOOKUP(Selections_data_CCG!$G$2,'CurrentData-4SIMILAR'!A:R,13,FALSE), VLOOKUP(Settings!$C$5,CurrentData!A:R,13,FALSE)) -> 26.11663851 | X67: =VLOOKUP(Selections_data_CCG!$G$2,CurrentData!A:R,16,FALSE) -> 672.6729644 | Y67: =IF(Settings!$B$5="4SIMILAR", VLOOKUP(Selections_data_CCG!$G$2,'CurrentData-4SIMILAR'!A:R,16,FALSE), VLOOKUP(Settings!$C$5,CurrentData!A:R,16,FALSE)) -> 36.90068939 | Z67: =VLOOKUP(Selections_data_CCG!$G$2,CurrentData!A:R,10,FALSE) -> 8.147058824 | AA67: =IF(Settings!$B$5="4SIMILAR", VLOOKUP(Selections_data_CCG!$G$2,'CurrentData-4SIMILAR'!A:R,10,FALSE), VLOOKUP(Settings!$C$5,CurrentData!A:R,10,FALSE)) -> 0.8745874587 | AB67: =IF(IF(G67=0,"",COUNTIF(G$12:G$222,"<>0")-(RANK(M67,$M$12:$M$222)+COUNTIF($M$12:M67,M67)-2))<=INT(0.05*COUNTIF(G$12:G$222,"<>0")),"TOP5", IF(IF(G67=0,"",COUNTIF(G$12:G$222,"<>0")-(RANK(M67,$M$12:$M$222)+COUNTIF($M$12:M67,M67)-2))<=INT(0.25*COUNTIF(G$12:G$222,"<>0")),"TOP25", "")) ->  | AC67: =IF(IF(H67=0,"",COUNTIF(H$12:H$222,"<>0")-(RANK(P67,$P$12:$P$222)+COUNTIF($P$12:P67,P67)-2))<=INT(0.05*COUNTIF(H$12:H$222,"<>0")),"TOP5", IF(IF(H67=0,"",COUNTIF(H$12:H$222,"<>0")-(RANK(P67,$P$12:$P$222)+COUNTIF($P$12:P67,P67)-2))<=INT(0.25*COUNTIF(H$12:H$222,"<>0")),"TOP25", "")) ->  | AD67: =IF(IF(J67="Suppressed","",COUNTIF(J$12:J$222,"<>Suppressed")-(RANK(J67,$J$12:$J$222)+COUNTIF(J$12:$J67,J67)-2))<=INT(0.05*COUNTIF(J$12:J$222,"<>Suppressed")),"TOP5", IF(IF(J67="Suppressed","",COUNTIF(J$12:J$222,"<>Suppressed")-(RANK(J67,$J$12:$J$222)+COUNTIF(J$12:$J67,J67)-2))<=INT(0.25*COUNTIF(J$12:J$222,"<>suppressed")),"TOP25", "")) -> 
A68: 07X | B68: NHS Enfield | C68: =IF(G68=0,"",COUNTIF(G$12:G$222,"<>0")-(RANK(M68,$M$12:$M$222)+COUNTIF($M$12:M68,M68)-2)) -> 50 | D68: =IF(H68=0,"",COUNTIF(P$12:P$222,"<>Suppressed")-(RANK(P68,$P$12:$P$222)+COUNTIF($P$12:P68,P68)-2)) -> 142 | E68: =IF(J68="Suppressed","",COUNTIF(J$12:J$222,"<>Suppressed")-(RANK(J68,$J$12:$J$222)+COUNTIF($J$12:J68,J68)-2)) -> 190 | F68: =VLOOKUP(A68,population!C:O,Settings!$B$3,FALSE) -> 79282 | G68: =IF(ISNA(IF(Settings!$B$2="Asthma", SUMIFS(CCGData!E:E,CCGData!A:A,Settings!$B$1, CCGData!B:B,CurrentData!A68), IF(Settings!$B$2="Diabetes", SUMIFS(CCGData!C:C,CCGData!A:A,Settings!$B$1, CCGData!B:B,CurrentData!A68), SUMIFS(CCGData!D:D,CCGData!A:A,Settings!$B$1, CCGData!B:B,CurrentData!A68)))),"",IF(Settings!$B$2="Asthma", SUMIFS(CCGData!E:E,CCGData!A:A,Settings!$B$1, CCGData!B:B,CurrentData!A68), IF(Settings!$B$2="Diabetes", SUMIFS(CCGData!C:C,CCGData!A:A,Settings!$B$1, CCGData!B:B,CurrentData!A68), SUMIFS(CCGData!D:D,CCGData!A:A,Settings!$B$1, CCGData!B:B,CurrentData!A68)))) -> 34 | H68: =IF(Settings!$B$2="Asthma", SUMIFS(CCGData!J:J,CCGData!A:A,Settings!$B$1, CCGData!B:B,CurrentData!A68), IF(Settings!$B$2="Diabetes", SUMIFS(CCGData!F:F,CCGData!A:A,Settings!$B$1, CCGData!B:B,CurrentData!A68), SUMIFS(CCGData!H:H,CCGData!A:A,Settings!$B$1, CCGData!B:B,CurrentData!A68))) -> 111 | I68: =IF(Settings!$B$2="Asthma", SUMIFS(CCGData!K:K,CCGData!A:A,Settings!$B$1, CCGData!B:B,CurrentData!A68), IF(Settings!$B$2="Diabetes", SUMIFS(CCGData!G:G,CCGData!A:A,Settings!$B$1, CCGData!B:B,CurrentData!A68), SUMIFS(CCGData!I:I,CCGData!A:A,Settings!$B$1, CCGData!B:B,CurrentData!A68))) -> 35 | J68: 3.171428571 | K68: 2.608952225 | L68: 3.819218068 | M68: 42.8848919 | N68: 29.69903431 | O68: 59.92733798 | P68: 140.0065589 | Q68: 115.1753587 | R68: 168.6040115 | S68: 44.7680058 | T68: 85.99376545 | U68: 1.6 | V68: =VLOOKUP(Selections_data_CCG!$G$2,CurrentData!A:R,13,FALSE) -> 77.70951213 | W68: =IF(Settings!$B$5="4SIMILAR", VLOOKUP(Selections_data_CCG!$G$2,'CurrentData-4SIMILAR'!A:R,13,FALSE), VLOOKUP(Settings!$C$5,CurrentData!A:R,13,FALSE)) -> 26.11663851 | X68: =VLOOKUP(Selections_data_CCG!$G$2,CurrentData!A:R,16,FALSE) -> 672.6729644 | Y68: =IF(Settings!$B$5="4SIMILAR", VLOOKUP(Selections_data_CCG!$G$2,'CurrentData-4SIMILAR'!A:R,16,FALSE), VLOOKUP(Settings!$C$5,CurrentData!A:R,16,FALSE)) -> 36.90068939 | Z68: =VLOOKUP(Selections_data_CCG!$G$2,CurrentData!A:R,10,FALSE) -> 8.147058824 | AA68: =IF(Settings!$B$5="4SIMILAR", VLOOKUP(Selections_data_CCG!$G$2,'CurrentData-4SIMILAR'!A:R,10,FALSE), VLOOKUP(Settings!$C$5,CurrentData!A:R,10,FALSE)) -> 0.8745874587 | AB68: =IF(IF(G68=0,"",COUNTIF(G$12:G$222,"<>0")-(RANK(M68,$M$12:$M$222)+COUNTIF($M$12:M68,M68)-2))<=INT(0.05*COUNTIF(G$12:G$222,"<>0")),"TOP5", IF(IF(G68=0,"",COUNTIF(G$12:G$222,"<>0")-(RANK(M68,$M$12:$M$222)+COUNTIF($M$12:M68,M68)-2))<=INT(0.25*COUNTIF(G$12:G$222,"<>0")),"TOP25", "")) -> TOP25 | AC68: =IF(IF(H68=0,"",COUNTIF(H$12:H$222,"<>0")-(RANK(P68,$P$12:$P$222)+COUNTIF($P$12:P68,P68)-2))<=INT(0.05*COUNTIF(H$12:H$222,"<>0")),"TOP5", IF(IF(H68=0,"",COUNTIF(H$12:H$222,"<>0")-(RANK(P68,$P$12:$P$222)+COUNTIF($P$12:P68,P68)-2))<=INT(0.25*COUNTIF(H$12:H$222,"<>0")),"TOP25", "")) ->  | AD68: =IF(IF(J68="Suppressed","",COUNTIF(J$12:J$222,"<>Suppressed")-(RANK(J68,$J$12:$J$222)+COUNTIF(J$12:$J68,J68)-2))<=INT(0.05*COUNTIF(J$12:J$222,"<>Suppressed")),"TOP5", IF(IF(J68="Suppressed","",COUNTIF(J$12:J$222,"<>Suppressed")-(RANK(J68,$J$12:$J$222)+COUNTIF(J$12:$J68,J68)-2))<=INT(0.25*COUNTIF(J$12:J$222,"<>suppressed")),"TOP25", "")) -> 
A69: 03X | B69: NHS Erewash | C69: =IF(G69=0,"",COUNTIF(G$12:G$222,"<>0")-(RANK(M69,$M$12:$M$222)+COUNTIF($M$12:M69,M69)-2)) -> 36 | D69: =IF(H69=0,"",COUNTIF(P$12:P$222,"<>Suppressed")-(RANK(P69,$P$12:$P$222)+COUNTIF($P$12:P69,P69)-2)) -> 211 | E69: =IF(J69="Suppressed","",COUNTIF(J$12:J$222,"<>Suppressed")-(RANK(J69,$J$12:$J$222)+COUNTIF($J$12:J69,J69)-2)) -> 211 | F69: =VLOOKUP(A69,population!C:O,Settings!$B$3,FALSE) -> 19993.4 | G69: =IF(ISNA(IF(Settings!$B$2="Asthma", SUMIFS(CCGData!E:E,CCGData!A:A,Settings!$B$1, CCGData!B:B,CurrentData!A69), IF(Settings!$B$2="Diabetes", SUMIFS(CCGData!C:C,CCGData!A:A,Settings!$B$1, CCGData!B:B,CurrentData!A69), SUMIFS(CCGData!D:D,CCGData!A:A,Settings!$B$1, CCGData!B:B,CurrentData!A69)))),"",IF(Settings!$B$2="Asthma", SUMIFS(CCGData!E:E,CCGData!A:A,Settings!$B$1, CCGData!B:B,CurrentData!A69), IF(Settings!$B$2="Diabetes", SUMIFS(CCGData!C:C,CCGData!A:A,Settings!$B$1, CCGData!B:B,CurrentData!A69), SUMIFS(CCGData!D:D,CCGData!A:A,Settings!$B$1, CCGData!B:B,CurrentData!A69)))) -> 8 | H69: =IF(Settings!$B$2="Asthma", SUMIFS(CCGData!J:J,CCGData!A:A,Settings!$B$1, CCGData!B:B,CurrentData!A69), IF(Settings!$B$2="Diabetes", SUMIFS(CCGData!F:F,CCGData!A:A,Settings!$B$1, CCGData!B:B,CurrentData!A69), SUMIFS(CCGData!H:H,CCGData!A:A,Settings!$B$1, CCGData!B:B,CurrentData!A69))) -> 317 | I69: =IF(Settings!$B$2="Asthma", SUMIFS(CCGData!K:K,CCGData!A:A,Settings!$B$1, CCGData!B:B,CurrentData!A69), IF(Settings!$B$2="Diabetes", SUMIFS(CCGData!G:G,CCGData!A:A,Settings!$B$1, CCGData!B:B,CurrentData!A69), SUMIFS(CCGData!I:I,CCGData!A:A,Settings!$B$1, CCGData!B:B,CurrentData!A69))) -> 9 | J69: 35.22222222 | K69: 31.45115816 | L69: 39.32094067 | M69: 40.01320436 | N69: 17.27486159 | O69: 78.84196395 | P69: 1585.523223 | Q69: 1415.769321 | R69: 1770.026439 | S69: 45.3690317 | T69: 86.00808167 | U69: 1.602272727 | V69: =VLOOKUP(Selections_data_CCG!$G$2,CurrentData!A:R,13,FALSE) -> 77.70951213 | W69: =IF(Settings!$B$5="4SIMILAR", VLOOKUP(Selections_data_CCG!$G$2,'CurrentData-4SIMILAR'!A:R,13,FALSE), VLOOKUP(Settings!$C$5,CurrentData!A:R,13,FALSE)) -> 26.11663851 | X69: =VLOOKUP(Selections_data_CCG!$G$2,CurrentData!A:R,16,FALSE) -> 672.6729644 | Y69: =IF(Settings!$B$5="4SIMILAR", VLOOKUP(Selections_data_CCG!$G$2,'CurrentData-4SIMILAR'!A:R,16,FALSE), VLOOKUP(Settings!$C$5,CurrentData!A:R,16,FALSE)) -> 36.90068939 | Z69: =VLOOKUP(Selections_data_CCG!$G$2,CurrentData!A:R,10,FALSE) -> 8.147058824 | AA69: =IF(Settings!$B$5="4SIMILAR", VLOOKUP(Selections_data_CCG!$G$2,'CurrentData-4SIMILAR'!A:R,10,FALSE), VLOOKUP(Settings!$C$5,CurrentData!A:R,10,FALSE)) -> 0.8745874587 | AB69: =IF(IF(G69=0,"",COUNTIF(G$12:G$222,"<>0")-(RANK(M69,$M$12:$M$222)+COUNTIF($M$12:M69,M69)-2))<=INT(0.05*COUNTIF(G$12:G$222,"<>0")),"TOP5", IF(IF(G69=0,"",COUNTIF(G$12:G$222,"<>0")-(RANK(M69,$M$12:$M$222)+COUNTIF($M$12:M69,M69)-2))<=INT(0.25*COUNTIF(G$12:G$222,"<>0")),"TOP25", "")) -> TOP25 | AC69: =IF(IF(H69=0,"",COUNTIF(H$12:H$222,"<>0")-(RANK(P69,$P$12:$P$222)+COUNTIF($P$12:P69,P69)-2))<=INT(0.05*COUNTIF(H$12:H$222,"<>0")),"TOP5", IF(IF(H69=0,"",COUNTIF(H$12:H$222,"<>0")-(RANK(P69,$P$12:$P$222)+COUNTIF($P$12:P69,P69)-2))<=INT(0.25*COUNTIF(H$12:H$222,"<>0")),"TOP25", "")) ->  | AD69: =IF(IF(J69="Suppressed","",COUNTIF(J$12:J$222,"<>Suppressed")-(RANK(J69,$J$12:$J$222)+COUNTIF(J$12:$J69,J69)-2))<=INT(0.05*COUNTIF(J$12:J$222,"<>Suppressed")),"TOP5", IF(IF(J69="Suppressed","",COUNTIF(J$12:J$222,"<>Suppressed")-(RANK(J69,$J$12:$J$222)+COUNTIF(J$12:$J69,J69)-2))<=INT(0.25*COUNTIF(J$12:J$222,"<>suppressed")),"TOP25", "")) -> 
A70: 10K | B70: NHS Fareham and Gosport | C70: =IF(G70=0,"",COUNTIF(G$12:G$222,"<>0")-(RANK(M70,$M$12:$M$222)+COUNTIF($M$12:M70,M70)-2)) -> 164 | D70: =IF(H70=0,"",COUNTIF(P$12:P$222,"<>Suppressed")-(RANK(P70,$P$12:$P$222)+COUNTIF($P$12:P70,P70)-2)) -> 47 | E70: =IF(J70="Suppressed","",COUNTIF(J$12:J$222,"<>Suppressed")-(RANK(J70,$J$12:$J$222)+COUNTIF($J$12:J70,J70)-2)) -> 18 | F70: =VLOOKUP(A70,population!C:O,Settings!$B$3,FALSE) -> 42792 | G70: =IF(ISNA(IF(Settings!$B$2="Asthma", SUMIFS(CCGData!E:E,CCGData!A:A,Settings!$B$1, CCGData!B:B,CurrentData!A70), IF(Settings!$B$2="Diabetes", SUMIFS(CCGData!C:C,CCGData!A:A,Settings!$B$1, CCGData!B:B,CurrentData!A70), SUMIFS(CCGData!D:D,CCGData!A:A,Settings!$B$1, CCGData!B:B,CurrentData!A70)))),"",IF(Settings!$B$2="Asthma", SUMIFS(CCGData!E:E,CCGData!A:A,Settings!$B$1, CCGData!B:B,CurrentData!A70), IF(Settings!$B$2="Diabetes", SUMIFS(CCGData!C:C,CCGData!A:A,Settings!$B$1, CCGData!B:B,CurrentData!A70), SUMIFS(CCGData!D:D,CCGData!A:A,Settings!$B$1, CCGData!B:B,CurrentData!A70)))) -> 30 | H70: =IF(Settings!$B$2="Asthma", SUMIFS(CCGData!J:J,CCGData!A:A,Settings!$B$1, CCGData!B:B,CurrentData!A70), IF(Settings!$B$2="Diabetes", SUMIFS(CCGData!F:F,CCGData!A:A,Settings!$B$1, CCGData!B:B,CurrentData!A70), SUMIFS(CCGData!H:H,CCGData!A:A,Settings!$B$1, CCGData!B:B,CurrentData!A70))) -> 34 | I70: =IF(Settings!$B$2="Asthma", SUMIFS(CCGData!K:K,CCGData!A:A,Settings!$B$1, CCGData!B:B,CurrentData!A70), IF(Settings!$B$2="Diabetes", SUMIFS(CCGData!G:G,CCGData!A:A,Settings!$B$1, CCGData!B:B,CurrentData!A70), SUMIFS(CCGData!I:I,CCGData!A:A,Settings!$B$1, CCGData!B:B,CurrentData!A70))) -> 30 | J70: 1.133333333 | K70: 0.7848662795 | L70: 1.583719737 | M70: 70.10656197 | N70: 47.30060297 | O70: 100.0814764 | P70: 79.45410357 | Q70: 55.02427646 | R70: 111.0291459 | S70: 45.59871108 | T70: 88.61746625 | U70: 1.625 | V70: =VLOOKUP(Selections_data_CCG!$G$2,CurrentData!A:R,13,FALSE) -> 77.70951213 | W70: =IF(Settings!$B$5="4SIMILAR", VLOOKUP(Selections_data_CCG!$G$2,'CurrentData-4SIMILAR'!A:R,13,FALSE), VLOOKUP(Settings!$C$5,CurrentData!A:R,13,FALSE)) -> 26.11663851 | X70: =VLOOKUP(Selections_data_CCG!$G$2,CurrentData!A:R,16,FALSE) -> 672.6729644 | Y70: =IF(Settings!$B$5="4SIMILAR", VLOOKUP(Selections_data_CCG!$G$2,'CurrentData-4SIMILAR'!A:R,16,FALSE), VLOOKUP(Settings!$C$5,CurrentData!A:R,16,FALSE)) -> 36.90068939 | Z70: =VLOOKUP(Selections_data_CCG!$G$2,CurrentData!A:R,10,FALSE) -> 8.147058824 | AA70: =IF(Settings!$B$5="4SIMILAR", VLOOKUP(Selections_data_CCG!$G$2,'CurrentData-4SIMILAR'!A:R,10,FALSE), VLOOKUP(Settings!$C$5,CurrentData!A:R,10,FALSE)) -> 0.8745874587 | AB70: =IF(IF(G70=0,"",COUNTIF(G$12:G$222,"<>0")-(RANK(M70,$M$12:$M$222)+COUNTIF($M$12:M70,M70)-2))<=INT(0.05*COUNTIF(G$12:G$222,"<>0")),"TOP5", IF(IF(G70=0,"",COUNTIF(G$12:G$222,"<>0")-(RANK(M70,$M$12:$M$222)+COUNTIF($M$12:M70,M70)-2))<=INT(0.25*COUNTIF(G$12:G$222,"<>0")),"TOP25", "")) ->  | AC70: =IF(IF(H70=0,"",COUNTIF(H$12:H$222,"<>0")-(RANK(P70,$P$12:$P$222)+COUNTIF($P$12:P70,P70)-2))<=INT(0.05*COUNTIF(H$12:H$222,"<>0")),"TOP5", IF(IF(H70=0,"",COUNTIF(H$12:H$222,"<>0")-(RANK(P70,$P$12:$P$222)+COUNTIF($P$12:P70,P70)-2))<=INT(0.25*COUNTIF(H$12:H$222,"<>0")),"TOP25", "")) -> TOP25 | AD70: =IF(IF(J70="Suppressed","",COUNTIF(J$12:J$222,"<>Suppressed")-(RANK(J70,$J$12:$J$222)+COUNTIF(J$12:$J70,J70)-2))<=INT(0.05*COUNTIF(J$12:J$222,"<>Suppressed")),"TOP5", IF(IF(J70="Suppressed","",COUNTIF(J$12:J$222,"<>Suppressed")-(RANK(J70,$J$12:$J$222)+COUNTIF(J$12:$J70,J70)-2))<=INT(0.25*COUNTIF(J$12:J$222,"<>suppressed")),"TOP25", "")) -> TOP25
A71: 02M | B71: NHS Fylde and Wyre | C71: =IF(G71=0,"",COUNTIF(G$12:G$222,"<>0")-(RANK(M71,$M$12:$M$222)+COUNTIF($M$12:M71,M71)-2)) -> 60 | D71: =IF(H71=0,"",COUNTIF(P$12:P$222,"<>Suppressed")-(RANK(P71,$P$12:$P$222)+COUNTIF($P$12:P71,P71)-2)) -> 91 | E71: =IF(J71="Suppressed","",COUNTIF(J$12:J$222,"<>Suppressed")-(RANK(J71,$J$12:$J$222)+COUNTIF($J$12:J71,J71)-2)) -> 136 | F71: =VLOOKUP(A71,population!C:O,Settings!$B$3,FALSE) -> 28500.2 | G71: =IF(ISNA(IF(Settings!$B$2="Asthma", SUMIFS(CCGData!E:E,CCGData!A:A,Settings!$B$1, CCGData!B:B,CurrentData!A71), IF(Settings!$B$2="Diabetes", SUMIFS(CCGData!C:C,CCGData!A:A,Settings!$B$1, CCGData!B:B,CurrentData!A71), SUMIFS(CCGData!D:D,CCGData!A:A,Settings!$B$1, CCGData!B:B,CurrentData!A71)))),"",IF(Settings!$B$2="Asthma", SUMIFS(CCGData!E:E,CCGData!A:A,Settings!$B$1, CCGData!B:B,CurrentData!A71), IF(Settings!$B$2="Diabetes", SUMIFS(CCGData!C:C,CCGData!A:A,Settings!$B$1, CCGData!B:B,CurrentData!A71), SUMIFS(CCGData!D:D,CCGData!A:A,Settings!$B$1, CCGData!B:B,CurrentData!A71)))) -> 13 | H71: =IF(Settings!$B$2="Asthma", SUMIFS(CCGData!J:J,CCGData!A:A,Settings!$B$1, CCGData!B:B,CurrentData!A71), IF(Settings!$B$2="Diabetes", SUMIFS(CCGData!F:F,CCGData!A:A,Settings!$B$1, CCGData!B:B,CurrentData!A71), SUMIFS(CCGData!H:H,CCGData!A:A,Settings!$B$1, CCGData!B:B,CurrentData!A71))) -> 30 | I71: =IF(Settings!$B$2="Asthma", SUMIFS(CCGData!K:K,CCGData!A:A,Settings!$B$1, CCGData!B:B,CurrentData!A71), IF(Settings!$B$2="Diabetes", SUMIFS(CCGData!G:G,CCGData!A:A,Settings!$B$1, CCGData!B:B,CurrentData!A71), SUMIFS(CCGData!I:I,CCGData!A:A,Settings!$B$1, CCGData!B:B,CurrentData!A71))) -> 13 | J71: 2.307692308 | K71: 1.556990309 | L71: 3.294374261 | M71: 45.61371499 | N71: 24.28738216 | O71: 78.00084181 | P71: 105.2624192 | Q71: 71.02011221 | R71: 150.2686486 | S71: 45.61371499 | T71: 89.04014721 | U71: 1.62962963 | V71: =VLOOKUP(Selections_data_CCG!$G$2,CurrentData!A:R,13,FALSE) -> 77.70951213 | W71: =IF(Settings!$B$5="4SIMILAR", VLOOKUP(Selections_data_CCG!$G$2,'CurrentData-4SIMILAR'!A:R,13,FALSE), VLOOKUP(Settings!$C$5,CurrentData!A:R,13,FALSE)) -> 26.11663851 | X71: =VLOOKUP(Selections_data_CCG!$G$2,CurrentData!A:R,16,FALSE) -> 672.6729644 | Y71: =IF(Settings!$B$5="4SIMILAR", VLOOKUP(Selections_data_CCG!$G$2,'CurrentData-4SIMILAR'!A:R,16,FALSE), VLOOKUP(Settings!$C$5,CurrentData!A:R,16,FALSE)) -> 36.90068939 | Z71: =VLOOKUP(Selections_data_CCG!$G$2,CurrentData!A:R,10,FALSE) -> 8.147058824 | AA71: =IF(Settings!$B$5="4SIMILAR", VLOOKUP(Selections_data_CCG!$G$2,'CurrentData-4SIMILAR'!A:R,10,FALSE), VLOOKUP(Settings!$C$5,CurrentData!A:R,10,FALSE)) -> 0.8745874587 | AB71: =IF(IF(G71=0,"",COUNTIF(G$12:G$222,"<>0")-(RANK(M71,$M$12:$M$222)+COUNTIF($M$12:M71,M71)-2))<=INT(0.05*COUNTIF(G$12:G$222,"<>0")),"TOP5", IF(IF(G71=0,"",COUNTIF(G$12:G$222,"<>0")-(RANK(M71,$M$12:$M$222)+COUNTIF($M$12:M71,M71)-2))<=INT(0.25*COUNTIF(G$12:G$222,"<>0")),"TOP25", "")) ->  | AC71: =IF(IF(H71=0,"",COUNTIF(H$12:H$222,"<>0")-(RANK(P71,$P$12:$P$222)+COUNTIF($P$12:P71,P71)-2))<=INT(0.05*COUNTIF(H$12:H$222,"<>0")),"TOP5", IF(IF(H71=0,"",COUNTIF(H$12:H$222,"<>0")-(RANK(P71,$P$12:$P$222)+COUNTIF($P$12:P71,P71)-2))<=INT(0.25*COUNTIF(H$12:H$222,"<>0")),"TOP25", "")) ->  | AD71: =IF(IF(J71="Suppressed","",COUNTIF(J$12:J$222,"<>Suppressed")-(RANK(J71,$J$12:$J$222)+COUNTIF(J$12:$J71,J71)-2))<=INT(0.05*COUNTIF(J$12:J$222,"<>Suppressed")),"TOP5", IF(IF(J71="Suppressed","",COUNTIF(J$12:J$222,"<>Suppressed")-(RANK(J71,$J$12:$J$222)+COUNTIF(J$12:$J71,J71)-2))<=INT(0.25*COUNTIF(J$12:J$222,"<>suppressed")),"TOP25", "")) -> 
A72: 00F | B72: NHS Gateshead | C72: =IF(G72=0,"",COUNTIF(G$12:G$222,"<>0")-(RANK(M72,$M$12:$M$222)+COUNTIF($M$12:M72,M72)-2)) -> 185 | D72: =IF(H72=0,"",COUNTIF(P$12:P$222,"<>Suppressed")-(RANK(P72,$P$12:$P$222)+COUNTIF($P$12:P72,P72)-2)) -> 49 | E72: =IF(J72="Suppressed","",COUNTIF(J$12:J$222,"<>Suppressed")-(RANK(J72,$J$12:$J$222)+COUNTIF($J$12:J72,J72)-2)) -> 11 | F72: =VLOOKUP(A72,population!C:O,Settings!$B$3,FALSE) -> 42112 | G72: =IF(ISNA(IF(Settings!$B$2="Asthma", SUMIFS(CCGData!E:E,CCGData!A:A,Settings!$B$1, CCGData!B:B,CurrentData!A72), IF(Settings!$B$2="Diabetes", SUMIFS(CCGData!C:C,CCGData!A:A,Settings!$B$1, CCGData!B:B,CurrentData!A72), SUMIFS(CCGData!D:D,CCGData!A:A,Settings!$B$1, CCGData!B:B,CurrentData!A72)))),"",IF(Settings!$B$2="Asthma", SUMIFS(CCGData!E:E,CCGData!A:A,Settings!$B$1, CCGData!B:B,CurrentData!A72), IF(Settings!$B$2="Diabetes", SUMIFS(CCGData!C:C,CCGData!A:A,Settings!$B$1, CCGData!B:B,CurrentData!A72), SUMIFS(CCGData!D:D,CCGData!A:A,Settings!$B$1, CCGData!B:B,CurrentData!A72)))) -> 33 | H72: =IF(Settings!$B$2="Asthma", SUMIFS(CCGData!J:J,CCGData!A:A,Settings!$B$1, CCGData!B:B,CurrentData!A72), IF(Settings!$B$2="Diabetes", SUMIFS(CCGData!F:F,CCGData!A:A,Settings!$B$1, CCGData!B:B,CurrentData!A72), SUMIFS(CCGData!H:H,CCGData!A:A,Settings!$B$1, CCGData!B:B,CurrentData!A72))) -> 34 | I72: =IF(Settings!$B$2="Asthma", SUMIFS(CCGData!K:K,CCGData!A:A,Settings!$B$1, CCGData!B:B,CurrentData!A72), IF(Settings!$B$2="Diabetes", SUMIFS(CCGData!G:G,CCGData!A:A,Settings!$B$1, CCGData!B:B,CurrentData!A72), SUMIFS(CCGData!I:I,CCGData!A:A,Settings!$B$1, CCGData!B:B,CurrentData!A72))) -> 34 | J72: 1 | K72: 0.6925290701 | L72: 1.397399768 | M72: 78.36246201 | N72: 53.94111316 | O72: 110.0500315 | P72: 80.73708207 | Q72: 55.91277637 | R72: 112.8219797 | S72: 45.77114428 | T72: 89.61298752 | U72: 1.631578947 | V72: =VLOOKUP(Selections_data_CCG!$G$2,CurrentData!A:R,13,FALSE) -> 77.70951213 | W72: =IF(Settings!$B$5="4SIMILAR", VLOOKUP(Selections_data_CCG!$G$2,'CurrentData-4SIMILAR'!A:R,13,FALSE), VLOOKUP(Settings!$C$5,CurrentData!A:R,13,FALSE)) -> 26.11663851 | X72: =VLOOKUP(Selections_data_CCG!$G$2,CurrentData!A:R,16,FALSE) -> 672.6729644 | Y72: =IF(Settings!$B$5="4SIMILAR", VLOOKUP(Selections_data_CCG!$G$2,'CurrentData-4SIMILAR'!A:R,16,FALSE), VLOOKUP(Settings!$C$5,CurrentData!A:R,16,FALSE)) -> 36.90068939 | Z72: =VLOOKUP(Selections_data_CCG!$G$2,CurrentData!A:R,10,FALSE) -> 8.147058824 | AA72: =IF(Settings!$B$5="4SIMILAR", VLOOKUP(Selections_data_CCG!$G$2,'CurrentData-4SIMILAR'!A:R,10,FALSE), VLOOKUP(Settings!$C$5,CurrentData!A:R,10,FALSE)) -> 0.8745874587 | AB72: =IF(IF(G72=0,"",COUNTIF(G$12:G$222,"<>0")-(RANK(M72,$M$12:$M$222)+COUNTIF($M$12:M72,M72)-2))<=INT(0.05*COUNTIF(G$12:G$222,"<>0")),"TOP5", IF(IF(G72=0,"",COUNTIF(G$12:G$222,"<>0")-(RANK(M72,$M$12:$M$222)+COUNTIF($M$12:M72,M72)-2))<=INT(0.25*COUNTIF(G$12:G$222,"<>0")),"TOP25", "")) ->  | AC72: =IF(IF(H72=0,"",COUNTIF(H$12:H$222,"<>0")-(RANK(P72,$P$12:$P$222)+COUNTIF($P$12:P72,P72)-2))<=INT(0.05*COUNTIF(H$12:H$222,"<>0")),"TOP5", IF(IF(H72=0,"",COUNTIF(H$12:H$222,"<>0")-(RANK(P72,$P$12:$P$222)+COUNTIF($P$12:P72,P72)-2))<=INT(0.25*COUNTIF(H$12:H$222,"<>0")),"TOP25", "")) -> TOP25 | AD72: =IF(IF(J72="Suppressed","",COUNTIF(J$12:J$222,"<>Suppressed")-(RANK(J72,$J$12:$J$222)+COUNTIF(J$12:$J72,J72)-2))<=INT(0.05*COUNTIF(J$12:J$222,"<>Suppressed")),"TOP5", IF(IF(J72="Suppressed","",COUNTIF(J$12:J$222,"<>Suppressed")-(RANK(J72,$J$12:$J$222)+COUNTIF(J$12:$J72,J72)-2))<=INT(0.25*COUNTIF(J$12:J$222,"<>suppressed")),"TOP25", "")) -> TOP25
A73: 11M | B73: NHS Gloucestershire | C73: =IF(G73=0,"",COUNTIF(G$12:G$222,"<>0")-(RANK(M73,$M$12:$M$222)+COUNTIF($M$12:M73,M73)-2)) -> 174 | D73: =IF(H73=0,"",COUNTIF(P$12:P$222,"<>Suppressed")-(RANK(P73,$P$12:$P$222)+COUNTIF($P$12:P73,P73)-2)) -> 194 | E73: =IF(J73="Suppressed","",COUNTIF(J$12:J$222,"<>Suppressed")-(RANK(J73,$J$12:$J$222)+COUNTIF($J$12:J73,J73)-2)) -> 165 | F73: =VLOOKUP(A73,population!C:O,Settings!$B$3,FALSE) -> 132535.4 | G73: =IF(ISNA(IF(Settings!$B$2="Asthma", SUMIFS(CCGData!E:E,CCGData!A:A,Settings!$B$1, CCGData!B:B,CurrentData!A73), IF(Settings!$B$2="Diabetes", SUMIFS(CCGData!C:C,CCGData!A:A,Settings!$B$1, CCGData!B:B,CurrentData!A73), SUMIFS(CCGData!D:D,CCGData!A:A,Settings!$B$1, CCGData!B:B,CurrentData!A73)))),"",IF(Settings!$B$2="Asthma", SUMIFS(CCGData!E:E,CCGData!A:A,Settings!$B$1, CCGData!B:B,CurrentData!A73), IF(Settings!$B$2="Diabetes", SUMIFS(CCGData!C:C,CCGData!A:A,Settings!$B$1, CCGData!B:B,CurrentData!A73), SUMIFS(CCGData!D:D,CCGData!A:A,Settings!$B$1, CCGData!B:B,CurrentData!A73)))) -> 97 | H73: =IF(Settings!$B$2="Asthma", SUMIFS(CCGData!J:J,CCGData!A:A,Settings!$B$1, CCGData!B:B,CurrentData!A73), IF(Settings!$B$2="Diabetes", SUMIFS(CCGData!F:F,CCGData!A:A,Settings!$B$1, CCGData!B:B,CurrentData!A73), SUMIFS(CCGData!H:H,CCGData!A:A,Settings!$B$1, CCGData!B:B,CurrentData!A73))) -> 269 | I73: =IF(Settings!$B$2="Asthma", SUMIFS(CCGData!K:K,CCGData!A:A,Settings!$B$1, CCGData!B:B,CurrentData!A73), IF(Settings!$B$2="Diabetes", SUMIFS(CCGData!G:G,CCGData!A:A,Settings!$B$1, CCGData!B:B,CurrentData!A73), SUMIFS(CCGData!I:I,CCGData!A:A,Settings!$B$1, CCGData!B:B,CurrentData!A73))) -> 102 | J73: 2.637254902 | K73: 2.331486048 | L73: 2.971979779 | M73: 73.18799355 | N73: 59.35053244 | O73: 89.28314543 | P73: 202.9646419 | Q73: 179.4324964 | R73: 228.7252594 | S73: 45.84001834 | T73: 91.13251255 | U73: 1.634146341 | V73: =VLOOKUP(Selections_data_CCG!$G$2,CurrentData!A:R,13,FALSE) -> 77.70951213 | W73: =IF(Settings!$B$5="4SIMILAR", VLOOKUP(Selections_data_CCG!$G$2,'CurrentData-4SIMILAR'!A:R,13,FALSE), VLOOKUP(Settings!$C$5,CurrentData!A:R,13,FALSE)) -> 26.11663851 | X73: =VLOOKUP(Selections_data_CCG!$G$2,CurrentData!A:R,16,FALSE) -> 672.6729644 | Y73: =IF(Settings!$B$5="4SIMILAR", VLOOKUP(Selections_data_CCG!$G$2,'CurrentData-4SIMILAR'!A:R,16,FALSE), VLOOKUP(Settings!$C$5,CurrentData!A:R,16,FALSE)) -> 36.90068939 | Z73: =VLOOKUP(Selections_data_CCG!$G$2,CurrentData!A:R,10,FALSE) -> 8.147058824 | AA73: =IF(Settings!$B$5="4SIMILAR", VLOOKUP(Selections_data_CCG!$G$2,'CurrentData-4SIMILAR'!A:R,10,FALSE), VLOOKUP(Settings!$C$5,CurrentData!A:R,10,FALSE)) -> 0.8745874587 | AB73: =IF(IF(G73=0,"",COUNTIF(G$12:G$222,"<>0")-(RANK(M73,$M$12:$M$222)+COUNTIF($M$12:M73,M73)-2))<=INT(0.05*COUNTIF(G$12:G$222,"<>0")),"TOP5", IF(IF(G73=0,"",COUNTIF(G$12:G$222,"<>0")-(RANK(M73,$M$12:$M$222)+COUNTIF($M$12:M73,M73)-2))<=INT(0.25*COUNTIF(G$12:G$222,"<>0")),"TOP25", "")) ->  | AC73: =IF(IF(H73=0,"",COUNTIF(H$12:H$222,"<>0")-(RANK(P73,$P$12:$P$222)+COUNTIF($P$12:P73,P73)-2))<=INT(0.05*COUNTIF(H$12:H$222,"<>0")),"TOP5", IF(IF(H73=0,"",COUNTIF(H$12:H$222,"<>0")-(RANK(P73,$P$12:$P$222)+COUNTIF($P$12:P73,P73)-2))<=INT(0.25*COUNTIF(H$12:H$222,"<>0")),"TOP25", "")) ->  | AD73: =IF(IF(J73="Suppressed","",COUNTIF(J$12:J$222,"<>Suppressed")-(RANK(J73,$J$12:$J$222)+COUNTIF(J$12:$J73,J73)-2))<=INT(0.05*COUNTIF(J$12:J$222,"<>Suppressed")),"TOP5", IF(IF(J73="Suppressed","",COUNTIF(J$12:J$222,"<>Suppressed")-(RANK(J73,$J$12:$J$222)+COUNTIF(J$12:$J73,J73)-2))<=INT(0.25*COUNTIF(J$12:J$222,"<>suppressed")),"TOP25", "")) -> 
A74: 06M | B74: NHS Great Yarmouth and Waveney | C74: =IF(G74=0,"",COUNTIF(G$12:G$222,"<>0")-(RANK(M74,$M$12:$M$222)+COUNTIF($M$12:M74,M74)-2)) -> 180 | D74: =IF(H74=0,"",COUNTIF(P$12:P$222,"<>Suppressed")-(RANK(P74,$P$12:$P$222)+COUNTIF($P$12:P74,P74)-2)) -> 145 | E74: =IF(J74="Suppressed","",COUNTIF(J$12:J$222,"<>Suppressed")-(RANK(J74,$J$12:$J$222)+COUNTIF($J$12:J74,J74)-2)) -> 84 | F74: =VLOOKUP(A74,population!C:O,Settings!$B$3,FALSE) -> 46960.6 | G74: =IF(ISNA(IF(Settings!$B$2="Asthma", SUMIFS(CCGData!E:E,CCGData!A:A,Settings!$B$1, CCGData!B:B,CurrentData!A74), IF(Settings!$B$2="Diabetes", SUMIFS(CCGData!C:C,CCGData!A:A,Settings!$B$1, CCGData!B:B,CurrentData!A74), SUMIFS(CCGData!D:D,CCGData!A:A,Settings!$B$1, CCGData!B:B,CurrentData!A74)))),"",IF(Settings!$B$2="Asthma", SUMIFS(CCGData!E:E,CCGData!A:A,Settings!$B$1, CCGData!B:B,CurrentData!A74), IF(Settings!$B$2="Diabetes", SUMIFS(CCGData!C:C,CCGData!A:A,Settings!$B$1, CCGData!B:B,CurrentData!A74), SUMIFS(CCGData!D:D,CCGData!A:A,Settings!$B$1, CCGData!B:B,CurrentData!A74)))) -> 36 | H74: =IF(Settings!$B$2="Asthma", SUMIFS(CCGData!J:J,CCGData!A:A,Settings!$B$1, CCGData!B:B,CurrentData!A74), IF(Settings!$B$2="Diabetes", SUMIFS(CCGData!F:F,CCGData!A:A,Settings!$B$1, CCGData!B:B,CurrentData!A74), SUMIFS(CCGData!H:H,CCGData!A:A,Settings!$B$1, CCGData!B:B,CurrentData!A74))) -> 67 | I74: =IF(Settings!$B$2="Asthma", SUMIFS(CCGData!K:K,CCGData!A:A,Settings!$B$1, CCGData!B:B,CurrentData!A74), IF(Settings!$B$2="Diabetes", SUMIFS(CCGData!G:G,CCGData!A:A,Settings!$B$1, CCGData!B:B,CurrentData!A74), SUMIFS(CCGData!I:I,CCGData!A:A,Settings!$B$1, CCGData!B:B,CurrentData!A74))) -> 37 | J74: 1.810810811 | K74: 1.403353506 | L74: 2.29966572 | M74: 76.6600086 | N74: 53.69172757 | O74: 106.1297651 | P74: 142.6727938 | Q74: 110.5694555 | R74: 181.1894048 | S74: 45.9769511 | T74: 91.54228856 | U74: 1.636363636 | V74: =VLOOKUP(Selections_data_CCG!$G$2,CurrentData!A:R,13,FALSE) -> 77.70951213 | W74: =IF(Settings!$B$5="4SIMILAR", VLOOKUP(Selections_data_CCG!$G$2,'CurrentData-4SIMILAR'!A:R,13,FALSE), VLOOKUP(Settings!$C$5,CurrentData!A:R,13,FALSE)) -> 26.11663851 | X74: =VLOOKUP(Selections_data_CCG!$G$2,CurrentData!A:R,16,FALSE) -> 672.6729644 | Y74: =IF(Settings!$B$5="4SIMILAR", VLOOKUP(Selections_data_CCG!$G$2,'CurrentData-4SIMILAR'!A:R,16,FALSE), VLOOKUP(Settings!$C$5,CurrentData!A:R,16,FALSE)) -> 36.90068939 | Z74: =VLOOKUP(Selections_data_CCG!$G$2,CurrentData!A:R,10,FALSE) -> 8.147058824 | AA74: =IF(Settings!$B$5="4SIMILAR", VLOOKUP(Selections_data_CCG!$G$2,'CurrentData-4SIMILAR'!A:R,10,FALSE), VLOOKUP(Settings!$C$5,CurrentData!A:R,10,FALSE)) -> 0.8745874587 | AB74: =IF(IF(G74=0,"",COUNTIF(G$12:G$222,"<>0")-(RANK(M74,$M$12:$M$222)+COUNTIF($M$12:M74,M74)-2))<=INT(0.05*COUNTIF(G$12:G$222,"<>0")),"TOP5", IF(IF(G74=0,"",COUNTIF(G$12:G$222,"<>0")-(RANK(M74,$M$12:$M$222)+COUNTIF($M$12:M74,M74)-2))<=INT(0.25*COUNTIF(G$12:G$222,"<>0")),"TOP25", "")) ->  | AC74: =IF(IF(H74=0,"",COUNTIF(H$12:H$222,"<>0")-(RANK(P74,$P$12:$P$222)+COUNTIF($P$12:P74,P74)-2))<=INT(0.05*COUNTIF(H$12:H$222,"<>0")),"TOP5", IF(IF(H74=0,"",COUNTIF(H$12:H$222,"<>0")-(RANK(P74,$P$12:$P$222)+COUNTIF($P$12:P74,P74)-2))<=INT(0.25*COUNTIF(H$12:H$222,"<>0")),"TOP25", "")) ->  | AD74: =IF(IF(J74="Suppressed","",COUNTIF(J$12:J$222,"<>Suppressed")-(RANK(J74,$J$12:$J$222)+COUNTIF(J$12:$J74,J74)-2))<=INT(0.05*COUNTIF(J$12:J$222,"<>Suppressed")),"TOP5", IF(IF(J74="Suppressed","",COUNTIF(J$12:J$222,"<>Suppressed")-(RANK(J74,$J$12:$J$222)+COUNTIF(J$12:$J74,J74)-2))<=INT(0.25*COUNTIF(J$12:J$222,"<>suppressed")),"TOP25", "")) -> 
A75: 03A | B75: NHS Greater Huddersfield | C75: =IF(G75=0,"",COUNTIF(G$12:G$222,"<>0")-(RANK(M75,$M$12:$M$222)+COUNTIF($M$12:M75,M75)-2)) -> 182 | D75: =IF(H75=0,"",COUNTIF(P$12:P$222,"<>Suppressed")-(RANK(P75,$P$12:$P$222)+COUNTIF($P$12:P75,P75)-2)) -> 81 | E75: =IF(J75="Suppressed","",COUNTIF(J$12:J$222,"<>Suppressed")-(RANK(J75,$J$12:$J$222)+COUNTIF($J$12:J75,J75)-2)) -> 24 | F75: =VLOOKUP(A75,population!C:O,Settings!$B$3,FALSE) -> 54114.4 | G75: =IF(ISNA(IF(Settings!$B$2="Asthma", SUMIFS(CCGData!E:E,CCGData!A:A,Settings!$B$1, CCGData!B:B,CurrentData!A75), IF(Settings!$B$2="Diabetes", SUMIFS(CCGData!C:C,CCGData!A:A,Settings!$B$1, CCGData!B:B,CurrentData!A75), SUMIFS(CCGData!D:D,CCGData!A:A,Settings!$B$1, CCGData!B:B,CurrentData!A75)))),"",IF(Settings!$B$2="Asthma", SUMIFS(CCGData!E:E,CCGData!A:A,Settings!$B$1, CCGData!B:B,CurrentData!A75), IF(Settings!$B$2="Diabetes", SUMIFS(CCGData!C:C,CCGData!A:A,Settings!$B$1, CCGData!B:B,CurrentData!A75), SUMIFS(CCGData!D:D,CCGData!A:A,Settings!$B$1, CCGData!B:B,CurrentData!A75)))) -> 42 | H75: =IF(Settings!$B$2="Asthma", SUMIFS(CCGData!J:J,CCGData!A:A,Settings!$B$1, CCGData!B:B,CurrentData!A75), IF(Settings!$B$2="Diabetes", SUMIFS(CCGData!F:F,CCGData!A:A,Settings!$B$1, CCGData!B:B,CurrentData!A75), SUMIFS(CCGData!H:H,CCGData!A:A,Settings!$B$1, CCGData!B:B,CurrentData!A75))) -> 54 | I75: =IF(Settings!$B$2="Asthma", SUMIFS(CCGData!K:K,CCGData!A:A,Settings!$B$1, CCGData!B:B,CurrentData!A75), IF(Settings!$B$2="Diabetes", SUMIFS(CCGData!G:G,CCGData!A:A,Settings!$B$1, CCGData!B:B,CurrentData!A75), SUMIFS(CCGData!I:I,CCGData!A:A,Settings!$B$1, CCGData!B:B,CurrentData!A75))) -> 43 | J75: 1.255813953 | K75: 0.9434060924 | L75: 1.6385648 | M75: 77.61335245 | N75: 55.93687767 | O75: 104.9107054 | P75: 99.78859601 | Q75: 74.96426454 | R75: 130.2024718 | S75: 46.2377596 | T75: 91.8082766 | U75: 1.647058824 | V75: =VLOOKUP(Selections_data_CCG!$G$2,CurrentData!A:R,13,FALSE) -> 77.70951213 | W75: =IF(Settings!$B$5="4SIMILAR", VLOOKUP(Selections_data_CCG!$G$2,'CurrentData-4SIMILAR'!A:R,13,FALSE), VLOOKUP(Settings!$C$5,CurrentData!A:R,13,FALSE)) -> 26.11663851 | X75: =VLOOKUP(Selections_data_CCG!$G$2,CurrentData!A:R,16,FALSE) -> 672.6729644 | Y75: =IF(Settings!$B$5="4SIMILAR", VLOOKUP(Selections_data_CCG!$G$2,'CurrentData-4SIMILAR'!A:R,16,FALSE), VLOOKUP(Settings!$C$5,CurrentData!A:R,16,FALSE)) -> 36.90068939 | Z75: =VLOOKUP(Selections_data_CCG!$G$2,CurrentData!A:R,10,FALSE) -> 8.147058824 | AA75: =IF(Settings!$B$5="4SIMILAR", VLOOKUP(Selections_data_CCG!$G$2,'CurrentData-4SIMILAR'!A:R,10,FALSE), VLOOKUP(Settings!$C$5,CurrentData!A:R,10,FALSE)) -> 0.8745874587 | AB75: =IF(IF(G75=0,"",COUNTIF(G$12:G$222,"<>0")-(RANK(M75,$M$12:$M$222)+COUNTIF($M$12:M75,M75)-2))<=INT(0.05*COUNTIF(G$12:G$222,"<>0")),"TOP5", IF(IF(G75=0,"",COUNTIF(G$12:G$222,"<>0")-(RANK(M75,$M$12:$M$222)+COUNTIF($M$12:M75,M75)-2))<=INT(0.25*COUNTIF(G$12:G$222,"<>0")),"TOP25", "")) ->  | AC75: =IF(IF(H75=0,"",COUNTIF(H$12:H$222,"<>0")-(RANK(P75,$P$12:$P$222)+COUNTIF($P$12:P75,P75)-2))<=INT(0.05*COUNTIF(H$12:H$222,"<>0")),"TOP5", IF(IF(H75=0,"",COUNTIF(H$12:H$222,"<>0")-(RANK(P75,$P$12:$P$222)+COUNTIF($P$12:P75,P75)-2))<=INT(0.25*COUNTIF(H$12:H$222,"<>0")),"TOP25", "")) ->  | AD75: =IF(IF(J75="Suppressed","",COUNTIF(J$12:J$222,"<>Suppressed")-(RANK(J75,$J$12:$J$222)+COUNTIF(J$12:$J75,J75)-2))<=INT(0.05*COUNTIF(J$12:J$222,"<>Suppressed")),"TOP5", IF(IF(J75="Suppressed","",COUNTIF(J$12:J$222,"<>Suppressed")-(RANK(J75,$J$12:$J$222)+COUNTIF(J$12:$J75,J75)-2))<=INT(0.25*COUNTIF(J$12:J$222,"<>suppressed")),"TOP25", "")) -> TOP25
A76: 01E | B76: NHS Greater Preston | C76: =IF(G76=0,"",COUNTIF(G$12:G$222,"<>0")-(RANK(M76,$M$12:$M$222)+COUNTIF($M$12:M76,M76)-2)) -> 195 | D76: =IF(H76=0,"",COUNTIF(P$12:P$222,"<>Suppressed")-(RANK(P76,$P$12:$P$222)+COUNTIF($P$12:P76,P76)-2)) -> 184 | E76: =IF(J76="Suppressed","",COUNTIF(J$12:J$222,"<>Suppressed")-(RANK(J76,$J$12:$J$222)+COUNTIF($J$12:J76,J76)-2)) -> 121 | F76: =VLOOKUP(A76,population!C:O,Settings!$B$3,FALSE) -> 46433 | G76: =IF(ISNA(IF(Settings!$B$2="Asthma", SUMIFS(CCGData!E:E,CCGData!A:A,Settings!$B$1, CCGData!B:B,CurrentData!A76), IF(Settings!$B$2="Diabetes", SUMIFS(CCGData!C:C,CCGData!A:A,Settings!$B$1, CCGData!B:B,CurrentData!A76), SUMIFS(CCGData!D:D,CCGData!A:A,Settings!$B$1, CCGData!B:B,CurrentData!A76)))),"",IF(Settings!$B$2="Asthma", SUMIFS(CCGData!E:E,CCGData!A:A,Settings!$B$1, CCGData!B:B,CurrentData!A76), IF(Settings!$B$2="Diabetes", SUMIFS(CCGData!C:C,CCGData!A:A,Settings!$B$1, CCGData!B:B,CurrentData!A76), SUMIFS(CCGData!D:D,CCGData!A:A,Settings!$B$1, CCGData!B:B,CurrentData!A76)))) -> 40 | H76: =IF(Settings!$B$2="Asthma", SUMIFS(CCGData!J:J,CCGData!A:A,Settings!$B$1, CCGData!B:B,CurrentData!A76), IF(Settings!$B$2="Diabetes", SUMIFS(CCGData!F:F,CCGData!A:A,Settings!$B$1, CCGData!B:B,CurrentData!A76), SUMIFS(CCGData!H:H,CCGData!A:A,Settings!$B$1, CCGData!B:B,CurrentData!A76))) -> 85 | I76: =IF(Settings!$B$2="Asthma", SUMIFS(CCGData!K:K,CCGData!A:A,Settings!$B$1, CCGData!B:B,CurrentData!A76), IF(Settings!$B$2="Diabetes", SUMIFS(CCGData!G:G,CCGData!A:A,Settings!$B$1, CCGData!B:B,CurrentData!A76), SUMIFS(CCGData!I:I,CCGData!A:A,Settings!$B$1, CCGData!B:B,CurrentData!A76))) -> 40 | J76: 2.125 | K76: 1.697374525 | L76: 2.627595408 | M76: 86.14562919 | N76: =IF(G76=0,0,IF(G76<389,CHIINV(0.5+95/200,2*G76)/2,G76*(1-1/(9*G76)-NORMSINV(0.5+95/200)/3/SQRT(G76))^3))/F76*100000 -> 61.54370048 | O76: =IF(G76=0,0,IF(G76<389,CHIINV(0.5-95/200,2*G76+2)/2,(G76+1)*(1-1/(9*(G76+1))+NORMSINV(0.5+95/200)/3/SQRT(G76+1))^3)/F76*100000) -> 117.3058966 | P76: 183.059462 | Q76: =IF(H76=0,0,IF(H76<389,CHIINV(0.5+95/200,2*H76)/2,H76*(1-1/(9*H76)-NORMSINV(0.5+95/200)/3/SQRT(H76))^3))/F76*100000 -> 146.2213964 | R76: =IF(H76=0,0,IF(H76<389,CHIINV(0.5-95/200,2*H76+2)/2,(H76+1)*(1-1/(9*(H76+1))+NORMSINV(0.5+95/200)/3/SQRT(H76+1))^3)/F76*100000) -> 226.3558597 | S76: =VLOOKUP(ROW(S76)-11,C:R,11,FALSE) -> 46.57723837 | T76: =VLOOKUP(ROW(T76)-11,D:R,13,FALSE) -> 92.19737067 | U76: 1.647058824 | V76: =VLOOKUP(Selections_data_CCG!$G$2,CurrentData!A:R,13,FALSE) -> 77.70951213 | W76: =IF(Settings!$B$5="4SIMILAR", VLOOKUP(Selections_data_CCG!$G$2,'CurrentData-4SIMILAR'!A:R,13,FALSE), VLOOKUP(Settings!$C$5,CurrentData!A:R,13,FALSE)) -> 26.11663851 | X76: =VLOOKUP(Selections_data_CCG!$G$2,CurrentData!A:R,16,FALSE) -> 672.6729644 | Y76: =IF(Settings!$B$5="4SIMILAR", VLOOKUP(Selections_data_CCG!$G$2,'CurrentData-4SIMILAR'!A:R,16,FALSE), VLOOKUP(Settings!$C$5,CurrentData!A:R,16,FALSE)) -> 36.90068939 | Z76: =VLOOKUP(Selections_data_CCG!$G$2,CurrentData!A:R,10,FALSE) -> 8.147058824 | AA76: =IF(Settings!$B$5="4SIMILAR", VLOOKUP(Selections_data_CCG!$G$2,'CurrentData-4SIMILAR'!A:R,10,FALSE), VLOOKUP(Settings!$C$5,CurrentData!A:R,10,FALSE)) -> 0.8745874587 | AB76: =IF(IF(G76=0,"",COUNTIF(G$12:G$222,"<>0")-(RANK(M76,$M$12:$M$222)+COUNTIF($M$12:M76,M76)-2))<=INT(0.05*COUNTIF(G$12:G$222,"<>0")),"TOP5", IF(IF(G76=0,"",COUNTIF(G$12:G$222,"<>0")-(RANK(M76,$M$12:$M$222)+COUNTIF($M$12:M76,M76)-2))<=INT(0.25*COUNTIF(G$12:G$222,"<>0")),"TOP25", "")) ->  | AC76: =IF(IF(H76=0,"",COUNTIF(H$12:H$222,"<>0")-(RANK(P76,$P$12:$P$222)+COUNTIF($P$12:P76,P76)-2))<=INT(0.05*COUNTIF(H$12:H$222,"<>0")),"TOP5", IF(IF(H76=0,"",COUNTIF(H$12:H$222,"<>0")-(RANK(P76,$P$12:$P$222)+COUNTIF($P$12:P76,P76)-2))<=INT(0.25*COUNTIF(H$12:H$222,"<>0")),"TOP25", "")) ->  | AD76: =IF(IF(J76="Suppressed","",COUNTIF(J$12:J$222,"<>Suppressed")-(RANK(J76,$J$12:$J$222)+COUNTIF(J$12:$J76,J76)-2))<=INT(0.05*COUNTIF(J$12:J$222,"<>Suppressed")),"TOP5", IF(IF(J76="Suppressed","",COUNTIF(J$12:J$222,"<>Suppressed")-(RANK(J76,$J$12:$J$222)+COUNTIF(J$12:$J76,J76)-2))<=INT(0.25*COUNTIF(J$12:J$222,"<>suppressed")),"TOP25", "")) -> 
A77: 08A | B77: NHS Greenwich | C77: =IF(G77=0,"",COUNTIF(G$12:G$222,"<>0")-(RANK(M77,$M$12:$M$222)+COUNTIF($M$12:M77,M77)-2)) -> 66 | D77: =IF(H77=0,"",COUNTIF(P$12:P$222,"<>Suppressed")-(RANK(P77,$P$12:$P$222)+COUNTIF($P$12:P77,P77)-2)) -> 28 | E77: =IF(J77="Suppressed","",COUNTIF(J$12:J$222,"<>Suppressed")-(RANK(J77,$J$12:$J$222)+COUNTIF($J$12:J77,J77)-2)) -> 39 | F77: =VLOOKUP(A77,population!C:O,Settings!$B$3,FALSE) -> 63852.8 | G77: =IF(ISNA(IF(Settings!$B$2="Asthma", SUMIFS(CCGData!E:E,CCGData!A:A,Settings!$B$1, CCGData!B:B,CurrentData!A77), IF(Settings!$B$2="Diabetes", SUMIFS(CCGData!C:C,CCGData!A:A,Settings!$B$1, CCGData!B:B,CurrentData!A77), SUMIFS(CCGData!D:D,CCGData!A:A,Settings!$B$1, CCGData!B:B,CurrentData!A77)))),"",IF(Settings!$B$2="Asthma", SUMIFS(CCGData!E:E,CCGData!A:A,Settings!$B$1, CCGData!B:B,CurrentData!A77), IF(Settings!$B$2="Diabetes", SUMIFS(CCGData!C:C,CCGData!A:A,Settings!$B$1, CCGData!B:B,CurrentData!A77), SUMIFS(CCGData!D:D,CCGData!A:A,Settings!$B$1, CCGData!B:B,CurrentData!A77)))) -> 30 | H77: =IF(Settings!$B$2="Asthma", SUMIFS(CCGData!J:J,CCGData!A:A,Settings!$B$1, CCGData!B:B,CurrentData!A77), IF(Settings!$B$2="Diabetes", SUMIFS(CCGData!F:F,CCGData!A:A,Settings!$B$1, CCGData!B:B,CurrentData!A77), SUMIFS(CCGData!H:H,CCGData!A:A,Settings!$B$1, CCGData!B:B,CurrentData!A77))) -> 44 | I77: =IF(Settings!$B$2="Asthma", SUMIFS(CCGData!K:K,CCGData!A:A,Settings!$B$1, CCGData!B:B,CurrentData!A77), IF(Settings!$B$2="Diabetes", SUMIFS(CCGData!G:G,CCGData!A:A,Settings!$B$1, CCGData!B:B,CurrentData!A77), SUMIFS(CCGData!I:I,CCGData!A:A,Settings!$B$1, CCGData!B:B,CurrentData!A77))) -> 31 | J77: =IF(OR(I77=0,H77=0),"Suppressed",H77/I77) -> 1.419354839 | K77: =IF(J77="Suppressed","",IF(H77=0,0,IF(H77<389,CHIINV(0.5+95/200,2*H77)/2,H77*(1-1/(9*H77)-NORMSINV(0.5+95/200)/3/SQRT(H77))^3))/I77) -> 1.031305399 | L77: =IF(J77="Suppressed","",IF(H77<389,CHIINV(0.5-95/200,2*H77+2)/2,(H77+1)*(1-1/(9*(H77+1))+NORMSINV(0.5+95/200)/3/SQRT(H77+1))^3)/I77) -> 1.905417622 | M77: =IF(G77=0,"Suppressed",G77/$F77*100000) -> 46.98306104 | N77: 31.69927399 | O77: 67.07124103 | P77: =IF(H77=0,"Suppressed",H77/$F77*100000) -> 68.90848953 | Q77: 50.06901398 | R77: 92.50643085 | S77: 46.98306104 | T77: 92.62020295 | U77: =VLOOKUP(ROW(U77)-11,E:R,6,FALSE) -> 1.647058824 | V77: =VLOOKUP(Selections_data_CCG!$G$2,CurrentData!A:R,13,FALSE) -> 77.70951213 | W77: =IF(Settings!$B$5="4SIMILAR", VLOOKUP(Selections_data_CCG!$G$2,'CurrentData-4SIMILAR'!A:R,13,FALSE), VLOOKUP(Settings!$C$5,CurrentData!A:R,13,FALSE)) -> 26.11663851 | X77: =VLOOKUP(Selections_data_CCG!$G$2,CurrentData!A:R,16,FALSE) -> 672.6729644 | Y77: =IF(Settings!$B$5="4SIMILAR", VLOOKUP(Selections_data_CCG!$G$2,'CurrentData-4SIMILAR'!A:R,16,FALSE), VLOOKUP(Settings!$C$5,CurrentData!A:R,16,FALSE)) -> 36.90068939 | Z77: =VLOOKUP(Selections_data_CCG!$G$2,CurrentData!A:R,10,FALSE) -> 8.147058824 | AA77: =IF(Settings!$B$5="4SIMILAR", VLOOKUP(Selections_data_CCG!$G$2,'CurrentData-4SIMILAR'!A:R,10,FALSE), VLOOKUP(Settings!$C$5,CurrentData!A:R,10,FALSE)) -> 0.8745874587 | AB77: =IF(IF(G77=0,"",COUNTIF(G$12:G$222,"<>0")-(RANK(M77,$M$12:$M$222)+COUNTIF($M$12:M77,M77)-2))<=INT(0.05*COUNTIF(G$12:G$222,"<>0")),"TOP5", IF(IF(G77=0,"",COUNTIF(G$12:G$222,"<>0")-(RANK(M77,$M$12:$M$222)+COUNTIF($M$12:M77,M77)-2))<=INT(0.25*COUNTIF(G$12:G$222,"<>0")),"TOP25", "")) ->  | AC77: =IF(IF(H77=0,"",COUNTIF(H$12:H$222,"<>0")-(RANK(P77,$P$12:$P$222)+COUNTIF($P$12:P77,P77)-2))<=INT(0.05*COUNTIF(H$12:H$222,"<>0")),"TOP5", IF(IF(H77=0,"",COUNTIF(H$12:H$222,"<>0")-(RANK(P77,$P$12:$P$222)+COUNTIF($P$12:P77,P77)-2))<=INT(0.25*COUNTIF(H$12:H$222,"<>0")),"TOP25", "")) -> TOP25 | AD77: =IF(IF(J77="Suppressed","",COUNTIF(J$12:J$222,"<>Suppressed")-(RANK(J77,$J$12:$J$222)+COUNTIF(J$12:$J77,J77)-2))<=INT(0.05*COUNTIF(J$12:J$222,"<>Suppressed")),"TOP5", IF(IF(J77="Suppressed","",COUNTIF(J$12:J$222,"<>Suppressed")-(RANK(J77,$J$12:$J$222)+COUNTIF(J$12:$J77,J77)-2))<=INT(0.25*COUNTIF(J$12:J$222,"<>suppressed")),"TOP25", "")) -> TOP25
A78: 09N | B78: NHS Guildford and Waverley | C78: =IF(G78=0,"",COUNTIF(G$12:G$222,"<>0")-(RANK(M78,$M$12:$M$222)+COUNTIF($M$12:M78,M78)-2)) -> 24 | D78: =IF(H78=0,"",COUNTIF(P$12:P$222,"<>Suppressed")-(RANK(P78,$P$12:$P$222)+COUNTIF($P$12:P78,P78)-2)) -> 161 | E78: =IF(J78="Suppressed","",COUNTIF(J$12:J$222,"<>Suppressed")-(RANK(J78,$J$12:$J$222)+COUNTIF($J$12:J78,J78)-2)) -> 203 | F78: =VLOOKUP(A78,population!C:O,Settings!$B$3,FALSE) -> 47497.4 | G78: =IF(ISNA(IF(Settings!$B$2="Asthma", SUMIFS(CCGData!E:E,CCGData!A:A,Settings!$B$1, CCGData!B:B,CurrentData!A78), IF(Settings!$B$2="Diabetes", SUMIFS(CCGData!C:C,CCGData!A:A,Settings!$B$1, CCGData!B:B,CurrentData!A78), SUMIFS(CCGData!D:D,CCGData!A:A,Settings!$B$1, CCGData!B:B,CurrentData!A78)))),"",IF(Settings!$B$2="Asthma", SUMIFS(CCGData!E:E,CCGData!A:A,Settings!$B$1, CCGData!B:B,CurrentData!A78), IF(Settings!$B$2="Diabetes", SUMIFS(CCGData!C:C,CCGData!A:A,Settings!$B$1, CCGData!B:B,CurrentData!A78), SUMIFS(CCGData!D:D,CCGData!A:A,Settings!$B$1, CCGData!B:B,CurrentData!A78)))) -> 18 | H78: =IF(Settings!$B$2="Asthma", SUMIFS(CCGData!J:J,CCGData!A:A,Settings!$B$1, CCGData!B:B,CurrentData!A78), IF(Settings!$B$2="Diabetes", SUMIFS(CCGData!F:F,CCGData!A:A,Settings!$B$1, CCGData!B:B,CurrentData!A78), SUMIFS(CCGData!H:H,CCGData!A:A,Settings!$B$1, CCGData!B:B,CurrentData!A78))) -> 74 | I78: =IF(Settings!$B$2="Asthma", SUMIFS(CCGData!K:K,CCGData!A:A,Settings!$B$1, CCGData!B:B,CurrentData!A78), IF(Settings!$B$2="Diabetes", SUMIFS(CCGData!G:G,CCGData!A:A,Settings!$B$1, CCGData!B:B,CurrentData!A78), SUMIFS(CCGData!I:I,CCGData!A:A,Settings!$B$1, CCGData!B:B,CurrentData!A78))) -> 20 | J78: 3.7 | K78: 2.905295812 | L78: 4.645011175 | M78: 37.89681119 | N78: 22.46005209 | O78: 59.89329999 | P78: 155.7980016 | Q78: 122.334941 | R78: 195.5901239 | S78: 46.9924812 | T78: 93.1727656 | U78: 1.666666667 | V78: =VLOOKUP(Selections_data_CCG!$G$2,CurrentData!A:R,13,FALSE) -> 77.70951213 | W78: =IF(Settings!$B$5="4SIMILAR", VLOOKUP(Selections_data_CCG!$G$2,'CurrentData-4SIMILAR'!A:R,13,FALSE), VLOOKUP(Settings!$C$5,CurrentData!A:R,13,FALSE)) -> 26.11663851 | X78: =VLOOKUP(Selections_data_CCG!$G$2,CurrentData!A:R,16,FALSE) -> 672.6729644 | Y78: =IF(Settings!$B$5="4SIMILAR", VLOOKUP(Selections_data_CCG!$G$2,'CurrentData-4SIMILAR'!A:R,16,FALSE), VLOOKUP(Settings!$C$5,CurrentData!A:R,16,FALSE)) -> 36.90068939 | Z78: =VLOOKUP(Selections_data_CCG!$G$2,CurrentData!A:R,10,FALSE) -> 8.147058824 | AA78: =IF(Settings!$B$5="4SIMILAR", VLOOKUP(Selections_data_CCG!$G$2,'CurrentData-4SIMILAR'!A:R,10,FALSE), VLOOKUP(Settings!$C$5,CurrentData!A:R,10,FALSE)) -> 0.8745874587 | AB78: =IF(IF(G78=0,"",COUNTIF(G$12:G$222,"<>0")-(RANK(M78,$M$12:$M$222)+COUNTIF($M$12:M78,M78)-2))<=INT(0.05*COUNTIF(G$12:G$222,"<>0")),"TOP5", IF(IF(G78=0,"",COUNTIF(G$12:G$222,"<>0")-(RANK(M78,$M$12:$M$222)+COUNTIF($M$12:M78,M78)-2))<=INT(0.25*COUNTIF(G$12:G$222,"<>0")),"TOP25", "")) -> TOP25 | AC78: =IF(IF(H78=0,"",COUNTIF(H$12:H$222,"<>0")-(RANK(P78,$P$12:$P$222)+COUNTIF($P$12:P78,P78)-2))<=INT(0.05*COUNTIF(H$12:H$222,"<>0")),"TOP5", IF(IF(H78=0,"",COUNTIF(H$12:H$222,"<>0")-(RANK(P78,$P$12:$P$222)+COUNTIF($P$12:P78,P78)-2))<=INT(0.25*COUNTIF(H$12:H$222,"<>0")),"TOP25", "")) ->  | AD78: =IF(IF(J78="Suppressed","",COUNTIF(J$12:J$222,"<>Suppressed")-(RANK(J78,$J$12:$J$222)+COUNTIF(J$12:$J78,J78)-2))<=INT(0.05*COUNTIF(J$12:J$222,"<>Suppressed")),"TOP5", IF(IF(J78="Suppressed","",COUNTIF(J$12:J$222,"<>Suppressed")-(RANK(J78,$J$12:$J$222)+COUNTIF(J$12:$J78,J78)-2))<=INT(0.25*COUNTIF(J$12:J$222,"<>suppressed")),"TOP25", "")) -> 
A79: 01F | B79: NHS Halton | C79: =IF(G79=0,"",COUNTIF(G$12:G$222,"<>0")-(RANK(M79,$M$12:$M$222)+COUNTIF($M$12:M79,M79)-2)) -> 190 | D79: =IF(H79=0,"",COUNTIF(P$12:P$222,"<>Suppressed")-(RANK(P79,$P$12:$P$222)+COUNTIF($P$12:P79,P79)-2)) -> 65 | E79: =IF(J79="Suppressed","",COUNTIF(J$12:J$222,"<>Suppressed")-(RANK(J79,$J$12:$J$222)+COUNTIF($J$12:J79,J79)-2)) -> 15 | F79: =VLOOKUP(A79,population!C:O,Settings!$B$3,FALSE) -> 29285 | G79: =IF(ISNA(IF(Settings!$B$2="Asthma", SUMIFS(CCGData!E:E,CCGData!A:A,Settings!$B$1, CCGData!B:B,CurrentData!A79), IF(Settings!$B$2="Diabetes", SUMIFS(CCGData!C:C,CCGData!A:A,Settings!$B$1, CCGData!B:B,CurrentData!A79), SUMIFS(CCGData!D:D,CCGData!A:A,Settings!$B$1, CCGData!B:B,CurrentData!A79)))),"",IF(Settings!$B$2="Asthma", SUMIFS(CCGData!E:E,CCGData!A:A,Settings!$B$1, CCGData!B:B,CurrentData!A79), IF(Settings!$B$2="Diabetes", SUMIFS(CCGData!C:C,CCGData!A:A,Settings!$B$1, CCGData!B:B,CurrentData!A79), SUMIFS(CCGData!D:D,CCGData!A:A,Settings!$B$1, CCGData!B:B,CurrentData!A79)))) -> 24 | H79: =IF(Settings!$B$2="Asthma", SUMIFS(CCGData!J:J,CCGData!A:A,Settings!$B$1, CCGData!B:B,CurrentData!A79), IF(Settings!$B$2="Diabetes", SUMIFS(CCGData!F:F,CCGData!A:A,Settings!$B$1, CCGData!B:B,CurrentData!A79), SUMIFS(CCGData!H:H,CCGData!A:A,Settings!$B$1, CCGData!B:B,CurrentData!A79))) -> 27 | I79: =IF(Settings!$B$2="Asthma", SUMIFS(CCGData!K:K,CCGData!A:A,Settings!$B$1, CCGData!B:B,CurrentData!A79), IF(Settings!$B$2="Diabetes", SUMIFS(CCGData!G:G,CCGData!A:A,Settings!$B$1, CCGData!B:B,CurrentData!A79), SUMIFS(CCGData!I:I,CCGData!A:A,Settings!$B$1, CCGData!B:B,CurrentData!A79))) -> 26 | J79: 1.038461538 | K79: 0.6843526974 | L79: 1.510907017 | M79: 81.95321837 | N79: 52.50897338 | O79: 121.9398928 | P79: 92.19737067 | Q79: 60.75864822 | R79: 134.1423338 | S79: 47.03613551 | T79: 93.56637599 | U79: 1.666666667 | V79: =VLOOKUP(Selections_data_CCG!$G$2,CurrentData!A:R,13,FALSE) -> 77.70951213 | W79: =IF(Settings!$B$5="4SIMILAR", VLOOKUP(Selections_data_CCG!$G$2,'CurrentData-4SIMILAR'!A:R,13,FALSE), VLOOKUP(Settings!$C$5,CurrentData!A:R,13,FALSE)) -> 26.11663851 | X79: =VLOOKUP(Selections_data_CCG!$G$2,CurrentData!A:R,16,FALSE) -> 672.6729644 | Y79: =IF(Settings!$B$5="4SIMILAR", VLOOKUP(Selections_data_CCG!$G$2,'CurrentData-4SIMILAR'!A:R,16,FALSE), VLOOKUP(Settings!$C$5,CurrentData!A:R,16,FALSE)) -> 36.90068939 | Z79: =VLOOKUP(Selections_data_CCG!$G$2,CurrentData!A:R,10,FALSE) -> 8.147058824 | AA79: =IF(Settings!$B$5="4SIMILAR", VLOOKUP(Selections_data_CCG!$G$2,'CurrentData-4SIMILAR'!A:R,10,FALSE), VLOOKUP(Settings!$C$5,CurrentData!A:R,10,FALSE)) -> 0.8745874587 | AB79: =IF(IF(G79=0,"",COUNTIF(G$12:G$222,"<>0")-(RANK(M79,$M$12:$M$222)+COUNTIF($M$12:M79,M79)-2))<=INT(0.05*COUNTIF(G$12:G$222,"<>0")),"TOP5", IF(IF(G79=0,"",COUNTIF(G$12:G$222,"<>0")-(RANK(M79,$M$12:$M$222)+COUNTIF($M$12:M79,M79)-2))<=INT(0.25*COUNTIF(G$12:G$222,"<>0")),"TOP25", "")) ->  | AC79: =IF(IF(H79=0,"",COUNTIF(H$12:H$222,"<>0")-(RANK(P79,$P$12:$P$222)+COUNTIF($P$12:P79,P79)-2))<=INT(0.05*COUNTIF(H$12:H$222,"<>0")),"TOP5", IF(IF(H79=0,"",COUNTIF(H$12:H$222,"<>0")-(RANK(P79,$P$12:$P$222)+COUNTIF($P$12:P79,P79)-2))<=INT(0.25*COUNTIF(H$12:H$222,"<>0")),"TOP25", "")) ->  | AD79: =IF(IF(J79="Suppressed","",COUNTIF(J$12:J$222,"<>Suppressed")-(RANK(J79,$J$12:$J$222)+COUNTIF(J$12:$J79,J79)-2))<=INT(0.05*COUNTIF(J$12:J$222,"<>Suppressed")),"TOP5", IF(IF(J79="Suppressed","",COUNTIF(J$12:J$222,"<>Suppressed")-(RANK(J79,$J$12:$J$222)+COUNTIF(J$12:$J79,J79)-2))<=INT(0.25*COUNTIF(J$12:J$222,"<>suppressed")),"TOP25", "")) -> TOP25
A80: 03D | B80: NHS Hambleton, Richmondshire and Whitby | C80: =IF(G80=0,"",COUNTIF(G$12:G$222,"<>0")-(RANK(M80,$M$12:$M$222)+COUNTIF($M$12:M80,M80)-2)) -> 147 | D80: =IF(H80=0,"",COUNTIF(P$12:P$222,"<>Suppressed")-(RANK(P80,$P$12:$P$222)+COUNTIF($P$12:P80,P80)-2)) -> 189 | E80: =IF(J80="Suppressed","",COUNTIF(J$12:J$222,"<>Suppressed")-(RANK(J80,$J$12:$J$222)+COUNTIF($J$12:J80,J80)-2)) -> 179 | F80: =VLOOKUP(A80,population!C:O,Settings!$B$3,FALSE) -> 27847.2 | G80: =IF(ISNA(IF(Settings!$B$2="Asthma", SUMIFS(CCGData!E:E,CCGData!A:A,Settings!$B$1, CCGData!B:B,CurrentData!A80), IF(Settings!$B$2="Diabetes", SUMIFS(CCGData!C:C,CCGData!A:A,Settings!$B$1, CCGData!B:B,CurrentData!A80), SUMIFS(CCGData!D:D,CCGData!A:A,Settings!$B$1, CCGData!B:B,CurrentData!A80)))),"",IF(Settings!$B$2="Asthma", SUMIFS(CCGData!E:E,CCGData!A:A,Settings!$B$1, CCGData!B:B,CurrentData!A80), IF(Settings!$B$2="Diabetes", SUMIFS(CCGData!C:C,CCGData!A:A,Settings!$B$1, CCGData!B:B,CurrentData!A80), SUMIFS(CCGData!D:D,CCGData!A:A,Settings!$B$1, CCGData!B:B,CurrentData!A80)))) -> 18 | H80: =IF(Settings!$B$2="Asthma", SUMIFS(CCGData!J:J,CCGData!A:A,Settings!$B$1, CCGData!B:B,CurrentData!A80), IF(Settings!$B$2="Diabetes", SUMIFS(CCGData!F:F,CCGData!A:A,Settings!$B$1, CCGData!B:B,CurrentData!A80), SUMIFS(CCGData!H:H,CCGData!A:A,Settings!$B$1, CCGData!B:B,CurrentData!A80))) -> 53 | I80: =IF(Settings!$B$2="Asthma", SUMIFS(CCGData!K:K,CCGData!A:A,Settings!$B$1, CCGData!B:B,CurrentData!A80), IF(Settings!$B$2="Diabetes", SUMIFS(CCGData!G:G,CCGData!A:A,Settings!$B$1, CCGData!B:B,CurrentData!A80), SUMIFS(CCGData!I:I,CCGData!A:A,Settings!$B$1, CCGData!B:B,CurrentData!A80))) -> 18 | J80: 2.944444444 | K80: 2.205590941 | L80: 3.851405829 | M80: 64.63845557 | N80: 38.30884534 | O80: 102.1566271 | P80: 190.3243414 | Q80: 142.565992 | R80: 248.9489246 | S80: 47.20529879 | T80: 94.27355492 | U80: 1.674418605 | V80: =VLOOKUP(Selections_data_CCG!$G$2,CurrentData!A:R,13,FALSE) -> 77.70951213 | W80: =IF(Settings!$B$5="4SIMILAR", VLOOKUP(Selections_data_CCG!$G$2,'CurrentData-4SIMILAR'!A:R,13,FALSE), VLOOKUP(Settings!$C$5,CurrentData!A:R,13,FALSE)) -> 26.11663851 | X80: =VLOOKUP(Selections_data_CCG!$G$2,CurrentData!A:R,16,FALSE) -> 672.6729644 | Y80: =IF(Settings!$B$5="4SIMILAR", VLOOKUP(Selections_data_CCG!$G$2,'CurrentData-4SIMILAR'!A:R,16,FALSE), VLOOKUP(Settings!$C$5,CurrentData!A:R,16,FALSE)) -> 36.90068939 | Z80: =VLOOKUP(Selections_data_CCG!$G$2,CurrentData!A:R,10,FALSE) -> 8.147058824 | AA80: =IF(Settings!$B$5="4SIMILAR", VLOOKUP(Selections_data_CCG!$G$2,'CurrentData-4SIMILAR'!A:R,10,FALSE), VLOOKUP(Settings!$C$5,CurrentData!A:R,10,FALSE)) -> 0.8745874587 | AB80: =IF(IF(G80=0,"",COUNTIF(G$12:G$222,"<>0")-(RANK(M80,$M$12:$M$222)+COUNTIF($M$12:M80,M80)-2))<=INT(0.05*COUNTIF(G$12:G$222,"<>0")),"TOP5", IF(IF(G80=0,"",COUNTIF(G$12:G$222,"<>0")-(RANK(M80,$M$12:$M$222)+COUNTIF($M$12:M80,M80)-2))<=INT(0.25*COUNTIF(G$12:G$222,"<>0")),"TOP25", "")) ->  | AC80: =IF(IF(H80=0,"",COUNTIF(H$12:H$222,"<>0")-(RANK(P80,$P$12:$P$222)+COUNTIF($P$12:P80,P80)-2))<=INT(0.05*COUNTIF(H$12:H$222,"<>0")),"TOP5", IF(IF(H80=0,"",COUNTIF(H$12:H$222,"<>0")-(RANK(P80,$P$12:$P$222)+COUNTIF($P$12:P80,P80)-2))<=INT(0.25*COUNTIF(H$12:H$222,"<>0")),"TOP25", "")) ->  | AD80: =IF(IF(J80="Suppressed","",COUNTIF(J$12:J$222,"<>Suppressed")-(RANK(J80,$J$12:$J$222)+COUNTIF(J$12:$J80,J80)-2))<=INT(0.05*COUNTIF(J$12:J$222,"<>Suppressed")),"TOP5", IF(IF(J80="Suppressed","",COUNTIF(J$12:J$222,"<>Suppressed")-(RANK(J80,$J$12:$J$222)+COUNTIF(J$12:$J80,J80)-2))<=INT(0.25*COUNTIF(J$12:J$222,"<>suppressed")),"TOP25", "")) -> 
A81: 08C | B81: NHS Hammersmith and Fulham | C81: =IF(G81=0,"",COUNTIF(G$12:G$222,"<>0")-(RANK(M81,$M$12:$M$222)+COUNTIF($M$12:M81,M81)-2)) -> 138 | D81: =IF(H81=0,"",COUNTIF(P$12:P$222,"<>Suppressed")-(RANK(P81,$P$12:$P$222)+COUNTIF($P$12:P81,P81)-2)) -> 206 | E81: =IF(J81="Suppressed","",COUNTIF(J$12:J$222,"<>Suppressed")-(RANK(J81,$J$12:$J$222)+COUNTIF($J$12:J81,J81)-2)) -> 208 | F81: =VLOOKUP(A81,population!C:O,Settings!$B$3,FALSE) -> 37720.8 | G81: =IF(ISNA(IF(Settings!$B$2="Asthma", SUMIFS(CCGData!E:E,CCGData!A:A,Settings!$B$1, CCGData!B:B,CurrentData!A81), IF(Settings!$B$2="Diabetes", SUMIFS(CCGData!C:C,CCGData!A:A,Settings!$B$1, CCGData!B:B,CurrentData!A81), SUMIFS(CCGData!D:D,CCGData!A:A,Settings!$B$1, CCGData!B:B,CurrentData!A81)))),"",IF(Settings!$B$2="Asthma", SUMIFS(CCGData!E:E,CCGData!A:A,Settings!$B$1, CCGData!B:B,CurrentData!A81), IF(Settings!$B$2="Diabetes", SUMIFS(CCGData!C:C,CCGData!A:A,Settings!$B$1, CCGData!B:B,CurrentData!A81), SUMIFS(CCGData!D:D,CCGData!A:A,Settings!$B$1, CCGData!B:B,CurrentData!A81)))) -> 24 | H81: =IF(Settings!$B$2="Asthma", SUMIFS(CCGData!J:J,CCGData!A:A,Settings!$B$1, CCGData!B:B,CurrentData!A81), IF(Settings!$B$2="Diabetes", SUMIFS(CCGData!F:F,CCGData!A:A,Settings!$B$1, CCGData!B:B,CurrentData!A81), SUMIFS(CCGData!H:H,CCGData!A:A,Settings!$B$1, CCGData!B:B,CurrentData!A81))) -> 123 | I81: =IF(Settings!$B$2="Asthma", SUMIFS(CCGData!K:K,CCGData!A:A,Settings!$B$1, CCGData!B:B,CurrentData!A81), IF(Settings!$B$2="Diabetes", SUMIFS(CCGData!G:G,CCGData!A:A,Settings!$B$1, CCGData!B:B,CurrentData!A81), SUMIFS(CCGData!I:I,CCGData!A:A,Settings!$B$1, CCGData!B:B,CurrentData!A81))) -> 24 | J81: 5.125 | K81: 4.259376062 | L81: 6.114850826 | M81: 63.6253738 | N81: 40.76597754 | O81: 94.66951283 | P81: 326.0800407 | Q81: 271.0043941 | R81: 389.0596695 | S81: 47.35700552 | T81: 94.5041277 | U81: 1.68 | V81: =VLOOKUP(Selections_data_CCG!$G$2,CurrentData!A:R,13,FALSE) -> 77.70951213 | W81: =IF(Settings!$B$5="4SIMILAR", VLOOKUP(Selections_data_CCG!$G$2,'CurrentData-4SIMILAR'!A:R,13,FALSE), VLOOKUP(Settings!$C$5,CurrentData!A:R,13,FALSE)) -> 26.11663851 | X81: =VLOOKUP(Selections_data_CCG!$G$2,CurrentData!A:R,16,FALSE) -> 672.6729644 | Y81: =IF(Settings!$B$5="4SIMILAR", VLOOKUP(Selections_data_CCG!$G$2,'CurrentData-4SIMILAR'!A:R,16,FALSE), VLOOKUP(Settings!$C$5,CurrentData!A:R,16,FALSE)) -> 36.90068939 | Z81: =VLOOKUP(Selections_data_CCG!$G$2,CurrentData!A:R,10,FALSE) -> 8.147058824 | AA81: =IF(Settings!$B$5="4SIMILAR", VLOOKUP(Selections_data_CCG!$G$2,'CurrentData-4SIMILAR'!A:R,10,FALSE), VLOOKUP(Settings!$C$5,CurrentData!A:R,10,FALSE)) -> 0.8745874587 | AB81: =IF(IF(G81=0,"",COUNTIF(G$12:G$222,"<>0")-(RANK(M81,$M$12:$M$222)+COUNTIF($M$12:M81,M81)-2))<=INT(0.05*COUNTIF(G$12:G$222,"<>0")),"TOP5", IF(IF(G81=0,"",COUNTIF(G$12:G$222,"<>0")-(RANK(M81,$M$12:$M$222)+COUNTIF($M$12:M81,M81)-2))<=INT(0.25*COUNTIF(G$12:G$222,"<>0")),"TOP25", "")) ->  | AC81: =IF(IF(H81=0,"",COUNTIF(H$12:H$222,"<>0")-(RANK(P81,$P$12:$P$222)+COUNTIF($P$12:P81,P81)-2))<=INT(0.05*COUNTIF(H$12:H$222,"<>0")),"TOP5", IF(IF(H81=0,"",COUNTIF(H$12:H$222,"<>0")-(RANK(P81,$P$12:$P$222)+COUNTIF($P$12:P81,P81)-2))<=INT(0.25*COUNTIF(H$12:H$222,"<>0")),"TOP25", "")) ->  | AD81: =IF(IF(J81="Suppressed","",COUNTIF(J$12:J$222,"<>Suppressed")-(RANK(J81,$J$12:$J$222)+COUNTIF(J$12:$J81,J81)-2))<=INT(0.05*COUNTIF(J$12:J$222,"<>Suppressed")),"TOP5", IF(IF(J81="Suppressed","",COUNTIF(J$12:J$222,"<>Suppressed")-(RANK(J81,$J$12:$J$222)+COUNTIF(J$12:$J81,J81)-2))<=INT(0.25*COUNTIF(J$12:J$222,"<>suppressed")),"TOP25", "")) -> 
A82: 03Y | B82: NHS Hardwick | C82: =IF(G82=0,"",COUNTIF(G$12:G$222,"<>0")-(RANK(M82,$M$12:$M$222)+COUNTIF($M$12:M82,M82)-2)) -> 192 | D82: =IF(H82=0,"",COUNTIF(P$12:P$222,"<>Suppressed")-(RANK(P82,$P$12:$P$222)+COUNTIF($P$12:P82,P82)-2)) -> 125 | E82: =IF(J82="Suppressed","",COUNTIF(J$12:J$222,"<>Suppressed")-(RANK(J82,$J$12:$J$222)+COUNTIF($J$12:J82,J82)-2)) -> 54 | F82: =VLOOKUP(A82,population!C:O,Settings!$B$3,FALSE) -> 21281.6 | G82: =IF(ISNA(IF(Settings!$B$2="Asthma", SUMIFS(CCGData!E:E,CCGData!A:A,Settings!$B$1, CCGData!B:B,CurrentData!A82), IF(Settings!$B$2="Diabetes", SUMIFS(CCGData!C:C,CCGData!A:A,Settings!$B$1, CCGData!B:B,CurrentData!A82), SUMIFS(CCGData!D:D,CCGData!A:A,Settings!$B$1, CCGData!B:B,CurrentData!A82)))),"",IF(Settings!$B$2="Asthma", SUMIFS(CCGData!E:E,CCGData!A:A,Settings!$B$1, CCGData!B:B,CurrentData!A82), IF(Settings!$B$2="Diabetes", SUMIFS(CCGData!C:C,CCGData!A:A,Settings!$B$1, CCGData!B:B,CurrentData!A82), SUMIFS(CCGData!D:D,CCGData!A:A,Settings!$B$1, CCGData!B:B,CurrentData!A82)))) -> 18 | H82: =IF(Settings!$B$2="Asthma", SUMIFS(CCGData!J:J,CCGData!A:A,Settings!$B$1, CCGData!B:B,CurrentData!A82), IF(Settings!$B$2="Diabetes", SUMIFS(CCGData!F:F,CCGData!A:A,Settings!$B$1, CCGData!B:B,CurrentData!A82), SUMIFS(CCGData!H:H,CCGData!A:A,Settings!$B$1, CCGData!B:B,CurrentData!A82))) -> 28 | I82: =IF(Settings!$B$2="Asthma", SUMIFS(CCGData!K:K,CCGData!A:A,Settings!$B$1, CCGData!B:B,CurrentData!A82), IF(Settings!$B$2="Diabetes", SUMIFS(CCGData!G:G,CCGData!A:A,Settings!$B$1, CCGData!B:B,CurrentData!A82), SUMIFS(CCGData!I:I,CCGData!A:A,Settings!$B$1, CCGData!B:B,CurrentData!A82))) -> 18 | J82: 1.555555556 | K82: 1.03365537 | L82: 2.248210886 | M82: 84.58010676 | N82: 50.12753167 | O82: 133.6730334 | P82: 131.569055 | Q82: 87.42668153 | R82: 190.1539167 | S82: 48.04312351 | T82: 94.68159931 | U82: 1.681818182 | V82: =VLOOKUP(Selections_data_CCG!$G$2,CurrentData!A:R,13,FALSE) -> 77.70951213 | W82: =IF(Settings!$B$5="4SIMILAR", VLOOKUP(Selections_data_CCG!$G$2,'CurrentData-4SIMILAR'!A:R,13,FALSE), VLOOKUP(Settings!$C$5,CurrentData!A:R,13,FALSE)) -> 26.11663851 | X82: =VLOOKUP(Selections_data_CCG!$G$2,CurrentData!A:R,16,FALSE) -> 672.6729644 | Y82: =IF(Settings!$B$5="4SIMILAR", VLOOKUP(Selections_data_CCG!$G$2,'CurrentData-4SIMILAR'!A:R,16,FALSE), VLOOKUP(Settings!$C$5,CurrentData!A:R,16,FALSE)) -> 36.90068939 | Z82: =VLOOKUP(Selections_data_CCG!$G$2,CurrentData!A:R,10,FALSE) -> 8.147058824 | AA82: =IF(Settings!$B$5="4SIMILAR", VLOOKUP(Selections_data_CCG!$G$2,'CurrentData-4SIMILAR'!A:R,10,FALSE), VLOOKUP(Settings!$C$5,CurrentData!A:R,10,FALSE)) -> 0.8745874587 | AB82: =IF(IF(G82=0,"",COUNTIF(G$12:G$222,"<>0")-(RANK(M82,$M$12:$M$222)+COUNTIF($M$12:M82,M82)-2))<=INT(0.05*COUNTIF(G$12:G$222,"<>0")),"TOP5", IF(IF(G82=0,"",COUNTIF(G$12:G$222,"<>0")-(RANK(M82,$M$12:$M$222)+COUNTIF($M$12:M82,M82)-2))<=INT(0.25*COUNTIF(G$12:G$222,"<>0")),"TOP25", "")) ->  | AC82: =IF(IF(H82=0,"",COUNTIF(H$12:H$222,"<>0")-(RANK(P82,$P$12:$P$222)+COUNTIF($P$12:P82,P82)-2))<=INT(0.05*COUNTIF(H$12:H$222,"<>0")),"TOP5", IF(IF(H82=0,"",COUNTIF(H$12:H$222,"<>0")-(RANK(P82,$P$12:$P$222)+COUNTIF($P$12:P82,P82)-2))<=INT(0.25*COUNTIF(H$12:H$222,"<>0")),"TOP25", "")) ->  | AD82: =IF(IF(J82="Suppressed","",COUNTIF(J$12:J$222,"<>Suppressed")-(RANK(J82,$J$12:$J$222)+COUNTIF(J$12:$J82,J82)-2))<=INT(0.05*COUNTIF(J$12:J$222,"<>Suppressed")),"TOP5", IF(IF(J82="Suppressed","",COUNTIF(J$12:J$222,"<>Suppressed")-(RANK(J82,$J$12:$J$222)+COUNTIF(J$12:$J82,J82)-2))<=INT(0.25*COUNTIF(J$12:J$222,"<>suppressed")),"TOP25", "")) -> 
A83: 08D | B83: NHS Haringey | C83: =IF(G83=0,"",COUNTIF(G$12:G$222,"<>0")-(RANK(M83,$M$12:$M$222)+COUNTIF($M$12:M83,M83)-2)) -> 81 | D83: =IF(H83=0,"",COUNTIF(P$12:P$222,"<>Suppressed")-(RANK(P83,$P$12:$P$222)+COUNTIF($P$12:P83,P83)-2)) -> 132 | E83: =IF(J83="Suppressed","",COUNTIF(J$12:J$222,"<>Suppressed")-(RANK(J83,$J$12:$J$222)+COUNTIF($J$12:J83,J83)-2)) -> 158 | F83: =VLOOKUP(A83,population!C:O,Settings!$B$3,FALSE) -> 64731.8 | G83: =IF(ISNA(IF(Settings!$B$2="Asthma", SUMIFS(CCGData!E:E,CCGData!A:A,Settings!$B$1, CCGData!B:B,CurrentData!A83), IF(Settings!$B$2="Diabetes", SUMIFS(CCGData!C:C,CCGData!A:A,Settings!$B$1, CCGData!B:B,CurrentData!A83), SUMIFS(CCGData!D:D,CCGData!A:A,Settings!$B$1, CCGData!B:B,CurrentData!A83)))),"",IF(Settings!$B$2="Asthma", SUMIFS(CCGData!E:E,CCGData!A:A,Settings!$B$1, CCGData!B:B,CurrentData!A83), IF(Settings!$B$2="Diabetes", SUMIFS(CCGData!C:C,CCGData!A:A,Settings!$B$1, CCGData!B:B,CurrentData!A83), SUMIFS(CCGData!D:D,CCGData!A:A,Settings!$B$1, CCGData!B:B,CurrentData!A83)))) -> 32 | H83: =IF(Settings!$B$2="Asthma", SUMIFS(CCGData!J:J,CCGData!A:A,Settings!$B$1, CCGData!B:B,CurrentData!A83), IF(Settings!$B$2="Diabetes", SUMIFS(CCGData!F:F,CCGData!A:A,Settings!$B$1, CCGData!B:B,CurrentData!A83), SUMIFS(CCGData!H:H,CCGData!A:A,Settings!$B$1, CCGData!B:B,CurrentData!A83))) -> 86 | I83: =IF(Settings!$B$2="Asthma", SUMIFS(CCGData!K:K,CCGData!A:A,Settings!$B$1, CCGData!B:B,CurrentData!A83), IF(Settings!$B$2="Diabetes", SUMIFS(CCGData!G:G,CCGData!A:A,Settings!$B$1, CCGData!B:B,CurrentData!A83), SUMIFS(CCGData!I:I,CCGData!A:A,Settings!$B$1, CCGData!B:B,CurrentData!A83))) -> 34 | J83: 2.529411765 | K83: 2.023202919 | L83: 3.123802952 | M83: 49.43474459 | N83: 33.81332871 | O83: 69.7871094 | P83: 132.8558761 | Q83: 106.267552 | R83: 164.0759262 | S83: 48.10662454 | T83: 95.10968384 | U83: 1.714285714 | V83: =VLOOKUP(Selections_data_CCG!$G$2,CurrentData!A:R,13,FALSE) -> 77.70951213 | W83: =IF(Settings!$B$5="4SIMILAR", VLOOKUP(Selections_data_CCG!$G$2,'CurrentData-4SIMILAR'!A:R,13,FALSE), VLOOKUP(Settings!$C$5,CurrentData!A:R,13,FALSE)) -> 26.11663851 | X83: =VLOOKUP(Selections_data_CCG!$G$2,CurrentData!A:R,16,FALSE) -> 672.6729644 | Y83: =IF(Settings!$B$5="4SIMILAR", VLOOKUP(Selections_data_CCG!$G$2,'CurrentData-4SIMILAR'!A:R,16,FALSE), VLOOKUP(Settings!$C$5,CurrentData!A:R,16,FALSE)) -> 36.90068939 | Z83: =VLOOKUP(Selections_data_CCG!$G$2,CurrentData!A:R,10,FALSE) -> 8.147058824 | AA83: =IF(Settings!$B$5="4SIMILAR", VLOOKUP(Selections_data_CCG!$G$2,'CurrentData-4SIMILAR'!A:R,10,FALSE), VLOOKUP(Settings!$C$5,CurrentData!A:R,10,FALSE)) -> 0.8745874587 | AB83: =IF(IF(G83=0,"",COUNTIF(G$12:G$222,"<>0")-(RANK(M83,$M$12:$M$222)+COUNTIF($M$12:M83,M83)-2))<=INT(0.05*COUNTIF(G$12:G$222,"<>0")),"TOP5", IF(IF(G83=0,"",COUNTIF(G$12:G$222,"<>0")-(RANK(M83,$M$12:$M$222)+COUNTIF($M$12:M83,M83)-2))<=INT(0.25*COUNTIF(G$12:G$222,"<>0")),"TOP25", "")) ->  | AC83: =IF(IF(H83=0,"",COUNTIF(H$12:H$222,"<>0")-(RANK(P83,$P$12:$P$222)+COUNTIF($P$12:P83,P83)-2))<=INT(0.05*COUNTIF(H$12:H$222,"<>0")),"TOP5", IF(IF(H83=0,"",COUNTIF(H$12:H$222,"<>0")-(RANK(P83,$P$12:$P$222)+COUNTIF($P$12:P83,P83)-2))<=INT(0.25*COUNTIF(H$12:H$222,"<>0")),"TOP25", "")) ->  | AD83: =IF(IF(J83="Suppressed","",COUNTIF(J$12:J$222,"<>Suppressed")-(RANK(J83,$J$12:$J$222)+COUNTIF(J$12:$J83,J83)-2))<=INT(0.05*COUNTIF(J$12:J$222,"<>Suppressed")),"TOP5", IF(IF(J83="Suppressed","",COUNTIF(J$12:J$222,"<>Suppressed")-(RANK(J83,$J$12:$J$222)+COUNTIF(J$12:$J83,J83)-2))<=INT(0.25*COUNTIF(J$12:J$222,"<>suppressed")),"TOP25", "")) -> 
A84: 03E | B84: NHS Harrogate and Rural District | C84: =IF(G84=0,"",COUNTIF(G$12:G$222,"<>0")-(RANK(M84,$M$12:$M$222)+COUNTIF($M$12:M84,M84)-2)) -> 115 | D84: =IF(H84=0,"",COUNTIF(P$12:P$222,"<>Suppressed")-(RANK(P84,$P$12:$P$222)+COUNTIF($P$12:P84,P84)-2)) -> 150 | E84: =IF(J84="Suppressed","",COUNTIF(J$12:J$222,"<>Suppressed")-(RANK(J84,$J$12:$J$222)+COUNTIF($J$12:J84,J84)-2)) -> 162 | F84: =VLOOKUP(A84,population!C:O,Settings!$B$3,FALSE) -> 32828.8 | G84: =IF(ISNA(IF(Settings!$B$2="Asthma", SUMIFS(CCGData!E:E,CCGData!A:A,Settings!$B$1, CCGData!B:B,CurrentData!A84), IF(Settings!$B$2="Diabetes", SUMIFS(CCGData!C:C,CCGData!A:A,Settings!$B$1, CCGData!B:B,CurrentData!A84), SUMIFS(CCGData!D:D,CCGData!A:A,Settings!$B$1, CCGData!B:B,CurrentData!A84)))),"",IF(Settings!$B$2="Asthma", SUMIFS(CCGData!E:E,CCGData!A:A,Settings!$B$1, CCGData!B:B,CurrentData!A84), IF(Settings!$B$2="Diabetes", SUMIFS(CCGData!C:C,CCGData!A:A,Settings!$B$1, CCGData!B:B,CurrentData!A84), SUMIFS(CCGData!D:D,CCGData!A:A,Settings!$B$1, CCGData!B:B,CurrentData!A84)))) -> 19 | H84: =IF(Settings!$B$2="Asthma", SUMIFS(CCGData!J:J,CCGData!A:A,Settings!$B$1, CCGData!B:B,CurrentData!A84), IF(Settings!$B$2="Diabetes", SUMIFS(CCGData!F:F,CCGData!A:A,Settings!$B$1, CCGData!B:B,CurrentData!A84), SUMIFS(CCGData!H:H,CCGData!A:A,Settings!$B$1, CCGData!B:B,CurrentData!A84))) -> 49 | I84: =IF(Settings!$B$2="Asthma", SUMIFS(CCGData!K:K,CCGData!A:A,Settings!$B$1, CCGData!B:B,CurrentData!A84), IF(Settings!$B$2="Diabetes", SUMIFS(CCGData!G:G,CCGData!A:A,Settings!$B$1, CCGData!B:B,CurrentData!A84), SUMIFS(CCGData!I:I,CCGData!A:A,Settings!$B$1, CCGData!B:B,CurrentData!A84))) -> 19 | J84: 2.578947368 | K84: 1.90791946 | L84: 3.409505189 | M84: 57.87601131 | N84: 34.84513952 | O84: 90.38056088 | P84: 149.2591871 | Q84: 110.4227683 | R84: 197.3285609 | S84: 48.46628443 | T84: 95.12754316 | U84: 1.714285714 | V84: =VLOOKUP(Selections_data_CCG!$G$2,CurrentData!A:R,13,FALSE) -> 77.70951213 | W84: =IF(Settings!$B$5="4SIMILAR", VLOOKUP(Selections_data_CCG!$G$2,'CurrentData-4SIMILAR'!A:R,13,FALSE), VLOOKUP(Settings!$C$5,CurrentData!A:R,13,FALSE)) -> 26.11663851 | X84: =VLOOKUP(Selections_data_CCG!$G$2,CurrentData!A:R,16,FALSE) -> 672.6729644 | Y84: =IF(Settings!$B$5="4SIMILAR", VLOOKUP(Selections_data_CCG!$G$2,'CurrentData-4SIMILAR'!A:R,16,FALSE), VLOOKUP(Settings!$C$5,CurrentData!A:R,16,FALSE)) -> 36.90068939 | Z84: =VLOOKUP(Selections_data_CCG!$G$2,CurrentData!A:R,10,FALSE) -> 8.147058824 | AA84: =IF(Settings!$B$5="4SIMILAR", VLOOKUP(Selections_data_CCG!$G$2,'CurrentData-4SIMILAR'!A:R,10,FALSE), VLOOKUP(Settings!$C$5,CurrentData!A:R,10,FALSE)) -> 0.8745874587 | AB84: =IF(IF(G84=0,"",COUNTIF(G$12:G$222,"<>0")-(RANK(M84,$M$12:$M$222)+COUNTIF($M$12:M84,M84)-2))<=INT(0.05*COUNTIF(G$12:G$222,"<>0")),"TOP5", IF(IF(G84=0,"",COUNTIF(G$12:G$222,"<>0")-(RANK(M84,$M$12:$M$222)+COUNTIF($M$12:M84,M84)-2))<=INT(0.25*COUNTIF(G$12:G$222,"<>0")),"TOP25", "")) ->  | AC84: =IF(IF(H84=0,"",COUNTIF(H$12:H$222,"<>0")-(RANK(P84,$P$12:$P$222)+COUNTIF($P$12:P84,P84)-2))<=INT(0.05*COUNTIF(H$12:H$222,"<>0")),"TOP5", IF(IF(H84=0,"",COUNTIF(H$12:H$222,"<>0")-(RANK(P84,$P$12:$P$222)+COUNTIF($P$12:P84,P84)-2))<=INT(0.25*COUNTIF(H$12:H$222,"<>0")),"TOP25", "")) ->  | AD84: =IF(IF(J84="Suppressed","",COUNTIF(J$12:J$222,"<>Suppressed")-(RANK(J84,$J$12:$J$222)+COUNTIF(J$12:$J84,J84)-2))<=INT(0.05*COUNTIF(J$12:J$222,"<>Suppressed")),"TOP5", IF(IF(J84="Suppressed","",COUNTIF(J$12:J$222,"<>Suppressed")-(RANK(J84,$J$12:$J$222)+COUNTIF(J$12:$J84,J84)-2))<=INT(0.25*COUNTIF(J$12:J$222,"<>suppressed")),"TOP25", "")) -> 
A85: 08E | B85: NHS Harrow | C85: =IF(G85=0,"",COUNTIF(G$12:G$222,"<>0")-(RANK(M85,$M$12:$M$222)+COUNTIF($M$12:M85,M85)-2)) -> 22 | D85: =IF(H85=0,"",COUNTIF(P$12:P$222,"<>Suppressed")-(RANK(P85,$P$12:$P$222)+COUNTIF($P$12:P85,P85)-2)) -> 95 | E85: =IF(J85="Suppressed","",COUNTIF(J$12:J$222,"<>Suppressed")-(RANK(J85,$J$12:$J$222)+COUNTIF($J$12:J85,J85)-2)) -> 180 | F85: =VLOOKUP(A85,population!C:O,Settings!$B$3,FALSE) -> 56767.2 | G85: =IF(ISNA(IF(Settings!$B$2="Asthma", SUMIFS(CCGData!E:E,CCGData!A:A,Settings!$B$1, CCGData!B:B,CurrentData!A85), IF(Settings!$B$2="Diabetes", SUMIFS(CCGData!C:C,CCGData!A:A,Settings!$B$1, CCGData!B:B,CurrentData!A85), SUMIFS(CCGData!D:D,CCGData!A:A,Settings!$B$1, CCGData!B:B,CurrentData!A85)))),"",IF(Settings!$B$2="Asthma", SUMIFS(CCGData!E:E,CCGData!A:A,Settings!$B$1, CCGData!B:B,CurrentData!A85), IF(Settings!$B$2="Diabetes", SUMIFS(CCGData!C:C,CCGData!A:A,Settings!$B$1, CCGData!B:B,CurrentData!A85), SUMIFS(CCGData!D:D,CCGData!A:A,Settings!$B$1, CCGData!B:B,CurrentData!A85)))) -> 21 | H85: =IF(Settings!$B$2="Asthma", SUMIFS(CCGData!J:J,CCGData!A:A,Settings!$B$1, CCGData!B:B,CurrentData!A85), IF(Settings!$B$2="Diabetes", SUMIFS(CCGData!F:F,CCGData!A:A,Settings!$B$1, CCGData!B:B,CurrentData!A85), SUMIFS(CCGData!H:H,CCGData!A:A,Settings!$B$1, CCGData!B:B,CurrentData!A85))) -> 62 | I85: =IF(Settings!$B$2="Asthma", SUMIFS(CCGData!K:K,CCGData!A:A,Settings!$B$1, CCGData!B:B,CurrentData!A85), IF(Settings!$B$2="Diabetes", SUMIFS(CCGData!G:G,CCGData!A:A,Settings!$B$1, CCGData!B:B,CurrentData!A85), SUMIFS(CCGData!I:I,CCGData!A:A,Settings!$B$1, CCGData!B:B,CurrentData!A85))) -> 21 | J85: 2.952380952 | K85: 2.263573547 | L85: 3.784819137 | M85: 36.99319325 | N85: 22.89936968 | O85: 56.54802551 | P85: 109.2179991 | Q85: 83.73681366 | R85: 140.0125458 | S85: 48.50068224 | T85: 95.44769558 | U85: 1.717391304 | V85: =VLOOKUP(Selections_data_CCG!$G$2,CurrentData!A:R,13,FALSE) -> 77.70951213 | W85: =IF(Settings!$B$5="4SIMILAR", VLOOKUP(Selections_data_CCG!$G$2,'CurrentData-4SIMILAR'!A:R,13,FALSE), VLOOKUP(Settings!$C$5,CurrentData!A:R,13,FALSE)) -> 26.11663851 | X85: =VLOOKUP(Selections_data_CCG!$G$2,CurrentData!A:R,16,FALSE) -> 672.6729644 | Y85: =IF(Settings!$B$5="4SIMILAR", VLOOKUP(Selections_data_CCG!$G$2,'CurrentData-4SIMILAR'!A:R,16,FALSE), VLOOKUP(Settings!$C$5,CurrentData!A:R,16,FALSE)) -> 36.90068939 | Z85: =VLOOKUP(Selections_data_CCG!$G$2,CurrentData!A:R,10,FALSE) -> 8.147058824 | AA85: =IF(Settings!$B$5="4SIMILAR", VLOOKUP(Selections_data_CCG!$G$2,'CurrentData-4SIMILAR'!A:R,10,FALSE), VLOOKUP(Settings!$C$5,CurrentData!A:R,10,FALSE)) -> 0.8745874587 | AB85: =IF(IF(G85=0,"",COUNTIF(G$12:G$222,"<>0")-(RANK(M85,$M$12:$M$222)+COUNTIF($M$12:M85,M85)-2))<=INT(0.05*COUNTIF(G$12:G$222,"<>0")),"TOP5", IF(IF(G85=0,"",COUNTIF(G$12:G$222,"<>0")-(RANK(M85,$M$12:$M$222)+COUNTIF($M$12:M85,M85)-2))<=INT(0.25*COUNTIF(G$12:G$222,"<>0")),"TOP25", "")) -> TOP25 | AC85: =IF(IF(H85=0,"",COUNTIF(H$12:H$222,"<>0")-(RANK(P85,$P$12:$P$222)+COUNTIF($P$12:P85,P85)-2))<=INT(0.05*COUNTIF(H$12:H$222,"<>0")),"TOP5", IF(IF(H85=0,"",COUNTIF(H$12:H$222,"<>0")-(RANK(P85,$P$12:$P$222)+COUNTIF($P$12:P85,P85)-2))<=INT(0.25*COUNTIF(H$12:H$222,"<>0")),"TOP25", "")) ->  | AD85: =IF(IF(J85="Suppressed","",COUNTIF(J$12:J$222,"<>Suppressed")-(RANK(J85,$J$12:$J$222)+COUNTIF(J$12:$J85,J85)-2))<=INT(0.05*COUNTIF(J$12:J$222,"<>Suppressed")),"TOP5", IF(IF(J85="Suppressed","",COUNTIF(J$12:J$222,"<>Suppressed")-(RANK(J85,$J$12:$J$222)+COUNTIF(J$12:$J85,J85)-2))<=INT(0.25*COUNTIF(J$12:J$222,"<>suppressed")),"TOP25", "")) -> 
A86: 00K | B86: NHS Hartlepool and Stockton-on-Tees | C86: =IF(G86=0,"",COUNTIF(G$12:G$222,"<>0")-(RANK(M86,$M$12:$M$222)+COUNTIF($M$12:M86,M86)-2)) -> 169 | D86: =IF(H86=0,"",COUNTIF(P$12:P$222,"<>Suppressed")-(RANK(P86,$P$12:$P$222)+COUNTIF($P$12:P86,P86)-2)) -> 133 | E86: =IF(J86="Suppressed","",COUNTIF(J$12:J$222,"<>Suppressed")-(RANK(J86,$J$12:$J$222)+COUNTIF($J$12:J86,J86)-2)) -> 75 | F86: =VLOOKUP(A86,population!C:O,Settings!$B$3,FALSE) -> 65914.2 | G86: =IF(ISNA(IF(Settings!$B$2="Asthma", SUMIFS(CCGData!E:E,CCGData!A:A,Settings!$B$1, CCGData!B:B,CurrentData!A86), IF(Settings!$B$2="Diabetes", SUMIFS(CCGData!C:C,CCGData!A:A,Settings!$B$1, CCGData!B:B,CurrentData!A86), SUMIFS(CCGData!D:D,CCGData!A:A,Settings!$B$1, CCGData!B:B,CurrentData!A86)))),"",IF(Settings!$B$2="Asthma", SUMIFS(CCGData!E:E,CCGData!A:A,Settings!$B$1, CCGData!B:B,CurrentData!A86), IF(Settings!$B$2="Diabetes", SUMIFS(CCGData!C:C,CCGData!A:A,Settings!$B$1, CCGData!B:B,CurrentData!A86), SUMIFS(CCGData!D:D,CCGData!A:A,Settings!$B$1, CCGData!B:B,CurrentData!A86)))) -> 47 | H86: =IF(Settings!$B$2="Asthma", SUMIFS(CCGData!J:J,CCGData!A:A,Settings!$B$1, CCGData!B:B,CurrentData!A86), IF(Settings!$B$2="Diabetes", SUMIFS(CCGData!F:F,CCGData!A:A,Settings!$B$1, CCGData!B:B,CurrentData!A86), SUMIFS(CCGData!H:H,CCGData!A:A,Settings!$B$1, CCGData!B:B,CurrentData!A86))) -> 88 | I86: =IF(Settings!$B$2="Asthma", SUMIFS(CCGData!K:K,CCGData!A:A,Settings!$B$1, CCGData!B:B,CurrentData!A86), IF(Settings!$B$2="Diabetes", SUMIFS(CCGData!G:G,CCGData!A:A,Settings!$B$1, CCGData!B:B,CurrentData!A86), SUMIFS(CCGData!I:I,CCGData!A:A,Settings!$B$1, CCGData!B:B,CurrentData!A86))) -> 51 | J86: 1.725490196 | K86: 1.383893594 | L86: 2.125852181 | M86: 71.30481747 | N86: 52.39209786 | O86: 94.82029114 | P86: 133.5068923 | Q86: 107.0764316 | R86: 164.4842253 | S86: 48.77632397 | T86: 97.08186132 | U86: 1.725490196 | V86: =VLOOKUP(Selections_data_CCG!$G$2,CurrentData!A:R,13,FALSE) -> 77.70951213 | W86: =IF(Settings!$B$5="4SIMILAR", VLOOKUP(Selections_data_CCG!$G$2,'CurrentData-4SIMILAR'!A:R,13,FALSE), VLOOKUP(Settings!$C$5,CurrentData!A:R,13,FALSE)) -> 26.11663851 | X86: =VLOOKUP(Selections_data_CCG!$G$2,CurrentData!A:R,16,FALSE) -> 672.6729644 | Y86: =IF(Settings!$B$5="4SIMILAR", VLOOKUP(Selections_data_CCG!$G$2,'CurrentData-4SIMILAR'!A:R,16,FALSE), VLOOKUP(Settings!$C$5,CurrentData!A:R,16,FALSE)) -> 36.90068939 | Z86: =VLOOKUP(Selections_data_CCG!$G$2,CurrentData!A:R,10,FALSE) -> 8.147058824 | AA86: =IF(Settings!$B$5="4SIMILAR", VLOOKUP(Selections_data_CCG!$G$2,'CurrentData-4SIMILAR'!A:R,10,FALSE), VLOOKUP(Settings!$C$5,CurrentData!A:R,10,FALSE)) -> 0.8745874587 | AB86: =IF(IF(G86=0,"",COUNTIF(G$12:G$222,"<>0")-(RANK(M86,$M$12:$M$222)+COUNTIF($M$12:M86,M86)-2))<=INT(0.05*COUNTIF(G$12:G$222,"<>0")),"TOP5", IF(IF(G86=0,"",COUNTIF(G$12:G$222,"<>0")-(RANK(M86,$M$12:$M$222)+COUNTIF($M$12:M86,M86)-2))<=INT(0.25*COUNTIF(G$12:G$222,"<>0")),"TOP25", "")) ->  | AC86: =IF(IF(H86=0,"",COUNTIF(H$12:H$222,"<>0")-(RANK(P86,$P$12:$P$222)+COUNTIF($P$12:P86,P86)-2))<=INT(0.05*COUNTIF(H$12:H$222,"<>0")),"TOP5", IF(IF(H86=0,"",COUNTIF(H$12:H$222,"<>0")-(RANK(P86,$P$12:$P$222)+COUNTIF($P$12:P86,P86)-2))<=INT(0.25*COUNTIF(H$12:H$222,"<>0")),"TOP25", "")) ->  | AD86: =IF(IF(J86="Suppressed","",COUNTIF(J$12:J$222,"<>Suppressed")-(RANK(J86,$J$12:$J$222)+COUNTIF(J$12:$J86,J86)-2))<=INT(0.05*COUNTIF(J$12:J$222,"<>Suppressed")),"TOP5", IF(IF(J86="Suppressed","",COUNTIF(J$12:J$222,"<>Suppressed")-(RANK(J86,$J$12:$J$222)+COUNTIF(J$12:$J86,J86)-2))<=INT(0.25*COUNTIF(J$12:J$222,"<>suppressed")),"TOP25", "")) -> 
A87: 09P | B87: NHS Hastings and Rother | C87: =IF(G87=0,"",COUNTIF(G$12:G$222,"<>0")-(RANK(M87,$M$12:$M$222)+COUNTIF($M$12:M87,M87)-2)) -> 110 | D87: =IF(H87=0,"",COUNTIF(P$12:P$222,"<>Suppressed")-(RANK(P87,$P$12:$P$222)+COUNTIF($P$12:P87,P87)-2)) -> 44 | E87: =IF(J87="Suppressed","",COUNTIF(J$12:J$222,"<>Suppressed")-(RANK(J87,$J$12:$J$222)+COUNTIF($J$12:J87,J87)-2)) -> 36 | F87: =VLOOKUP(A87,population!C:O,Settings!$B$3,FALSE) -> 36848 | G87: =IF(ISNA(IF(Settings!$B$2="Asthma", SUMIFS(CCGData!E:E,CCGData!A:A,Settings!$B$1, CCGData!B:B,CurrentData!A87), IF(Settings!$B$2="Diabetes", SUMIFS(CCGData!C:C,CCGData!A:A,Settings!$B$1, CCGData!B:B,CurrentData!A87), SUMIFS(CCGData!D:D,CCGData!A:A,Settings!$B$1, CCGData!B:B,CurrentData!A87)))),"",IF(Settings!$B$2="Asthma", SUMIFS(CCGData!E:E,CCGData!A:A,Settings!$B$1, CCGData!B:B,CurrentData!A87), IF(Settings!$B$2="Diabetes", SUMIFS(CCGData!C:C,CCGData!A:A,Settings!$B$1, CCGData!B:B,CurrentData!A87), SUMIFS(CCGData!D:D,CCGData!A:A,Settings!$B$1, CCGData!B:B,CurrentData!A87)))) -> 21 | H87: =IF(Settings!$B$2="Asthma", SUMIFS(CCGData!J:J,CCGData!A:A,Settings!$B$1, CCGData!B:B,CurrentData!A87), IF(Settings!$B$2="Diabetes", SUMIFS(CCGData!F:F,CCGData!A:A,Settings!$B$1, CCGData!B:B,CurrentData!A87), SUMIFS(CCGData!H:H,CCGData!A:A,Settings!$B$1, CCGData!B:B,CurrentData!A87))) -> 29 | I87: =IF(Settings!$B$2="Asthma", SUMIFS(CCGData!K:K,CCGData!A:A,Settings!$B$1, CCGData!B:B,CurrentData!A87), IF(Settings!$B$2="Diabetes", SUMIFS(CCGData!G:G,CCGData!A:A,Settings!$B$1, CCGData!B:B,CurrentData!A87), SUMIFS(CCGData!I:I,CCGData!A:A,Settings!$B$1, CCGData!B:B,CurrentData!A87))) -> 21 | J87: 1.380952381 | K87: 0.9248454827 | L87: 1.983277973 | M87: 56.99088146 | N87: 35.27825386 | O87: 87.11661619 | P87: 78.70169344 | Q87: 52.70775927 | R87: 113.0287599 | S87: 48.78814491 | T87: 98.62697166 | U87: 1.75 | V87: =VLOOKUP(Selections_data_CCG!$G$2,CurrentData!A:R,13,FALSE) -> 77.70951213 | W87: =IF(Settings!$B$5="4SIMILAR", VLOOKUP(Selections_data_CCG!$G$2,'CurrentData-4SIMILAR'!A:R,13,FALSE), VLOOKUP(Settings!$C$5,CurrentData!A:R,13,FALSE)) -> 26.11663851 | X87: =VLOOKUP(Selections_data_CCG!$G$2,CurrentData!A:R,16,FALSE) -> 672.6729644 | Y87: =IF(Settings!$B$5="4SIMILAR", VLOOKUP(Selections_data_CCG!$G$2,'CurrentData-4SIMILAR'!A:R,16,FALSE), VLOOKUP(Settings!$C$5,CurrentData!A:R,16,FALSE)) -> 36.90068939 | Z87: =VLOOKUP(Selections_data_CCG!$G$2,CurrentData!A:R,10,FALSE) -> 8.147058824 | AA87: =IF(Settings!$B$5="4SIMILAR", VLOOKUP(Selections_data_CCG!$G$2,'CurrentData-4SIMILAR'!A:R,10,FALSE), VLOOKUP(Settings!$C$5,CurrentData!A:R,10,FALSE)) -> 0.8745874587 | AB87: =IF(IF(G87=0,"",COUNTIF(G$12:G$222,"<>0")-(RANK(M87,$M$12:$M$222)+COUNTIF($M$12:M87,M87)-2))<=INT(0.05*COUNTIF(G$12:G$222,"<>0")),"TOP5", IF(IF(G87=0,"",COUNTIF(G$12:G$222,"<>0")-(RANK(M87,$M$12:$M$222)+COUNTIF($M$12:M87,M87)-2))<=INT(0.25*COUNTIF(G$12:G$222,"<>0")),"TOP25", "")) ->  | AC87: =IF(IF(H87=0,"",COUNTIF(H$12:H$222,"<>0")-(RANK(P87,$P$12:$P$222)+COUNTIF($P$12:P87,P87)-2))<=INT(0.05*COUNTIF(H$12:H$222,"<>0")),"TOP5", IF(IF(H87=0,"",COUNTIF(H$12:H$222,"<>0")-(RANK(P87,$P$12:$P$222)+COUNTIF($P$12:P87,P87)-2))<=INT(0.25*COUNTIF(H$12:H$222,"<>0")),"TOP25", "")) -> TOP25 | AD87: =IF(IF(J87="Suppressed","",COUNTIF(J$12:J$222,"<>Suppressed")-(RANK(J87,$J$12:$J$222)+COUNTIF(J$12:$J87,J87)-2))<=INT(0.05*COUNTIF(J$12:J$222,"<>Suppressed")),"TOP5", IF(IF(J87="Suppressed","",COUNTIF(J$12:J$222,"<>Suppressed")-(RANK(J87,$J$12:$J$222)+COUNTIF(J$12:$J87,J87)-2))<=INT(0.25*COUNTIF(J$12:J$222,"<>suppressed")),"TOP25", "")) -> TOP25
